Workbook

Sheet CK GASTOS OSN PD MES 1 (hidden)
A1: MINISTERIO DE CULTURA JUVENTUD Y DEPORTES
A2: CENTRO NACIONAL DE LA MUSICA | D2: =+#REF!-#REF! ->  | AJ2: 2,492,680.00 | AL2: =+AL3-#REF! ->  | AM2: andres salado | AN2: 3,791,581.83 | CN2: =1727322-CN32 -> 779,886.00 | CO2: =275050-CO33 -> 124,185.00
A3: PRODUCCION OSN | AJ3: =+AJ2/4000 -> 623.17 | AL3: =2000*640.95 -> 1,281,900.00 | AM3: 4 448 770,75 | AN3: 2 787 728,30 | CM3: MONTO REAL EN EL TESORO | CN3: =+CN32+CN2 -> 1,727,322.00 | CO3: =+CO2+CO33 -> 275,050.00 | CQ3: =+CQ14+'CK GASTOS INM MES 1'!#REF! ->  | CR3: 286,082.45
A4: INFORME DE EJECUCION PRESUPUESTARIO 2024, EGRESOS | D4: =+#REF!+#REF!+#REF!+#REF!+#REF! ->  | I4: =+I12+#REF! ->  | N4: =+N12+M13+O14+P15+Q16 -> 11,903,232.00 | AH4: fei fei | AI4: diferencia bos | AJ4: =+#REF!-AJ2 ->  | BG4: =+BG16+BG17 -> 0 | BQ4: =+BQ12+BQ48+BQ49 -> 0 | BS4: =+BS15+BS46+BS47 -> 0 | CR4: =+CR3-CR43 -> 51,041.70
AM5: =+AM20+#REF! ->  | AN5: =+#REF!+AN14+AN19+AN45 ->  | CN5: 200.00 | CO5: 202.00
A6: FECHA | B6: DOCTO # | C6: DETALLE PAGO | D6: 0.01.01 | E6: 0.01.05 | F6: 0.02.01 | G6: 0.02.04 | H6: 0.03.01 | I6: 0.03.02 | J6: 0.03.03 | K6: 0.03.04 | L6: 0.03.99 | M6: 0.04.01 | N6: 0.04.05 | O6: 0.05.01 | P6: 0.05.02 | Q6: 0.05.03 | R6: 0.05.05 | S6: 1.01.01 | T6: 1.01.02 | U6: 1.01.03 | V6: 1.01.04 | W6: 1.01.99 | X6: 1.02.01 | Y6: 1.02.02 | Z6: 1.02.03 | AA6: 1.02.04 | AB6: 1.03.01 | AC6: 1.03.02 | AD6: 1.03.03 | AE6: 1.03.04 | AF6: 1.03.05 | AG6: 1.03.06 | AH6: 1.04.02 | AI6: 1.04.03 | AJ6: 1.04.04 | AK6: 1.04.05 | AL6: 1.04.06 | AM6: 1.04.99 | AN6: 1.05.01 | AO6: 1.05.02 | AP6: 1.05.03 | AQ6: 1.05.04 | AR6: 1.06.01 | AS6: 1.07.01 | AT6: 1.07.02 | AU6: 1.07.03 | AV6: 1.08.01 | AW6: 1.08.04 | AX6: 1.08.05 | AY6: 1.08.06 | AZ6: 1.08.07 | BA6: 1.08.08. | BB6: 1.08.99 | BC6: 1.09.02 | BD6: 1.09.99 | BE6: 1.99.02 | BF6: 1.99.99 | BG6: 2.01.01 | BH6: 2.01.02 | BI6: 2.01.04 | BJ6: 2.01.99 | BK6: 2.02.03 | BL6: 2.03.01 | BM6: 2.03.03 | BN6: 2.03.04 | BO6: 2.03.05 | BP6: 2.03.06 | BQ6: 2.03.99 | BR6: 2.04.01 | BS6: 2.04.02 | BT6: 2.99.01 | BU6: 2.99.03 | BV6: 2.99.04 | BW6: 2.99.05 | BX6: 2.99.06 | BY6: 2.99.07 | BZ6: 2.99.99 | CA6: 3.04.05 | CB6: 5.01.01 | CC6: 5.01.02 | CD6: 5.01.03 | CE6: 5.01.04 | CF6: 5.01.05 | CG6: 5.01.07 | CH6: 5.01.99 | CI6: 5.02.01 | CJ6: 5.02.99 | CK6: 5.99.03 | CL6: 5.99.99 | CM6: 6.01.02 | CN6: 6.01.03 | CO6: 6.01.03 | CP6: 6.02.99 | CQ6: 6.03.01 | CR6: 6.03.99 | CS6: 6.04.01 | CT6: 6.07.01 | CU6: 9.02.01
A7: 2024-04-18 | B7: CHEQUE 35692995 | C7: RICARDO RUBI CAJA CHICA #06 1.04.99 | AM7: 104,076.96
A8: 2024-04-18 | B8: CHEQUE 35692995 | C8: RICARDO RUBI CAJA CHICA #06 2.03.99 | BQ8: 400.00
A9: 2024-04-18 | B9: CHEQUE 35692995 | C9: RICARDO RUBI CAJA CHICA #06 2.03.04 | BN9: 34,905.87
A10: 2024-04-18 | B10: CHEQUE 35692995 | C10: RICARDO RUBI CAJA CHICA #06 1.05.01 | AN10: 6,420.00
B12: 0.04.05 | C12: Aporte Patronal BPDC | N12: 301,731.00
B13: 0.04.01 | C13: Enferm y Maternidad | M13: 5,603,461.00
B14: 0.05.01 | C14: Invalidez, Vejez y Muerte | O14: 3,282,459.00
B15: 0.05.02 | C15: Fondo Pens Complementaria | P15: 1,810,390.00
B16: 0.05.03 | C16: Fondo de capitalización Laboral | Q16: 905,191.00
A18: 2024-04-29 | B18: CHEQUE 35692996-0 | C18: RICARDO RUBI CAJA CHICA #07 2.03.99 | BQ18: 15,630.00
A19: 2024-04-29 | B19: CHEQUE 35692996-0 | C19: RICARDO RUBI CAJA CHICA #07 1.05.01 | AN19: 5,550.00
A20: 2024-04-29 | B20: CHEQUE 35692996-0 | C20: RICARDO RUBI CAJA CHICA #07 2.03.04 | BN20: 8,700.00
A21: 2024-04-29 | B21: CHEQUE 35692996-0 | C21: RICARDO RUBI CAJA CHICA #07 2.01.04 | BI21: 43,700.26
A22: 2024-04-29 | B22: CHEQUE 35692996-0 | C22: RICARDO RUBI CAJA CHICA #07 1.08.99 | BB22: 101,700.00
A24: 2024-04-09 | B24: 1.03.06 | C24: IMP EXCESO GIRO CHEQUE (CANJE) 9-4-2024 | AG24: 1,518.00
A25: 2024-04-10 | B25: 1.03.06 | C25: IMP CHEQUE SIN FONDOS 10-4-2024 | AG25: 10,160.00
C27: ASEMICULTURA | R27: 272,128.00
C28: DB PAGO CNFL P.A.R. // CNFL 13003508 | Y28: 691,420.00
C29: ND CC AYA BANCOBCR // AYA 0003402713 | X29: 343,884.00
B30: 17320520 | C30: PAGO DE VISA-AUTOMAT 17320520 COMBUSTIBLE | BG30: 155,000.00
A32: 6.01.03 (200) | B32: APORTE PATRONAL LEY N°17 CONSTITUTIVA DE LA CCSS 1,57% (MARZO) | CN32: 947,436.00
A33: 6.01.03 (202) | B33: APORTE PATRONAL LEY N°17 CONSTITUTIVA DE LA CCSS 0,25% (MARZO) | CO33: 150,865.00
B35: 0.01.01 | C35: Sueldos para cargos fijos | D35: 41,760,859.00
C36: ajuste sigaf conciliacion | D36: -1,875,995.25
B37: 0.03.01 | C37: Retribución por años servidos | H37: 14,899,035.15
B38: 0.03.99 | C38: Otros incentivos salariales | L38: 6,809,756.45
B39: 0.03.03 | C39: Prohibicion
B40: 0.02.01 | C40: Tiempo extraordinario
C41: ajuste 0.03.02 inm | I41: 154,412.50
B42: 0.03.02 | C42: Restricción al ejercicio liberal de la profesión | I42: 3,664,063.35
B43: 6.03.99 | C43: Otras prestaciones | CR43: 235,040.75
B44: 0.01.05 | C44: Suplencias
A46: 2024-04-09 | B46: TRANSFERENCIA INTERNACIONAL 002-2024 | C46: ANDRES SALADO | AM46: 4,448,770.75
A47: 2024-04-09 | B47: TRANSFERENCIA INTERNACIONAL 003-2024 | C47: SARA FERRANDEZ | AM47: 2,787,728.30
C48: EL RULETERO S.A. FACT 2285 | AN48: 1,039,600.00
C49: EL RULETERO S.A. FACT 2221 | AN49: 135,600.00
C50: EL RULETERO S.A. FACT 2212 | AN50: 180,800.00
C51: EL RULETERO S.A. FACT 2225 | AN51: 180,800.00
A52: 2024-04-11 | C52: ALEJANDRONGUTIERREZ | AM52: 1,695,000.00
A53: 16 AL 19 | C53: MUDANZAS INTERNACIONALES FACT # 0185 | AE53: 249,504.00
A54: 16 AL 19 | C54: MUDANZAS INTERNACIONALES FACT # 0186 | AE54: 249,504.00
A55: 16 AL 19 | C55: MUDANZAS INTERNACIONALES FACT # 0187 | AE55: 1,312,495.00
A56: 16 AL 19 | C56: MUDANZAS INTERNACIONALES FACT # 0182 | AE56: 764,106.00
A57: 16 AL 19 | C57: MUDANZAS INTERNACIONALES FACT # 0188 | AE57: 249,504.00
C58: GRUPO ACTIVA S.A. FACT #0440 | AV58: 589,125.50
C59: GRUPO ACTIVA S.A. FACT #0438 | AV59: 599,425.45
C60: GRUPO ACTIVA S.A. FACT #0439 | AV60: 1,421,540.00
B61: 2020424 | C61: GRUPO ACTIVA S.A. FACT # 0437 | AV61: 99,795.95
A62: DEVENGO | C62: GRUPO ACTIVA S.A. FACT #
C63: GRUPO ACTIVA S.A. FACT #
C64: GRUPO ACTIVA S.A. FACT #
C65: Jaime Del Valle Solano, cedula 3-0524-0485, el cual se acogió al derecho de pensión | J65: 490,170.60 | CQ65: 5,682,236.05
A66: 2024-04-11 | C66: VIATICOS | AO66: 35,000.00
C67: ICE TELECOMUNICACIONES FACT # 1557 | AA67: 18,177.35
C68: ICE TELECOMUNICACIONES FACT # 5371 | AA68: 180,384.64
C69: ICE TELECOMUNICACIONES FACT # 5506 | AA69: 13,079.49
C70: ICE TELECOMUNICACIONES FACT # 6807 | AA70: 3,831.50
C71: ICE TELECOMUNICACIONES FACT # 8718 | AA71: 3,831.50
C72: ICE TELECOMUNICACIONES FACT # 247 | AA72: 3,831.50
C73: ICE TELECOMUNICACIONES FACT # 2303 | AA73: 3,831.50
C74: RACSA FACT 1765 | AG74: 1,006,979.89
C75: ajuste otras prestaciones OSN AC 6.03.99 | CR75: 184,298.40
A76: 2024-04-11 | B76: PAGO MASIVO | C76: DESATOUR S.A | AO76: 306,977.78
A77: 2024-04-18 | B77: PAGO MASIVO | C77: DESATOUR S.A | AO77: 385,610.72
A78: 2024-04-18 | B78: PAGO MASIVO | C78: ICE TELECOMUNICACIONES FACT # SIN NUMERO | AA78: 3,831.50
A79: 2024-04-18 | C79: ICE TELECOMUNICACIONES FACT # SIN NUMERO | AA79: 564,235.49
A80: 2024-04-23 | C80: VIATICOS SANTIAGO | AO80: 15,000.00
A81: 2024-04-29 | C81: VIATICOS SANTIAGO | AO81: 10,000.00
A87: T O T A L E G R E S O S | D87: =SUM(D7:D86) -> 39,884,863.75 | E87: 0.00 | F87: 0.00 | G87: 0.00 | H87: 14,899,035.15 | I87: 3,818,475.85 | J87: 490,170.60 | K87: 0.00 | L87: 6,809,756.45 | M87: 5,603,461.00 | N87: 301,731.00 | O87: 3,282,459.00 | P87: 1,810,390.00 | Q87: 905,191.00 | R87: 272,128.00 | S87: 0.00 | T87: 0.00 | V87: =SUM(V7:V86) -> 0.00 | W87: 0.00 | X87: 343,884.00 | Y87: 691,420.00 | Z87: 0.00 | AA87: 795,034.47 | AB87: 0.00 | AC87: 0.00 | AD87: 0 | AE87: 2,825,113.00 | AF87: 0 | AG87: 1,018,657.89 | AH87: 0.00 | AI87: 0.00 | AJ87: 0.00 | AK87: 0.00 | AL87: 0.00 | AM87: 9,035,576.01 | AN87: 1,548,770.00 | AO87: 752,588.50 | AP87: 0.00 | AQ87: 0 | AR87: 0.00 | AS87: 0.00 | AT87: 0.00 | AU87: 0.00 | AV87: 2,709,886.90 | AW87: 0.00 | AX87: 0.00 | AY87: 0.00 | AZ87: 0.00 | BA87: 0.00 | BB87: =SUM(BB7:BB86) -> 101,700.00 | BC87: 0.00 | BD87: 0.00 | BE87: 0.00 | BF87: 0 | BG87: 155,000.00 | BH87: 0.00 | BI87: 43,700.26 | BJ87: 0.00 | BK87: 0.00 | BL87: 0.00 | BM87: 0.00 | BN87: 43,605.87 | BO87: 0.00 | BP87: 0.00 | BQ87: 16,030.00 | BR87: 0.00 | BS87: 0.00 | BT87: 0 | BU87: 0.00 | BV87: 0.00 | BW87: 0 | BX87: 0.00 | BY87: 0.00 | BZ87: 0 | CA87: 0.00 | CB87: 0.00 | CC87: 0.00 | CD87: 0.00 | CE87: 0.00 | CF87: 0.00 | CG87: 0.00 | CH87: =SUM(CH7:CH86) -> 0.00 | CI87: 0.00 | CJ87: 0.00 | CK87: 0.00 | CL87: 0.00 | CM87: 0.00 | CN87: 947,436.00 | CO87: 150,865.00 | CP87: 0.00 | CQ87: 5,682,236.05 | CR87: 419,339.15 | CS87: 0.00 | CT87: 0.00 | CU87: 0.00

Sheet CK GASTOS OSN PD MES 2 (hidden)
A1: MINISTERIO DE CULTURA JUVENTUD Y DEPORTES
A2: CENTRO NACIONAL DE LA MUSICA | CM2: MONTO REAL TESORO | CN2: 1,297,576.61 | CO2: 206,620.00
A3: PRODUCCION OSN | BK3: 3,500.00 | BL3: =+BK3*4 -> 14,000.00 | BN3: 450.00 | BW3: =+BW168+'CK GASTOS INM MES 2'!BU64 -> 0 | CM3: =+CN3+CN55 -> 1,297,576.61 | CN3: =+CN2-CN55 -> 243,577.30 | CO3: =+CO2-CO56 -> 38,785.72 | CP3: =+CO3+CO56 -> 206,620.00
A4: =+'CK GASTOS OSN PD MES 1'!A4 -> INFORME DE EJECUCION PRESUPUESTARIO 2024, EGRESOS | AV4: =+AV132+AV133+AV134+AV135 -> 0 | BK4: 1,500.00 | BL4: =+BK4*4 -> 6,000.00 | BM4: =+BM5*4 -> 102,000.00 | BN4: =+BN3*2 -> 900.00 | BO4: =+BN4*5 -> 4,500.00 | BP4: =+BO4*4 -> 18,000.00 | BW4: =+BW137+BW138 -> 0 | CF4: =+CF88+CF92 -> 0
BL5: 5,500.00 | BM5: =+BL3+BL4+BL5 -> 25,500.00 | CN5: 200.00 | CO5: 202.00
A6: FECHA | B6: DOCTO # | C6: DETALLE PAGO | D6: 0.01.01 | E6: 0.01.05 | F6: 0.02.01 | G6: 0.02.04 | H6: 0.03.01 | I6: 0.03.02 | J6: 0.03.03 | K6: 0.03.04 | L6: 0.03.99 | M6: 0.04.01 | N6: 0.04.05 | O6: 0.05.01 | P6: 0.05.02 | Q6: 0.05.03 | R6: 0.05.05 | S6: 1.01.01 | T6: 1.01.02 | U6: 1.01.03 | V6: 1.01.04 | W6: 1.01.99 | X6: 1.02.01 | Y6: 1.02.02 | Z6: 1.02.03 | AA6: 1.02.04 | AB6: 1.03.01 | AC6: 1.03.02 | AD6: 1.03.03 | AE6: 1.03.04 | AF6: 1.03.05 | AG6: 1.03.06 | AH6: 1.04.02 | AI6: 1.04.03 | AJ6: 1.04.04 | AK6: 1.04.05 | AL6: 1.04.06 | AM6: 1.04.99 | AN6: 1.05.01 | AO6: 1.05.02 | AP6: 1.05.03 | AQ6: 1.05.04 | AR6: 1.06.01 | AS6: 1.07.01 | AT6: 1.07.02 | AU6: 1.07.03 | AV6: 1.08.01 | AW6: 1.08.04 | AX6: 1.08.05 | AY6: 1.08.06 | AZ6: 1.08.07 | BA6: 1.08.08. | BB6: 1.08.99 | BC6: 1.09.02 | BD6: 1.09.99 | BE6: 1.99.02 | BF6: 1.99.99 | BG6: 2.01.01 | BH6: 2.01.02 | BI6: 2.01.04 | BJ6: 2.01.99 | BK6: 2.02.03 | BL6: 2.03.01 | BM6: 2.03.03 | BN6: 2.03.04 | BO6: 2.03.05 | BP6: 2.03.06 | BQ6: 2.03.99 | BR6: 2.04.01 | BS6: 2.04.02 | BT6: 2.99.01 | BU6: 2.99.03 | BV6: 2.99.04 | BW6: 2.99.05 | BX6: 2.99.06 | BY6: 2.99.07 | BZ6: 2.99.99 | CA6: 3.04.05 | CB6: 5.01.01 | CC6: 5.01.02 | CD6: 5.01.03 | CE6: 5.01.04 | CF6: 5.01.05 | CG6: 5.01.07 | CH6: 5.01.99 | CI6: 5.02.01 | CJ6: 5.02.99 | CK6: 5.99.03 | CL6: 5.99.99 | CM6: 6.01.02 | CN6: 6.01.03 | CO6: 6.01.03 | CP6: 6.02.99 | CQ6: 6.03.01 | CR6: 6.03.99 | CS6: 6,04,01 | CT6: 6.07.01 | CU6: 9.02.01
A7: 2024-05-16 | B7: CHEQUE 35692997-7 | C7: RICARDO RUBI CAJA CHICA #08 2.03.03 | BM7: 5,700.00
A8: 2024-05-16 | B8: CHEQUE 35692997-7 | C8: RICARDO RUBI CAJA CHICA #08 2.03.06 | BP8: 45,100.00
A9: 2024-05-16 | B9: CHEQUE 35692997-7 | C9: RICARDO RUBI CAJA CHICA #08 2.04.02 | BS9: 65,000.00
A10: 2024-05-16 | B10: CHEQUE 35692998-3 | C10: RICARDO RUBI CAJA CHICA #09 1.05.01 | AN10: 2,550.00
A11: 2024-05-16 | B11: CHEQUE 35692998-3 | C11: RICARDO RUBI CAJA CHICA #09 1.08.99 | BB11: 45,200.00
A12: 2024-05-16 | B12: CHEQUE 35692998-3 | C12: RICARDO RUBI CAJA CHICA #09 2.04.02 | BS12: 130,850.00
A14: 2024-05-27 | B14: SPMA 112-2024 / 73V-2024 | C14: VIATICOS SANTIAGO ARTAVIA ARAYA | AO14: 18,800.00
A15: 2024-05-29 | B15: SPAM-115-2024 | C15: ICE (12 FACTURAS) | AA15: 302,973.75
A16: 2024-05-29 | B16: SPAM-115-2024 | C16: Desatur Corobicí | AO16: 345,047.34
C17: AJUSTE SALARIOS | D17: 1,554,652.37
A19: 2024-05-30 | B19: CHEQUE 35693000-6 | C19: RICARDO RUBI CAJA CHICA #10 1.03.03 | AD19: 20,020.00
C20: AJUSTE CAJA CHICA 1.03.03 | AD20: -20,020.00
A21: 2024-05-30 | B21: CHEQUE 35693000-6 | C21: RICARDO RUBI CAJA CHICA #10 2.03.99 | BQ21: 3,775.00
A22: 2024-05-30 | B22: CHEQUE 35693000-6 | C22: RICARDO RUBI CAJA CHICA #10 2.04.01 | BR22: 3,900.00
A23: 2024-05-30 | B23: CHEQUE 35693000-6 | C23: RICARDO RUBI CAJA CHICA #10 1.05.01 | AN23: 275.00
A24: 2024-05-30 | B24: CHEQUE 35693000-6 | C24: RICARDO RUBI CAJA CHICA #10 1.05.01 | AN24: 4,830.00
A25: 2024-05-30 | B25: CHEQUE 35693000-6 | C25: RICARDO RUBI CAJA CHICA #10 2.03.99 | BQ25: 9,100.00
A26: 2024-05-30 | B26: CHEQUE 35693000-6 | C26: RICARDO RUBI CAJA CHICA #10 2.03.99 | BQ26: 11,300.00
C27: AJUSTE CAJA CHICA 2.03.99 | BQ27: -24,175.00
A28: 2024-05-30 | B28: SPMA-135-2024 | C28: GEINER SEVILLA GODINEZ | AO28: 5,000.00
A29: 2024-05-30 | B29: SPMA-135-2024 | C29: JUAN CARLOS MORA SEQUEIRA | AO29: 5,000.00
A30: 2024-05-30 | B30: SPMA-135-2024 | C30: SANTIAGO ARAYA VARGAS | AO30: 5,000.00
A31: 2024-05-30 | B31: SPMA-135-2024 | C31: GEINER SEVILLA GODINEZ | AO31: 47,900.00
A32: 2024-05-30 | B32: SPMA-135-2024 | C32: SANTIAGO ARAYA VARGAS | AO32: 47,900.00
A33: 2024-05-30 | B33: SPMA-135-2024 | C33: HERMES SOTO LORIa | AO33: 47,900.00
A34: 2024-05-30 | B34: SPMA-135-2024 | C34: GRUPO ACTIVA | AV34: 86,959.15
A35: 2024-05-30 | B35: SPMA-135-2024 | C35: GRUPO ACTIVA | AV35: 289,825.23
B36: SPMA-134-2024 | C36: GRUPO ACTIVA 448 | AV36: 205,744.75
B37: SPMA-134-2024 | C37: GRUPO ACTIVA 449 | AV37: 118,650.00
A38: 2024-05-30 | B38: SPMA-138-2024 | C38: ICE (6 FACTURAS) | AA38: 198,144.93
A39: 2024-05-30 | B39: SPMA-138-2024 | C39: EL RULETERO S.A. (4 FACTURAS) | AN39: 1,333,400.00
A40: 2024-05-30 | B40: SPMA-144-2024 | C40: Patricia Giró Peralta | AO40: 5,000.00
A41: 2024-05-31 | B41: SPMA-144-2024 | C41: GREIVEN GUERRERO SOSA | AO41: 5,000.00
A42: 2024-05-31 | B42: SPMA-145-2024 | C42: Andrés Loría Herrera | AM42: 399,998.85
A43: 2024-05-31 | B43: SPMA-145-2024 | C43: MARIA JOSE CASTRO ARAYA | AM43: 399,999.93
A44: 2024-05-31 | B44: SPMA-158-2024 | C44: JOSE ARTURO CHACON GRANADOS (PAGADO EN JUNIO) | AM44: 2,260,000.00
A45: 2024-05-31 | B45: SPMA-145-2024 | C45: 7 MARES S.A. | AE45: 795,294.00
A46: 2024-05-31 | B46: SPMA-145-2024 | C46: CARLOS MORA ZUÑIGA | AM46: 584,949.60
A47: 2024-05-31 | B47: SPMA-145-2024 | C47: FIEUYEA S.A. | AM47: 1,716,619.87
A48: 2024-05-31 | B48: SPMA-145-2024 | C48: RADIOGRAFICA COSTARRICENSE RACSA #77814 | AG48: 444,327.27
A49: 2024-06-05 | B49: 1.03.06 | C49: IMP EXCESO GIRO CHEQUE (CANJE) 9-4-2024 | AG49: 3,069.00
C52: ND CC AYA BANCOBCR // AYA 0003402713 | X52: 1,356,767.00
C53: PAGO DE VISA-AUTOMAT COMBUSTIBLE | BG53: 95,000.00
C54: ASEMICULTURA | R54: 226,666.03
A55: 6.01.03 (200) | B55: APORTE PATRONAL LEY N°17 CONSTITUTIVA DE LA CCSS 1,57% (ABRIL) | CN55: 1,053,999.31
A56: 6.01.03 (202) | B56: APORTE PATRONAL LEY N°17 CONSTITUTIVA DE LA CCSS 0,25% (ABRIL) | CO56: 167,834.28
B57: 0.04.05 | C57: Aporte Patronal BPDC | N57: 335,668.00
B58: 0.04.01 | C58: Enferm y Maternidad | M58: 6,209,868.00
B59: 0.05.01 | C59: Invalidez, Vejez y Muerte | O59: 3,638,647.00
B60: 0.05.02 | C60: Fondo Pens Complementaria | P60: 2,014,012.00
B61: 0.05.03 | C61: Fondo de capitalización Laboral | Q61: 1,007,002.00
C62: DEVENGO FESA ()PAGA EN JUNIO SPMA-181-2024 | BU62: 150,000.00
B63: 0.01.01 | C63: Sueldos para cargos fijos | D63: 60,683,279.00
B64: 0.03.01 | C64: Retribución por años servidos | H64: 14,694,107.00
B65: 0.03.99 | C65: Otros incentivos salariales | L65: 6,680,650.10
B66: 0.03.02 | C66: Restricción al ejercicio liberal de la profesión (se ajusto el monto del INM por 234047,92 xq no alcanzó) | I66: =5493978.42+234047.92 -> 5,728,026.34
C67: diferencia de monto entre el BOS y el eje de 165090,03
B68: 6.03.99 | C68: Otras prestaciones (se le ajusto el monto de AC po 203039,45) | CR68: =445854.25+203039.45 -> 648,893.70
A261: T O T A L E G R E S O S | D261: =SUM(D7:D260) -> 62,237,931.37 | E261: 0 | F261: 0 | G261: 0 | H261: 14,694,107.00 | I261: 5,728,026.34 | J261: 0 | K261: 0 | L261: 6,680,650.10 | M261: 6,209,868.00 | N261: 335,668.00 | O261: 3,638,647.00 | P261: 2,014,012.00 | Q261: 1,007,002.00 | R261: 226,666.03 | S261: 0 | T261: 0 | U261: 0 | V261: 0 | W261: 0 | X261: 1,356,767.00 | Y261: 0 | Z261: 0 | AA261: 501,118.68 | AB261: 0 | AC261: 0 | AD261: 0 | AE261: 795,294.00 | AF261: 0 | AG261: 447,396.27 | AH261: 0 | AI261: 0 | AJ261: =SUM(AJ7:AJ260) -> 0 | AK261: 0 | AL261: 0 | AM261: 5,361,568.25 | AN261: 1,341,055.00 | AO261: 532,547.34 | AP261: 0 | AQ261: 0 | AR261: 0 | AS261: 0 | AT261: 0 | AU261: 0 | AV261: 701,179.13 | AW261: 0 | AX261: 0 | AY261: 0 | AZ261: 0 | BA261: 0 | BB261: 45,200.00 | BC261: 0 | BD261: 0 | BE261: 0 | BF261: 0 | BG261: 95,000.00 | BH261: 0 | BI261: 0 | BJ261: 0 | BK261: 0 | BL261: 0 | BM261: 5,700.00 | BN261: 0 | BO261: 0 | BP261: =SUM(BP7:BP260) -> 45,100.00 | BQ261: 0 | BR261: 3,900.00 | BS261: 195,850.00 | BT261: 0 | BU261: 150,000.00 | BV261: 0 | BW261: 0 | BX261: 0 | BY261: 0 | BZ261: 0 | CA261: 0 | CB261: 0 | CC261: 0 | CD261: 0 | CE261: 0 | CF261: 0 | CG261: 0 | CH261: 0 | CI261: 0 | CJ261: 0 | CK261: 0 | CL261: 0 | CM261: 0 | CN261: 1,053,999.31 | CO261: 167,834.28 | CP261: 0 | CQ261: 0 | CR261: 648,893.70 | CS261: 0 | CT261: 0 | CU261: 0

Sheet CK GASTOS OSN PD MES 3 (hidden)
A1: MINISTERIO DE CULTURA JUVENTUD Y DEPORTES
A2: CENTRO NACIONAL DE LA MUSICA | AF2: 425,068.85 | AM2: 399,998.85 | AV2: 565,000.00
A3: PRODUCCION OSN | W3: 4,299,989.00 | AF3: =+AG73-AF2 -> 8,172.94 | AM3: 399,999.93 | AV3: =+AV2-AV81 -> 41,939.95
A4: =+'CK GASTOS OSN PD MES 1'!A4 -> INFORME DE EJECUCION PRESUPUESTARIO 2024, EGRESOS | W4: =+W3-W76 -> 864,035.00 | AM4: =+AM2+AM3+AM24 -> 3,059,998.78
CN5: 200 | CO5: 202
A6: FECHA | B6: DOCTO # | C6: DETALLE PAGO | D6: 0.01.01 | E6: 0.01.05 | F6: 0.02.01 | G6: 0.02.04 | H6: 0.03.01 | I6: 0.03.02 | J6: 0.03.03 | K6: 0.03.04 | L6: 0.03.99 | M6: 0.04.01 | N6: 0.04.05 | O6: 0.05.01 | P6: 0.05.02 | Q6: 0.05.03 | R6: 0.05.05 | S6: 1.01.01 | T6: 1.01.02 | U6: 1.01.03 | V6: 1.01.04 | W6: 1.01.99 | X6: 1.02.01 | Y6: 1.02.02 | Z6: 1.02.03 | AA6: 1.02.04 | AB6: 1.03.01 | AC6: 1.03.02 | AD6: 1.03.03 | AE6: 1.03.04 | AF6: 1.03.05 | AG6: 1.03.06 | AH6: 1.04.02 | AI6: 1.04.03 | AJ6: 1.04.04 | AK6: 1.04.05 | AL6: 1.04.06 | AM6: 1.04.99 | AN6: 1.05.01 | AO6: 1.05.02 | AP6: 1.05.03 | AQ6: 1.05.04 | AR6: 1.06.01 | AS6: 1.07.01 | AT6: 1.07.02 | AU6: 1.07.03 | AV6: 1.08.01 | AW6: 1.08.04 | AX6: 1.08.05 | AY6: 1.08.06 | AZ6: 1.08.07 | BA6: 1.08.08. | BB6: 1.08.99 | BC6: 1.09.02 | BD6: 1.09.99 | BE6: 1.99.02 | BF6: 1.99.99 | BG6: 2.01.01 | BH6: 2.01.02 | BI6: 2.01.04 | BJ6: 2.01.99 | BK6: 2.02.03 | BL6: 2.03.01 | BM6: 2.03.03 | BN6: 2.03.04 | BO6: 2.03.05 | BP6: 2.03.06 | BQ6: 2.03.99 | BR6: 2.04.01 | BS6: 2.04.02 | BT6: 2.99.01 | BU6: 2.99.03 | BV6: 2.99.04 | BW6: 2.99.05 | BX6: 2.99.06 | BY6: 2.99.07 | BZ6: 2.99.99 | CA6: 3.04.05 | CB6: 5.01.01 | CC6: 5.01.02 | CD6: 5.01.03 | CE6: 5.01.04 | CF6: 5.01.05 | CG6: 5.01.07 | CH6: 5.01.99 | CI6: 5.02.01 | CJ6: 5.02.99 | CK6: 5.99.03 | CL6: 5.99.99 | CM6: 6.01.02 | CN6: 6.01.03 | CO6: 6.01.03 | CP6: 6.02.99 | CQ6: 6.03.01 | CR6: 6,03,99 | CS6: 6.04.01 | CT6: 6,06,01 | CU6: 9.02.01
A8: 2024-06-20 | B8: CHEQUE | C8: RICARDO RUBI CAJA CHICA #11 1.05.01 | AN8: 950.00
A9: 2024-06-20 | B9: CHEQUE | C9: RICARDO RUBI CAJA CHICA #11 1.08.07 | AZ9: 31,000.00
A10: 2024-06-20 | B10: CHEQUE | C10: RICARDO RUBI CAJA CHICA #11 2.01.01 | BG10: 35,000.00
A11: 2024-06-20 | B11: CHEQUE | C11: RICARDO RUBI CAJA CHICA #11 2.03.99 | BQ11: 33,255.00
A12: 2024-06-20 | B12: CHEQUE | C12: RICARDO RUBI CAJA CHICA #11 2.04.01 | BR12: 14,900.00
A13: 2024-06-20 | B13: CHEQUE | C13: RICARDO RUBI CAJA CHICA #11 2.04.02 | BS13: 31,663.01
A14: 2024-06-20 | B14: CHEQUE | C14: RICARDO RUBI CAJA CHICA #11 2.99.04 | BV14: 10,400.00
A16: 2024-06-26 | B16: SPMA-158-2024 | C16: SANTIAGO ARAYA 126V | AO16: 10,000.00
A17: 2024-06-26 | B17: SPMA-158-2024 | C17: 7 MARES S.A. | AE17: 249,504.00
A18: 2024-06-26 | B18: SPMA-158-2024 | C18: OFICSEVI | AL18: 4,326,715.25
A19: 2024-06-26 | B19: SPMA-158-2024 | C19: DESATOUR COROBICÍ | AO19: 476,204.75
A20: 2024-06-26 | B20: SPMA-158-2024 | C20: DESATOUR COROBICÍ | AO20: 174,158.85
A21: 2024-06-26 | B21: SPMA-158-2024 | C21: GIRA PUNTARENAS | AO21: 6,632,600.00
C22: JOSE ARTURO CHACON GRANADOS (PAGADO EN JUNIO)
A24: 2024-06-26 | B24: SPMA-162-2024 | C24: IVETTE ORTIZ | AM24: 2,260,000.00
A25: 2024-06-26 | B25: SPMA-162-2024 | C25: 6 FACTURAS DEL RULETERO. (2338-2341-2343-2345-2346-2350) | AN25: 915,300.00
A26: 2024-06-26 | B26: SPMA-162-2024 | C26: RADIOGRAFICA CISTARRISENCE | AG26: 429,394.10
A27: 2024-06-26 | B27: SPMA-162-2024 | C27: MARIO RODRIGUEZ | J27: 533,525.07 | CQ27: 10,003,179.47
A28: 2024-06-26 | B28: SPMA-162-2024 | C28: ALEJANDRO SOLIS | J28: 460,919.87 | CQ28: 11,653,782.57
A29: 2024-06-26 | B29: SPMA-162-2024 | C29: LIDIA DUVERRAN | J29: 290,959.81 | CQ29: 7,350,822.29
A30: 2024-06-26 | B30: SPMA-162-2024 | C30: SONIA BARTH | J30: 456,349.10 | CQ30: 11,387,920.20
A31: 2024-06-26 | B31: SPMA-162-2024 | C31: MARVIN ARAYA | J31: 368,806.75 | CQ31: 11,236,434.63
A33: 2024-06-27 | B33: SPMA-181-2024 | C33: GRUPO ACTIVA 0453 | AV33: 299,450.00
A34: 2024-06-27 | B34: SPMA-181-2024 | C34: GRUPO ACTIVA 0455 | AV34: 110,740.00
A35: 2024-06-27 | B35: SPMA-181-2024 | C35: GRUPO ACTIVA 0454 | AV35: 30,724.70
A36: 2024-06-27 | B36: SPMA-181-2024 | C36: GRUPO ACTIVA 0456 | AV36: 76,840.00
A37: 2024-06-27 | B37: SPMA-181-2024 | C37: GRUPO ACTIVA 0457 | AV37: 29,380.00
A38: 2024-06-27 | B38: SPMA-181-2024 | C38: OFICSEVI S.A. | AL38: 4,326,715.25
A39: 2024-06-27 | B39: SPMA-181-2024 | C39: ACONDICIONAMIENTO DE OFICINAS | CE39: 208,152.94
A41: 2024-06-27 | B41: SPMA-188-2024 | C41: MARIANELLA BONILLA DÍAZ | AO41: 15,000.00
A42: 2024-06-27 | B42: SPMA-188-2024 | C42: ISAAC AGUIRRE GUIDO | AO42: 15,000.00
A43: 2024-06-27 | B43: SPMA-188-2024 | C43: LEXI QUESADA VARELA | AO43: 15,000.00
A44: 2024-06-27 | B44: SPMA-188-2024 | C44: SANTIAGO ARAYA VARGAS | AO44: 5,000.00
A45: 2024-06-27 | B45: SPMA-188-2024 | C45: SANTIAGO ARAYA VARGAS | AO45: 13,800.00
C46: ASEMICULTURA | R46: 204,374.30
A47: 6.01.03 (200) | B47: APORTE PATRONAL LEY N°17 CONSTITUTIVA DE LA CCSS 1,57% (MAYO) | CN47: 1,374,566.64
A48: 6.01.03 (202) | B48: APORTE PATRONAL LEY N°17 CONSTITUTIVA DE LA CCSS 0,25% (MAYO) | CO48: 218,880.04
C49: ND CC AYA BANCOBCR // AYA 0003402713 | X49: 858,559.00
C50: DB PAGO CNFL P.A.R. // CNFL 28400155 | Y50: 894,645.00
C51: ajuste de CNFL (se pasa para INM ese monto) | Y51: -248,315.00
C52: PAGO DE VISA-AUTOMAT | BG52: 195,000.00
B53: 0.04.05 | C53: Aporte Patronal BPDC | N53: 339,940.00
B54: 0.04.01 | C54: Enferm y Maternidad | M54: 6,288,900.00
B55: 0.05.01 | C55: Invalidez, Vejez y Muerte | O55: 3,684,955.00
B56: 0.05.02 | C56: Fondo Pens Complementaria | P56: 2,039,644.00
B57: 0.05.03 | C57: Fondo de capitalización Laboral | Q57: 1,019,822.00
B59: 0.01.01 | C59: Sueldos para cargos fijos | D59: 40,481,236.00
B60: 0.03.01 | C60: Retribución por años servidos | H60: 14,177,161.05
B61: 0.03.99 | C61: Otros incentivos salariales | L61: 6,343,867.25
B62: 0.03.02 | C62: Restricción al ejercicio liberal de la profesión | I62: 3,452,882.50
B63: 6.03.99 | C63: Otras prestaciones | CR63: =708593.35-46.55 -> 708,546.80
C64: cimision chequeras | AG64: 26,847.78
A66: 2024-06-01 | B66: DEVENGO | C66: 7 MARES FACT 193 | AE66: 888,858.00
A67: 2024-06-07 | C67: 7 MARES FACT 194 | AE67: 249,504.00
A68: 2024-06-07 | C68: 7 MARES FACT 195 | AE68: 249,504.00
A69: 2024-06-06 | C69: FIEUYEA S.A factura # 7988 SPMA-204 | AX69: 122,789.87
A70: 2024-06-03 | C70: CORPORACION REPREINSA S.A. FACT 220 | BK70: 69,918.75
A71: 2024-06-26 | C71: TIPS TIENDA INTERNACIONAL FACT 969 | CH71: 131,080.00
A72: 2024-06-11 | C72: INVERSIONES ARIAS ESQUIVEL S.A. FACT 7207 | AZ72: 395,500.00
A73: 2024-06-10 | C73: RACSA FACT 80635 | AG73: 433,241.79
A74: 2024-06-19 | C74: GRUPO ACTIVA FACT 463 | AV74: 93,693.95
A75: 2024-06-19 | C75: GRUPO ACTIVA FACT 462 | AV75: 271,200.00
C76: CARLOS MORA ZÚÑIGA FACT 359 | W76: 3,435,954.00
B78: DEVENGO NO HOJA | C78: ICE FACT 485767 | AA78: 259,160.60
C79: VIATICOS FACT 135V | AO79: 5,000.00
C80: VIATICOS FACT 130V | AO80: 5,000.00
C81: GRUPO ACTIVA FACT 459 | AV81: 523,060.05
AV82: 41,939.95
C83: viaticos en cuenta presupuestaria. | AO83: 10,000.00
B84: PAGOS INTERNACIONALES | C84: WILLIAM MORROW | AM84: 2,519,096.40
C85: PAOLO BARTOLAMIOLI | AM85: 550,321.52
C86: MARK LAYCOCK | AM86: 4,465,180.44
C87: SIMONE PORTER | AM87: 3,096,216.20
A98: T O T A L E G R E S O S | D98: =SUM(D7:D97) -> 40,481,236.00 | E98: =SUM(E7:E97) -> 0 | F98: 0 | G98: 0 | H98: 14,177,161.05 | I98: 3,452,882.50 | J98: 2,110,560.60 | K98: 0 | L98: 6,343,867.25 | M98: 6,288,900.00 | N98: 339,940.00 | O98: 3,684,955.00 | P98: 2,039,644.00 | Q98: 1,019,822.00 | R98: 204,374.30 | S98: 0 | T98: 0 | U98: 0 | V98: 0 | W98: 3,435,954.00 | X98: 858,559.00 | Y98: 646,330.00 | Z98: 0 | AA98: 259,160.60 | AB98: 0 | AC98: 0 | AD98: 0 | AE98: 1,637,370.00 | AF98: 0 | AG98: 889,483.67 | AH98: 0 | AI98: 0 | AJ98: 0 | AK98: 0 | AL98: 8,653,430.50 | AM98: 12,890,814.56 | AN98: 916,250.00 | AO98: 7,376,763.60 | AP98: 0 | AQ98: 0 | AR98: 0 | AS98: 0 | AT98: 0 | AU98: 0 | AV98: 1,477,028.65 | AW98: 0 | AX98: 122,789.87 | AY98: 0 | AZ98: 426,500.00 | BA98: 0 | BB98: 0 | BC98: 0 | BD98: 0 | BE98: 0 | BF98: 0 | BG98: 230,000.00 | BH98: 0 | BI98: 0 | BJ98: 0 | BK98: 69,918.75 | BL98: 0 | BM98: 0 | BN98: 0 | BO98: 0 | BP98: 0 | BQ98: =SUM(BQ7:BQ97) -> 33,255.00 | BR98: 14,900.00 | BS98: 31,663.01 | BT98: 0 | BU98: 0 | BV98: 10,400.00 | BW98: 0 | BX98: 0 | BY98: 0 | BZ98: 0 | CA98: 0 | CB98: 0 | CC98: 0 | CD98: 0 | CE98: 208,152.94 | CF98: 0 | CG98: 0 | CH98: 131,080.00 | CI98: 0 | CJ98: 0 | CK98: 0 | CL98: 0 | CM98: 0 | CN98: 1,374,566.64 | CO98: 218,880.04 | CP98: 0 | CQ98: 51,632,139.16 | CR98: 708,546.80 | CS98: 0 | CT98: 0 | CU98: 0

Sheet Cert.OSN PD (hidden)
A1: MINISTERIO DE CULTURA JUVENTUD Y DEPORTES | AL1: andres salado | AM1: 3,791,581.83 | AP1: =+AO1-AO2 -> 0
A2: CENTRO NACIONAL DE LA MUSICA | Q2: =+#REF!/2 ->  | R2: 55.00 | AH2: =82500-24750 -> 57,750.00 | AI2: 6,265.00 | AL2: sara ferrandez | AM2: 2,375,914.73 | BR2: =+BR3-7700000 -> (1,056,820.40)
A3: PRODUCCION OSN | Q3: =+#REF!/2 ->  | R3: =+#REF!*4 ->  | AH3: =+AH2*670 -> 38,692,500.00 | AI3: 594 | AL3: paolo bortolamiola | AM3: 464,474.73 | AU3: =+AU4-#REF! ->  | BP3: 25790 | BR3: 6,643,179.60
A4: INFORME DE EJECUCION PRESUPUESTARIO 2022, EGRESOS | D4: 0.00 | R4: =+#REF!/2 ->  | S4: =+R4*7 ->  | AI4: =+AI2*AI3 -> 3,721,410.00 | AL4: wiliam | AM4: 2,143,033.52 | AP4: =900000/12 -> 75,000.00 | AU4: 1,473,854.12 | CE4: 800,000.00
AL5: leikop | AM5: 3,768,639.62
AL6: simon porter | AM6: 2,613,225.42 | CE6: =+#REF!-CE4 -> 
A7: FECHA | B7: CERT # | C7: DETALLE PAGO | D7: 0.01.01 | E7: 0.01.05 | F7: 0.02.01 | G7: 0.02.04 | H7: 0.03.01 | I7: 0.03.02 | J7: 0.03.03 | K7: 0.03.04 | L7: 0.03.99 | M7: 0.04.01 | N7: 0.04.05 | O7: 0.05.01 | P7: 0.05.02 | Q7: 0.05.03 | R7: 1.01.01 | S7: 1.01.02 | T7: 1.01.03 | U7: 1.01.04 | V7: 1.01.99 | W7: 1.02.01 | X7: 1.02.02 | Y7: 1.02.03 | Z7: 1.02.04 | AA7: 1.03.01 | AB7: 1.03.02 | AC7: 1.03.03 | AD7: 1.03.04 | AE7: 1.03.05 | AF7: 1.03.06 | AG7: 1.04.02 | AH7: 1.04.03 | AI7: 1.04.04 | AJ7: 1.04.05 | AK7: 1.04.06 | AL7: 1.04.99 | AM7: 1.05.01 | AN7: 1.05.02 | AO7: 1.05.03 | AP7: 1.05.04 | AQ7: 1.06.01 | AR7: 1.07.01 | AS7: 1.07.02 | AT7: 1.07.03 | AU7: 1.08.01 | AV7: 1.08.04 | AW7: 1.08.05 | AX7: 1.08.06 | AY7: 1.08.07 | AZ7: 1.08.08. | BA7: 1.08.99 | BB7: 1.09.02 | BC7: 1.09.99 | BD7: 1.99.02 | BE7: 1.99.99 | BF7: 2.01.01 | BG7: 2.01.02 | BH7: 2.01.04 | BI7: 2.01.99 | BJ7: 2.02.03 | BK7: 2.03.01 | BL7: 2.03.03 | BM7: 2.03.04 | BN7: 2.03.05 | BO7: 2.03.06 | BP7: 2.03.99 | BQ7: 2.04.01 | BR7: 2.04.02 | BS7: 2.99.01 | BT7: 2.99.03 | BU7: 2.99.04 | BV7: 2.99.05 | BW7: 2.99.06 | BX7: 2.99.07 | BY7: 2.99.99 | BZ7: 3.04.05 | CA7: 5.01.01 | CB7: 5.01.02 | CC7: 5.01.03 | CD7: 5.01.04 | CE7: 5.01.05 | CF7: 5.01.07 | CG7: 5.01.99 | CH7: 5.02.01 | CI7: 5.02.99 | CJ7: 5.99.03 | CK7: 5.99.99 | CL7: 6.01.02 | CM7: 6.02.99 | CN7: 6.03.01 | CO7: 6.03.99 | CP7: 6.06.01 | CQ7: 6,04.01
A10: 2024-01-11 | B10: 01 | C10: CONTRATACION UTILERIA DEL INM Y OSN | AL10: 2,000,000.00
A11: 2024-01-12 | B11: 02 | C11: TRANSPORTE DE PERSONAS | AM11: 9,500,000.00
A12: 2024-01-29 | B12: 05 | C12: CONTRATACION EDITUS 4 CONCIERTOS DEL 12 AL 22 DE FEBRERO | AL12: 7,910,000.00
A13: 2024-01-29 | B13: 06 | C13: CONTRATACION ALEJANDRO GUTIERREZ CONCIERTOS DE SAX FES DEL 26 AL 1 DE MARZO | AL13: 3,955,000.00
A14: 2024-01-29 | B14: 08 | C14: RECLAMO ADMINISTRATIVO POR REAJUSTE DE PRECIOS MUEBLES CROMETAL S.A | CD14: 152,593.74
A15: 2024-01-29 | B15: 09 | C15: TRANSPORTE DE INSTRUMENTOS PARA EL 2024 | AD15: 7,000,000.00
A16: 2024-01-31 | B16: 12 | C16: VIATICOS FUNCIONARIO CNM | AN16: 1,000,000.00
A17: 2024-02-09 | B17: 20 | C17: TELECOMUNICACIONES CNM | Z17: =11839774-4000000 -> 7,839,774.00
A18: 2024-02-09 | B18: 21 | C18: REPARACIONES Y MANTENIMIENTO DEL EDIFICIO | AU18: 4,930,288.88
C19: SE CADUCA CERTIFICACION 21 | AU19: (11.31)
A20: 2024-02-12 | B20: 22 | C20: CONTRATACION ANDRES SALADO DIRECTOR I CTO TO 8 Y 10 DE MARZO | AL20: 5,056,725.00
C21: SE CADUCA CERTI 22 (resto el monto caducado y resto el diferencial cambiario para que al sumarlo me de exactamente el monto incluido de la factura.) | AL21: =-596040.5 -> (596,040.50)
A22: 2024-02-09 | B22: 22-1 | C22: PRESTACIONES LEGALES JAIME DEL VALLE | CN22: 5,682,236.05
A23: 2024-02-12 | B23: 23 | C23: CONTRATACION SARA FERRANDEZ SOLISTA INVITADA I CTO TO 8 Y 10 MARZO | AL23: 3,168,690.00
C24: SE CADUCA CERTI 23 | AL24: (373,496.20)
A25: 2024-02-12 | B25: 24 | C25: CONTRATACION SERVICIOS PROFESIONALES DOS ARTISTAS JOSE ARTURO CHACHON E IVETTE ORTIZ II CTO TO OSN Y 50 ANIVERSARIO CSN | AL25: 4,520,000.00
A26: 2024-02-12 | B26: 25 | C26: SERVICIOS WILLIAM MORROW DAVENPORT SOLISTA II CTO TO OSN Y 50 ANIVERSARIO CSN | AL26: 2,698,830.00
C27: SE CADUCA CERTI 25 | AL27: (179,733.60)
A28: 2024-02-15 | B28: 26 | C28: COMBUSTIBLE VEHICULOS INSTITUCIONALES CNM | BF28: 2,900,000.00
C29: CAJA CHICA | BJ29: 3,400.00
A30: 2024-02-19 | B30: 29 | C30: SERVICIO DE HOSPEDAJE Y ALIMENTACION DE LOS INVITADOS INTERNACIONALES PARA UN APROXIMADAO DE 168 NOCHES | AN30: 8,151,000.00
A31: 2024-02-21 | B31: 30 | C31: MANTENIMIENTO Y REPARACION DE VEHICULOS | AW31: 3,000,000.00
A32: 2024-03-07 | B32: 33 | C32: CANCELACION POLIZA VEHICULAR PRIMER SEMESTRE 01-01-AUM-4385-111 | AQ32: 1,471,660.00
A34: 2024-03-07 | B34: 35 | C34: Viáticos dentro del país para la gira de la OSN y personal de apoyo, para un total de 59 funcionarios a Ciudad Quesada y Liberia del 18 al 21 | AN34: 5,082,200.00
A35: 2024-03-07 | B35: 36 | C35: liquidación de viáticos dentro del país de Javier León, Marianela Bonilla, Isaac Aguirre y Lexi Quesada, estudiantes del INM, que participaron como músicos extras para las presentaciones de la Orquesta Sinfónica Nacional con Editus en el mes de feb | AN35: 60,000.00
A36: 2024-03-07 | B36: 37 | C36: CANCELAR LA COMPRA DE 01 ESCRITORIO Y 02 SILLAS TIPO OFICINISTA | CD36: 300,000.00
C37: SE CADUCA CERTI 37 | CD37: (107,810.59)
A38: 2024-03-07 | B38: 39 | C38: COMPRA DE EQUIPO DE COMPUTO. | CE38: 4,000,000.00
A39: 2024-03-07 | B39: 40 | C39: COMPRA DE TONER PARA IMPRESORAS | BH39: 300,000.00
A40: 2024-03-07 | B40: 42 | C40: CONTRATACION DE IMPRENTA NACIONAL | AA40: 200,000.00
A41: 2024-03-07 | B41: 43 | C41: MANTENIMIENTO DE IMPRESORAS NO ARRENDADAS | AY41: 200,000.00
A42: 2024-03-07 | B42: 44 | C42: MANTENIMIENTO DE AIRES ACONDICIONADOS | AY42: 800,000.00
A43: 2024-03-07 | B43: 45 | C43: CONTRATO DE FUMIGACION | AL43: 450,000.00
A44: 2024-03-08 | B44: 46 | C44: RELOG MARCADOR PARA CNM Y AIRE ACONDICIONADO AULA T18 | CD44: 1,000,000.00
B45: AJUSTE | C45: AJUSTE DE CERTIFICACION 46 | CD45: 100,000.00
A46: 2024-03-08 | B46: 47 | C46: CONOS DE SEGURIDAD | BW46: 90,000.00
A47: 2024-03-08 | B47: 48 | C47: 120 RESMAS DE PAPEL | BT47: 150,000.00
A48: 2024-03-08 | B48: 49 | C48: CAMISETAS PARA CNM | BU48: 255,000.00
A49: 2024-03-08 | B49: 50 | C49: AGUA EMBOTELLADA | BJ49: 90,000.00
C50: SE CADUCA CERTIFICACION 50 | BJ50: (20,081.25)
C51: CAJA CHICA 1.08.99 | BA51: 220,350.00
A52: 2024-03-12 | B52: 53 | C52: ANULADA COMPRA DE PEODUCTOS DE CARTON | BT52: (175,000.00)
A53: 2024-03-13 | B53: 57 | C53: CONTRATACION PAOLO BORTOLAMEOLLI DIRECTOR II CTO TO 5 Y 7 DE ABRIL | AL53: 587,852.00
C54: SE CADUCA CERTI 57 | AL54: (37,530.48)
A55: 2024-03-13 | B55: 58 | C55: COMPRA DE MINI REFRI, MICROS Y ENFRIADORES | CG55: 1,000,000.00
C56: CAJA CHICA 2.99.01 | BS56: =17000+5600 -> 22,600.00
C57: CAJA CHICA 2.02.03 | BJ57: =10200+10200 -> 20,400.00
C58: CAJA CHICA 2.04.02 | BR58: =60500+5800+7825.75 -> 74,125.75
C59: CAJA CHICA 2.03.99 | BP59: =25790+30618.75+18500 -> 74,908.75
C60: CAJA CHICA 1.05.01 | AM60: 1,050.00
C61: CAJA CHICA 1.03.03 | AC61: 16,500.00
A62: 2024-03-19 | B62: 59 | C62: MANTENIMIENTO DE AIRE ACONDICIONADO | AY62: 400,000.00
A63: 2024-03-19 | B63: 60 | C63: PAGO DE PRÓRROGA de su póliza: 01-01-RT-225830-00 de Riesgos del Trabajo correspondiente al período del 01/01/2024 al 31/12/2024 | AQ63: 2,671,912.00
A64: 2024-03-20 | B64: 61 | C64: CERTIFICACION DE CONTENIDO PRESUPUESTARIO PARTIDA 1.07,01
A65: 2024-03-22 | B65: 63 | C65: REPARACION DEL AIRE DEL SERVIDOR E INSTALACION DE AIRE EN AULA T9 | AU65: 889,395.00
C66: ajuste caja chica | AC66: 21000
A67: ABRIL
C68: AJUSTE Jaime Del Valle Solano, cedula 3-0524-0485, el cual se acogió al derecho de pensión | J68: 490,170.60
A69: 2024-04-04 | B69: 64 | C69: CONTRATACION SIMONE PORTER INVITADO III CTO TO 3 Y 5 MAYO | AL69: 3,275,532.15
C70: SE CADUCA CERTI 64 | AL70: (179,315.95)
A71: 2024-04-09 | B71: 65 | C71: CONTRATACION MARK LAYCOCK INVITADO III CTO TO 3 Y 5 MAYO (AJUSTE) | AL71: 4,718,822.92
C72: SE CADUCA CERTI 65 | AL72: (253,642.48)
A73: 2024-04-05 | B73: 66 | C73: SERVICIO DE SEGURIDAD DE JULIO A DICIEMBRE 2024 | AK73: 10,000,000.00
A74: 2024-04-10 | B74: 67 | C74: PAGO DEL USO DEL SICOP | AF74: 5,000,000.00
A75: 2024-06-26 | B75: 103 | C75: PAGO SICOP | AF75: 170,000.00
A76: 2024-04-23 | B76: H-005-2024 | C76: MODIFICACION DGPN H-005 ABRIL 2024 (0.01.01-1.07.03-1.08.08-1.99.99- INCLUIDA
A78: 2024-05-02 | B78: 70 | C78: REPARACION DE AULAS, MAYA PERIMETRAL Y CAMBIO DE TOMAS | AU78: 247,685.00
C79: SE CADUCA CERTIFICACION 70 | AU79: (0.30)
C80: AJUSTE 1.08.99 | BA80: 101,700.00
C81: ajuste caja chica 2.04.02 | BR81: 18499.5
A82: 2024-05-15 | B82: 71 | C82: Contratación de Miguel Alberto Harth-Bedoya González para el IV concierto de temporada oficial 2024 | AL82: 4,333,725.00
A83: 2024-04-15 | B83: 73 | C83: ADQUISICION DE FIRMAS DIGITALES | BS83: 350,000.00
A84: 2024-04-15 | B84: 75 | C84: ALQUILER DE PARTITURAS MUSICALES | V84: 3,435,965.00
C85: SE CADUCA CERTIFICACION 75 | V85: (11.00)
A86: 2024-04-15 | B86: 81 | C86: Viáticos dentro del país para para el pago de viáticos a los 30 integrantes del Coro Sinfónico Nacional que participarán en la producción de La Flauta Mágica | AN86: 3,450,000.00
A87: 2024-04-15 | B87: 82 | C87: PUBLICACION EN ANUNCIOS DE DIARIO DE CIRCULACION. | AB87: 700,000.00
A88: 2024-04-16 | B88: 83 | C88: LIQUIDACION SONIA BARTH TREJOS | J88: 456,349.10 | CN88: 11,387,920.20
A89: 2024-04-16 | B89: 84 | C89: LIQUIDACION LIDIA DUVERRAN GUZMÁN | J89: 290,959.81 | CN89: 7,350,822.29
A90: 2024-05-20 | B90: 56 | C90: AJUSTE DE CERTIFICACION 56 (INM-OSN) | BA90: 130,000.00
C91: CAJA CHICA CLAUDIO Y JOHNNY 1,08,07 | AY91: 31,000.00
A92: 2024-05-27 | B92: 86 | C92: Liquidacion Marvin Araya Méndez | J92: 368,806.75 | CN92: 11,236,434.63
A93: 2024-05-27 | B93: 87 | C93: LIQUIDACION MARIO RODRIGUEZ UGALDE | J93: 533,525.07 | CN93: 10,003,179.47
A94: 2024-05-27 | B94: 88 | C94: LIQUIDACION ALEJANDRA SOLÍS DÍAZ | J94: 460,919.87 | CN94: 11,653,782.57
A95: 2024-05-29 | B95: 89 | C95: GIRA OROTINA, PUNTARENAS, QUEBRADA GANADO, MIRAMAR Y ESPARZA | AN95: 6,632,600.00
C96: SE CADUCA CERTI 89 | AN96: (4,000.00)
A97: 2024-06-10 | B97: 91 | C97: COMPRA DE PAPEL BOND, OFICIO Y DOBLE CARTA | BT97: 55,000.00
A98: 2024-06-10 | B98: 92 | C98: REPARACION DE GOTERAS Y VENTANALES | AU98: 516,000.00
C99: SE CADUCA CERIFICACION 92 | AU99: (929.05)
A100: 2024-06-10 | B100: 93 | C100: CONTRATACION OKSANA HRETCHYN | AL100: 2,432,502.60
A101: 2024-06-10 | B101: 94 | C101: CONTRATACION THEODORE KUCHAR | AL101: 4,169,363.00
A102: 2024-05-31 | B102: 90 | C102: USO DE SICOP | AF102: 200,000.00
A103: 2024-06-11 | B103: 95 | C103: CONTRATACION Enric de Anciola | AL103: 1,407,120.00 | AN103: 0
A104: 2024-06-18 | B104: 96 | C104: Contratacion del elenco artístico (cantantes líricos contratados como artistas nacionales) para la producción de la Ópera La Flauta Mágica | AL104: 6,509,905.00
A105: 2025-06-20 | B105: 97 | C105: “CONTRATACIÓN ÍRIDE MARTÍNEZ CONDE DE WEINMEISTER PARA EL ROL DE SOPRANO DE LA ÓPERA LA FLAUTA MAGICA”. | AL105: 5,476,842.80
A106: 2024-06-20 | B106: 98 | C106: Contratación de William Davenport para el rol de Tenor (Tamino) de la Ópera La Flauta Mágica | AL106: 1,745,700.00
A107: 2024-06-20 | B107: 99 | C107: Contratación de Ana Verónica Sánchez Narváez para el rol de Mezzosoprano (Espíritu 3) de la Ópera La Flauta Mágica | AL107: 1,338,370.00
A108: 2024-06-26 | B108: 102 | C108: COMPRA DE AGUA EMBOTELLADA CNM | BJ108: 90,000.00
A109: 2024-06-25 | B109: 101 | C109: Contratación de David Astorga para el rol de Tenor (Tamino) de la Ópera La Flauta Mágica | AL109: 1,460,250.00
A110: 2024-06-26 | B110: 104 | C110: Para la compra de 01 microondas, 01 cámara digital y 02 enfriadores de aire. | CG110: 1,000,000.00
A111: 2024-06-26 | B111: 105 | C111: "Contratación de Warner Núñez Solano como Asistente de la Dirección Musical la Ópera La Flauta Mágica" | AL111: 500,000.00
A112: 2024-06-26 | B112: 106 | C112: "Contratación de Sonia María Campos Cordero como Asistente de Vestuario para la Ópera La Flauta Mágica" | AL112: 550,000.00
C113: AJUSTE CAJA CHICA JUNIO | BP113: 30,785.00 | BR113: 227,513.01 | BT113: 183,941.60
A114: 2024-06-27 | B114: 107 | C114: Contratación de María Jesús Castro Araya como Artista Invitada Solista | AL114: 1,130,000.00
A115: 2024-06-27 | B115: 108 | C115: Contratación de Raúl Gómez como Director Invitado | AL115: 2,069,639.00
A116: 2024-06-27 | B116: 109 | C116: contratación de Sharon Lavery como Directora Invitada | AL116: 4,139,278.00
C117: JULIO
A118: 2024-07-05 | B118: 52 ajuste | C118: ajuste por 500,000 para afinacion de pianos | BA118: 500,000.00
A119: 2024-07-05 | B119: 114 | C119: MANTENIMIENTO DE INSTRUMENTOS DEL CNM | BA119: 1,100,000.00
A120: 2024-07-05 | B120: 115 | C120: contratación de Sofía Corrales como Artista Invitada con la Orquesta Sinfónica Nacional para el 9no Concierto de Temporada, | AL120: 1,000,000.00
A121: 2024-07-08 | B121: 116 | C121: Reparaciones generales del edificio | AU121: 495,050.00
A122: 2024-07-12 | B122: 117 | C122: Contratacion Andres Cubillo | AL122: 600,000.00
A123: 2024-07-12 | B123: 118 | C123: Reparaciones generales de edificio CNM | AY123: 269,000.00
A124: 2024-07-15 | B124: 119 | C124: Mantenimiento de fugas y canoas | AU124: 1,066,788.47
A125: 2024-07-15 | B125: 120 | C125: RECLAMO ADMINISTRATIVO AARON NAVARRO | AH125: 1,463,000.00
A126: 2024-07-17 | B126: 122 | C126: contratación de Andrés Cubillo como Asistente de Dirección de la Temporada de Ópera La Flauta Mágica | AL126: 2,000,000.00
A127: 2024-07-24 | B127: 123 | C127: POLIZA DE INCENDIO | AQ127: 698,024.00
A128: 2024-07-24 | B128: 124 | C128: POLIZA VEHICULAR | AQ128: 1,581,404.00
A129: 2024-07-30 | B129: 125 | C129: MANTENIMIENTO DE EDIFICIOS | AU129: 480,400.00
A130: 2024-07-30 | B130: 126 | C130: COMPRA DE REPUESTOS Y ACCESORIOS | BR130: 919,861.74
A371: T O T A L C E R T F I C A D O | D371: =SUM(D8:D348) -> 0.00 | E371: 0.00 | F371: 0.00 | G371: 0.00 | H371: 0.00 | I371: 0.00 | J371: 2,600,731.20 | K371: 0.00 | L371: 0.00 | M371: 0.00 | N371: 0.00 | O371: 0.00 | P371: 0.00 | Q371: 0.00 | R371: 0 | S371: 0.00 | T371: 0.00 | U371: 0.00 | V371: 3,435,954.00 | W371: 0.00 | X371: 0.00 | Y371: =SUM(Y8:Y370) -> 0 | Z371: =SUM(Z8:Z348) -> 7,839,774.00 | AA371: =SUM(AA8:AA348) -> 200,000.00 | AB371: =SUM(AB8:AB370) -> 700,000.00 | AC371: =SUM(AC8:AC348) -> 37,500.00 | AD371: 7,000,000.00 | AE371: 0 | AF371: 5,370,000.00 | AG371: 0.00 | AH371: 1,463,000.00 | AI371: 0.00 | AJ371: 0.00 | AK371: 10,000,000.00 | AL371: 77,584,388.26 | AM371: =SUM(AM8:AM370) -> 9,501,050.00 | AN371: =SUM(AN8:AN370) -> 24,371,800.00 | AO371: =SUM(AO8:AO348) -> 0.00 | AP371: =SUM(AP8:AP348) -> 0.00 | AQ371: =SUM(AQ8:AQ370) -> 6,423,000.00 | AR371: =SUM(AR8:AR348) -> 0.00 | AS371: 0.00 | AT371: 0 | AU371: 8,624,666.69 | AV371: 0.00 | AW371: 3,000,000.00 | AX371: 0.00 | AY371: 1,700,000.00 | AZ371: =SUM(AZ8:AZ364) -> 0 | BA371: =SUM(BA8:BA348) -> 2,052,050.00 | BB371: 0.00 | BC371: 0.00 | BD371: 0.00 | BE371: 0.00 | BF371: 2,900,000.00 | BG371: 0.00 | BH371: 300,000.00 | BI371: 0.00 | BJ371: 183,718.75 | BK371: 0.00 | BL371: 0.00 | BM371: 0.00 | BN371: 0 | BO371: 0.00 | BP371: 105,693.75 | BQ371: 0.00 | BR371: 1,240,000.00 | BS371: =SUM(BS8:BS364) -> 372,600.00 | BT371: =SUM(BT8:BT370) -> 213,941.60 | BU371: =SUM(BU8:BU348) -> 255,000.00 | BV371: 0.00 | BW371: 90,000.00 | BX371: 0.00 | BY371: 0.00 | BZ371: 0.00 | CA371: 0.00 | CB371: 0.00 | CC371: 0.00 | CD371: 1,444,783.15 | CE371: 4,000,000.00 | CF371: 0.00 | CG371: 2,000,000.00 | CH371: 0.00 | CI371: 0.00 | CJ371: 0.00 | CK371: 0.00 | CL371: 0.00 | CM371: 0.00 | CN371: 57,314,375.21 | CO371: 0.00 | CP371: 0.00 | CQ371: 0.00

Sheet OSN PD
A1: CENTRO NACIONAL DE LA MÚSICA
A2: PRESUPUESTO ORDINARIO 2024
A3: EGRESOS
A4: ORQUESTA SINFONICA NACIONAL
A5: PRODUCCION
C7: P R E S U P U E S T O 2 0 2 4 | G7: ACUMULADO | H7: ABRIL | I7: MAYO | J7: JUNIO | K7: II ESTE TRIMESTRE | L7: TOTAL | M7: CERTIFICADO TOTAL | N7: COMPROMISOS | O7: DISPONIBLE SEGÚN EJECUCION | P7: DISPONIBLE SEGUN EJE CERTIFICADA | Q7: DISPONIBLE CON COMPROMISOS | R7: CUADRO DE MODIFICACIONES INTERNAS | AT7: CUADRO DE MODIFICACIONES E=TERNAS | AZ7: CUADRO DE PRESUPUESTO E=TRAORDINARIO
A8: PARTIDAS Y SUBPARTIDAS | C8: PRESUPUESTO ORDINARIO | D8: PRESUPUESTO EXTRAORDINARIOS | E8: TOTAL MODIFICACIONES INT. - E=T. | F8: PRESUPUESTO FINAL | R8: INTERNA Nº 1 1er. Modificación Presupuestaria (DGPN-H-008) | S8: INTERNA Nº 2 DGPN-H-003 | T8: INTERNA Nº 3 DGPN-H-005 | U8: INTERNA Nº 4 DGPN H-014 | V8: INTERNA Nº 5 DGPN H-007 | W8: EXTRAORDINARIO H-012 | X8: INTERNA Nº 7 DGPN-H-019 decreto 44301 | Y8: INTERNA Nº 8 | Z8: INTERNA Nº 9 | AA8: INTERNA Nº10 | AB8: INTERNA Nº 11 | AC8: INTERNA Nº12 | AD8: INTERNA Nº 13 | AE8: INTERNA Nº 14 | AF8: INTERNA Nº 15 | AG8: INTERNA Nº 16 | AH8: INTERNA Nº 17 | AI8: INTERNA Nº 18 | AJ8: INTERNA Nº 19 | AK8: INTERNA Nº 20 | AL8: INTERNA Nº 21 | AM8: INTERNA Nº 22 | AN8: INTERNA Nº 23 | AO8: INTERNA Nº 24 | AP8: INTERNA Nº 25 | AQ8: INTERNA Nº 26 | AR8: INTERNA Nº 27 | AS8: TOTAL MODIFICACION INTERNA | AT8: E=TERNA Nº 01 | AU8: E=TERNA Nº 02 | AV8: E=TERNA Nº 03 | AW8: E=TERNA Nº 04 | AX8: E=TERNA Nº05 | AY8: TOTAL MODIFICACION E=TERNA | AZ8: E=TRAORD H-005 ABRIL | BA8: E=TRAORD DECRETO H-17 | BB8: E=TRAORD agosto | BC8: E=TRAORD Nº 004 | BD8: E=TRAORD Nº 005 | BE8: E=TRAORD Nº 006 | BF8: E=TRAORD Nº 007 | BG8: TOTAL E=TRAOR
A10: 0 | B10: REMUNERACIONES | C10: =SUM(C12:C26) -> 1,397,402,114.00 | D10: =SUM(D12:D25) -> 0.00 | E10: =SUM(E12:E25) -> -17,282,564.00 | F10: =SUM(F12:F26) -> 1,380,119,550.00 | G10: =SUM(G12:G26) -> 299,048,838.49 | H10: 78,077,661.80 | I10: =SUM(I12:I26) -> 102,772,577.84 | J10: 80,143,342.70 | K10: 260,993,582.34 | L10: 560,042,420.83 | M10: =SUM(M12:M25) -> 2,600,731.20 | N10: =SUM(N12:N27) -> 0.00 | O10: =SUM(O12:O26) -> 820,077,129.17 | P10: =SUM(P12:P26) -> 1,377,518,818.80 | Q10: =SUM(Q12:Q26) -> 820,077,129.17 | R10: =SUM(R12:R25) -> -17,282,564.00 | S10: 0.00 | T10: 0.00 | U10: =SUM(U12:U25) -> 0.00 | V10: 0.00 | W10: 0.00 | X10: 0.00 | Y10: 0.00 | Z10: 0.00 | AA10: 0.00 | AB10: 0.00 | AC10: 0.00 | AD10: 0.00 | AE10: 0.00 | AF10: 0 | AG10: 0.00 | AH10: 0.00 | AI10: 0.00 | AJ10: 0.00 | AK10: 0.00 | AL10: 0.00 | AM10: 0.00 | AN10: 0.00 | AO10: 0.00 | AP10: 0.00 | AQ10: 0.00 | AR10: 0.00 | AS10: -17,282,564.00 | AT10: 0.00 | AU10: 0.00 | AV10: 0.00 | AW10: 0.00 | AX10: 0.00 | AY10: 0.00 | AZ10: 0.00 | BA10: 0.00 | BB10: 0.00 | BC10: 0.00 | BD10: 0.00 | BE10: 0.00 | BF10: 0.00 | BG10: 0.00
A12: 0.01.01 | B12: Sueldos para cargos fijos | C12: 598,074,463.00 | D12: =+BG12 -> 0.00 | E12: =+AS12+AY12 -> 35,145,344.00 | F12: =+C12+D12+E12 -> 633,219,807.00 | G12: 104,752,856.09 | H12: ='CK GASTOS OSN PD MES 1'!D87 -> 39,884,863.75 | I12: =+'CK GASTOS OSN PD MES 2'!D261 -> 62,237,931.37 | J12: =+'CK GASTOS OSN PD MES 3'!D98 -> 40,481,236.00 | K12: =SUM(H12:J12) -> 142,604,031.12 | L12: =+K12+G12 -> 247,356,887.21 | M12: ='Cert.OSN PD'!D371 -> 0.00 | N12: =IF(M12>0,(L12-M12),0) -> 0.00 | O12: =F12-L12 -> 385,862,919.79 | P12: =F12-M12 -> 633,219,807.00 | Q12: =IF(N12>0,(F12-L12-N12),(F12-L12+N12)) -> 385,862,919.79 | R12: 39,645,344.00 | T12: -4,500,000.00 | AS12: =SUM(R12:AR12) -> 35,145,344.00 | AY12: =+AT12+AU12+AV12+AW12+AX12 -> 0.00 | BG12: =SUM(AZ12:BD12) -> 0.00
A13: 0.01.05 | B13: Suplencias | D13: =+BG13 -> 0.00 | E13: =+AS13+AY13 -> 0.00 | F13: 0.00 | G13: 0.00 | H13: ='CK GASTOS OSN PD MES 1'!E87 -> 0.00 | I13: ='CK GASTOS OSN PD MES 2'!E261 -> 0.00 | J13: ='CK GASTOS OSN PD MES 3'!E98 -> 0.00 | K13: 0.00 | L13: =+K13+G13 -> 0.00 | M13: =+'Cert.OSN PD'!E371 -> 0.00 | N13: 0.00 | O13: 0.00 | P13: 0.00 | Q13: 0.00 | AS13: =SUM(R13:AR13) -> 0.00 | AY13: =+AT13+AU13+AV13+AW13+AX13 -> 0.00 | BG13: =SUM(AZ13:BD13) -> 0.00
A14: 0.02.01 | B14: Tiempo extraordinario | D14: 0.00 | E14: 0.00 | F14: 0.00 | G14: 0.00 | H14: ='CK GASTOS OSN PD MES 1'!F87 -> 0.00 | I14: ='CK GASTOS OSN PD MES 2'!F261 -> 0.00 | J14: ='CK GASTOS OSN PD MES 3'!F98 -> 0.00 | K14: 0.00 | L14: =+K14+G14 -> 0.00 | M14: =+'Cert.OSN PD'!F371 -> 0.00 | N14: 0.00 | O14: 0.00 | P14: 0.00 | Q14: 0.00 | AS14: 0.00 | AY14: =+AT14+AU14+AV14+AW14+AX14 -> 0.00 | BG14: 0.00
A15: 0.02.04 | B15: Vacaciones | D15: =+BG15 -> 0.00 | E15: 0.00 | F15: 0.00 | G15: 0.00 | H15: ='CK GASTOS OSN PD MES 1'!G87 -> 0.00 | I15: ='CK GASTOS OSN PD MES 2'!G261 -> 0.00 | J15: ='CK GASTOS OSN PD MES 3'!G98 -> 0.00 | K15: 0.00 | L15: 0.00 | M15: =+'Cert.OSN PD'!G371 -> 0.00 | N15: 0.00 | O15: 0.00 | P15: 0.00 | Q15: 0.00 | AS15: 0.00 | AY15: =+AT15+AU15+AV15+AW15+AX15 -> 0.00 | BG15: 0.00
A16: 0.03.01 | B16: Retribuciòn por años servidos | C16: 234,900,000.00 | D16: 0.00 | E16: =+AS16+AY16 -> -36,246,795.00 | F16: 198,653,205.00 | G16: 45,799,110.50 | H16: ='CK GASTOS OSN PD MES 1'!H87 -> 14,899,035.15 | I16: ='CK GASTOS OSN PD MES 2'!H261 -> 14,694,107.00 | J16: ='CK GASTOS OSN PD MES 3'!H98 -> 14,177,161.05 | K16: 43,770,303.20 | L16: 89,569,413.70 | M16: =+'Cert.OSN PD'!H371 -> 0.00 | N16: 0.00 | O16: 109,083,791.30 | P16: 198,653,205.00 | Q16: 109,083,791.30 | R16: -36,246,795.00 | AS16: =SUM(R16:AR16) -> -36,246,795.00 | AY16: 0.00 | BG16: 0.00
A17: 0.03.02 | B17: Restricciòn al ejercicio liberal de la profesiòn | C17: 60,192,330.00 | D17: 0.00 | E17: -8,669,680.00 | F17: 51,522,650.00 | G17: 11,401,252.50 | H17: ='CK GASTOS OSN PD MES 1'!I87 -> 3,818,475.85 | I17: ='CK GASTOS OSN PD MES 2'!I261 -> 5,728,026.34 | J17: ='CK GASTOS OSN PD MES 3'!I98 -> 3,452,882.50 | K17: 12,999,384.69 | L17: 24,400,637.19 | M17: =+'Cert.OSN PD'!I371 -> 0.00 | N17: 0.00 | O17: 27,122,012.81 | P17: 51,522,650.00 | Q17: 27,122,012.81 | R17: -8,669,680.00 | AS17: -8,669,680.00 | AY17: 0.00 | BG17: 0.00
A18: 0.03.03 | B18: Dècimo tercer mes | C18: 99,826,152.00 | D18: 0.00 | E18: 0.00 | F18: 99,826,152.00 | G18: 0.00 | H18: ='CK GASTOS OSN PD MES 1'!J87 -> 490,170.60 | I18: ='CK GASTOS OSN PD MES 2'!J261 -> 0.00 | J18: ='CK GASTOS OSN PD MES 3'!J98 -> 2,110,560.60 | K18: 2,600,731.20 | L18: 2,600,731.20 | M18: =+'Cert.OSN PD'!J371 -> 2,600,731.20 | N18: 0.00 | O18: 97,225,420.80 | P18: 97,225,420.80 | Q18: 97,225,420.80 | AS18: 0.00 | AY18: 0.00 | BG18: 0.00
A19: 0.03.04 | B19: Salario escolar | C19: 71,459,964.00 | D19: 0.00 | E19: -1,262,269.00 | F19: 70,197,695.00 | G19: 65,527,222.80 | H19: ='CK GASTOS OSN PD MES 1'!K87 -> 0.00 | I19: ='CK GASTOS OSN PD MES 2'!K261 -> 0.00 | J19: ='CK GASTOS OSN PD MES 3'!K98 -> 0.00 | K19: 0.00 | L19: 65,527,222.80 | M19: =+'Cert.OSN PD'!K371 -> 0.00 | N19: 0.00 | O19: 4,670,472.20 | P19: 70,197,695.00 | Q19: 4,670,472.20 | R19: -5,762,269.00 | T19: 4,500,000.00 | AS19: -1,262,269.00 | AY19: 0.00 | BG19: 0.00
A20: 0.03.99 | B20: Otros incentivos salariales | C20: 91,694,420.00 | D20: 0.00 | E20: -6,249,164.00 | F20: 85,445,256.00 | G20: 20,645,090.75 | H20: ='CK GASTOS OSN PD MES 1'!L87 -> 6,809,756.45 | I20: ='CK GASTOS OSN PD MES 2'!L261 -> 6,680,650.10 | J20: ='CK GASTOS OSN PD MES 3'!L98 -> 6,343,867.25 | K20: 19,834,273.80 | L20: 40,479,364.55 | M20: =+'Cert.OSN PD'!L371 -> 0.00 | N20: 0.00 | O20: 44,965,891.45 | P20: 85,445,256.00 | Q20: 44,965,891.45 | R20: -6,249,164.00 | AS20: -6,249,164.00 | AY20: 0.00 | BG20: 0.00
A21: 0.04.01 | B21: Contribuciòn Pat.Seguro Salud CCSS | C21: 119,159,763.00 | D21: 0.00 | E21: 0.00 | F21: 119,159,763.00 | G21: 23,364,379.90 | H21: ='CK GASTOS OSN PD MES 1'!M87 -> 5,603,461.00 | I21: ='CK GASTOS OSN PD MES 2'!M261 -> 6,209,868.00 | J21: ='CK GASTOS OSN PD MES 3'!M98 -> 6,288,900.00 | K21: =SUM(H21:J21) -> 18,102,229.00 | L21: 41,466,608.90 | M21: =+'Cert.OSN PD'!M371 -> 0.00 | N21: 0.00 | O21: 77,693,154.10 | P21: 119,159,763.00 | Q21: 77,693,154.10 | AS21: 0.00 | AY21: 0.00 | BG21: 0.00
A22: 0.04.05 | B22: Contribución Pat. BPDC | C22: 5,704,983.00 | D22: 0.00 | E22: 0.00 | F22: 5,704,983.00 | G22: 1,262,942.91 | H22: ='CK GASTOS OSN PD MES 1'!N87 -> 301,731.00 | I22: ='CK GASTOS OSN PD MES 2'!N261 -> 335,668.00 | J22: ='CK GASTOS OSN PD MES 3'!N98 -> 339,940.00 | K22: 977,339.00 | L22: 2,240,281.91 | M22: =+'Cert.OSN PD'!N371 -> 0.00 | N22: 0.00 | O22: 3,464,701.09 | P22: 5,704,983.00 | Q22: 3,464,701.09 | AS22: 0.00 | AY22: 0.00 | BG22: 0.00
A23: 0.05.01 | B23: Contribución Pat. Seguro Pensiones CCSS | C23: 56,871,776.00 | D23: 0.00 | E23: 0.00 | F23: 56,871,776.00 | G23: 13,690,264.52 | H23: ='CK GASTOS OSN PD MES 1'!O87 -> 3,282,459.00 | I23: ='CK GASTOS OSN PD MES 2'!O261 -> 3,638,647.00 | J23: ='CK GASTOS OSN PD MES 3'!O98 -> 3,684,955.00 | K23: 10,606,061.00 | L23: 24,296,325.52 | M23: =+'Cert.OSN PD'!O371 -> 0.00 | N23: 0.00 | O23: 32,575,450.48 | P23: 56,871,776.00 | Q23: 32,575,450.48 | AS23: 0.00 | AY23: 0.00 | BG23: 0.00
A24: 0.05.02 | B24: Aporte Pat. Régimen Obligatorio Pens.Com. | C24: 31,478,842.00 | D24: 0.00 | E24: 0.00 | F24: 31,478,842.00 | G24: 7,577,641.11 | H24: ='CK GASTOS OSN PD MES 1'!P87 -> 1,810,390.00 | I24: ='CK GASTOS OSN PD MES 2'!P261 -> 2,014,012.00 | J24: ='CK GASTOS OSN PD MES 3'!P98 -> 2,039,644.00 | K24: 5,864,046.00 | L24: 13,441,687.11 | M24: =+'Cert.OSN PD'!P371 -> 0.00 | N24: 0.00 | O24: 18,037,154.89 | P24: 31,478,842.00 | Q24: 18,037,154.89 | AS24: 0.00 | AY24: 0.00 | BG24: 0.00
A25: 0.05.03 | B25: Aporte Pat. al Fondo Cap. Laboral | C25: 15,739,421.00 | D25: 0.00 | E25: 0.00 | F25: 15,739,421.00 | G25: 3,788,807.76 | H25: ='CK GASTOS OSN PD MES 1'!Q87 -> 905,191.00 | I25: ='CK GASTOS OSN PD MES 2'!Q261 -> 1,007,002.00 | J25: ='CK GASTOS OSN PD MES 3'!Q98 -> 1,019,822.00 | K25: 2,932,015.00 | L25: 6,720,822.76 | M25: =+'Cert.OSN PD'!Q371 -> 0.00 | N25: 0.00 | O25: 9,018,598.24 | P25: 15,739,421.00 | Q25: 9,018,598.24 | AS25: 0.00 | AY25: 0.00 | BG25: =SUM(AZ25:BF25) -> 0.00
A26: 0.05.05 | B26: Contribución Patronal a fondos administrados por entes privados | C26: 12,300,000.00 | D26: 0.00 | E26: 0.00 | F26: 12,300,000.00 | G26: 1,239,269.65 | H26: =+'CK GASTOS OSN PD MES 1'!R87 -> 272,128.00 | I26: =+'CK GASTOS OSN PD MES 2'!R261 -> 226,666.03 | J26: =+'CK GASTOS OSN PD MES 3'!R98 -> 204,374.30 | K26: 703,168.33 | L26: 1,942,437.98 | M26: =+'Cert.OSN PD'!Q372 -> 0.00 | N26: =IF(M26>0,(L26-M26),0) -> 0.00 | O26: =F26-L26 -> 10,357,562.02 | P26: =F26-M26 -> 12,300,000.00 | Q26: =IF(N26>0,(F26-L26-N26),(F26-L26+N26)) -> 10,357,562.02
A28: 1 | B28: SERVICIOS | C28: =SUM(C30:C69) -> 198,563,426.00 | D28: =SUM(D30:D69) -> 0.00 | E28: =SUM(E30:E69) -> 11,095,370.00 | F28: =SUM(F30:F69) -> 209,658,796.00 | G28: =SUM(G30:G69) -> 23,470,369.58 | H28: =SUM(H29:H69) -> 19,822,630.77 | I28: =SUM(I29:I69) -> 11,082,125.67 | J28: =SUM(J29:J69) -> 39,590,434.45 | K28: =SUM(K29:K69) -> 70,495,190.89 | L28: =SUM(L29:L69) -> 93,965,560.47 | M28: =SUM(M30:M69) -> 169,303,182.95 | N28: =SUM(N30:N69) -> -80,872,832.48 | O28: =SUM(O30:O69) -> 115,693,235.53 | P28: 40,355,613.05 | Q28: 34,820,403.05 | R28: 0.00 | S28: -177,630.00 | T28: 11,273,000.00 | U28: 0.00 | V28: 0.00 | W28: =SUM(W30:W69) -> 0.00 | X28: 0.00 | Y28: =SUM(Y30:Y69) -> 0.00 | Z28: 0.00 | AA28: 0.00 | AB28: 0.00 | AC28: 0.00 | AD28: 0.00 | AE28: 0.00 | AF28: 0 | AG28: 0.00 | AH28: 0.00 | AI28: 0.00 | AJ28: 0.00 | AK28: 0.00 | AL28: 0.00 | AM28: 0.00 | AN28: 0.00 | AO28: 0.00 | AP28: 0.00 | AQ28: 0.00 | AR28: 0.00 | AS28: 11,095,370.00 | AT28: =SUM(AT31:AT70) -> 0.00 | AU28: 0.00 | AV28: 0.00 | AW28: 0.00 | AX28: 0.00 | AY28: 0.00 | AZ28: =SUM(AZ30:AZ70) -> 0.00 | BA28: 0.00 | BB28: 0.00 | BC28: =SUM(BC30:BC70) -> 0.00 | BD28: 0.00 | BE28: 0.00 | BF28: 0.00 | BG28: 0.00
A30: 1.01.01 | B30: Alquiler de edificios, locales y terrenos | D30: =+BG30 -> 0.00 | E30: =+AS30+AY30 -> 0.00 | F30: =+C30+D30+E30 -> 0.00 | G30: 0.00 | H30: ='CK GASTOS OSN PD MES 1'!S$87 -> 0.00 | I30: ='CK GASTOS OSN PD MES 2'!S$261 -> 0.00 | J30: =+'CK GASTOS OSN PD MES 3'!S98 -> 0.00 | K30: =SUM(H30:J30) -> 0.00 | L30: =+K30+G30 -> 0.00 | M30: =+'Cert.OSN PD'!R371 -> 0.00 | N30: =IF(M30>0,(L30-M30),0) -> 0.00 | O30: =F30-L30 -> 0.00 | P30: =F30-M30 -> 0.00 | Q30: =IF(N30>0,(F30-L30-N30),(F30-L30+N30)) -> 0.00 | AS30: =SUM(R30:AR30) -> 0.00 | BG30: =SUM(AZ30:BF30) -> 0.00
A31: 1.01.02 | B31: Alquiler de maquinaria, equipo y mobiliario | D31: =+BG31 -> 0.00 | E31: =+AS31+AY33 -> 0.00 | F31: 0.00 | G31: 0.00 | H31: ='CK GASTOS OSN PD MES 1'!T$87 -> 0.00 | I31: ='CK GASTOS OSN PD MES 2'!T$261 -> 0.00 | J31: ='CK GASTOS OSN PD MES 3'!T$98 -> 0.00 | K31: =SUM(H31:J31) -> 0.00 | L31: 0.00 | M31: =+'Cert.OSN PD'!S371 -> 0.00 | N31: 0.00 | O31: 0.00 | P31: 0.00 | Q31: 0.00 | AS31: =SUM(R31:AR31) -> 0.00 | AY31: =+AT31+AU31+AV31+AW31+AX31 -> 0.00 | BG31: =SUM(AZ31:BF31) -> 0.00
A32: 1.01.03 | B32: Alquiler de equipo de cómputo | D32: 0.00 | E32: =+AS32+AY34 -> 0.00 | F32: 0.00 | G32: 0.00 | H32: ='CK GASTOS OSN PD MES 1'!T$87 -> 0.00 | I32: ='CK GASTOS OSN PD MES 2'!T$261 -> 0.00 | J32: =+'CK GASTOS OSN PD MES 3'!U98 -> 0.00 | K32: 0.00 | L32: 0.00 | M32: =+'Cert.OSN PD'!T371 -> 0.00 | N32: 0.00 | O32: 0.00 | P32: 0.00 | Q32: 0.00 | AS32: =SUM(R32:AR32) -> 0.00
A33: 1.01.04 | B33: Alquileres y derechos para telecomunicaciones | D33: 0.00 | E33: =+AS33+AY34 -> 0.00 | F33: 0.00 | G33: 0.00 | H33: ='CK GASTOS OSN PD MES 1'!V$87 -> 0.00 | I33: ='CK GASTOS OSN PD MES 2'!V$261 -> 0.00 | J33: ='CK GASTOS OSN PD MES 3'!V$98 -> 0.00 | K33: 0.00 | L33: 0.00 | M33: =+'Cert.OSN PD'!U371 -> 0.00 | N33: 0.00 | O33: 0.00 | P33: 0.00 | Q33: 0.00 | AS33: 0.00 | AY33: 0.00 | BG33: 0.00
A34: 1.01.99 | B34: Otros alquileres | D34: 0.00 | E34: 3,435,965.00 | F34: 3,435,965.00 | G34: 0.00 | H34: ='CK GASTOS OSN PD MES 1'!W$87 -> 0.00 | I34: ='CK GASTOS OSN PD MES 2'!W$261 -> 0.00 | J34: ='CK GASTOS OSN PD MES 3'!W$98 -> 3,435,954.00 | K34: 3,435,954.00 | L34: 3,435,954.00 | M34: =+'Cert.OSN PD'!V371 -> 3,435,954.00 | N34: 0.00 | O34: 11.00 | P34: 11.00 | Q34: 11.00 | S34: =3135965+300000 -> 3,435,965.00 | AS34: =SUM(R34:AR34) -> 3,435,965.00 | BG34: 0.00
A35: 1.02.01 | B35: Servicio de agua y alcantarillado | C35: 6,600,020.00 | D35: 0.00 | E35: 0.00 | F35: 6,600,020.00 | G35: 0.00 | H35: ='CK GASTOS OSN PD MES 1'!X$87 -> 343,884.00 | I35: ='CK GASTOS OSN PD MES 2'!X$261 -> 1,356,767.00 | J35: ='CK GASTOS OSN PD MES 3'!X$98 -> 858,559.00 | K35: 2,559,210.00 | L35: 2,559,210.00 | M35: =+'Cert.OSN PD'!W371 -> 0.00 | N35: 0.00 | O35: 4,040,810.00 | P35: 6,600,020.00 | Q35: 4,040,810.00 | AS35: 0.00 | AY35: 0.00 | BG35: 0.00
A36: 1.02.02 | B36: Servicio de energìa elèctrica | C36: 5,236,000.00 | D36: 0.00 | E36: -2,260,000.00 | F36: 2,976,000.00 | G36: 1,638,250.00 | H36: ='CK GASTOS OSN PD MES 1'!Y$87 -> 691,420.00 | I36: ='CK GASTOS OSN PD MES 2'!Y$261 -> 0.00 | J36: ='CK GASTOS OSN PD MES 3'!Y$98 -> 646,330.00 | K36: 1,337,750.00 | L36: 2,976,000.00 | M36: =+'Cert.OSN PD'!X371 -> 0.00 | N36: 0.00 | O36: 0.00 | P36: 2,976,000.00 | Q36: 0.00 | S36: -2,260,000.00 | AS36: -2,260,000.00 | AY36: 0.00 | BG36: 0.00
A37: 1.02.03 | B37: Servicio de correo | C37: 480,000.00 | D37: 0.00 | E37: =+AS37+AY38 -> -280,000.00 | F37: 200,000.00 | G37: 0.00 | H37: ='CK GASTOS OSN PD MES 1'!Z$87 -> 0.00 | I37: ='CK GASTOS OSN PD MES 2'!Z$261 -> 0.00 | J37: ='CK GASTOS OSN PD MES 3'!Z$98 -> 0.00 | K37: 0.00 | L37: 0.00 | M37: =+'Cert.OSN PD'!Y371 -> 0.00 | N37: 0.00 | O37: 200,000.00 | P37: 200,000.00 | Q37: 200,000.00 | S37: -280,000.00 | AS37: =SUM(R37:AR37) -> -280,000.00 | AY37: 0.00 | BG37: 0.00
A38: 1.02.04 | B38: Servicio de telecomunicaciones | C38: 12,537,320.00 | D38: =+BG38 -> 0.00 | E38: =+AS38+AY39 -> -3,313,595.00 | F38: 9,223,725.00 | G38: 2,514,231.28 | H38: ='CK GASTOS OSN PD MES 1'!AA$87 -> 795,034.47 | I38: ='CK GASTOS OSN PD MES 2'!AA$261 -> 501,118.68 | J38: ='CK GASTOS OSN PD MES 3'!AA$98 -> 259,160.60 | K38: =SUM(H38:J38) -> 1,555,313.75 | L38: =+K38+G38 -> 4,069,545.03 | M38: =+'Cert.OSN PD'!Z371 -> 7,839,774.00 | N38: =IF(M38>0,(L38-M38),0) -> -3,770,228.97 | O38: =F38-L38 -> 5,154,179.97 | P38: =F38-M38 -> 1,383,951.00 | Q38: =IF(N38>0,(F38-L38-N38),(F38-L38+N38)) -> 1,383,951.00 | S38: =-3135965-177630 -> -3,313,595.00 | AS38: =SUM(R38:AR38) -> -3,313,595.00 | AY38: =+AT38+AU38+AV38+AW38+AX38 -> 0.00 | BG38: =SUM(AZ38:BF38) -> 0.00
A39: 1.03.01 | B39: Información | C39: 500,000.00 | D39: 0.00 | E39: =+AS39+AY40 -> -300,000.00 | F39: 200,000.00 | G39: 0.00 | H39: ='CK GASTOS OSN PD MES 1'!AB$87 -> 0.00 | I39: ='CK GASTOS OSN PD MES 2'!AB$261 -> 0.00 | J39: ='CK GASTOS OSN PD MES 3'!AB$98 -> 0.00 | K39: 0.00 | L39: 0.00 | M39: =+'Cert.OSN PD'!AA371 -> 200,000.00 | N39: -200,000.00 | O39: 200,000.00 | P39: 0.00 | Q39: 0.00 | S39: -300,000.00 | AS39: -300,000.00 | AY39: 0.00 | BG39: 0.00
A40: 1.03.02 | B40: Publicidad y propaganda | C40: 700,000.00 | D40: 0.00 | E40: 0.00 | F40: 700,000.00 | G40: 0.00 | H40: ='CK GASTOS OSN PD MES 1'!AC$87 -> 0.00 | I40: ='CK GASTOS OSN PD MES 2'!AC$261 -> 0.00 | J40: ='CK GASTOS OSN PD MES 3'!AC$98 -> 0.00 | K40: 0.00 | L40: 0.00 | M40: =+'Cert.OSN PD'!AB371 -> 700,000.00 | N40: -700,000.00 | O40: 700,000.00 | P40: 0.00 | Q40: 0.00 | AS40: 0.00 | AY40: 0.00 | BG40: 0.00
A41: 1.03.03 | B41: Impresión, encuadernación y otros | C41: 150,000.00 | D41: 0.00 | E41: 0.00 | F41: 150,000.00 | G41: 37,500.00 | H41: ='CK GASTOS OSN PD MES 1'!AD$87 -> 0.00 | I41: ='CK GASTOS OSN PD MES 2'!AD$261 -> 0.00 | J41: ='CK GASTOS OSN PD MES 3'!AD$98 -> 0.00 | K41: 0.00 | L41: 37,500.00 | M41: =+'Cert.OSN PD'!AC371 -> 37,500.00 | N41: 0.00 | O41: 112,500.00 | P41: 112,500.00 | Q41: 112,500.00 | AS41: 0.00 | AY41: 0.00 | BG41: 0.00
A42: 1.03.04 | B42: Transporte de bienes | C42: 7,000,000.00 | D42: 0.00 | E42: 1,680,000.00 | F42: 8,680,000.00 | G42: 0.00 | H42: ='CK GASTOS OSN PD MES 1'!AE$87 -> 2,825,113.00 | I42: ='CK GASTOS OSN PD MES 2'!AE$261 -> 795,294.00 | J42: ='CK GASTOS OSN PD MES 3'!AE$98 -> 1,637,370.00 | K42: 5,257,777.00 | L42: 5,257,777.00 | M42: =+'Cert.OSN PD'!AD371 -> 7,000,000.00 | N42: -1,742,223.00 | O42: 3,422,223.00 | P42: 1,680,000.00 | Q42: 1,680,000.00 | S42: 1,680,000.00 | AS42: 1,680,000.00 | AY42: 0.00 | BG42: 0.00
A43: 1.03.05 | B43: Servicios aduaneros | C43: 0.00 | D43: 0.00 | E43: 0.00 | F43: 0.00 | G43: 0.00 | H43: ='CK GASTOS OSN PD MES 1'!AF$87 -> 0.00 | I43: ='CK GASTOS OSN PD MES 2'!AF$261 -> 0.00 | J43: ='CK GASTOS OSN PD MES 3'!AF$98 -> 0.00 | K43: 0.00 | L43: 0.00 | M43: =+'Cert.OSN PD'!AE371 -> 0.00 | N43: 0.00 | O43: 0.00 | P43: 0.00 | Q43: 0.00 | AS43: 0.00 | AY43: 0.00 | BG43: 0.00
A44: 1.03.06 | B44: Comisiones y gastos por serv.financieros y com. | C44: 5,470,086.00 | D44: 0.00 | E44: =+AS44+AY45 -> -50,000.00 | F44: 5,420,086.00 | G44: 7,875.00 | H44: ='CK GASTOS OSN PD MES 1'!AG$87 -> 1,018,657.89 | I44: ='CK GASTOS OSN PD MES 2'!AG$261 -> 447,396.27 | J44: ='CK GASTOS OSN PD MES 3'!AG$98 -> 889,483.67 | K44: 2,355,537.83 | L44: 2,363,412.83 | M44: =+'Cert.OSN PD'!AF371 -> 5,370,000.00 | N44: -3,006,587.17 | O44: 3,056,673.17 | P44: 50,086.00 | Q44: 50,086.00 | T44: -50,000.00 | AS44: -50,000.00 | AY44: 0.00 | BG44: 0.00
A45: 1.04.02 | B45: Servicios Jurídicos | D45: 0.00 | E45: 0.00 | F45: 0.00 | G45: 0.00 | H45: ='CK GASTOS OSN PD MES 1'!AH$87 -> 0.00 | I45: ='CK GASTOS OSN PD MES 2'!AH$261 -> 0.00 | J45: ='CK GASTOS OSN PD MES 3'!AH$98 -> 0.00 | K45: 0.00 | L45: 0.00 | M45: =+'Cert.OSN PD'!AG371 -> 0.00 | N45: 0.00 | O45: 0.00 | P45: 0.00 | Q45: 0.00 | AS45: 0.00 | AY45: 0.00 | BG45: 0.00
A46: 1.04.03 | B46: Servicio de Ingeniería | D46: 0.00 | E46: 1,463,000.00 | F46: 1,463,000.00 | G46: 0.00 | H46: ='CK GASTOS OSN PD MES 1'!AI$87 -> 0.00 | I46: ='CK GASTOS OSN PD MES 2'!AI$261 -> 0.00 | J46: ='CK GASTOS OSN PD MES 3'!AI$98 -> 0.00 | K46: 0.00 | L46: 0.00 | M46: =+'Cert.OSN PD'!AH371 -> 1,463,000.00 | N46: -1,463,000.00 | O46: 1,463,000.00 | P46: 0.00 | Q46: 0.00 | T46: 1,463,000.00 | AS46: 1,463,000.00 | BG46: 0.00
A47: 1.04.04 | B47: Servicios Ciencias Economicas y sociales | D47: 0.00 | E47: 0.00 | F47: 0.00 | G47: 0.00 | H47: ='CK GASTOS OSN PD MES 1'!AJ$87 -> 0.00 | I47: ='CK GASTOS OSN PD MES 2'!AJ$261 -> 0.00 | J47: ='CK GASTOS OSN PD MES 3'!AJ$98 -> 0.00 | K47: 0.00 | L47: 0.00 | M47: =+'Cert.OSN PD'!AI371 -> 0.00 | N47: 0.00 | O47: 0.00 | P47: 0.00 | Q47: 0.00 | AS47: 0.00 | AY47: 0.00 | BG47: 0.00
A48: 1.04.05 | B48: Servicios de desarrollo sistemas infromaticos | D48: 0.00 | E48: 0.00 | F48: 0.00 | G48: 0.00 | H48: ='CK GASTOS OSN PD MES 1'!AK$87 -> 0.00 | I48: ='CK GASTOS OSN PD MES 2'!AK$261 -> 0.00 | J48: ='CK GASTOS OSN PD MES 3'!AK$98 -> 0.00 | K48: 0.00 | L48: 0.00 | M48: =+'Cert.OSN PD'!AJ371 -> 0.00 | N48: 0.00 | O48: 0.00 | P48: 0.00 | Q48: 0.00 | AS48: 0.00 | AY48: 0.00 | BG48: 0.00
A49: 1.04.06 | B49: Servicios generales | C49: 10,000,000.00 | D49: 0.00 | E49: 0.00 | F49: 10,000,000.00 | G49: 0.00 | H49: ='CK GASTOS OSN PD MES 1'!AL$87 -> 0.00 | I49: ='CK GASTOS OSN PD MES 2'!AL$261 -> 0.00 | J49: ='CK GASTOS OSN PD MES 3'!AL$98 -> 8,653,430.50 | K49: 8,653,430.50 | L49: 8,653,430.50 | M49: =+'Cert.OSN PD'!AK371 -> 10,000,000.00 | N49: -1,346,569.50 | O49: 1,346,569.50 | P49: 0.00 | Q49: 0.00 | AS49: 0.00 | AY49: 0.00 | BG49: 0.00
A50: 1.04.99 | B50: Otros servicios de gestión y apoyo | C50: 90,000,000.00 | D50: 0.00 | E50: 10,000,000.00 | F50: 100,000,000.00 | G50: 7,910,000.00 | H50: ='CK GASTOS OSN PD MES 1'!AM$87 -> 9,035,576.01 | I50: ='CK GASTOS OSN PD MES 2'!AM$261 -> 5,361,568.25 | J50: ='CK GASTOS OSN PD MES 3'!AM$98 -> 12,890,814.56 | K50: 27,287,958.82 | L50: 35,197,958.82 | M50: =+'Cert.OSN PD'!AL371 -> 77,584,388.26 | N50: -42,386,429.44 | O50: 64,802,041.18 | P50: 22,415,611.74 | Q50: 22,415,611.74 | T50: 10,000,000.00 | AS50: 10,000,000.00 | AY50: 0.00 | BG50: 0.00
A51: 1.05.01 | B51: Transporte dentro del país | C51: 10,350,000.00 | D51: 0.00 | E51: 0.00 | F51: 10,350,000.00 | G51: 184,635.00 | H51: ='CK GASTOS OSN PD MES 1'!AN$87 -> 1,548,770.00 | I51: ='CK GASTOS OSN PD MES 2'!AN$261 -> 1,341,055.00 | J51: ='CK GASTOS OSN PD MES 3'!AN$98 -> 916,250.00 | K51: 3,806,075.00 | L51: 3,990,710.00 | M51: =+'Cert.OSN PD'!AM371 -> 9,501,050.00 | N51: -5,510,340.00 | O51: 6,359,290.00 | P51: 848,950.00 | Q51: 848,950.00 | AS51: 0.00 | AY51: 0.00 | BG51: 0.00
A52: 1.05.02 | B52: Viáticos dentro del país | C52: 24,500,000.00 | D52: 0.00 | E52: 0.00 | F52: 24,500,000.00 | G52: 5,269,800.00 | H52: ='CK GASTOS OSN PD MES 1'!AO$87 -> 752,588.50 | I52: ='CK GASTOS OSN PD MES 2'!AO$261 -> 532,547.34 | J52: ='CK GASTOS OSN PD MES 3'!AO$98 -> 7,376,763.60 | K52: 8,661,899.44 | L52: 13,931,699.44 | M52: =+'Cert.OSN PD'!AN371 -> 24,371,800.00 | N52: -10,440,100.56 | O52: 10,568,300.56 | P52: 128,200.00 | Q52: 128,200.00 | AS52: 0.00 | AY52: 0.00 | BG52: 0.00
A53: 1.05.03 | B53: Transporte en el exterior | D53: 0.00 | E53: 0.00 | F53: 0.00 | G53: 0.00 | H53: ='CK GASTOS OSN PD MES 1'!AP$87 -> 0.00 | I53: ='CK GASTOS OSN PD MES 2'!AP$261 -> 0.00 | J53: ='CK GASTOS OSN PD MES 3'!AP$98 -> 0.00 | K53: 0.00 | L53: 0.00 | M53: =+'Cert.OSN PD'!AO371 -> 0.00 | N53: 0.00 | O53: 0.00 | P53: 0.00 | Q53: 0.00 | AS53: =SUM(R53:AR53) -> 0.00 | AY53: 0.00 | BG53: 0.00
A54: 1.05.04 | B54: Viáticos en el exterior | D54: 0.00 | E54: 0.00 | F54: 0.00 | G54: 0.00 | H54: ='CK GASTOS OSN PD MES 1'!AQ$87 -> 0.00 | I54: ='CK GASTOS OSN PD MES 2'!AQ$261 -> 0.00 | J54: ='CK GASTOS OSN PD MES 3'!AQ$98 -> 0.00 | K54: 0.00 | L54: 0.00 | M54: =+'Cert.OSN PD'!AP371 -> 0.00 | N54: 0.00 | O54: 0.00 | P54: 0.00 | Q54: 0.00 | AS54: 0.00 | AY54: 0.00 | BG54: 0.00
A55: 1.06.01 | B55: Seguros | C55: 7,150,000.00 | D55: 0.00 | E55: -727,000.00 | F55: 6,423,000.00 | G55: 4,143,572.00 | H55: ='CK GASTOS OSN PD MES 1'!AR$87 -> 0.00 | I55: ='CK GASTOS OSN PD MES 2'!AR$261 -> 0.00 | J55: ='CK GASTOS OSN PD MES 3'!AR$98 -> 0.00 | K55: 0.00 | L55: 4,143,572.00 | M55: =+'Cert.OSN PD'!AQ371 -> 6,423,000.00 | N55: -2,279,428.00 | O55: 2,279,428.00 | P55: 0.00 | Q55: 0.00 | S55: -727,000.00 | AS55: -727,000.00 | AY55: 0.00 | BG55: 0.00
A56: 1.07.01 | B56: Actividades de capacitación | C56: 1,050,000.00 | D56: 0.00 | E56: -50,000.00 | F56: 1,000,000.00 | G56: 0.00 | H56: ='CK GASTOS OSN PD MES 1'!AS$87 -> 0.00 | I56: ='CK GASTOS OSN PD MES 2'!AS$261 -> 0.00 | J56: ='CK GASTOS OSN PD MES 3'!AS$98 -> 0.00 | K56: 0.00 | L56: 0.00 | M56: =+'Cert.OSN PD'!AR371 -> 0.00 | N56: 0.00 | O56: 1,000,000.00 | P56: 1,000,000.00 | Q56: 1,000,000.00 | T56: -50,000.00 | AS56: -50,000.00 | AY56: 0.00 | BG56: 0.00
A57: 1.07.02 | B57: Actividades protocolarias y sociales | C57: 0.00 | D57: 0.00 | E57: =+AS57+AY59 -> 0.00 | F57: 0.00 | G57: 0.00 | H57: ='CK GASTOS OSN PD MES 1'!AT$87 -> 0.00 | I57: ='CK GASTOS OSN PD MES 2'!AT$261 -> 0.00 | J57: ='CK GASTOS OSN PD MES 3'!AT$98 -> 0.00 | K57: 0.00 | L57: 0.00 | M57: =+'Cert.OSN PD'!AS371 -> 0.00 | N57: 0.00 | O57: 0.00 | P57: 0.00 | Q57: 0.00 | AS57: 0.00 | AY57: 0.00 | BG57: 0.00
A58: 1.07.03 | B58: Gastos de representación institucional | C58: 50,000.00 | D58: 0.00 | E58: =+AS58+AY60 -> -50,000.00 | F58: 0.00 | G58: 0.00 | H58: =+'CK GASTOS OSN PD MES 1'!AU87 -> 0.00 | I58: =+'CK GASTOS OSN PD MES 2'!AU261 -> 0.00 | J58: =+'CK GASTOS OSN PD MES 3'!AU98 -> 0.00 | K58: 0.00 | L58: 0.00 | M58: =+'Cert.OSN PD'!AT371 -> 0.00 | N58: 0.00 | O58: 0.00 | P58: 0.00 | Q58: 0.00 | T58: -50,000.00 | AS58: -50,000.00
A59: 1.08.01 | B59: Mantenimiento de edificios y locales | C59: 10,500,000.00 | D59: 0.00 | E59: 0.00 | F59: 10,500,000.00 | G59: 1,544,156.30 | H59: ='CK GASTOS OSN PD MES 1'!AV$87 -> 2,709,886.90 | I59: ='CK GASTOS OSN PD MES 2'!AV$261 -> 701,179.13 | J59: ='CK GASTOS OSN PD MES 3'!AV$98 -> 1,477,028.65 | K59: 4,888,094.68 | L59: 6,432,250.98 | M59: =+'Cert.OSN PD'!AU371 -> 8,624,666.69 | N59: -2,192,415.71 | O59: 4,067,749.02 | P59: 1,875,333.31 | Q59: 1,875,333.31 | AS59: 0.00 | AY59: 0.00 | BG59: 0.00
A60: 1.08.04 | B60: Mantenimiento y repracion de equipo de produccion | C60: 0.00 | D60: 0.00 | E60: 0.00 | F60: 0.00 | G60: 0.00 | H60: ='CK GASTOS OSN PD MES 1'!AW$87 -> 0.00 | I60: ='CK GASTOS OSN PD MES 2'!AW$261 -> 0.00 | J60: ='CK GASTOS OSN PD MES 3'!AW$98 -> 0.00 | K60: 0.00 | L60: 0.00 | M60: =+'Cert.OSN PD'!AU372 -> 0.00 | N60: 0.00 | O60: 0.00 | P60: 0.00 | Q60: 0.00 | AS60: 0.00 | AY60: 0.00 | BG60: 0.00
A61: 1.08.05 | B61: Mant. y rep. de equipo de transporte | C61: 3,000,000.00 | D61: 0.00 | E61: 450,000.00 | F61: 3,450,000.00 | G61: 0.00 | H61: ='CK GASTOS OSN PD MES 1'!AX$87 -> 0.00 | I61: ='CK GASTOS OSN PD MES 2'!AX$261 -> 0.00 | J61: ='CK GASTOS OSN PD MES 3'!AX$98 -> 122,789.87 | K61: 122,789.87 | L61: 122,789.87 | M61: =+'Cert.OSN PD'!AW371 -> 3,000,000.00 | N61: -2,877,210.13 | O61: 3,327,210.13 | P61: 450,000.00 | Q61: 450,000.00 | T61: 450,000.00 | AS61: 450,000.00 | AY61: 0.00 | BG61: 0.00
A62: 1.08.06 | B62: Mant. y rep. de equipo de comunicación | C62: 0.00 | D62: 0.00 | E62: 0.00 | F62: 0.00 | G62: 0.00 | H62: ='CK GASTOS OSN PD MES 1'!AY$87 -> 0.00 | I62: ='CK GASTOS OSN PD MES 2'!AY$261 -> 0.00 | J62: ='CK GASTOS OSN PD MES 3'!AY$98 -> 0.00 | K62: 0.00 | L62: 0.00 | M62: =+'Cert.OSN PD'!AW372 -> 0.00 | N62: 0.00 | O62: 0.00 | P62: 0.00 | Q62: 0.00 | AS62: 0.00 | AY62: 0.00 | BG62: 0.00
A63: 1.08.07 | B63: Mant. y rep. de equipo y mob. de oficina | C63: 1,700,000.00 | D63: 0.00 | E63: 100,000.00 | F63: 1,800,000.00 | G63: 0.00 | H63: ='CK GASTOS OSN PD MES 1'!AZ$87 -> 0.00 | I63: ='CK GASTOS OSN PD MES 2'!AZ$261 -> 0.00 | J63: ='CK GASTOS OSN PD MES 3'!AZ$98 -> 426,500.00 | K63: 426,500.00 | L63: =+K63+G63 -> 426,500.00 | M63: =+'Cert.OSN PD'!AY371 -> 1,700,000.00 | N63: -1,273,500.00 | O63: 1,373,500.00 | P63: 100,000.00 | Q63: 100,000.00 | T63: 100,000.00 | AS63: 100,000.00 | AY63: 0.00 | BG63: 0.00
A64: 1.08.08 | B64: Mant. y rep. de equipo de cómputo y sistemas de información | C64: 500,000.00 | D64: 0.00 | E64: =+AS64+AY65 -> -450,000.00 | F64: 50,000.00 | G64: 0.00 | H64: ='CK GASTOS OSN PD MES 1'!BA$87 -> 0.00 | I64: ='CK GASTOS OSN PD MES 2'!BA$261 -> 0.00 | J64: ='CK GASTOS OSN PD MES 3'!BA$98 -> 0.00 | K64: 0.00 | L64: 0.00 | M64: =+'Cert.OSN PD'!AZ371 -> 0.00 | N64: 0.00 | O64: 50,000.00 | P64: 50,000.00 | Q64: 50,000.00 | T64: -450,000.00 | AS64: -450,000.00 | AY64: 0.00 | BG64: 0.00
A65: 1.08.99 | B65: Mantenimiento y reparación de otros equipos | C65: 500,000.00 | D65: =+BG65 -> 0.00 | E65: =+AS65+AY68 -> 1,587,000.00 | F65: 2,087,000.00 | G65: 220,350.00 | H65: ='CK GASTOS OSN PD MES 1'!BB$87 -> 101,700.00 | I65: ='CK GASTOS OSN PD MES 2'!BB$261 -> 45,200.00 | J65: ='CK GASTOS OSN PD MES 3'!BB$98 -> 0.00 | K65: =SUM(H65:J65) -> 146,900.00 | L65: =+K65+G65 -> 367,250.00 | M65: =+'Cert.OSN PD'!BA371 -> 2,052,050.00 | N65: =IF(M65>0,(L65-M65),0) -> -1,684,800.00 | O65: =F65-L65 -> 1,719,750.00 | P65: =F65-M65 -> 34,950.00 | Q65: =IF(N65>0,(F65-L65-N65),(F65-L65+N65)) -> 34,950.00 | S65: =580000+280000+727000 -> 1,587,000.00 | AS65: =SUM(R65:AR65) -> 1,587,000.00 | AY65: =+AT65+AU65+AV65+AW65+AX65 -> 0.00 | BG65: =SUM(AZ65:BF65) -> 0.00
A66: 1.09.02 | B66: Impuesto sobre bienes inmuebles | D66: 0.00 | E66: =+AS66+AY69 -> 0.00 | F66: 0.00 | G66: 0.00 | H66: ='CK GASTOS OSN PD MES 1'!BC$87 -> 0.00 | I66: =+'CK GASTOS OSN PD MES 2'!BC261 -> 0.00 | J66: ='CK GASTOS OSN PD MES 3'!BF$413 -> 0.00 | K66: 0.00 | L66: 0.00 | M66: =+'Cert.OSN PD'!AW376 -> 0.00 | N66: 0.00 | O66: 0.00 | P66: 0.00 | Q66: 0.00 | AS66: 0.00 | BG66: 0.00
A67: 1.09.99 | B67: Otros impuestos | C67: 200,000.00 | D67: 0.00 | E67: =+AS67+AY70 -> 0.00 | F67: 200,000.00 | G67: 0.00 | H67: =+'CK GASTOS OSN PD MES 1'!BD87 -> 0.00 | I67: =+'CK GASTOS OSN PD MES 2'!BD261 -> 0.00 | J67: =+'CK GASTOS OSN PD MES 3'!BD98 -> 0.00 | K67: 0.00 | L67: 0.00 | M67: =+'Cert.OSN PD'!BC371 -> 0.00 | N67: 0.00 | O67: 200,000.00 | P67: 200,000.00 | Q67: 200,000.00 | AS67: 0.00
A68: 1.99.02 | B68: Multas | D68: 0.00 | E68: 0.00 | F68: 0.00 | G68: 0.00 | H68: ='CK GASTOS OSN PD MES 1'!BE$87 -> 0.00 | I68: =+'CK GASTOS OSN PD MES 2'!BE261 -> 0.00 | J68: =+'CK GASTOS OSN PD MES 3'!BE98 -> 0.00 | K68: 0.00 | L68: 0.00 | M68: =+'Cert.OSN PD'!AW377 -> 0.00 | N68: 0.00 | O68: 0.00 | P68: 0.00 | Q68: 0.00 | AS68: 0.00 | AY68: 0.00 | BG68: 0.00
A69: 1.99.99 | B69: Otros servicios no especificados | C69: 390,000.00 | D69: 0.00 | E69: -140,000.00 | F69: 250,000.00 | G69: 0.00 | H69: ='CK GASTOS OSN PD MES 1'!BF$87 -> 0.00 | I69: =+'CK GASTOS OSN PD MES 2'!BF261 -> 0.00 | J69: =+'CK GASTOS OSN PD MES 3'!BF98 -> 0.00 | K69: 0.00 | L69: 0.00 | M69: =+'Cert.OSN PD'!BE371 -> 0.00 | N69: 0.00 | O69: 250,000.00 | P69: 250,000.00 | Q69: 250,000.00 | T69: -140,000.00 | AS69: -140,000.00 | AY69: 0.00 | BG69: 0.00
AY70: 0.00
A71: 2 | B71: MATERIALES Y SUMINISTROS | C71: =SUM(C73:C92) -> 6,665,863.00 | D71: =SUM(D73:D92) -> 0.00 | E71: =SUM(E73:E92) -> 0.00 | F71: =SUM(F73:F92) -> 6,665,863.00 | G71: =SUM(G73:G92) -> 572,961.58 | H71: 258,336.13 | I71: 495,550.00 | J71: 390,136.76 | K71: 1,144,022.89 | L71: 1,716,984.47 | M71: 5,660,954.10 | N71: -4,084,575.50 | O71: =SUM(O73:O92) -> 4,948,878.53 | P71: 1,004,908.90 | Q71: =SUM(Q73:Q92) -> 864,303.03 | R71: 0.00 | S71: 0.00 | T71: 0.00 | U71: 0.00 | V71: =SUM(V73:V92) -> 0.00 | W71: 0.00 | X71: 0.00 | Y71: =SUM(Y73:Y92) -> 0.00 | Z71: 0.00 | AA71: 0.00 | AB71: 0.00 | AC71: 0.00 | AD71: 0.00 | AE71: 0.00 | AF71: 0 | AG71: 0.00 | AH71: 0.00 | AI71: 0.00 | AJ71: 0.00 | AK71: 0.00 | AL71: 0.00 | AM71: 0.00 | AN71: 0.00 | AO71: 0.00 | AP71: 0.00 | AQ71: 0.00 | AR71: 0.00 | AS71: 0.00 | AT71: =SUM(AT73:AT92) -> 0.00 | AU71: 0.00 | AV71: 0.00 | AW71: 0.00 | AX71: 0.00 | AY71: 0.00 | AZ71: 0.00 | BA71: 0.00 | BB71: 0.00 | BC71: 0.00 | BD71: 0.00 | BE71: 0.00 | BF71: 0.00 | BG71: 0.00
A73: 2.01.01 | B73: Combustibles y lubricantes | C73: 3,500,000.00 | D73: =+BG73 -> 0.00 | E73: =+AS73+AY73 -> -600,000.00 | F73: =+C73+D73+E73 -> 2,900,000.00 | G73: 318,051.00 | H73: ='CK GASTOS OSN PD MES 1'!BG$87 -> 155,000.00 | I73: ='CK GASTOS OSN PD MES 2'!BG$261 -> 95,000.00 | J73: ='CK GASTOS OSN PD MES 3'!BG$98 -> 230,000.00 | K73: =SUM(H73:J73) -> 480,000.00 | L73: =+K73+G73 -> 798,051.00 | M73: =+'Cert.OSN PD'!BF371 -> 2,900,000.00 | N73: =IF(M73>0,(L73-M73),0) -> -2,101,949.00 | O73: =F73-L73 -> 2,101,949.00 | P73: =F73-M73 -> 0.00 | Q73: =IF(N73>0,(F73-L73-N73),(F73-L73+N73)) -> 0.00 | S73: -600,000.00 | AS73: =SUM(R73:AR73) -> -600,000.00 | AY73: =+AT73+AU73+AV73+AW73+AX73 -> 0.00 | BG73: =SUM(AZ73:BF73) -> 0.00
A74: 2.01.02 | B74: Productos farmacéuticos y medicinales | D74: 0.00 | E74: 0.00 | F74: 0.00 | G74: 0.00 | H74: ='CK GASTOS OSN PD MES 1'!BH$87 -> 0.00 | I74: ='CK GASTOS OSN PD MES 2'!BH$261 -> 0.00 | J74: ='CK GASTOS OSN PD MES 3'!BH$98 -> 0.00 | K74: 0.00 | L74: 0.00 | M74: =+'Cert.OSN PD'!BG371 -> 0.00 | N74: 0.00 | O74: 0.00 | P74: 0.00 | Q74: 0.00 | AS74: 0.00 | AY74: 0.00 | BG74: 0.00
A75: 2.01.04 | B75: Tintas, pinturas y diluyentes | C75: 400,000.00 | D75: 0.00 | E75: 0.00 | F75: 400,000.00 | G75: 32,076.58 | H75: ='CK GASTOS OSN PD MES 1'!BI$87 -> 43,700.26 | I75: ='CK GASTOS OSN PD MES 2'!BI$261 -> 0.00 | J75: ='CK GASTOS OSN PD MES 3'!BI$98 -> 0.00 | K75: 43,700.26 | L75: 75,776.84 | M75: =+'Cert.OSN PD'!BH371 -> 300,000.00 | N75: -224,223.16 | O75: 324,223.16 | P75: 100,000.00 | Q75: 100,000.00 | AS75: 0.00 | AY75: 0.00 | BG75: 0.00
A76: 2.01.99 | B76: Otros productos químicos | C76: 20,000.00 | D76: 0.00 | E76: 0.00 | F76: 20,000.00 | G76: 5,450.00 | H76: ='CK GASTOS OSN PD MES 1'!BJ$87 -> 0.00 | I76: ='CK GASTOS OSN PD MES 2'!BJ$261 -> 0.00 | J76: ='CK GASTOS OSN PD MES 3'!BJ$98 -> 0.00 | K76: 0.00 | L76: 5,450.00 | M76: =+'Cert.OSN PD'!BI371 -> 0.00 | N76: 0.00 | O76: 14,550.00 | P76: 20,000.00 | Q76: 14,550.00 | AS76: 0.00 | AY76: 0.00 | BG76: 0.00
A77: 2.02.03 | B77: Alimentos y bebidas | C77: 118,863.00 | D77: 0.00 | E77: 180,000.00 | F77: 298,863.00 | G77: 23,800.00 | H77: ='CK GASTOS OSN PD MES 1'!BK$87 -> 0.00 | I77: ='CK GASTOS OSN PD MES 2'!BK$261 -> 0.00 | J77: ='CK GASTOS OSN PD MES 3'!BK$98 -> 69,918.75 | K77: 69,918.75 | L77: 93,718.75 | M77: =+'Cert.OSN PD'!BJ371 -> 183,718.75 | N77: -90,000.00 | O77: 205,144.25 | P77: 115,144.25 | Q77: 115,144.25 | S77: =60000+120000 -> 180,000.00 | AS77: 180,000.00 | AY77: 0.00 | BG77: 0.00
A78: 2.03.01 | B78: Materiales y productos metálicos | C78: 12,000.00 | D78: 0.00 | E78: 0.00 | F78: 12,000.00 | G78: 0.00 | H78: ='CK GASTOS OSN PD MES 1'!BL$87 -> 0.00 | I78: ='CK GASTOS OSN PD MES 2'!BL$261 -> 0.00 | J78: ='CK GASTOS OSN PD MES 3'!BL$98 -> 0.00 | K78: 0.00 | L78: 0.00 | M78: =+'Cert.OSN PD'!BK371 -> 0.00 | N78: 0.00 | O78: 12,000.00 | P78: 12,000.00 | Q78: 12,000.00 | AS78: 0.00 | AY78: 0.00 | BG78: 0.00
A79: 2.03.03 | B79: Madera y sus derivados | C79: 20,000.00 | D79: 0.00 | E79: 0.00 | F79: 20,000.00 | G79: 0.00 | H79: ='CK GASTOS OSN PD MES 1'!BM$87 -> 0.00 | I79: ='CK GASTOS OSN PD MES 2'!BM$261 -> 5,700.00 | J79: ='CK GASTOS OSN PD MES 3'!BM$98 -> 0.00 | K79: 5,700.00 | L79: 5,700.00 | M79: =+'Cert.OSN PD'!BL371 -> 0.00 | N79: 0.00 | O79: 14,300.00 | P79: 20,000.00 | Q79: 14,300.00 | AS79: 0.00 | AY79: 0.00 | BG79: 0.00
A80: 2.03.04 | B80: Materiales y prod. eléct., telef. y de cómputo | C80: 50,000.00 | D80: 0.00 | E80: 0.00 | F80: 50,000.00 | G80: 0.00 | H80: ='CK GASTOS OSN PD MES 1'!BN$87 -> 43,605.87 | I80: ='CK GASTOS OSN PD MES 2'!BN$261 -> 0.00 | J80: ='CK GASTOS OSN PD MES 3'!BN$98 -> 0.00 | K80: 43,605.87 | L80: 43,605.87 | M80: =+'Cert.OSN PD'!BM371 -> 0.00 | N80: 0.00 | O80: 6,394.13 | P80: 50,000.00 | Q80: 6,394.13 | AS80: 0.00 | AY80: 0.00 | BG80: 0.00
A81: 2.03.05 | B81: Materiales y productos de vidrio | C81: 70,000.00 | D81: 0.00 | E81: 0.00 | F81: 70,000.00 | G81: 0.00 | H81: ='CK GASTOS OSN PD MES 1'!BO$87 -> 0.00 | I81: ='CK GASTOS OSN PD MES 2'!BO$261 -> 0.00 | J81: ='CK GASTOS OSN PD MES 3'!BO$98 -> 0.00 | K81: 0.00 | L81: 0.00 | M81: =+'Cert.OSN PD'!BN371 -> 0.00 | N81: 0.00 | O81: 70,000.00 | P81: 70,000.00 | Q81: 70,000.00 | AS81: 0.00 | AY81: 0.00 | BG81: 0.00
A82: 2.03.06 | B82: Materiales y productos de plástico | C82: 70,000.00 | D82: 0.00 | E82: 0.00 | F82: 70,000.00 | G82: 20,600.00 | H82: ='CK GASTOS OSN PD MES 1'!BP$87 -> 0.00 | I82: ='CK GASTOS OSN PD MES 2'!BP$261 -> 45,100.00 | J82: ='CK GASTOS OSN PD MES 3'!BP$98 -> 0.00 | K82: 45,100.00 | L82: 65,700.00 | M82: =+'Cert.OSN PD'!BO371 -> 0.00 | N82: 0.00 | O82: 4,300.00 | P82: 70,000.00 | Q82: 4,300.00 | AS82: 0.00 | AY82: 0.00 | BG82: 0.00
A83: 2.03.99 | B83: Otros mat. y productos de uso en construcción | C83: 225,000.00 | D83: 0.00 | E83: 0.00 | F83: 225,000.00 | G83: 56,408.75 | H83: ='CK GASTOS OSN PD MES 1'!BQ$87 -> 16,030.00 | I83: ='CK GASTOS OSN PD MES 2'!BQ$261 -> 0.00 | J83: ='CK GASTOS OSN PD MES 3'!BQ$98 -> 33,255.00 | K83: 49,285.00 | L83: 105,693.75 | M83: =+'Cert.OSN PD'!BP371 -> 105,693.75 | N83: 0.00 | O83: 119,306.25 | P83: 119,306.25 | Q83: 119,306.25 | AS83: 0.00 | AY83: 0.00 | BG83: 0.00
A84: 2.04.01 | B84: Herramientas e instrumentos | C84: 130,000.00 | D84: 0.00 | E84: 0.00 | F84: 130,000.00 | G84: 1,350.00 | H84: ='CK GASTOS OSN PD MES 1'!BR$87 -> 0.00 | I84: ='CK GASTOS OSN PD MES 2'!BR$261 -> 3,900.00 | J84: ='CK GASTOS OSN PD MES 3'!BR$98 -> 14,900.00 | K84: 18,800.00 | L84: 20,150.00 | M84: =+'Cert.OSN PD'!BQ371 -> 0.00 | N84: 0.00 | O84: 109,850.00 | P84: 130,000.00 | Q84: 109,850.00 | AS84: 0.00 | AY84: 0.00 | BG84: 0.00
A85: 2.04.02 | B85: Repuestos y accesorios | C85: 500,000.00 | D85: 0.00 | E85: 740,000.00 | F85: 1,240,000.00 | G85: 92,625.25 | H85: ='CK GASTOS OSN PD MES 1'!BS$87 -> 0.00 | I85: ='CK GASTOS OSN PD MES 2'!BS$261 -> 195,850.00 | J85: ='CK GASTOS OSN PD MES 3'!BS$98 -> 31,663.01 | K85: 227,513.01 | L85: 320,138.26 | M85: =+'Cert.OSN PD'!BR371 -> 1,240,000.00 | N85: -919,861.74 | O85: 919,861.74 | P85: 0.00 | Q85: 0.00 | S85: =600000+140000 -> 740,000.00 | AS85: 740,000.00 | AY85: 0.00 | BG85: 0.00
A86: 2.99.01 | B86: Útiles y materiales de oficina y cómputo | C86: 600,000.00 | D86: 0.00 | E86: -200,000.00 | F86: 400,000.00 | G86: 22,600.00 | H86: ='CK GASTOS OSN PD MES 1'!BT$87 -> 0.00 | I86: ='CK GASTOS OSN PD MES 2'!BT$261 -> 0.00 | J86: ='CK GASTOS OSN PD MES 3'!BT$98 -> 0.00 | K86: 0.00 | L86: 22,600.00 | M86: =+'Cert.OSN PD'!BS371 -> 372,600.00 | N86: -350,000.00 | O86: 377,400.00 | P86: 27,400.00 | Q86: 27,400.00 | S86: =-140000+-60000 -> -200,000.00 | AS86: -200,000.00 | AY86: 0.00 | BG86: 0.00
A87: 2.99.03 | B87: Productos de papel y cartón e impresos | C87: 500,000.00 | D87: 0.00 | E87: -120,000.00 | F87: 380,000.00 | G87: 0.00 | H87: ='CK GASTOS OSN PD MES 1'!BU$87 -> 0.00 | I87: ='CK GASTOS OSN PD MES 2'!BU$261 -> 150,000.00 | J87: ='CK GASTOS OSN PD MES 3'!BU$98 -> 0.00 | K87: 150,000.00 | L87: 150,000.00 | M87: =+'Cert.OSN PD'!BT371 -> 213,941.60 | N87: -63,941.60 | O87: 230,000.00 | P87: 166,058.40 | Q87: 166,058.40 | S87: -120,000.00 | AS87: =SUM(R87:AR87) -> -120,000.00 | AY87: 0.00 | BG87: 0.00
A88: 2.99.04 | B88: Textiles y vestuario | C88: 300,000.00 | D88: 0.00 | E88: 0.00 | F88: 300,000.00 | G88: 0.00 | H88: ='CK GASTOS OSN PD MES 1'!BV$87 -> 0.00 | I88: ='CK GASTOS OSN PD MES 2'!BV$261 -> 0.00 | J88: ='CK GASTOS OSN PD MES 3'!BV$98 -> 10,400.00 | K88: 10,400.00 | L88: 10,400.00 | M88: =+'Cert.OSN PD'!BU371 -> 255,000.00 | N88: -244,600.00 | O88: 289,600.00 | P88: 45,000.00 | Q88: 45,000.00 | AS88: 0.00 | AY88: 0.00 | BG88: 0.00
A89: 2.99.05 | B89: Útiles y materiales de limpieza | C89: 0.00 | D89: 0.00 | E89: 0.00 | F89: 0.00 | G89: 0.00 | H89: ='CK GASTOS OSN PD MES 1'!BW$87 -> 0.00 | I89: ='CK GASTOS OSN PD MES 2'!BW$261 -> 0.00 | J89: ='CK GASTOS OSN PD MES 3'!BW$98 -> 0.00 | K89: 0.00 | L89: 0.00 | M89: =+'Cert.OSN PD'!BV371 -> 0.00 | N89: 0.00 | O89: 0.00 | P89: 0.00 | Q89: 0.00 | AS89: 0.00 | AY89: 0.00 | BG89: 0.00
A90: 2.99.06 | B90: Útiles y materiales de resguardo y seguridad | C90: 100,000.00 | D90: 0.00 | E90: 0.00 | F90: 100,000.00 | G90: 0.00 | H90: ='CK GASTOS OSN PD MES 1'!BX$87 -> 0.00 | I90: ='CK GASTOS OSN PD MES 2'!BX$261 -> 0.00 | J90: ='CK GASTOS OSN PD MES 3'!BX$98 -> 0.00 | K90: 0.00 | L90: 0.00 | M90: =+'Cert.OSN PD'!BW371 -> 90,000.00 | N90: -90,000.00 | O90: 100,000.00 | P90: 10,000.00 | Q90: 10,000.00 | AS90: 0.00 | AY90: 0.00 | BG90: 0.00
A91: 2.99.07 | B91: Útiles y materiales de cocina y comedor | C91: 0.00 | D91: 0.00 | E91: 0.00 | F91: 0.00 | G91: 0.00 | H91: ='CK GASTOS OSN PD MES 1'!BY$87 -> 0.00 | I91: ='CK GASTOS OSN PD MES 2'!BY$261 -> 0.00 | J91: ='CK GASTOS OSN PD MES 3'!BY$98 -> 0.00 | K91: 0.00 | L91: 0.00 | M91: =+'Cert.OSN PD'!BX371 -> 0.00 | N91: 0.00 | O91: 0.00 | P91: 0.00 | Q91: 0.00 | AS91: 0.00 | AY91: 0.00 | BG91: 0.00
A92: 2.99.99 | B92: Otros útiles, materiales y suministros | C92: 50,000.00 | D92: 0.00 | E92: 0.00 | F92: 50,000.00 | G92: 0.00 | H92: ='CK GASTOS OSN PD MES 1'!BZ$87 -> 0.00 | I92: ='CK GASTOS OSN PD MES 2'!BZ$261 -> 0.00 | J92: ='CK GASTOS OSN PD MES 3'!BZ$98 -> 0.00 | K92: 0.00 | L92: 0.00 | M92: =+'Cert.OSN PD'!BY371 -> 0.00 | N92: 0.00 | O92: 50,000.00 | P92: 50,000.00 | Q92: 50,000.00 | AS92: 0.00 | AY92: 0.00 | BG92: 0.00
A94: 3 | B94: INTERESES Y COMISIONES | C94: =SUM(C96:C96) -> 0.00 | D94: =SUM(D96:D96) -> 0.00 | E94: =SUM(E96:E96) -> 0.00 | F94: =SUM(F96:F96) -> 0.00 | G94: 0.00 | H94: =SUM(H96:H96) -> 0.00 | I94: =SUM(I96:I96) -> 0 | J94: =SUM(J96:J96) -> 0.00 | K94: =SUM(K96:K96) -> 0.00 | L94: =SUM(L96:L96) -> 0.00 | M94: =SUM(M96:M96) -> 0.00 | N94: 0.00 | O94: 0.00 | P94: 0.00 | Q94: 0.00 | R94: 0.00 | S94: 0.00 | T94: 0.00 | U94: 0.00 | V94: 0.00 | W94: 0.00 | X94: 0.00 | Y94: 0.00 | Z94: 0.00 | AA94: 0.00 | AB94: 0.00 | AC94: =SUM(AC96:AC96) -> 0.00 | AD94: 0.00 | AE94: 0.00 | AF94: 0 | AG94: 0.00 | AH94: 0.00 | AI94: 0.00 | AJ94: 0.00 | AK94: 0.00 | AL94: 0.00 | AS94: 0.00 | AT94: 0.00 | AU94: 0.00 | AV94: 0.00 | AW94: 0.00 | AX94: 0.00 | AY94: 0.00 | AZ94: 0.00 | BA94: 0.00 | BB94: 0.00 | BC94: 0.00 | BD94: 0.00 | BE94: 0.00 | BF94: 0.00 | BG94: 0.00
A96: 3.04.05 | B96: Diferencias por tipo de cambio | C96: 0.00 | D96: =+BG96 -> 0.00 | E96: =+AS96+AY96 -> 0.00 | F96: =+C96+D96+E96 -> 0.00 | H96: ='CK GASTOS OSN PD MES 1'!CA87 -> 0.00 | I96: ='CK GASTOS OSN PD MES 2'!CA$261 -> 0 | J96: ='CK GASTOS OSN PD MES 3'!CA$98 -> 0.00 | K96: 0.00 | L96: =+K96+G96 -> 0.00 | M96: =+'Cert.OSN PD'!BZ371 -> 0.00 | N96: =IF(M96>0,(L96-M96),0) -> 0.00 | O96: =F96-L96 -> 0.00 | P96: =F96-M96 -> 0.00 | Q96: =IF(N96>0,(F96-L96-N96),(F96-L96+N96)) -> 0.00 | AS96: =SUM(R96:AL96) -> 0.00 | AY96: =+AT96+AU96+AV96+AW96+AX96 -> 0.00 | BG96: =SUM(AZ96:BB96) -> 0.00
A98: 5 | B98: BIENES DURADEROS | C98: =SUM(C100:C110) -> 8,500,000.00 | D98: =SUM(D100:D110) -> 0.00 | E98: =SUM(E100:E110) -> -1,000,000.00 | F98: =SUM(F100:F110) -> 7,500,000.00 | G98: =SUM(G100:G110) -> 0.00 | H98: =SUM(H101:H110) -> 0.00 | I98: =SUM(I101:I109) -> 0 | J98: =SUM(J101:J109) -> 339,232.94 | K98: =SUM(K101:K110) -> 339,232.94 | L98: =SUM(L100:L110) -> 339,232.94 | M98: 7,444,783.15 | N98: =SUM(N100:N110) -> -7,105,550.21 | O98: 7,160,767.06 | P98: 55,216.85 | Q98: 55,216.85 | R98: =SUM(R101:R109) -> 0.00 | S98: =SUM(S101:S109) -> -1,000,000.00 | T98: =SUM(T100:T110) -> 0.00 | U98: =SUM(U100:U110) -> 0.00 | V98: =SUM(V101:V111) -> 0.00 | W98: =SUM(W101:W109) -> 0.00 | X98: =SUM(X100:X110) -> 0.00 | Y98: =SUM(Y101:Y109) -> 0.00 | Z98: 0.00 | AA98: 0.00 | AB98: 0.00 | AC98: =SUM(AC100:AC110) -> 0.00 | AD98: =SUM(AD100:AD109) -> 0.00 | AE98: 0.00 | AF98: 0 | AG98: 0.00 | AH98: 0.00 | AI98: 0.00 | AJ98: 0.00 | AK98: 0.00 | AL98: 0.00 | AM98: 0.00 | AN98: 0.00 | AO98: 0.00 | AP98: 0.00 | AQ98: 0.00 | AR98: =SUM(AR100:AR110) -> 0.00 | AS98: =SUM(AS100:AS110) -> -1,000,000.00 | AT98: =SUM(AT101:AT109) -> 0.00 | AU98: 0.00 | AV98: 0.00 | AW98: 0.00 | AX98: 0.00 | AY98: 0.00 | AZ98: 0.00 | BA98: 0.00 | BB98: 0.00 | BC98: 0.00 | BD98: 0.00 | BE98: 0.00 | BF98: 0.00 | BG98: 0.00
A100: 5.01.01 | B100: Maquinaria y equipo para la produccion | D100: =+BG100 -> 0.00 | E100: =+AS100+AY100 -> 0.00 | F100: =+C100+D100+E100 -> 0.00 | H100: ='CK GASTOS OSN PD MES 1'!CB87 -> 0.00 | I100: ='CK GASTOS OSN PD MES 2'!CB261 -> 0.00 | J100: ='CK GASTOS OSN PD MES 3'!CB98 -> 0.00 | K100: =SUM(H100:J100) -> 0.00 | L100: =+K100+G100 -> 0.00 | M100: =+'Cert.OSN PD'!CA371 -> 0.00 | N100: =IF(M100>0,(L100-M100),0) -> 0.00 | O100: =F100-L100 -> 0.00 | P100: =F100-M100 -> 0.00 | Q100: =IF(N100>0,(F100-L100-N100),(F100-L100+N100)) -> 0.00 | AS100: =SUM(R100:AR100) -> 0.00 | AY100: =+AT100+AU100+AV100+AW100+AX100 -> 0.00 | BG100: =SUM(AZ100:BF100) -> 0.00
A101: 5.01.02 | B101: Equipo de transporte | D101: 0.00 | E101: 0.00 | F101: 0.00 | H101: ='CK GASTOS OSN PD MES 1'!CC87 -> 0.00 | I101: ='CK GASTOS OSN PD MES 2'!CC261 -> 0.00 | J101: ='CK GASTOS OSN PD MES 3'!CC98 -> 0.00 | K101: 0.00 | L101: 0.00 | M101: =+'Cert.OSN PD'!CB371 -> 0.00 | N101: 0.00 | O101: 0.00 | P101: 0.00 | Q101: 0.00 | AS101: 0.00 | AY101: 0.00 | BG101: 0.00
A102: 5.01.03 | B102: Equipo de comunicación | D102: 0.00 | E102: 0.00 | F102: 0.00 | H102: ='CK GASTOS OSN PD MES 1'!CD87 -> 0.00 | I102: ='CK GASTOS OSN PD MES 2'!CD261 -> 0.00 | J102: ='CK GASTOS OSN PD MES 3'!CD98 -> 0.00 | K102: 0.00 | L102: 0.00 | M102: =+'Cert.OSN PD'!CC371 -> 0.00 | N102: 0.00 | O102: 0.00 | P102: 0.00 | Q102: 0.00 | AS102: 0.00 | AY102: 0.00 | BG102: 0.00
A103: 5.01.04 | B103: Equipo y mobiliario de oficina | C103: 1,500,000.00 | D103: 0.00 | E103: 0.00 | F103: 1,500,000.00 | H103: ='CK GASTOS OSN PD MES 1'!CE87 -> 0.00 | I103: ='CK GASTOS OSN PD MES 2'!CE261 -> 0.00 | J103: ='CK GASTOS OSN PD MES 3'!CE98 -> 208,152.94 | K103: 208,152.94 | L103: 208,152.94 | M103: =+'Cert.OSN PD'!CD371 -> 1,444,783.15 | N103: -1,236,630.21 | O103: 1,291,847.06 | P103: 55,216.85 | Q103: 55,216.85 | AS103: 0.00 | AY103: 0.00 | BG103: 0.00
A104: 5.01.05 | B104: Equipo y programas de cómputo | C104: 5,000,000.00 | D104: 0.00 | E104: -1,000,000.00 | F104: 4,000,000.00 | H104: ='CK GASTOS OSN PD MES 1'!CF$87 -> 0.00 | I104: ='CK GASTOS OSN PD MES 2'!CF$261 -> 0.00 | J104: ='CK GASTOS OSN PD MES 3'!CF$98 -> 0.00 | K104: 0.00 | L104: 0.00 | M104: =+'Cert.OSN PD'!CE371 -> 4,000,000.00 | N104: -4,000,000.00 | O104: 4,000,000.00 | P104: 0.00 | Q104: 0.00 | S104: -1,000,000.00 | AS104: -1,000,000.00 | AY104: 0.00 | BG104: 0.00
A105: 5.01.07 | B105: Equipo y mob.educ.,deportivo y recreativo | D105: 0.00 | E105: 0.00 | F105: 0.00 | H105: ='CK GASTOS OSN PD MES 1'!CG$87 -> 0.00 | I105: ='CK GASTOS OSN PD MES 2'!CG$261 -> 0.00 | J105: ='CK GASTOS OSN PD MES 3'!CG$98 -> 0.00 | K105: 0.00 | L105: 0.00 | M105: =+'Cert.OSN PD'!CF371 -> 0.00 | N105: 0.00 | O105: 0.00 | P105: 0.00 | Q105: 0.00 | AS105: 0.00 | AY105: 0.00 | BG105: 0.00
A106: 5.01.99 | B106: Maquinaria y equipo diverso | C106: 2,000,000.00 | D106: 0.00 | E106: 0.00 | F106: 2,000,000.00 | H106: ='CK GASTOS OSN PD MES 1'!CH$87 -> 0.00 | I106: ='CK GASTOS OSN PD MES 2'!CH$261 -> 0.00 | J106: ='CK GASTOS OSN PD MES 3'!CH$98 -> 131,080.00 | K106: 131,080.00 | L106: 131,080.00 | M106: =+'Cert.OSN PD'!CG371 -> 2,000,000.00 | N106: -1,868,920.00 | O106: 1,868,920.00 | P106: 0.00 | Q106: 0.00 | AS106: 0.00 | AY106: 0.00 | BG106: 0.00
A107: 5.02.01 | B107: Edificios | D107: 0.00 | E107: 0.00 | F107: 0.00 | H107: ='CK GASTOS OSN PD MES 1'!CI$87 -> 0.00 | I107: ='CK GASTOS OSN PD MES 2'!CI$261 -> 0.00 | J107: ='CK GASTOS OSN PD MES 3'!CI$98 -> 0.00 | K107: 0.00 | L107: 0.00 | M107: =+'Cert.OSN PD'!CH371 -> 0.00 | N107: 0.00 | O107: 0.00 | P107: 0.00 | Q107: 0.00 | AS107: 0.00 | AY107: 0.00 | BG107: 0.00
A108: 5.02.99 | B108: Otras construcciones adiciones y mejoras | D108: 0.00 | E108: 0.00 | F108: 0.00 | H108: ='CK GASTOS OSN PD MES 1'!CJ$87 -> 0.00 | I108: ='CK GASTOS OSN PD MES 2'!CJ$261 -> 0.00 | J108: ='CK GASTOS OSN PD MES 3'!CJ$98 -> 0.00 | K108: 0.00 | L108: 0.00 | M108: =+'Cert.OSN PD'!CI371 -> 0.00 | N108: 0.00 | O108: 0.00 | P108: 0.00 | Q108: 0.00 | AS108: 0.00 | AY108: 0.00 | BG108: 0.00
A109: 5.99.03 | B109: Bienes intangibles | D109: 0.00 | E109: 0.00 | F109: 0.00 | H109: ='CK GASTOS OSN PD MES 1'!CK$87 -> 0.00 | I109: ='CK GASTOS OSN PD MES 2'!CK$261 -> 0.00 | J109: ='CK GASTOS OSN PD MES 3'!CK$98 -> 0.00 | K109: 0.00 | L109: 0.00 | M109: =+'Cert.OSN PD'!CJ371 -> 0.00 | N109: 0.00 | O109: 0.00 | P109: 0.00 | Q109: 0.00 | AS109: 0.00 | AY109: 0.00 | BG109: 0.00
A110: 5.99.99 | B110: Otros bienes duraderos | D110: 0.00 | E110: 0.00 | F110: 0.00 | H110: ='CK GASTOS OSN PD MES 1'!CL$87 -> 0.00 | I110: ='CK GASTOS OSN PD MES 2'!CL$261 -> 0.00 | J110: ='CK GASTOS OSN PD MES 3'!CL$98 -> 0.00 | K110: 0.00 | L110: 0.00 | M110: =+'Cert.OSN PD'!CK371 -> 0.00 | N110: 0.00 | O110: 0.00 | P110: 0.00 | Q110: 0.00 | AS110: 0.00 | AY110: 0.00 | BG110: 0.00
A112: 6 | B112: TRANSFERENCIAS CORRIENTES | C112: =SUM(C114:C123) -> 115,697,162.00 | D112: =SUM(D114:D120) -> 0.00 | E112: =SUM(E114:E123) -> 0.00 | F112: 115,697,162.00 | G112: =SUM(G114:G123) -> 4,281,511.08 | H112: 7,199,876.20 | I112: 1,870,727.29 | J112: 53,934,132.64 | K112: 63,004,736.13 | L112: =SUM(L114:L123) -> 67,286,247.21 | M112: =SUM(M114:M122) -> 57,314,375.21 | N112: =SUM(N114:N122) -> 0.00 | O112: =SUM(O114:O123) -> 48,410,914.79 | P112: =SUM(P114:P123) -> 58,382,786.79 | Q112: =SUM(Q114:Q123) -> 48,410,914.79 | R112: =SUM(R114:R120) -> 0.00 | S112: =SUM(S114:S123) -> 0.00 | T112: =SUM(T114:T122) -> 0.00 | U112: =SUM(U114:U124) -> 0.00 | V112: =SUM(V114:V120) -> 0.00 | W112: 0.00 | X112: 0.00 | Y112: =SUM(Y114:Y120) -> 0.00 | Z112: 0.00 | AA112: =SUM(AA114:AA123) -> 0.00 | AB112: 0.00 | AC112: 0.00 | AD112: =SUM(AD114:AD120) -> 0.00 | AE112: =SUM(AE114:AE123) -> 0.00 | AF112: 0 | AG112: 0.00 | AH112: 0.00 | AI112: 0.00 | AJ112: 0.00 | AK112: 0.00 | AL112: 0.00 | AM112: 0.00 | AN112: 0.00 | AO112: 0.00 | AP112: 0.00 | AQ112: 0.00 | AR112: 0.00 | AS112: =SUM(AS114:AS123) -> 0.00 | AT112: =SUM(AT114:AT120) -> 0.00 | AU112: 0.00 | AV112: 0.00 | AW112: 0.00 | AX112: 0.00 | AY112: 0.00 | AZ112: 0.00 | BA112: 0.00 | BB112: 0.00 | BC112: 0.00 | BD112: 0.00 | BE112: 0.00 | BF112: 0.00 | BG112: 0.00
A114: 6.01.02 | B114: Transferencias corrientes a órganos desconcentrados | D114: =+BG114 -> 0.00 | E114: =+AS114+AY114 -> 0.00 | F114: =+C114+D114+E114 -> 0.00 | G114: 0.00 | H114: ='CK GASTOS OSN PD MES 1'!CM$87 -> 0.00 | I114: ='CK GASTOS OSN PD MES 2'!CM$261 -> 0.00 | J114: ='CK GASTOS OSN PD MES 3'!CM$98 -> 0.00 | K114: =SUM(H114:J114) -> 0.00 | L114: =+K114+G114 -> 0.00 | M114: =+'Cert.OSN PD'!CL371 -> 0.00 | N114: =IF(M114>0,(L114-M114),0) -> 0.00 | O114: =F114-L114 -> 0.00 | P114: =F114-M114 -> 0.00 | Q114: =IF(N114>0,(F114-L114-N114),(F114-L114+N114)) -> 0.00 | AS114: =SUM(R114:AR114) -> 0.00 | AY114: =+AT114+AU114+AV114+AW114+AX114 -> 0.00 | BG114: =SUM(AZ114:BF114) -> 0.00
A115: 6.01.03 200 | B115: Transferencias corrientes a Instituciones Descentralizadas no Empresariales | C115: 16,473,926.00 | D115: 0.00 | E115: 0.00 | F115: 16,473,926.00 | G115: 2,922,880.67 | H115: =+'CK GASTOS OSN PD MES 1'!CN87 -> 947,436.00 | I115: =+'CK GASTOS OSN PD MES 2'!CN261 -> 1,053,999.31 | J115: =+'CK GASTOS OSN PD MES 3'!CN98 -> 1,374,566.64 | K115: =SUM(H115:J115) -> 3,376,001.95 | L115: 6,298,882.62 | M115: =+'Cert.OSN PD'!CL372 -> 0.00 | N115: 0.00 | O115: 10,175,043.38 | P115: =F115-M115 -> 16,473,926.00 | Q115: 10,175,043.38 | AS115: 0.00 | BG115: 0.00
A116: 6.01.03 202 | B116: Transferencias corrientes a Instituciones Descentralizadas no Empresariales | C116: 2,623,236.00 | D116: 0.00 | E116: 0.00 | F116: 2,623,236.00 | G116: 465,425.56 | H116: =+'CK GASTOS OSN PD MES 1'!CO87 -> 150,865.00 | I116: =+'CK GASTOS OSN PD MES 2'!CO261 -> 167,834.28 | J116: =+'CK GASTOS OSN PD MES 3'!CO98 -> 218,880.04 | K116: =SUM(H116:J116) -> 537,579.32 | L116: 1,003,004.88 | M116: =+'Cert.OSN PD'!CL373 -> 0.00 | N116: 0.00 | O116: 1,620,231.12 | P116: =F116-M116 -> 2,623,236.00 | Q116: 1,620,231.12 | AS116: 0.00 | BG116: 0.00
A117: 6.02.02 | B117: Becas a terceras personas | D117: 0.00 | E117: 0.00 | F117: 0.00 | G117: 0.00 | K117: =SUM(H117:J117) -> 0.00 | L117: 0.00 | M117: =+'Cert.OSN PD'!CL374 -> 0.00 | N117: 0.00 | O117: 0.00 | P117: =F117-M117 -> 0.00 | Q117: 0.00 | AS117: 0.00 | BG117: 0.00
A118: 6.02.99 | B118: Otras Transferencias a personas | D118: 0.00 | E118: 0.00 | F118: 0.00 | G118: 0.00 | H118: ='CK GASTOS OSN PD MES 1'!CP$87 -> 0.00 | I118: ='CK GASTOS OSN PD MES 2'!CP$261 -> 0.00 | J118: ='CK GASTOS OSN PD MES 3'!CP$98 -> 0.00 | K118: 0.00 | L118: 0.00 | M118: =+'Cert.OSN PD'!CM371 -> 0.00 | N118: 0.00 | O118: 0.00 | P118: 0.00 | Q118: 0.00 | AS118: 0.00 | AY118: =+AT118+AU118+AV118+AW118+AX118 -> 0.00 | BG118: 0.00
A119: 6.03.01 | B119: Prestaciones legales | C119: 79,900,000.00 | D119: 0.00 | E119: 0.00 | F119: 79,900,000.00 | G119: 0.00 | H119: ='CK GASTOS OSN PD MES 1'!CQ$87 -> 5,682,236.05 | I119: =+'CK GASTOS OSN PD MES 2'!CQ261 -> 0.00 | J119: =+'CK GASTOS OSN PD MES 3'!CQ98 -> 51,632,139.16 | K119: =SUM(H119:J119) -> 57,314,375.21 | L119: 57,314,375.21 | M119: =+'Cert.OSN PD'!CN371 -> 57,314,375.21 | N119: 0.00 | O119: 22,585,624.79 | P119: 22,585,624.79 | Q119: 22,585,624.79 | AS119: 0.00 | AY119: =+AT119+AU119+AV119+AW119+AX119 -> 0.00 | BG119: 0.00
A120: 6.03.99 | B120: Otras prestaciones | C120: 16,700,000.00 | D120: 0.00 | E120: 0.00 | F120: 16,700,000.00 | G120: 893,204.85 | H120: =+'CK GASTOS OSN PD MES 1'!CR87 -> 419,339.15 | I120: =+'CK GASTOS OSN PD MES 2'!CR261 -> 648,893.70 | J120: =+'CK GASTOS OSN PD MES 3'!CR98 -> 708,546.80 | K120: 1,776,779.65 | L120: 2,669,984.50 | M120: =+'Cert.OSN PD'!CL374 -> 0.00 | N120: 0.00 | O120: 14,030,015.50 | P120: 16,700,000.00 | Q120: 14,030,015.50 | AS120: 0.00 | AY120: =+AT120+AU120+AV120+AW120+AX120 -> 0.00 | BG120: 0.00
A121: 6.04.01 | B121: Transferencias corrientes asociaciones | D121: 0.00 | E121: 0.00 | F121: 0.00 | G121: 0.00 | H121: =+'CK GASTOS OSN PD MES 1'!CS87 -> 0.00 | I121: =+'CK GASTOS OSN PD MES 2'!CS261 -> 0.00 | J121: =+'CK GASTOS OSN PD MES 3'!CS98 -> 0.00 | K121: 0.00 | L121: 0.00 | M121: =+'Cert.OSN PD'!CQ371 -> 0.00 | N121: 0.00 | O121: 0.00 | P121: 0.00 | Q121: 0.00 | AS121: 0.00 | BG121: 0.00
A122: 6.06.01 | B122: Indemnizaciones | D122: 0.00 | E122: 0.00 | F122: 0.00 | G122: 0.00 | J122: =+'CK GASTOS OSN PD MES 3'!CT98 -> 0.00 | K122: 0.00 | L122: 0.00 | M122: =+'Cert.OSN PD'!CP371 -> 0.00 | N122: 0.00 | O122: 0.00 | P122: 0.00 | Q122: 0.00 | AS122: 0.00 | AY122: =+AT122+AU122+AV122+AW122+AX122 -> 0.00 | BG122: 0.00
A123: 6.07.01 | B123: Transferencias corrientes a organismos internacionales | D123: 0.00 | E123: 0.00 | F123: 0.00 | G123: 0.00 | H123: ='CK GASTOS OSN PD MES 1'!CT$87 -> 0.00 | I123: ='CK GASTOS OSN PD MES 2'!CT$261 -> 0.00 | J123: 0.00 | K123: 0.00 | L123: 0.00 | M123: =+'Cert.OSN PD'!CP372 -> 0.00 | N123: 0.00 | O123: 0.00 | P123: 0.00 | Q123: 0.00 | AS123: 0.00 | BG123: 0.00
AS124: 0.00
A125: 7 | B125: TRANSFERENCIAS DE CAPITAL | C125: =+C127 -> 0.00 | D125: 0.00 | E125: 0.00 | F125: 0.00 | G125: 0.00 | H125: 0.00 | I125: 0 | J125: 0.00 | K125: 0.00 | L125: 0.00 | M125: 0.00 | N125: 0.00 | O125: 0.00 | P125: 0.00 | Q125: 0.00 | Z125: =+Z127 -> 0.00 | AA125: =+AA127 -> 0.00 | AR125: =+AR127 -> 0.00 | AS125: =+AS127 -> 0.00
A127: 7.05.01 | B127: Transferencias de capital a organismos internacionales | C127: 0.00 | D127: 0.00 | E127: =+AS127+AY127 -> 0.00 | F127: =+C127+D127+E127 -> 0.00 | H127: 0.00 | I127: 0 | K127: =SUM(H127:J127) -> 0.00 | L127: =+K127+G127 -> 0.00 | M127: 0.00 | N127: =IF(M127>0,(L127-M127),0) -> 0.00 | O127: =F127-L127 -> 0.00 | P127: =F127-M127 -> 0.00 | Q127: =IF(N127>0,(F127-L127-N127),(F127-L127+N127)) -> 0.00 | AS127: =SUM(R127:AR127) -> 0.00
A129: 9 | B129: CUENTAS ESPECIALES | C129: =SUM(C131) -> 0.00 | D129: =SUM(D131) -> 0.00 | E129: =SUM(E131) -> 0.00 | F129: =SUM(F131) -> 0.00 | G129: =SUM(G131) -> 0.00 | H129: 0.00 | I129: 0 | J129: 0.00 | K129: 0.00 | L129: 0.00 | M129: =SUM(M131) -> 0.00 | N129: 0.00 | O129: 0.00 | P129: 0.00 | Q129: 0.00 | R129: 0.00 | S129: 0.00 | T129: 0.00 | U129: 0.00 | V129: 0.00 | W129: 0.00 | X129: 0.00 | Y129: 0.00 | Z129: 0.00 | AA129: 0.00 | AB129: 0.00 | AC129: 0.00 | AD129: =SUM(AD131) -> 0.00 | AE129: =SUM(AE131) -> 0.00 | AF129: 0 | AG129: 0.00 | AH129: 0.00 | AI129: 0.00 | AJ129: 0.00 | AK129: 0.00 | AL129: 0.00 | AM129: 0.00 | AN129: 0.00 | AO129: 0.00 | AP129: 0.00 | AQ129: 0.00 | AR129: 0.00 | AS129: 0.00 | AT129: 0.00 | AU129: 0.00 | AV129: 0.00 | AW129: 0.00 | AX129: 0.00 | AY129: 0.00 | AZ129: 0.00 | BA129: 0.00 | BB129: 0.00 | BC129: 0.00 | BD129: 0.00 | BE129: 0.00 | BF129: 0.00 | BG129: 0.00
A131: 9.02.01 | B131: Sumas libres sin asignación presupuestaria | D131: =+BG131 -> 0.00 | E131: =+AS131+AY131 -> 0.00 | F131: =+C131+D131+E131 -> 0.00 | H131: ='CK GASTOS OSN PD MES 1'!CU87 -> 0.00 | I131: ='CK GASTOS OSN PD MES 2'!CU261 -> 0 | J131: ='CK GASTOS OSN PD MES 3'!CU98 -> 0.00 | K131: =SUM(H131:J131) -> 0.00 | L131: =+K131+G131 -> 0.00 | M131: 0.00 | N131: =IF(M131>0,(L131-M131),0) -> 0.00 | O131: =F131-L131 -> 0.00 | P131: =F131-M131 -> 0.00 | Q131: =IF(N131>0,(F131-L131-N131),(F131-L131+N131)) -> 0.00 | AS131: =SUM(R131:AR131) -> 0.00 | AT131: 0.00 | AY131: =+AT131+AU131+AV131+AW131+AX131 -> 0.00 | BD131: 0.00 | BG131: =SUM(AZ131:BF131) -> 0.00
A133: TOTAL PRESUPUESTO EGRESOS | C133: =C129+C112+C98+C94+C71+C28+C10 -> 1,726,828,565.00 | D133: =D129+D112+D98+D94+D71+D28+D10 -> 0.00 | E133: =E129+E112+E98+E94+E71+E28+E10+E125 -> -7,187,194.00 | F133: =F129+F112+F98+F94+F71+F28+F10+F125 -> 1,719,641,371.00 | G133: =G129+G112+G98+G94+G71+G28+G10 -> 327,373,680.73 | H133: =H129+H112+H98+H94+H71+H28+H10 -> 105,358,504.90 | I133: =I129+I112+I98+I94+I71+I28+I10 -> 116,220,980.80 | J133: =J129+J112+J98+J94+J71+J28+J10+J125 -> 174,397,279.49 | K133: =K129+K112+K98+K94+K71+K28+K10+K125 -> 395,976,765.19 | L133: =L129+L112+L98+L94+L71+L28+L10+L125 -> 723,350,445.92 | M133: =M129+M112+M98+M94+M71+M28+M10 -> 242,324,026.61 | N133: =N129+N112+N98+N94+N71+N28+N10 -> -92,062,958.19 | O133: =O129+O112+O98+O94+O71+O28+O10 -> 996,290,925.08 | P133: =P129+P112+P98+P94+P71+P28+P10 -> 1,477,317,344.39 | Q133: =Q129+Q112+Q98+Q94+Q71+Q28+Q10+Q125 -> 904,227,966.89 | R133: =R129+R112+R98+R94+R71+R28+R10 -> -17,282,564.00 | S133: -1,177,630.00 | T133: 11,273,000.00 | U133: 0.00 | V133: 0.00 | W133: 0.00 | X133: 0.00 | Y133: 0.00 | Z133: 0.00 | AA133: =AA129+AA112+AA98+AA94+AA71+AA28+AA10+AA125 -> 0.00 | AB133: =AB129+AB112+AB98+AB94+AB71+AB28+AB10 -> 0.00 | AC133: 0.00 | AD133: 0.00 | AE133: 0.00 | AF133: 0.00 | AG133: 0.00 | AH133: 0.00 | AI133: 0.00 | AJ133: 0.00 | AK133: 0.00 | AL133: 0.00 | AM133: 0.00 | AN133: 0.00 | AO133: 0.00 | AP133: 0.00 | AQ133: 0.00 | AR133: 0.00 | AS133: =AS129+AS112+AS98+AS94+AS71+AS28+AS10+AS125 -> -7,187,194.00 | AT133: =AT129+AT112+AT98+AT94+AT71+AT28+AT10 -> 0.00 | AU133: 0.00 | AV133: 0.00 | AW133: 0.00 | AX133: 0.00 | AY133: 0.00 | AZ133: 0.00 | BA133: 0.00 | BB133: 0.00 | BC133: 0.00 | BD133: 0.00 | BE133: 0.00 | BF133: 0.00 | BG133: 0.00

Sheet CK GASTOS OSN AC MES 1 (hidden)
A1: MINISTERIO DE CULTURA JUVENTUD Y DEPORTES
A2: CENTRO NACIONAL DE LA MUSICA
A3: ACTIVIDAD CENTRAL OSN | N3: =+N9+M10+O11+P12+Q13 -> 3,976,162.00
A4: =+'CK GASTOS OSN PD MES 1'!A4 -> INFORME DE EJECUCION PRESUPUESTARIO 2024, EGRESOS
A6: FECHA | B6: DOCTO # | C6: DETALLE PAGO | D6: 0.01.01 | E6: 0.01.05 | F6: 0.02.01 | G6: 0.02.04 | H6: 0.03.01 | I6: 0.03.02 | J6: 0.03.03 | K6: 0.03.04 | L6: 0.03.99 | M6: 0.04.01 | N6: 0.04.05 | O6: 0.05.01 | P6: 0.05.02 | Q6: 0.05.03 | R6: 0.05.05 | S6: 1.01.01 | T6: 1.01.02 | U6: 1.01.04 | V6: 1.01.99 | W6: 1.02.01 | X6: 1.02.02 | Y6: 1.02.03 | Z6: 1.02.04 | AA6: 1.03.01 | AB6: 1.03.02 | AC6: 1.03.03 | AD6: 1.03.04 | AE6: 1.03.05 | AF6: 1.03.06 | AG6: 1.04.02 | AH6: 1.04.03 | AI6: 1.04.04 | AJ6: 1.04.05 | AK6: 1.04.06 | AL6: 1.04.99 | AM6: 1.05.01 | AN6: 1.05.02 | AO6: 1.05.03 | AP6: 1.05.04 | AQ6: 1.06.01 | AR6: 1.07.01 | AS6: 1.07.02 | AT6: 1.08.01 | AU6: 1.08.04 | AV6: 1.08.05 | AW6: 1.08.06 | AX6: 1.08.07 | AY6: 1.08.08. | AZ6: 1.08.99 | BA6: 1.99.02 | BB6: 1.99.99 | BC6: 2.01.01 | BD6: 2.01.02 | BE6: 2.01.04 | BF6: 2.01.99 | BG6: 2.02.03 | BH6: 2.03.01 | BI6: 2.03.03 | BJ6: 2.03.04 | BK6: 2.03.05 | BL6: 2.03.06 | BM6: 2.03.99 | BN6: 2.04.01 | BO6: 2.04.02 | BP6: 2.99.01 | BQ6: 2.99.03 | BR6: 2.99.04 | BS6: 2.99.05 | BT6: 2.99.06 | BU6: 2.99.07 | BV6: 2.99.99 | BW6: 3.04.05 | BX6: 5.01.01 | BY6: 5.01.02 | BZ6: 5.01.03 | CA6: 5.01.04 | CB6: 5.01.05 | CC6: 5.01.07 | CD6: 5.01.99 | CE6: 5.02.01 | CF6: 5.02.99 | CG6: 5.99.03 | CH6: 5.99.99 | CI6: 6.01.02 | CJ6: 6.01.03 (200) | CK6: 6.01.03 (202) | CL6: 6.02.99 | CM6: 6.03.01 | CN6: 6.03.99 | CO6: 6.04.01 | CP6: 6.06.01 | CQ6: 6.07.01 | CR6: 9.02.01
B9: 0.04.05 | C9: Aporte Patronal BPDC | N9: 100,791.00
B10: 0.04.01 | C10: Enferm y Maternidad | M10: 1,871,784.00
B11: 0.05.01 | C11: Invalidez, Vejez y Muerte | O11: 1,096,474.00
B12: 0.05.02 | C12: Fondo Pens Complementaria | P12: 604,743.00
B13: 0.05.03 | C13: Fondo de capitalización Laboral | Q13: 302,370.00
C15: ASEMICULTURA | R15: 198,992.25
A16: 6.01.03 (200) | B16: APORTE PATRONAL LEY N°17 CONSTITUTIVA DE LA CCSS 1,57% (MARZO) | CJ16: 316,482.00
A17: 6.01.03 (202) | B17: APORTE PATRONAL LEY N°17 CONSTITUTIVA DE LA CCSS 0,25% (MARZO) | CK17: 50,395.00
B19: 0.01.01 | C19: Sueldos para cargos fijos | D19: 13,755,088.50
B20: 0.03.01 | C20: Retribución por años servidos | H20: 2,572,169.60
B21: 0.03.99 | C21: Otros incentivos salariales | L21: 562,567.50
B22: 0.03.03 | C22: Prohibicion (SE SUMA CON LA 0.03.02)
C23: ajeste del CSN 0.02.01 | F23: 163,119.50
B24: 0.02.01 | C24: Tiempo extraordinario | F24: 174,371.35
B25: 0.03.02 | C25: Restricción al ejercicio liberal de la profesión | I25: 2,844,359.25
B26: 6.03.99 | C26: Otras prestaciones (ajustado en OSN PROD) | CN26: (184,298.40)
B27: 0.01.05 | C27: Suplencias | E27: 835,450.00
A251: T O T A L E G R E S O S | D251: =SUM(D7:D250) -> 13,755,088.50 | E251: 835,450.00 | F251: 337,490.85 | G251: 0.00 | H251: 2,572,169.60 | I251: 2,844,359.25 | J251: 0.00 | K251: 0.00 | L251: 562,567.50 | M251: 1,871,784.00 | N251: =SUM(N7:N249) -> 100,791.00 | O251: =SUM(O7:O249) -> 1,096,474.00 | P251: =SUM(P7:P250) -> 604,743.00 | Q251: 302,370.00 | R251: 198,992.25 | S251: 0.00 | T251: 0.00 | U251: 0.00 | V251: 0.00 | W251: 0.00 | X251: 0.00 | Y251: 0.00 | Z251: 0.00 | AA251: 0.00 | AB251: 0.00 | AC251: 0.00 | AD251: 0.00 | AE251: 0.00 | AF251: 0.00 | AG251: 0.00 | AH251: 0.00 | AI251: 0.00 | AJ251: 0.00 | AK251: 0.00 | AL251: 0.00 | AM251: 0.00 | AN251: 0.00 | AO251: 0.00 | AP251: 0.00 | AQ251: 0.00 | AR251: 0.00 | AS251: 0.00 | AT251: 0.00 | AU251: 0.00 | AV251: =SUM(AV7:AV250) -> 0.00 | AW251: 0.00 | AX251: 0.00 | AY251: 0.00 | AZ251: 0.00 | BA251: 0.00 | BB251: 0.00 | BC251: 0.00 | BD251: 0.00 | BE251: 0.00 | BF251: 0.00 | BG251: 0.00 | BH251: 0.00 | BI251: 0.00 | BJ251: 0.00 | BK251: 0.00 | BL251: 0.00 | BM251: 0.00 | BN251: 0.00 | BO251: 0.00 | BP251: 0.00 | BQ251: 0.00 | BR251: 0.00 | BS251: 0.00 | BT251: 0.00 | BU251: 0.00 | BV251: 0.00 | BW251: 0.00 | BX251: 0.00 | BY251: 0.00 | BZ251: 0.00 | CA251: 0.00 | CB251: =SUM(CB7:CB250) -> 0.00 | CC251: 0.00 | CD251: 0.00 | CE251: 0.00 | CF251: 0.00 | CG251: 0.00 | CH251: 0.00 | CI251: 0.00 | CJ251: 316,482.00 | CK251: 50,395.00 | CL251: 0.00 | CM251: 0.00 | CN251: -184,298.40 | CO251: 0.00 | CP251: 0.00 | CQ251: 0.00 | CR251: 0.00

Sheet CK GASTOS OSN AC MES 2 (hidden)
A1: MINISTERIO DE CULTURA JUVENTUD Y DEPORTES
A2: CENTRO NACIONAL DE LA MUSICA
A3: ACTIVIDAD CENTRAL OSN
A4: =+'CK GASTOS OSN AC MES 1'!A4 -> INFORME DE EJECUCION PRESUPUESTARIO 2024, EGRESOS | D4: (40,653.30) | F4: =+'CK GASTOS OSN PD MES 2'!F35+F21 -> 462,288.15
CJ5: 200.00 | CK5: 202.00
A6: FECHA | B6: DOCTO # | C6: DETALLE PAGO | D6: 0.01.01 | E6: 0.01.05 | F6: 0.02.01 | G6: 0.02.04 | H6: 0.03.01 | I6: 0.03.02 | J6: 0.03.03 | K6: 0.03.04 | L6: 0.03.99 | M6: 0.04.01 | N6: 0.04.05 | O6: 0.05.01 | P6: 0.05.02 | Q6: 0.05.03 | R6: 0.05.05 | S6: 1.01.01 | T6: 1.01.02 | U6: 1.01.04 | V6: 1.01.99 | W6: 1.02.01 | X6: 1.02.02 | Y6: 1.02.03 | Z6: 1.02.04 | AA6: 1.03.01 | AB6: 1.03.02 | AC6: 1.03.03 | AD6: 1.03.04 | AE6: 1.03.05 | AF6: 1.03.06 | AG6: 1.04.02 | AH6: 1.04.03 | AI6: 1.04.04 | AJ6: 1.04.05 | AK6: 1.04.06 | AL6: 1.04.99 | AM6: 1.05.01 | AN6: 1.05.02 | AO6: 1.05.03 | AP6: 1.05.04 | AQ6: 1.06.01 | AR6: 1.07.01 | AS6: 1.07.02 | AT6: 1.08.01 | AU6: 1.08.04 | AV6: 1.08.05 | AW6: 1.08.06 | AX6: 1.08.07 | AY6: 1.08.08. | AZ6: 1.08.99 | BA6: 1.99.02 | BB6: 1.99.99 | BC6: 2.01.01 | BD6: 2.01.02 | BE6: 2.01.04 | BF6: 2.01.99 | BG6: 2.02.03 | BH6: 2.03.01 | BI6: 2.03.03 | BJ6: 2.03.04 | BK6: 2.03.05 | BL6: 2.03.06 | BM6: 2.03.99 | BN6: 2.04.01 | BO6: 2.04.02 | BP6: 2.99.01 | BQ6: 2.99.03 | BR6: 2.99.04 | BS6: 2.99.05 | BT6: 2.99.06 | BU6: 2.99.07 | BV6: 2.99.99 | BW6: 3.04.05 | BX6: 5.01.01 | BY6: 5.01.02 | BZ6: 5.01.03 | CA6: 5.01.04 | CB6: 5.01.05 | CC6: 5.01.07 | CD6: 5.01.99 | CE6: 5.02.01 | CF6: 5.02.99 | CG6: 5.99.03 | CH6: 5.99.99 | CI6: 6.01.02 | CJ6: 6.01.03 | CK6: 6.01.03 | CL6: 6.02.99 | CM6: 6.03.01 | CN6: 6.03.99 | CO6: 6.04.01 | CP6: 6.06.01 | CQ6: 6.07.01 | CR6: 9.02.01
C8: ASEMICULTURA | R8: 202,575.53
A9: 6.01.03 (200) | B9: APORTE PATRONAL LEY N°17 CONSTITUTIVA DE LA CCSS 1,57% (MARZO) | CJ9: 325,680.90
A10: 6.01.03 (202) | B10: APORTE PATRONAL LEY N°17 CONSTITUTIVA DE LA CCSS 0,25% (MARZO) | CK10: 51,860.02
B11: 0.04.05 | C11: Aporte Patronal BPDC | N11: 103,720.00
B12: 0.04.01 | C12: Enferm y Maternidad | M12: 1,918,821.00
B13: 0.05.01 | C13: Invalidez, Vejez y Muerte | O13: 1,124,325.00
B14: 0.05.02 | C14: Fondo Pens Complementaria | P14: 622,320.00
B15: 0.05.03 | C15: Fondo de capitalización Laboral | Q15: 311,159.00
B17: 0.01.01 | C17: Sueldos para cargos fijos | D17: 19,905,462.63
B18: 0.03.01 | C18: Retribución por años servidos | H18: 2,570,000.00
B19: 0.03.99 | C19: Otros incentivos salariales | L19: 562,567.50
B20: 0.03.03 | C20: Prohibicion
B21: 0.02.01 | C21: Tiempo extraordinario (SE AJUSTA DEL CLN 121821,40 XQ NO ALCANZÓ) | F21: =340466.75+121821.4 -> 462,288.15
B22: 0.03.02 | C22: Restricción al ejercicio liberal de la profesión | I22: 4,870,420.02
B23: 6.03.99 | C23: Otras prestaciones (SE AJUSTA A OSN LA SUMA DE 203039,45) | CN23: =274088.8-203039.45 -> 71,049.35
B24: 0.01.05 | C24: Suplencias | E24: 872950
A252: T O T A L E G R E S O S | D252: =SUM(D8:D251) -> 19,905,462.63 | E252: 872,950.00 | F252: 462,288.15 | G252: 0.00 | H252: 2,570,000.00 | I252: 4,870,420.02 | J252: 0.00 | K252: 0.00 | L252: 562,567.50 | M252: 1,918,821.00 | N252: 103,720.00 | O252: 1,124,325.00 | P252: 622,320.00 | Q252: 311,159.00 | R252: 202,575.53 | S252: 0.00 | T252: 0.00 | U252: 0.00 | V252: 0.00 | W252: 0.00 | X252: 0.00 | Y252: 0.00 | Z252: 0.00 | AA252: 0.00 | AB252: 0.00 | AC252: 0.00 | AD252: 0.00 | AE252: 0.00 | AF252: 0.00 | AG252: 0.00 | AH252: 0.00 | AI252: 0.00 | AJ252: =SUM(AJ8:AJ251) -> 0.00 | AK252: 0.00 | AL252: 0.00 | AM252: 0.00 | AN252: 0.00 | AO252: 0.00 | AP252: 0.00 | AQ252: 0.00 | AR252: 0.00 | AS252: 0.00 | AT252: 0.00 | AU252: 0.00 | AV252: 0.00 | AW252: 0.00 | AX252: 0.00 | AY252: 0.00 | AZ252: 0.00 | BA252: 0.00 | BB252: 0.00 | BC252: 0.00 | BD252: 0.00 | BE252: 0.00 | BF252: 0.00 | BG252: 0.00 | BH252: 0.00 | BI252: 0.00 | BJ252: 0.00 | BK252: 0.00 | BL252: 0.00 | BM252: 0.00 | BN252: 0.00 | BO252: 0.00 | BP252: =SUM(BP8:BP251) -> 0.00 | BQ252: 0.00 | BR252: 0.00 | BS252: 0.00 | BT252: 0.00 | BU252: 0.00 | BV252: 0.00 | BW252: 0.00 | BX252: 0.00 | BY252: 0.00 | BZ252: 0.00 | CA252: 0.00 | CB252: 0.00 | CC252: 0.00 | CD252: 0.00 | CE252: 0.00 | CF252: 0.00 | CG252: 0.00 | CH252: 0.00 | CI252: 0.00 | CJ252: 325,680.90 | CK252: 51,860.02 | CL252: 0.00 | CM252: 0.00 | CN252: 71,049.35 | CO252: 0.00 | CP252: 0.00 | CQ252: 0.00 | CR252: 0.00

Sheet CK GASTOS OSN AC MES 3 (hidden)
A1: MINISTERIO DE CULTURA JUVENTUD Y DEPORTES
A2: CENTRO NACIONAL DE LA MUSICA
A3: ACTIVIDAD CENTRAL OSN
A4: =+'CK GASTOS OSN AC MES 1'!A4 -> INFORME DE EJECUCION PRESUPUESTARIO 2024, EGRESOS | D4: =SUM(D281:CR281) -> 28,367,929.68
CJ5: 200 | CK5: 202
A6: FECHA | B6: DOCTO # | C6: DETALLE PAGO | D6: 0.01.01 | E6: 0.01.05 | F6: 0.02.01 | G6: 0.02.04 | H6: 0.03.01 | I6: 0.03.02 | J6: 0.03.03 | K6: 0.03.04 | L6: 0.03.99 | M6: 0.04.01 | N6: 0.04.05 | O6: 0.05.01 | P6: 0.05.02 | Q6: 0.05.03 | R6: 0.05.05 | S6: 1.01.01 | T6: 1.01.02 | U6: 1.01.04 | V6: 1.01.99 | W6: 1.02.01 | X6: 1.02.02 | Y6: 1.02.03 | Z6: 1.02.04 | AA6: 1.03.01 | AB6: 1.03.02 | AC6: 1.03.03 | AD6: 1.03.04 | AE6: 1.03.05 | AF6: 1.03.06 | AG6: 1.04.02 | AH6: 1.04.03 | AI6: 1.04.04 | AJ6: 1.04.05 | AK6: 1.04.06 | AL6: 1.04.99 | AM6: 1.05.01 | AN6: 1.05.02 | AO6: 1.05.03 | AP6: 1.05.04 | AQ6: 1.06.01 | AR6: 1.07.01 | AS6: 1.07.02 | AT6: 1.08.01 | AU6: 1.08.04 | AV6: 1.08.05 | AW6: 1.08.06 | AX6: 1.08.07 | AY6: 1.08.08. | AZ6: 1.08.99 | BA6: 1.99.02 | BB6: 1.99.99 | BC6: 2.01.01 | BD6: 2.01.02 | BE6: 2.01.04 | BF6: 2.01.99 | BG6: 2.02.03 | BH6: 2.03.01 | BI6: 2.03.03 | BJ6: 2.03.04 | BK6: 2.03.05 | BL6: 2.03.06 | BM6: 2.03.99 | BN6: 2.04.01 | BO6: 2.04.02 | BP6: 2.99.01 | BQ6: 2.99.03 | BR6: 2.99.04 | BS6: 2.99.05 | BT6: 2.99.06 | BU6: 2.99.07 | BV6: 2.99.99 | BW6: 3.04.05 | BX6: 5.01.01 | BY6: 5.01.02 | BZ6: 5.01.03 | CA6: 5.01.04 | CB6: 5.01.05 | CC6: 5.01.07 | CD6: 5.01.99 | CE6: 5.02.01 | CF6: 5.02.99 | CG6: 5.99.03 | CH6: 5.99.99 | CI6: 6.01.02 | CJ6: 6.01.03 | CK6: 6.01.03 | CL6: 6.02.99 | CM6: 6.03.01 | CN6: 6.03.99 | CO6: 6,04,01 | CP6: 6.06.01 | CQ6: 6.07.01 | CR6: 9.02.01
C8: ASEMICULTURA | R8: 181,204.85
A9: 6.01.03 (200) | B9: APORTE PATRONAL LEY N°17 CONSTITUTIVA DE LA CCSS 1,57% (MAYO) | CJ9: 457,213.31
A10: 6.01.03 (202) | B10: APORTE PATRONAL LEY N°17 CONSTITUTIVA DE LA CCSS 0,25% (MAYO) | CK10: 72,804.67
B12: 0.04.05 | C12: Aporte Patronal BPDC | N12: 107,981.00
B13: 0.04.01 | C13: Enferm y Maternidad | M13: 4,361,250.00
B14: 0.05.01 | C14: Invalidez, Vejez y Muerte | O14: 1,170,522.00
B15: 0.05.02 | C15: Fondo Pens Complementaria | P15: 647,891.00
B16: 0.05.03 | C16: Fondo de capitalización Laboral | Q16: 323,945.00
B18: 0.01.01 | C18: Sueldos para cargos fijos | D18: 13,639,823.00
B19: 0.03.01 | C19: Retribución por años servidos | H19: 2,570,000.00
B20: 0.03.99 | C20: Otros incentivos salariales | L20: 562,567.50
B21: 0.02.01 | C21: Tiempo extraordinario | F21: =146773+253753.45 -> 400,526.45
B22: 0.03.02 | C22: Restricción al ejercicio liberal de la profesión | I22: 2,868,492.50
B23: 6.03.99 | C23: Otras prestaciones | CN23: 160,758.40
B24: 0.01.05 | C24: Suplencias | E24: 842,950.00
A281: T O T A L E G R E S O S | D281: =SUM(D7:D280) -> 13,639,823.00 | E281: 842,950.00 | F281: 400,526.45 | G281: 0.00 | H281: 2,570,000.00 | I281: 2,868,492.50 | J281: 0.00 | K281: 0.00 | L281: 562,567.50 | M281: 4,361,250.00 | N281: 107,981.00 | O281: 1,170,522.00 | P281: 647,891.00 | Q281: 323,945.00 | R281: 181,204.85 | S281: 0.00 | T281: 0.00 | U281: 0.00 | V281: 0.00 | W281: 0.00 | X281: 0.00 | Y281: 0.00 | Z281: 0.00 | AA281: 0.00 | AB281: 0.00 | AC281: 0.00 | AD281: 0.00 | AE281: 0.00 | AF281: 0.00 | AG281: 0.00 | AH281: 0.00 | AI281: 0.00 | AJ281: =SUM(AJ7:AJ280) -> 0.00 | AK281: 0.00 | AL281: 0.00 | AM281: 0.00 | AN281: 0.00 | AO281: 0.00 | AP281: 0.00 | AQ281: 0.00 | AR281: 0.00 | AS281: 0.00 | AT281: 0.00 | AU281: 0.00 | AV281: 0.00 | AW281: 0.00 | AX281: 0.00 | AY281: 0.00 | AZ281: 0.00 | BA281: 0.00 | BB281: 0.00 | BC281: 0.00 | BD281: 0.00 | BE281: 0.00 | BF281: 0.00 | BG281: 0.00 | BH281: 0.00 | BI281: 0.00 | BJ281: 0.00 | BK281: 0.00 | BL281: 0.00 | BM281: 0.00 | BN281: 0.00 | BO281: 0.00 | BP281: =SUM(BP7:BP280) -> 0.00 | BQ281: 0.00 | BR281: 0.00 | BS281: 0.00 | BT281: 0.00 | BU281: 0.00 | BV281: 0.00 | BW281: 0.00 | BX281: 0.00 | BY281: 0.00 | BZ281: 0.00 | CA281: 0.00 | CB281: 0.00 | CC281: 0.00 | CD281: 0.00 | CE281: 0.00 | CF281: 0.00 | CG281: 0.00 | CH281: 0.00 | CI281: 0.00 | CJ281: 457,213.31 | CK281: 72,804.67 | CL281: 0.00 | CM281: 0.00 | CN281: 160,758.40 | CO281: 0.00 | CP281: 0.00 | CQ281: 0.00 | CR281: 0.00

Sheet Cert.OSN AC (hidden)
A1: MINISTERIO DE CULTURA JUVENTUD Y DEPORTES
A2: CENTRO NACIONAL DE LA MUSICA | K2: =+'CK GASTOS OSN AC MES 1'!K9-'CK GASTOS OSN AC MES 1'!K8 -> 0.00
A3: PRODUCCION OSN
A4: INFORME DE EJECUCION PRESUPUESTARIO 2017
A6: FECHA | B6: CERT # | C6: DETALLE PAGO | D6: 0.01.01 | E6: 0.01.05 | F6: 0.02.01 | G6: 0.02.04 | H6: 0.03.01 | I6: 0.03.02 | J6: 0.03.03 | K6: 0.03.04 | L6: 0.03.99 | M6: 0.04.01 | N6: 0.04.05 | O6: 0.05.01 | P6: 0.05.02 | Q6: 0.05.03 | R6: 1.01.01 | S6: 1.01.02 | T6: 1.01.99 | U6: 1.02.01 | V6: 1.02.02 | W6: 1.02.03 | X6: 1.02.04 | Y6: 1.03.01 | Z6: 1.03.02 | AA6: 1.03.03 | AB6: 1.03.04 | AC6: 1.03.05 | AD6: 1.03.06 | AE6: 1.04.03 | AF6: 1.04.04 | AG6: 1.04.05 | AH6: 1.04.06 | AI6: 1.04.99 | AJ6: 1.05.01 | AK6: 1.05.02 | AL6: 1.05.03 | AM6: 1.05.04 | AN6: 1.06.01 | AO6: 1.07.01 | AP6: 1.07.02 | AQ6: 1.08.01 | AR6: 1.08.04 | AS6: 1.08.05 | AT6: 1.08.06 | AU6: 1.08.07 | AV6: 1.08.08. | AW6: 1.08.99 | AX6: 1.99.02 | AY6: 1.99.99 | AZ6: 2.01.01 | BA6: 2.01.02 | BB6: 2.01.04 | BC6: 2.01.99 | BD6: 2.02.03 | BE6: 2.03.01 | BF6: 2.03.03 | BG6: 2.03.04 | BH6: 2.03.05 | BI6: 2.03.06 | BJ6: 2.03.99 | BK6: 2.04.01 | BL6: 2.04.02 | BM6: 2.99.01 | BN6: 2.99.03 | BO6: 2.99.04 | BP6: 2.99.05 | BQ6: 2.99.06 | BR6: 2.99.07 | BS6: 2.99.99 | BT6: 3.04.05 | BU6: 5.01.01 | BV6: 5.01.02 | BW6: 5.01.03 | BX6: 5.01.04 | BY6: 5.01.05 | BZ6: 5.01.07 | CA6: 5.01.99 | CB6: 5.02.01 | CC6: 5.02.99 | CD6: 5.99.03 | CE6: 5.99.99 | CF6: 6.01.02 | CG6: 6.02.99 | CH6: 6.03.01 | CI6: 6.07.01 | CJ6: 6.04.01 | CK6: 9.02.01
A281: T O T A L C E R T F I C A D O | D281: =SUM(D7:D280) -> 0.00 | E281: 0.00 | F281: 0.00 | G281: 0.00 | H281: 0.00 | I281: 0.00 | J281: 0.00 | K281: 0.00 | L281: 0.00 | M281: 0.00 | N281: 0.00 | O281: 0.00 | P281: 0.00 | Q281: 0.00 | R281: 0.00 | S281: 0.00 | T281: 0.00 | U281: 0.00 | V281: 0.00 | W281: 0.00 | X281: 0.00 | Y281: 0.00 | Z281: 0.00 | AA281: 0.00 | AB281: 0.00 | AC281: 0.00 | AD281: 0.00 | AE281: 0.00 | AF281: 0.00 | AG281: 0.00 | AH281: 0.00 | AI281: 0.00 | AJ281: =SUM(AJ7:AJ280) -> 0.00 | AK281: 0.00 | AL281: 0.00 | AM281: 0.00 | AN281: 0.00 | AO281: 0.00 | AP281: 0.00 | AQ281: 0.00 | AR281: 0.00 | AS281: 0.00 | AT281: 0.00 | AU281: 0.00 | AV281: 0.00 | AW281: 0.00 | AX281: 0.00 | AY281: 0.00 | AZ281: 0.00 | BA281: 0.00 | BB281: 0.00 | BC281: 0.00 | BD281: 0.00 | BE281: 0.00 | BF281: 0.00 | BG281: 0.00 | BH281: 0.00 | BI281: 0.00 | BJ281: 0.00 | BK281: 0.00 | BL281: 0.00 | BM281: 0.00 | BN281: 0.00 | BO281: 0.00 | BP281: =SUM(BP7:BP280) -> 0.00 | BQ281: 0.00 | BR281: 0.00 | BS281: 0.00 | BT281: 0.00 | BU281: 0.00 | BV281: 0.00 | BW281: 0.00 | BX281: 0.00 | BY281: 0.00 | BZ281: 0.00 | CA281: 0.00 | CB281: 0.00 | CC281: 0.00 | CD281: 0.00 | CE281: 0.00 | CF281: 0.00 | CG281: 0.00 | CH281: 0.00 | CI281: 0.00 | CJ281: 0.00 | CK281: 0.00

Sheet OSN AC
A1: CENTRO NACIONAL DE LA MÚSICA
A2: =+'OSN PD'!A2 -> PRESUPUESTO ORDINARIO 2024
A3: EGRESOS
A4: OSN ACTIVIDAD CENTRAL
C7: =+'OSN PD'!C7:F7 -> P R E S U P U E S T O 2 0 2 4 | G7: ACUMULADO | H7: =+'OSN PD'!H7:H8 -> ABRIL | I7: =+'OSN PD'!I7:I8 -> MAYO | J7: =+'OSN PD'!J7:J8 -> JUNIO | K7: II ESTE TRIMESTRE | L7: TOTAL | M7: CERTIFICADO TOTAL | N7: COMPROMISOS | O7: DISPONIBLE SEGÚN EJECUCION | P7: DISPONIBLE SEGUN EJE CERTIFICADA | Q7: DISPONIBLE CON COMPROMISOS | R7: CUADRO DE MODIFICACIONES INTERNAS | AT7: CUADRO DE MODIFICACIONES EXTERNAS | AZ7: CUADRO DE PRESUPUESTO EXTRAORDINARIO
A8: PARTIDAS Y SUBPARTIDAS | C8: PRESUPUESTO ORDINARIO | D8: TOTAL EXTRAOR | E8: TOTAL MODIFICACIONES INT. - EXT. | F8: PRESUPUESTO FINAL | R8: INTERNA Nº 1 1er. Modificación Presupuestaria (DGPN-H-008) | S8: INTERNA Nº 2 | T8: INTERNA Nº 3 | U8: INTERNA Nº 4 DGPN H-012 | V8: INTERNA Nº 5 | W8: EXTRAORDINARIO H-012 | X8: INTERNA Nº 7 | Y8: INTERNA Nº 8 | Z8: INTERNA Nº 9 | AA8: INTERNA Nº 10 | AB8: INTERNA Nº 11 | AC8: INTERNA Nº 12 | AD8: INTERNA Nº 13 | AE8: INTERNA Nº 14 | AF8: INTERNA Nº 15 | AG8: INTERNA Nº 16 | AH8: INTERNA Nº 17 | AI8: INTERNA Nº 18 | AJ8: INTERNA Nº 19 | AK8: INTERNA Nº 20 | AL8: INTERNA Nº 21 | AM8: INTERNA Nº 22 | AN8: INTERNA Nº 23 | AO8: INTERNA Nº 24 | AP8: INTERNA Nº 25 | AQ8: INTERNA Nº 26 | AR8: INTERNA Nº 27 | AS8: TOTAL MODIFICACION INTERNA | AT8: EXTERNA Nº 01 | AU8: EXTERNA Nº 02 | AV8: EXTERNA Nº 03 | AW8: EXTERNA Nº 04 | AX8: EXTERNA Nº05 | AY8: TOTAL MODIFICACION EXTERNA | AZ8: EXTRAORD Nº 001 | BA8: EXTRAORD Nº 002 | BB8: EXTRAORD Nº 003 Y MOD 3 APROBACION LEGISLATIVA | BC8: EXTRAORD Nº 004 | BD8: EXTRAORD Nº 005 | BE8: EXTRAORD Nº 006 | BF8: EXTRAORD Nº 007 | BG8: TOTAL EXTRAOR
A10: 0 | B10: REMUNERACIONES | C10: =SUM(C12:C26) -> 403,607,580.00 | D10: =SUM(D12:D25) -> 0.00 | E10: 2,161,220.00 | F10: =SUM(F12:F26) -> 405,768,800.00 | G10: =SUM(G12:G26) -> 91,181,895.20 | H10: =SUM(H12:H26) -> 25,082,279.95 | I10: =SUM(I12:I26) -> 33,526,608.83 | J10: =SUM(J12:J26) -> 27,677,153.30 | K10: 86,286,042.08 | L10: 177,467,937.28 | M10: 0.00 | N10: 0.00 | O10: 228,300,862.72 | P10: 405,768,800.00 | Q10: 228,300,862.72 | R10: 2,161,220.00 | S10: 0.00 | T10: 0.00 | U10: 0.00 | V10: 0.00 | W10: 0.00 | X10: 0.00 | Y10: 0.00 | Z10: 0.00 | AA10: =SUM(AA12:AA25) -> 0.00 | AB10: 0.00 | AC10: 0.00 | AD10: 0.00 | AE10: 0.00 | AF10: 0.00 | AG10: 0.00 | AH10: 0.00 | AI10: 0.00 | AJ10: 0.00 | AK10: 0.00 | AL10: 0.00 | AM10: 0.00 | AN10: 0.00 | AO10: 0.00 | AP10: 0.00 | AQ10: 0.00 | AR10: 0.00 | AS10: 2,161,220.00 | AT10: 0.00 | AU10: 0.00 | AV10: 0.00 | AW10: 0.00 | AX10: 0.00 | AY10: 0.00 | AZ10: 0.00 | BA10: 0.00 | BB10: 0.00 | BC10: 0.00 | BD10: 0.00 | BE10: 0.00 | BF10: 0.00 | BG10: 0.00
A12: 0.01.01 | B12: Sueldos para cargos fijos | C12: 156,849,063.00 | D12: =+BG12 -> 0.00 | E12: =+AS12+AY12 -> 31,588,824.00 | F12: =+C12+D12+E12 -> 188,437,887.00 | G12: 38,872,290.85 | H12: =+'CK GASTOS OSN AC MES 1'!D251 -> 13,755,088.50 | I12: =+'CK GASTOS OSN AC MES 2'!D252 -> 19,905,462.63 | J12: =+'CK GASTOS OSN AC MES 3'!D281 -> 13,639,823.00 | K12: =SUM(H12:J12) -> 47,300,374.13 | L12: =K12+G12 -> 86,172,664.98 | M12: =+'Cert.OSN AC'!D281 -> 0.00 | N12: =IF(M12>0,(L12-M12),0) -> 0.00 | O12: =F12-L12 -> 102,265,222.02 | P12: =F12-M12 -> 188,437,887.00 | Q12: =IF(N12>0,(F12-L12-N12),(F12-L12+N12)) -> 102,265,222.02 | R12: 31,588,824.00 | AS12: =SUM(R12:AR12) -> 31,588,824.00 | AY12: =+AT12+AU12+AV12+AW12+AX12 -> 0.00 | BG12: =SUM(AZ12:BF12) -> 0.00
A13: 0.01.05 | B13: Suplencias | C13: 31,000,000.00 | D13: 0.00 | E13: 0.00 | F13: 31,000,000.00 | G13: 2,506,350.00 | H13: =+'CK GASTOS OSN AC MES 1'!E251 -> 835,450.00 | I13: =+'CK GASTOS OSN AC MES 2'!E252 -> 872,950.00 | J13: =+'CK GASTOS OSN AC MES 3'!E281 -> 842,950.00 | K13: 2,551,350.00 | L13: 5,057,700.00 | M13: =+'Cert.OSN AC'!E281 -> 0.00 | N13: 0.00 | O13: 25,942,300.00 | P13: 31,000,000.00 | Q13: 25,942,300.00 | AS13: 0.00 | AY13: 0.00 | BG13: 0.00
A14: 0.02.01 | B14: Tiempo extraordinario | C14: 3,500,000.00 | D14: 0.00 | E14: 0.00 | F14: 3,500,000.00 | G14: 532,188.35 | H14: =+'CK GASTOS OSN AC MES 1'!F251 -> 337,490.85 | I14: =+'CK GASTOS OSN AC MES 2'!F252 -> 462,288.15 | J14: =+'CK GASTOS OSN AC MES 3'!F281 -> 400,526.45 | K14: 1,200,305.45 | L14: 1,732,493.80 | M14: =+'Cert.OSN AC'!F281 -> 0.00 | N14: 0.00 | O14: 1,767,506.20 | P14: 3,500,000.00 | Q14: 1,767,506.20 | AS14: 0.00 | AY14: 0.00 | BG14: 0.00
A15: 0.02.04 | B15: Compensación Vacaciones | D15: 0.00 | E15: 0.00 | F15: 0.00 | G15: 0 | H15: =+'CK GASTOS OSN AC MES 1'!G251 -> 0.00 | I15: =+'CK GASTOS OSN AC MES 2'!G252 -> 0.00 | J15: =+'CK GASTOS OSN AC MES 3'!G281 -> 0.00 | K15: 0.00 | L15: 0.00 | M15: =+'Cert.OSN AC'!G281 -> 0.00 | N15: 0.00 | O15: 0.00 | P15: 0.00 | Q15: 0.00 | AS15: 0.00 | AY15: 0.00 | BG15: 0.00
A16: 0.03.01 | B16: Retribuciòn por años servidos | C16: 49,800,000.00 | D16: 0.00 | E16: -12,616,081.00 | F16: 37,183,919.00 | G16: 7,370,878.85 | H16: =+'CK GASTOS OSN AC MES 1'!H251 -> 2,572,169.60 | I16: =+'CK GASTOS OSN AC MES 2'!H252 -> 2,570,000.00 | J16: =+'CK GASTOS OSN AC MES 3'!H281 -> 2,570,000.00 | K16: 7,712,169.60 | L16: 15,083,048.45 | M16: =+'Cert.OSN AC'!H281 -> 0.00 | N16: 0.00 | O16: 22,100,870.55 | P16: 37,183,919.00 | Q16: 22,100,870.55 | R16: -12,616,081.00 | AS16: -12,616,081.00 | AY16: 0.00 | BG16: 0.00
A17: 0.03.02 | B17: Restricciòn al ejercicio liberal de la profesiòn | C17: 51,144,170.00 | D17: 0.00 | E17: -15,200,500.00 | F17: 35,943,670.00 | G17: 8,688,409.50 | H17: ='CK GASTOS OSN AC MES 1'!I251 -> 2,844,359.25 | I17: =+'CK GASTOS OSN AC MES 2'!I252 -> 4,870,420.02 | J17: =+'CK GASTOS OSN AC MES 3'!I281 -> 2,868,492.50 | K17: 10,583,271.77 | L17: 19,271,681.27 | M17: =+'Cert.OSN AC'!I281 -> 0.00 | N17: 0.00 | O17: 16,671,988.73 | P17: 35,943,670.00 | Q17: 16,671,988.73 | R17: -15,200,500.00 | AS17: -15,200,500.00 | AY17: 0.00 | BG17: 0.00
A18: 0.03.03 | B18: Dècimo tercer mes | C18: 19,000,000.00 | D18: 0.00 | E18: 0.00 | F18: 19,000,000.00 | G18: 0 | H18: =+'CK GASTOS OSN AC MES 1'!J251 -> 0.00 | I18: =+'CK GASTOS OSN AC MES 2'!J252 -> 0.00 | J18: =+'CK GASTOS OSN AC MES 3'!J281 -> 0.00 | K18: 0.00 | L18: 0.00 | M18: =+'Cert.OSN AC'!J281 -> 0.00 | N18: 0.00 | O18: 19,000,000.00 | P18: 19,000,000.00 | Q18: 19,000,000.00 | AS18: 0.00 | AY18: 0.00 | BG18: 0.00
A19: 0.03.04 | B19: Salario escolar | C19: 18,500,000.00 | D19: 0.00 | E19: -1,611,023.00 | F19: 16,888,977.00 | G19: 16,888,976.90 | H19: =+'CK GASTOS OSN AC MES 1'!K251 -> 0.00 | I19: =+'CK GASTOS OSN AC MES 2'!K252 -> 0.00 | J19: =+'CK GASTOS OSN AC MES 3'!K281 -> 0.00 | K19: 0.00 | L19: 16,888,976.90 | M19: =+'Cert.OSN AC'!K281 -> 0.00 | N19: 0.00 | O19: 0.10 | P19: 16,888,977.00 | Q19: 0.10 | R19: -1,611,023.00 | AS19: -1,611,023.00 | AY19: 0.00 | BG19: 0.00
A20: 0.03.99 | B20: Otros incentivos salariales | C20: 6,700,000.00 | D20: 0.00 | E20: 0.00 | F20: 6,700,000.00 | G20: 1,532,229.30 | H20: =+'CK GASTOS OSN AC MES 1'!L251 -> 562,567.50 | I20: =+'CK GASTOS OSN AC MES 2'!L252 -> 562,567.50 | J20: =+'CK GASTOS OSN AC MES 3'!L281 -> 562,567.50 | K20: 1,687,702.50 | L20: 3,219,931.80 | M20: =+'Cert.OSN AC'!L281 -> 0.00 | N20: 0.00 | O20: 3,480,068.20 | P20: 6,700,000.00 | Q20: 3,480,068.20 | AS20: 0.00 | AY20: 0.00 | BG20: 0.00
A21: 0.04.01 | B21: Contribuciòn Pat.Seguro Salud CCSS | C21: 31,097,392.00 | D21: 0.00 | E21: 0.00 | F21: 31,097,392.00 | G21: 6,706,363.10 | H21: =+'CK GASTOS OSN AC MES 1'!M251 -> 1,871,784.00 | I21: =+'CK GASTOS OSN AC MES 2'!M252 -> 1,918,821.00 | J21: =+'CK GASTOS OSN AC MES 3'!M281 -> 4,361,250.00 | K21: 8,151,855.00 | L21: 14,858,218.10 | M21: =+'Cert.OSN AC'!M281 -> 0.00 | N21: 0.00 | O21: 16,239,173.90 | P21: 31,097,392.00 | Q21: 16,239,173.90 | AS21: 0.00 | AY21: 0.00 | BG21: 0.00
A22: 0.04.05 | B22: Contribución Pat. BPDC | C22: 1,632,292.00 | D22: 0.00 | E22: 0.00 | F22: 1,632,292.00 | G22: 362,507.09 | H22: =+'CK GASTOS OSN AC MES 1'!N251 -> 100,791.00 | I22: =+'CK GASTOS OSN AC MES 2'!N252 -> 103,720.00 | J22: =+'CK GASTOS OSN AC MES 3'!N281 -> 107,981.00 | K22: 312,492.00 | L22: 674,999.09 | M22: =+'Cert.OSN AC'!N281 -> 0.00 | N22: 0.00 | O22: 957,292.91 | P22: 1,632,292.00 | Q22: 957,292.91 | AS22: 0.00 | AY22: 0.00 | BG22: 0.00
A23: 0.05.01 | B23: Contribución Pat. Seguro Pensiones CCSS | C23: 17,694,039.00 | D23: 0.00 | E23: 0.00 | F23: 17,694,039.00 | G23: 3,929,566.48 | H23: =+'CK GASTOS OSN AC MES 1'!O251 -> 1,096,474.00 | I23: =+'CK GASTOS OSN AC MES 2'!O252 -> 1,124,325.00 | J23: =+'CK GASTOS OSN AC MES 3'!O281 -> 1,170,522.00 | K23: 3,391,321.00 | L23: 7,320,887.48 | M23: =+'Cert.OSN AC'!O281 -> 0.00 | N23: 0.00 | O23: 10,373,151.52 | P23: 17,694,039.00 | Q23: 10,373,151.52 | AS23: 0.00 | AY23: 0.00 | BG23: 0.00
A24: 0.05.02 | B24: Aporte Pat. Régimen Obligatorio Pens.Com. | C24: 9,793,749.00 | D24: 0.00 | E24: 0.00 | F24: 9,793,749.00 | G24: 2,175,037.89 | H24: =+'CK GASTOS OSN AC MES 1'!P251 -> 604,743.00 | I24: =+'CK GASTOS OSN AC MES 2'!P252 -> 622,320.00 | J24: =+'CK GASTOS OSN AC MES 3'!P281 -> 647,891.00 | K24: 1,874,954.00 | L24: 4,049,991.89 | M24: =+'Cert.OSN AC'!P281 -> 0.00 | N24: 0.00 | O24: 5,743,757.11 | P24: 9,793,749.00 | Q24: 5,743,757.11 | AS24: 0.00 | AY24: 0.00 | BG24: 0.00
A25: 0.05.03 | B25: Aporte Pat. al Fondo Cap. Laboral | C25: 4,896,875.00 | D25: 0.00 | E25: 0.00 | F25: 4,896,875.00 | G25: 1,087,515.24 | H25: =+'CK GASTOS OSN AC MES 1'!Q251 -> 302,370.00 | I25: =+'CK GASTOS OSN AC MES 2'!Q252 -> 311,159.00 | J25: =+'CK GASTOS OSN AC MES 3'!Q281 -> 323,945.00 | K25: 937,474.00 | L25: 2,024,989.24 | M25: =+'Cert.OSN AC'!Q281 -> 0.00 | N25: 0.00 | O25: 2,871,885.76 | P25: 4,896,875.00 | Q25: 2,871,885.76 | AS25: 0.00 | AY25: 0.00 | BG25: 0.00
A26: 0.05.05 | B26: Contribución Patronal a fondos administrados por entes privados | C26: 2,000,000.00 | E26: =+AS26+AY26 -> 0.00 | F26: =+C26+D26+E26 -> 2,000,000.00 | G26: 529,581.65 | H26: =+'CK GASTOS OSN AC MES 1'!R251 -> 198,992.25 | I26: =+'CK GASTOS OSN AC MES 2'!R252 -> 202,575.53 | J26: =+'CK GASTOS OSN AC MES 3'!R281 -> 181,204.85 | K26: 582,772.63 | L26: 1,112,354.28 | M26: =+'Cert.OSN AC'!Q282 -> 0.00 | N26: =IF(M26>0,(L26-M26),0) -> 0.00 | O26: =F26-L26 -> 887,645.72 | P26: =F26-M26 -> 2,000,000.00 | Q26: =IF(N26>0,(F26-L26-N26),(F26-L26+N26)) -> 887,645.72
A28: 1 | B28: SERVICIOS | C28: =SUM(C30:C69) -> 0.00 | D28: =SUM(D30:D69) -> 0.00 | E28: =SUM(E30:E69) -> 0.00 | F28: =SUM(F30:F69) -> 0.00 | G28: =SUM(G29:G68) -> 0 | H28: =SUM(H29:H68) -> 0.00 | I28: =SUM(I29:I68) -> 0.00 | J28: =SUM(J29:J68) -> 0.00 | K28: =SUM(K29:K69) -> 0.00 | L28: =SUM(L29:L69) -> 0.00 | M28: =SUM(M30:M69) -> 0.00 | N28: 0.00 | O28: =SUM(O30:O70) -> 0.00 | P28: =SUM(P30:P70) -> 0.00 | Q28: =SUM(Q30:Q70) -> 0.00 | R28: =SUM(R30:R69) -> 0.00 | S28: 0.00 | T28: 0.00 | U28: 0.00 | V28: 0.00 | W28: 0.00 | X28: 0.00 | AA28: =SUM(AA30:AA45) -> 0.00 | AB28: 0.00 | AC28: 0.00 | AD28: 0.00 | AE28: 0.00 | AF28: 0.00 | AG28: 0.00 | AH28: 0.00 | AS28: =SUM(AS30:AS69) -> 0.00 | AT28: 0.00 | AU28: 0.00 | AV28: 0.00 | AW28: 0.00 | AX28: 0.00 | AY28: 0.00 | AZ28: 0.00 | BA28: 0.00 | BB28: 0.00 | BG28: =SUM(BG30:BG69) -> 0.00
N29: 0.00
A30: 1.01.01 | B30: Alquiler de edificios, locales y terrenos | C30: 0.00 | D30: =+BG30 -> 0.00 | E30: =+AS30+AY30 -> 0.00 | F30: =+C30+D30+E30 -> 0.00 | G30: 0 | H30: ='CK GASTOS OSN AC MES 1'!S$251 -> 0.00 | I30: ='CK GASTOS OSN AC MES 2'!S$252 -> 0.00 | J30: ='CK GASTOS OSN AC MES 3'!S$281 -> 0.00 | K30: =SUM(H30:J30) -> 0.00 | L30: =K30+G30 -> 0.00 | M30: =+'Cert.OSN AC'!R281 -> 0.00 | N30: 0.00 | O30: =F30-L30 -> 0.00 | P30: =F30-M30 -> 0.00 | Q30: =IF(N30>0,(F30-L30-N30),(F30-L30+N30)) -> 0.00 | AS30: =SUM(R30:AE30) -> 0.00 | AY30: =+AT30+AU30+AV30+AW30+AX30 -> 0.00 | BG30: =SUM(AZ30:BB30) -> 0.00
A31: 1.01.02 | B31: Alquiler de maquinaria, equipo y mobiliario | C31: 0.00 | D31: 0.00 | E31: =+AS31+AY31 -> 0.00 | F31: 0.00 | G31: 0 | H31: ='CK GASTOS OSN AC MES 1'!T$251 -> 0.00 | I31: ='CK GASTOS OSN AC MES 2'!T$252 -> 0.00 | J31: ='CK GASTOS OSN AC MES 3'!T$281 -> 0.00 | K31: 0.00 | L31: 0.00 | M31: =+'Cert.OSN AC'!S281 -> 0.00 | N31: 0.00 | O31: =F31-L31 -> 0.00 | P31: =F31-M31 -> 0.00 | Q31: =IF(N31>0,(F31-L31-N31),(F31-L31+N31)) -> 0.00 | AS31: =SUM(R31:AE31) -> 0.00 | AY31: =+AT31+AU31+AV31+AW31+AX31 -> 0.00 | BG31: =SUM(AZ31:BB31) -> 0.00
A32: 1.01.03 | B32: Alquiler de equipo de cómputo | C32: 0.00 | D32: 0.00 | E32: =+AS32+AY32 -> 0.00 | F32: 0.00 | G32: 0 | K32: 0.00 | L32: 0.00 | M32: =+'Cert.OSN AC'!S282 -> 0.00 | N32: 0.00 | O32: =F32-L32 -> 0.00 | P32: =F32-M32 -> 0.00 | Q32: =IF(N32>0,(F32-L32-N32),(F32-L32+N32)) -> 0.00
A33: 1.01.04 | B33: Alquileres y derechos para telecomunicaciones | C33: =+'producción musical'!D28 -> 0.00 | D33: 0.00 | E33: =+AS33+AY33 -> 0.00 | F33: 0.00 | G33: 0 | H33: ='CK GASTOS OSN AC MES 1'!U$251 -> 0.00 | I33: ='CK GASTOS OSN AC MES 2'!U$252 -> 0.00 | J33: ='CK GASTOS OSN AC MES 3'!U$281 -> 0.00 | K33: 0.00 | L33: 0.00 | M33: =+'Cert.OSN AC'!S283 -> 0.00 | N33: 0.00 | O33: =F33-L33 -> 0.00 | P33: =F33-M33 -> 0.00 | Q33: =IF(N33>0,(F33-L33-N33),(F33-L33+N33)) -> 0.00
A34: 1.01.99 | B34: Otros alquileres | C34: 0.00 | D34: 0.00 | E34: =+AS34+AY34 -> 0.00 | F34: 0.00 | G34: 0 | H34: ='CK GASTOS OSN AC MES 1'!V$251 -> 0.00 | I34: ='CK GASTOS OSN AC MES 2'!V$252 -> 0.00 | J34: ='CK GASTOS OSN AC MES 3'!V$281 -> 0.00 | K34: 0.00 | L34: 0.00 | M34: =+'Cert.OSN AC'!T281 -> 0.00 | N34: 0.00 | O34: =F34-L34 -> 0.00 | P34: =F34-M34 -> 0.00 | Q34: =IF(N34>0,(F34-L34-N34),(F34-L34+N34)) -> 0.00 | AS34: =SUM(R34:AE34) -> 0.00 | AY34: =+AT34+AU34+AV34+AW34+AX34 -> 0.00 | BG34: =SUM(AZ34:BB34) -> 0.00
A35: 1.02.01 | B35: Servicio de agua y alcantarillado | C35: 0.00 | D35: 0.00 | E35: 0.00 | F35: 0.00 | G35: 0 | H35: ='CK GASTOS OSN AC MES 1'!W$251 -> 0.00 | I35: ='CK GASTOS OSN AC MES 2'!W$252 -> 0.00 | J35: ='CK GASTOS OSN AC MES 3'!W$281 -> 0.00 | K35: 0.00 | L35: 0.00 | M35: =+'Cert.OSN AC'!U281 -> 0.00 | N35: 0.00 | O35: 0.00 | P35: 0.00 | Q35: 0.00 | AS35: 0.00 | AY35: 0.00 | BG35: 0.00
A36: 1.02.02 | B36: Servicio de energìa elèctrica | C36: 0.00 | D36: 0.00 | E36: 0.00 | F36: 0.00 | G36: 0 | H36: ='CK GASTOS OSN AC MES 1'!X$251 -> 0.00 | I36: ='CK GASTOS OSN AC MES 2'!X$252 -> 0.00 | J36: ='CK GASTOS OSN AC MES 3'!X$281 -> 0.00 | K36: 0.00 | L36: 0.00 | M36: =+'Cert.OSN AC'!V281 -> 0.00 | N36: 0.00 | O36: 0.00 | P36: 0.00 | Q36: 0.00 | AS36: 0.00 | AY36: 0.00 | BG36: 0.00
A37: 1.02.03 | B37: Servicio de correo | C37: 0.00 | D37: 0.00 | E37: 0.00 | F37: 0.00 | G37: 0 | H37: ='CK GASTOS OSN AC MES 1'!Y$251 -> 0.00 | I37: ='CK GASTOS OSN AC MES 2'!Y$252 -> 0.00 | J37: ='CK GASTOS OSN AC MES 3'!Y$281 -> 0.00 | K37: 0.00 | L37: 0.00 | M37: =+'Cert.OSN AC'!W281 -> 0.00 | N37: 0.00 | O37: 0.00 | P37: 0.00 | Q37: 0.00 | AS37: 0.00 | AY37: 0.00 | BG37: 0.00
A38: 1.02.04 | B38: Servicio de telecomunicaciones | C38: 0.00 | D38: 0.00 | E38: 0.00 | F38: 0.00 | G38: 0 | H38: ='CK GASTOS OSN AC MES 1'!Z$251 -> 0.00 | I38: ='CK GASTOS OSN AC MES 2'!Z$252 -> 0.00 | J38: ='CK GASTOS OSN AC MES 3'!Z$281 -> 0.00 | K38: 0.00 | L38: 0.00 | M38: =+'Cert.OSN AC'!X281 -> 0.00 | N38: 0.00 | O38: 0.00 | P38: 0.00 | Q38: 0.00 | AS38: 0.00 | AY38: 0.00 | BG38: 0.00
A39: 1.03.01 | B39: Información | C39: 0.00 | D39: 0.00 | E39: 0.00 | F39: 0.00 | G39: 0 | H39: ='CK GASTOS OSN AC MES 1'!AA$251 -> 0.00 | I39: ='CK GASTOS OSN AC MES 2'!AA$252 -> 0.00 | J39: ='CK GASTOS OSN AC MES 3'!AA$281 -> 0.00 | K39: 0.00 | L39: 0.00 | M39: =+'Cert.OSN AC'!Y281 -> 0.00 | N39: 0.00 | O39: 0.00 | P39: 0.00 | Q39: 0.00 | AS39: 0.00 | AY39: 0.00 | BG39: 0.00
A40: 1.03.02 | B40: Publicidad y propaganda | C40: 0.00 | D40: 0.00 | E40: 0.00 | F40: 0.00 | G40: 0 | H40: ='CK GASTOS OSN AC MES 1'!AB$251 -> 0.00 | I40: ='CK GASTOS OSN AC MES 2'!AB$252 -> 0.00 | J40: ='CK GASTOS OSN AC MES 3'!AB$281 -> 0.00 | K40: 0.00 | L40: 0.00 | M40: =+'Cert.OSN AC'!Z281 -> 0.00 | N40: 0.00 | O40: 0.00 | P40: 0.00 | Q40: 0.00 | AS40: 0.00 | AY40: 0.00 | BG40: 0.00
A41: 1.03.03 | B41: Impresión, encuadernación y otros | C41: 0.00 | D41: 0.00 | E41: 0.00 | F41: 0.00 | G41: 0 | H41: ='CK GASTOS OSN AC MES 1'!AC$251 -> 0.00 | I41: ='CK GASTOS OSN AC MES 2'!AC$252 -> 0.00 | J41: ='CK GASTOS OSN AC MES 3'!AC$281 -> 0.00 | K41: 0.00 | L41: 0.00 | M41: =+'Cert.OSN AC'!AA281 -> 0.00 | N41: 0.00 | O41: 0.00 | P41: 0.00 | Q41: 0.00 | AS41: 0.00 | AY41: 0.00 | BG41: 0.00
A42: 1.03.04 | B42: Transporte de bienes | C42: 0.00 | D42: 0.00 | E42: 0.00 | F42: 0.00 | G42: 0 | H42: ='CK GASTOS OSN AC MES 1'!AD$251 -> 0.00 | I42: ='CK GASTOS OSN AC MES 2'!AD$252 -> 0.00 | J42: ='CK GASTOS OSN AC MES 3'!AD$281 -> 0.00 | K42: 0.00 | L42: 0.00 | M42: =+'Cert.OSN AC'!AB281 -> 0.00 | N42: 0.00 | O42: 0.00 | P42: 0.00 | Q42: 0.00 | AS42: 0.00 | AY42: 0.00 | BG42: 0.00
A43: 1.03.05 | B43: Servicios aduaneros | C43: 0.00 | D43: 0.00 | E43: 0.00 | F43: 0.00 | G43: 0 | H43: ='CK GASTOS OSN AC MES 1'!AE$251 -> 0.00 | I43: ='CK GASTOS OSN AC MES 2'!AE$252 -> 0.00 | J43: ='CK GASTOS OSN AC MES 3'!AE$281 -> 0.00 | K43: 0.00 | L43: 0.00 | M43: =+'Cert.OSN AC'!AC281 -> 0.00 | N43: 0.00 | O43: 0.00 | P43: 0.00 | Q43: 0.00 | AS43: 0.00 | AY43: 0.00 | BG43: 0.00
A44: 1.03.06 | B44: Comisiones y gastos por serv.financieros y com. | C44: 0.00 | D44: 0.00 | E44: 0.00 | F44: 0.00 | G44: 0 | H44: ='CK GASTOS OSN AC MES 1'!AF$251 -> 0.00 | I44: ='CK GASTOS OSN AC MES 2'!AF$252 -> 0.00 | J44: ='CK GASTOS OSN AC MES 3'!AF$281 -> 0.00 | K44: 0.00 | L44: 0.00 | M44: =+'Cert.OSN AC'!AD281 -> 0.00 | N44: 0.00 | O44: 0.00 | P44: 0.00 | Q44: 0.00 | AS44: 0.00 | AY44: 0.00 | BG44: 0.00
A45: 1.04.02 | B45: Servicios Jurídicos | C45: 0.00 | D45: 0.00 | E45: 0.00 | F45: 0.00 | G45: 0 | H45: ='CK GASTOS OSN AC MES 1'!AG$251 -> 0.00 | I45: ='CK GASTOS OSN AC MES 2'!AG$252 -> 0.00 | J45: ='CK GASTOS OSN AC MES 3'!AG$281 -> 0.00 | K45: 0.00 | L45: 0.00 | M45: =+'Cert.OSN AC'!AD282 -> 0.00 | N45: 0.00 | O45: 0.00 | P45: 0.00 | Q45: 0.00 | AS45: 0.00
A46: 1.04.03 | B46: Servicio de Ingeniería | C46: 0.00 | D46: 0.00 | E46: 0.00 | F46: 0.00 | G46: 0 | H46: ='CK GASTOS OSN AC MES 1'!AH$251 -> 0.00 | I46: ='CK GASTOS OSN AC MES 2'!AH$252 -> 0.00 | J46: ='CK GASTOS OSN AC MES 3'!AH$281 -> 0.00 | K46: 0.00 | L46: 0.00 | M46: =+'Cert.OSN AC'!AE281 -> 0.00 | N46: 0.00 | O46: 0.00 | P46: 0.00 | Q46: 0.00 | AS46: 0.00 | AY46: =+AT46+AU46+AV46+AW46+AX46 -> 0.00 | BG46: =SUM(AZ46:BB46) -> 0.00
A47: 1.04.04 | B47: Servicios Ciencias Economicas y sociales | C47: 0.00 | D47: 0.00 | E47: 0.00 | F47: 0.00 | G47: 0 | H47: ='CK GASTOS OSN AC MES 1'!AI$251 -> 0.00 | I47: ='CK GASTOS OSN AC MES 2'!AI$252 -> 0.00 | J47: ='CK GASTOS OSN AC MES 3'!AI$281 -> 0.00 | K47: 0.00 | L47: 0.00 | M47: =+'Cert.OSN AC'!AF281 -> 0.00 | N47: 0.00 | O47: 0.00 | P47: 0.00 | Q47: 0.00 | AS47: 0.00 | AY47: 0.00 | BG47: 0.00
A48: 1.04.05 | B48: Servicios de desarrollo sistemas infromaticos | C48: 0.00 | D48: 0.00 | E48: 0.00 | F48: 0.00 | G48: 0 | H48: ='CK GASTOS OSN AC MES 1'!AJ$251 -> 0.00 | I48: ='CK GASTOS OSN AC MES 2'!AJ$252 -> 0.00 | J48: ='CK GASTOS OSN AC MES 3'!AJ$281 -> 0.00 | K48: 0.00 | L48: 0.00 | M48: =+'Cert.OSN AC'!AG281 -> 0.00 | N48: 0.00 | O48: 0.00 | P48: 0.00 | Q48: 0.00 | AS48: 0.00 | AY48: 0.00 | BG48: 0.00
A49: 1.04.06 | B49: Servicios generales | C49: 0.00 | D49: 0.00 | E49: 0.00 | F49: 0.00 | G49: 0 | H49: ='CK GASTOS OSN AC MES 1'!AK$251 -> 0.00 | I49: ='CK GASTOS OSN AC MES 2'!AK$252 -> 0.00 | J49: ='CK GASTOS OSN AC MES 3'!AK$281 -> 0.00 | K49: 0.00 | L49: 0.00 | M49: =+'Cert.OSN AC'!AH281 -> 0.00 | N49: 0.00 | O49: 0.00 | P49: 0.00 | Q49: 0.00 | AS49: 0.00 | AY49: 0.00 | BG49: 0.00
A50: 1.04.99 | B50: Otros servicios de gestión y apoyo | C50: 0.00 | D50: 0.00 | E50: 0.00 | F50: 0.00 | G50: 0 | H50: ='CK GASTOS OSN AC MES 1'!AL$251 -> 0.00 | I50: ='CK GASTOS OSN AC MES 2'!AL$252 -> 0.00 | J50: ='CK GASTOS OSN AC MES 3'!AL$281 -> 0.00 | K50: 0.00 | L50: 0.00 | M50: =+'Cert.OSN AC'!AI281 -> 0.00 | N50: 0.00 | O50: 0.00 | P50: 0.00 | Q50: 0.00 | AS50: 0.00 | AY50: 0.00 | BG50: 0.00
A51: 1.05.01 | B51: Transporte dentro del país | C51: 0.00 | D51: 0.00 | E51: 0.00 | F51: 0.00 | G51: 0 | H51: ='CK GASTOS OSN AC MES 1'!AM$251 -> 0.00 | I51: ='CK GASTOS OSN AC MES 2'!AM$252 -> 0.00 | J51: ='CK GASTOS OSN AC MES 3'!AM$281 -> 0.00 | K51: 0.00 | L51: 0.00 | M51: =+'Cert.OSN AC'!AJ281 -> 0.00 | N51: 0.00 | O51: 0.00 | P51: 0.00 | Q51: 0.00 | AS51: 0.00 | AY51: 0.00 | BG51: 0.00
A52: 1.05.02 | B52: Viáticos dentro del país | C52: 0.00 | D52: 0.00 | E52: 0.00 | F52: 0.00 | G52: 0 | H52: ='CK GASTOS OSN AC MES 1'!AN$251 -> 0.00 | I52: ='CK GASTOS OSN AC MES 2'!AN$252 -> 0.00 | J52: ='CK GASTOS OSN AC MES 3'!AN$281 -> 0.00 | K52: 0.00 | L52: 0.00 | M52: =+'Cert.OSN AC'!AK281 -> 0.00 | N52: 0.00 | O52: 0.00 | P52: 0.00 | Q52: 0.00 | AS52: 0.00 | AY52: 0.00 | BG52: 0.00
A53: 1.05.03 | B53: Transporte en el exterior | C53: 0.00 | D53: 0.00 | E53: 0.00 | F53: 0.00 | G53: 0 | H53: ='CK GASTOS OSN AC MES 1'!AO$251 -> 0.00 | I53: ='CK GASTOS OSN AC MES 2'!AO$252 -> 0.00 | J53: ='CK GASTOS OSN AC MES 3'!AO$281 -> 0.00 | K53: 0.00 | L53: 0.00 | M53: =+'Cert.OSN AC'!AL281 -> 0.00 | N53: 0.00 | O53: 0.00 | P53: 0.00 | Q53: 0.00 | AS53: 0.00 | AY53: 0.00 | BG53: 0.00
A54: 1.05.04 | B54: Viáticos en el exterior | C54: 0.00 | D54: 0.00 | E54: 0.00 | F54: 0.00 | G54: 0 | H54: ='CK GASTOS OSN AC MES 1'!AP$251 -> 0.00 | I54: ='CK GASTOS OSN AC MES 2'!AP$252 -> 0.00 | J54: ='CK GASTOS OSN AC MES 3'!AP$281 -> 0.00 | K54: 0.00 | L54: 0.00 | M54: =+'Cert.OSN AC'!AM281 -> 0.00 | N54: 0.00 | O54: 0.00 | P54: 0.00 | Q54: 0.00 | AS54: 0.00 | AY54: 0.00 | BG54: 0.00
A55: 1.06.01 | B55: Seguros | C55: 0.00 | D55: 0.00 | E55: 0.00 | F55: 0.00 | G55: 0 | H55: ='CK GASTOS OSN AC MES 1'!AQ$251 -> 0.00 | I55: ='CK GASTOS OSN AC MES 2'!AQ$252 -> 0.00 | J55: ='CK GASTOS OSN AC MES 3'!AQ$281 -> 0.00 | K55: 0.00 | L55: 0.00 | M55: =+'Cert.OSN AC'!AN281 -> 0.00 | N55: 0.00 | O55: 0.00 | P55: 0.00 | Q55: 0.00 | AS55: 0.00 | AY55: 0.00 | BG55: 0.00
A56: 1.07.01 | B56: Actividades de capacitación | C56: 0.00 | D56: 0.00 | E56: 0.00 | F56: 0.00 | G56: 0 | H56: ='CK GASTOS OSN AC MES 1'!AR$251 -> 0.00 | I56: ='CK GASTOS OSN AC MES 2'!AR$252 -> 0.00 | J56: ='CK GASTOS OSN AC MES 3'!AR$281 -> 0.00 | K56: 0.00 | L56: 0.00 | M56: =+'Cert.OSN AC'!AO281 -> 0.00 | N56: 0.00 | O56: 0.00 | P56: 0.00 | Q56: 0.00 | AS56: 0.00 | AY56: 0.00 | BG56: 0.00
A57: 1.07.02 | B57: Actividades protocolarias y sociales | C57: 0.00 | D57: 0.00 | E57: 0.00 | F57: 0.00 | G57: 0 | H57: ='CK GASTOS OSN AC MES 1'!AS$251 -> 0.00 | I57: ='CK GASTOS OSN AC MES 2'!AS$252 -> 0.00 | J57: ='CK GASTOS OSN AC MES 3'!AS$281 -> 0.00 | K57: 0.00 | L57: 0.00 | M57: =+'Cert.OSN AC'!AP281 -> 0.00 | N57: 0.00 | O57: 0.00 | P57: 0.00 | Q57: 0.00 | AS57: 0.00 | AY57: 0.00 | BG57: 0.00
A58: 1.07.03 | B58: Gastos de representación institucional | C58: 0.00 | D58: 0.00 | E58: 0.00 | F58: 0.00 | G58: 0 | M58: =+'Cert.OSN AC'!AP282 -> 0.00 | N58: 0.00 | Q58: 0.00
A59: 1.08.01 | B59: Mantenimiento de edificios y locales | C59: 0.00 | D59: 0.00 | E59: 0.00 | F59: 0.00 | G59: 0 | H59: ='CK GASTOS OSN AC MES 1'!AT$251 -> 0.00 | I59: ='CK GASTOS OSN AC MES 2'!AT$252 -> 0.00 | J59: ='CK GASTOS OSN AC MES 3'!AT$281 -> 0.00 | K59: =SUM(H59:J59) -> 0.00 | L59: =K59+G59 -> 0.00 | M59: =+'Cert.OSN AC'!AQ281 -> 0.00 | N59: 0.00 | O59: =F59-L59 -> 0.00 | P59: =F59-M59 -> 0.00 | Q59: 0.00 | AS59: =SUM(R59:AE59) -> 0.00 | AY59: =+AT59+AU59+AV59+AW59+AX59 -> 0.00 | BG59: =SUM(AZ59:BB59) -> 0.00
A60: 1.08.04 | B60: Mantenimiento y repracion de equipo de produccion | C60: 0.00 | D60: 0.00 | E60: 0.00 | F60: 0.00 | G60: 0 | H60: ='CK GASTOS OSN AC MES 1'!AU$251 -> 0.00 | I60: ='CK GASTOS OSN AC MES 2'!AU$252 -> 0.00 | J60: ='CK GASTOS OSN AC MES 3'!AU$281 -> 0.00 | K60: 0.00 | L60: 0.00 | M60: =+'Cert.OSN AC'!AR281 -> 0.00 | N60: 0.00 | O60: 0.00 | P60: 0.00 | Q60: 0.00 | AS60: 0.00 | AY60: 0.00 | BG60: 0.00
A61: 1.08.05 | B61: Mant. y rep. de equipo de transporte | C61: 0.00 | D61: 0.00 | E61: 0.00 | F61: 0.00 | G61: 0 | H61: ='CK GASTOS OSN AC MES 1'!AV$251 -> 0.00 | I61: ='CK GASTOS OSN AC MES 2'!AV$252 -> 0.00 | J61: ='CK GASTOS OSN AC MES 3'!AV$281 -> 0.00 | K61: 0.00 | L61: 0.00 | M61: =+'Cert.OSN AC'!AS281 -> 0.00 | N61: 0.00 | O61: 0.00 | P61: 0.00 | Q61: 0.00 | AS61: 0.00 | AY61: 0.00 | BG61: 0.00
A62: 1.08.06 | B62: Mant. y rep. de equipo de comunicación | C62: 0.00 | D62: 0.00 | E62: 0.00 | F62: 0.00 | G62: 0 | H62: ='CK GASTOS OSN AC MES 1'!AW$251 -> 0.00 | I62: ='CK GASTOS OSN AC MES 2'!AW$252 -> 0.00 | J62: ='CK GASTOS OSN AC MES 3'!AW$281 -> 0.00 | K62: 0.00 | L62: 0.00 | M62: =+'Cert.OSN AC'!AT281 -> 0.00 | N62: 0.00 | O62: 0.00 | P62: 0.00 | Q62: 0.00 | AS62: 0.00 | AY62: 0.00 | BG62: 0.00
A63: 1.08.07 | B63: Mant. y rep. de equipo y mob. de oficina | C63: 0.00 | D63: 0.00 | E63: 0.00 | F63: 0.00 | G63: 0 | H63: ='CK GASTOS OSN AC MES 1'!AX$251 -> 0.00 | I63: ='CK GASTOS OSN AC MES 2'!AX$252 -> 0.00 | J63: ='CK GASTOS OSN AC MES 3'!AX$281 -> 0.00 | K63: 0.00 | L63: 0.00 | M63: =+'Cert.OSN AC'!AU281 -> 0.00 | N63: 0.00 | O63: 0.00 | P63: 0.00 | Q63: 0.00 | AS63: 0.00 | AY63: 0.00 | BG63: 0.00
A64: 1.08.08 | B64: Mant. y rep. de equipo de cómputo y sistemas de información | C64: 0.00 | D64: 0.00 | E64: 0.00 | F64: 0.00 | G64: 0 | H64: ='CK GASTOS OSN AC MES 1'!AY$251 -> 0.00 | I64: ='CK GASTOS OSN AC MES 2'!AY$252 -> 0.00 | J64: ='CK GASTOS OSN AC MES 3'!AY$281 -> 0.00 | K64: 0.00 | L64: 0.00 | M64: =+'Cert.OSN AC'!AV281 -> 0.00 | N64: 0.00 | O64: 0.00 | P64: 0.00 | Q64: 0.00 | AS64: 0.00 | AY64: 0.00 | BG64: 0.00
A65: 1.08.99 | B65: Mantenimiento y reparación de otros equipos | C65: 0.00 | D65: 0.00 | E65: 0.00 | F65: 0.00 | G65: 0 | H65: ='CK GASTOS OSN AC MES 1'!AZ$251 -> 0.00 | I65: ='CK GASTOS OSN AC MES 2'!AZ$252 -> 0.00 | J65: ='CK GASTOS OSN AC MES 3'!AZ$281 -> 0.00 | K65: 0.00 | L65: 0.00 | M65: =+'Cert.OSN AC'!AW281 -> 0.00 | N65: 0.00 | O65: 0.00 | P65: 0.00 | Q65: 0.00 | AS65: 0.00 | AY65: 0.00 | BG65: 0.00
A66: 1.09.02 | B66: Impuestos sobre bienes inmuebles | C66: 0.00 | D66: 0.00 | E66: 0.00 | F66: 0.00 | G66: 0 | H66: 0.00 | I66: 0.00 | J66: 0.00 | K66: 0.00 | L66: 0.00 | N66: 0.00
A67: 1.09.99 | B67: Otros impuestos | D67: 0.00 | E67: 0.00 | F67: 0.00 | N67: 0.00
A68: 1.99.02 | B68: Multas | C68: 0.00 | D68: 0.00 | E68: 0.00 | F68: 0.00 | G68: 0 | H68: ='CK GASTOS OSN AC MES 1'!BA$251 -> 0.00 | I68: ='CK GASTOS OSN AC MES 2'!BA$252 -> 0.00 | J68: ='CK GASTOS OSN AC MES 3'!BA$281 -> 0.00 | K68: =SUM(H68:J68) -> 0.00 | L68: =K68+G68 -> 0.00 | M68: =+'Cert.OSN AC'!AX281 -> 0.00 | N68: 0.00 | O68: =F68-L68 -> 0.00 | P68: =F68-M68 -> 0.00 | Q68: =IF(N68>0,(F68-L68-N68),(F68-L68+N68)) -> 0.00 | AS68: =SUM(R68:AE68) -> 0.00 | AY68: =+AT68+AU68+AV68+AW68+AX68 -> 0.00 | BG68: =SUM(AZ68:BB68) -> 0.00
A69: 1.99.99 | B69: Otros servicios no especificados | C69: 0.00 | D69: 0.00 | E69: 0.00 | F69: 0.00 | G69: 0 | H69: ='CK GASTOS OSN AC MES 1'!BB$251 -> 0.00 | I69: ='CK GASTOS OSN AC MES 2'!BB$252 -> 0.00 | J69: ='CK GASTOS OSN AC MES 3'!BB$281 -> 0.00 | K69: =SUM(H69:J69) -> 0.00 | L69: =K69+G69 -> 0.00 | M69: =+'Cert.OSN AC'!AY281 -> 0.00 | N69: 0.00 | O69: =F69-L69 -> 0.00 | P69: =F69-M69 -> 0.00 | Q69: =IF(N69>0,(F69-L69-N69),(F69-L69+N69)) -> 0.00 | AS69: =SUM(R69:AE69) -> 0.00 | AY69: =+AT69+AU69+AV69+AW69+AX69 -> 0.00 | BG69: =SUM(AZ69:BB69) -> 0.00
N70: 0.00 | O70: =F70-L70 -> 0.00 | P70: =F70-M70 -> 0.00 | Q70: =IF(N70>0,(F70-L70-N70),(F70-L70+N70)) -> 0.00
A71: 2 | B71: MATERIALES Y SUMINISTROS | C71: =SUM(C73:C92) -> 0.00 | D71: =SUM(D73:D92) -> 0.00 | E71: =SUM(E73:E92) -> 0.00 | F71: =SUM(F73:F92) -> 0.00 | H71: =SUM(H73:H92) -> 0.00 | I71: 0.00 | J71: 0.00 | K71: 0.00 | L71: 0.00 | M71: 0.00 | N71: 0.00 | O71: 0.00 | P71: 0.00 | Q71: 0.00 | R71: 0.00 | S71: 0.00 | T71: 0.00 | U71: 0.00 | V71: 0.00 | W71: 0.00 | X71: 0.00 | AA71: =SUM(AA73:AA92) -> 0.00 | AB71: =SUM(AB73:AB92) -> 0.00 | AC71: =SUM(AC73:AC92) -> 0.00 | AE71: =SUM(AE73:AE92) -> 0.00 | AF71: =SUM(AF73:AF92) -> 0.00 | AG71: =SUM(AG73:AG92) -> 0.00 | AH71: =SUM(AH73:AH92) -> 0.00 | AS71: =SUM(AS73:AS92) -> 0.00 | AT71: 0.00 | AU71: 0.00 | AV71: 0.00 | AW71: 0.00 | AX71: 0.00 | AY71: 0.00 | AZ71: 0.00 | BA71: 0.00 | BB71: 0.00 | BG71: =SUM(BG73:BG92) -> 0.00
N72: 0.00
A73: 2.01.01 | B73: Combustibles y lubricantes | C73: 0.00 | D73: =+BG73 -> 0.00 | E73: =+AS73+AY73 -> 0.00 | F73: =+C73+D73+E73 -> 0.00 | G73: 0 | H73: ='CK GASTOS OSN AC MES 1'!BC$251 -> 0.00 | I73: ='CK GASTOS OSN AC MES 2'!BC$252 -> 0.00 | J73: ='CK GASTOS OSN AC MES 3'!BC$281 -> 0.00 | K73: =SUM(H73:J73) -> 0.00 | L73: =K73+G73 -> 0.00 | M73: =+'Cert.OSN AC'!AZ281 -> 0.00 | N73: 0.00 | O73: =F74-L74 -> 0.00 | P73: =F74-M74 -> 0.00 | Q73: =IF(N73>0,(F74-L74-N73),(F74-L74+N73)) -> 0.00 | AS73: =SUM(R73:AE73) -> 0.00 | AY73: =+AT73+AU73+AV73+AW73+AX73 -> 0.00 | BG73: =SUM(AZ73:BB73) -> 0.00
A74: 2.01.02 | B74: Productos farmacéuticos y medicinales | C74: 0.00 | D74: 0.00 | E74: 0.00 | F74: 0.00 | G74: 0 | H74: ='CK GASTOS OSN AC MES 1'!BD$251 -> 0.00 | I74: ='CK GASTOS OSN AC MES 2'!BD$252 -> 0.00 | J74: ='CK GASTOS OSN AC MES 3'!BD$281 -> 0.00 | K74: 0.00 | L74: 0.00 | M74: =+'Cert.OSN AC'!BA281 -> 0.00 | N74: 0.00 | O74: 0.00 | P74: 0.00 | Q74: 0.00 | AS74: 0.00 | AY74: 0.00 | BG74: 0.00
A75: 2.01.04 | B75: Tintas, pinturas y diluyentes | C75: 0.00 | D75: 0.00 | E75: 0.00 | F75: 0.00 | G75: 0 | H75: ='CK GASTOS OSN AC MES 1'!BE$251 -> 0.00 | I75: ='CK GASTOS OSN AC MES 2'!BE$252 -> 0.00 | J75: ='CK GASTOS OSN AC MES 3'!BE$281 -> 0.00 | K75: 0.00 | L75: 0.00 | M75: =+'Cert.OSN AC'!BB281 -> 0.00 | N75: 0.00 | O75: 0.00 | P75: 0.00 | Q75: 0.00 | AS75: 0.00 | AY75: 0.00 | BG75: 0.00
A76: 2.01.99 | B76: Otros productos químicos | C76: 0.00 | D76: 0.00 | E76: 0.00 | F76: 0.00 | G76: 0 | H76: ='CK GASTOS OSN AC MES 1'!BF$251 -> 0.00 | I76: ='CK GASTOS OSN AC MES 2'!BF$252 -> 0.00 | J76: ='CK GASTOS OSN AC MES 3'!BF$281 -> 0.00 | K76: 0.00 | L76: 0.00 | M76: =+'Cert.OSN AC'!BC281 -> 0.00 | N76: 0.00 | O76: 0.00 | P76: 0.00 | Q76: 0.00 | AS76: 0.00 | AY76: 0.00 | BG76: 0.00
A77: 2.02.03 | B77: Alimentos y bebidas | C77: 0.00 | D77: 0.00 | E77: 0.00 | F77: 0.00 | G77: 0 | H77: ='CK GASTOS OSN AC MES 1'!BG$251 -> 0.00 | I77: ='CK GASTOS OSN AC MES 2'!BG$252 -> 0.00 | J77: ='CK GASTOS OSN AC MES 3'!BG$281 -> 0.00 | K77: 0.00 | L77: 0.00 | M77: =+'Cert.OSN AC'!BD281 -> 0.00 | N77: =IF(M77>0,(L77-M77),0) -> 0.00 | O77: 0.00 | P77: 0.00 | Q77: 0.00 | AS77: 0.00 | AY77: 0.00 | BG77: 0.00
A78: 2.03.01 | B78: Materiales y productos metálicos | C78: 0.00 | D78: 0.00 | E78: 0.00 | F78: 0.00 | G78: 0 | H78: ='CK GASTOS OSN AC MES 1'!BH$251 -> 0.00 | I78: ='CK GASTOS OSN AC MES 2'!BH$252 -> 0.00 | J78: ='CK GASTOS OSN AC MES 3'!BH$281 -> 0.00 | K78: 0.00 | L78: 0.00 | M78: =+'Cert.OSN AC'!BE281 -> 0.00 | N78: 0.00 | O78: 0.00 | P78: 0.00 | Q78: 0.00 | AS78: 0.00 | AY78: 0.00 | BG78: 0.00
A79: 2.03.03 | B79: Madera y sus derivados | C79: 0.00 | D79: 0.00 | E79: 0.00 | F79: 0.00 | G79: 0 | H79: ='CK GASTOS OSN AC MES 1'!BI$251 -> 0.00 | I79: ='CK GASTOS OSN AC MES 2'!BI$252 -> 0.00 | J79: ='CK GASTOS OSN AC MES 3'!BI$281 -> 0.00 | K79: 0.00 | L79: 0.00 | M79: =+'Cert.OSN AC'!BF281 -> 0.00 | N79: 0.00 | O79: 0.00 | P79: 0.00 | Q79: 0.00 | AS79: 0.00 | AY79: 0.00 | BG79: 0.00
A80: 2.03.04 | B80: Materiales y prod. eléct., telef. y de cómputo | C80: 0.00 | D80: 0.00 | E80: 0.00 | F80: 0.00 | G80: 0 | H80: ='CK GASTOS OSN AC MES 1'!BJ$251 -> 0.00 | I80: ='CK GASTOS OSN AC MES 2'!BJ$252 -> 0.00 | J80: ='CK GASTOS OSN AC MES 3'!BJ$281 -> 0.00 | K80: 0.00 | L80: 0.00 | M80: =+'Cert.OSN AC'!BG281 -> 0.00 | N80: 0.00 | O80: 0.00 | P80: 0.00 | Q80: 0.00 | AS80: 0.00 | AY80: 0.00 | BG80: 0.00
A81: 2.03.05 | B81: Materiales y productos de vidrio | C81: 0.00 | D81: 0.00 | E81: 0.00 | F81: 0.00 | G81: 0 | H81: ='CK GASTOS OSN AC MES 1'!BK$251 -> 0.00 | I81: ='CK GASTOS OSN AC MES 2'!BK$252 -> 0.00 | J81: ='CK GASTOS OSN AC MES 3'!BK$281 -> 0.00 | K81: 0.00 | L81: 0.00 | M81: =+'Cert.OSN AC'!BH281 -> 0.00 | N81: 0.00 | O81: 0.00 | P81: 0.00 | Q81: 0.00 | AS81: 0.00 | AY81: 0.00 | BG81: 0.00
A82: 2.03.06 | B82: Materiales y productos de plástico | C82: 0.00 | D82: 0.00 | E82: 0.00 | F82: 0.00 | G82: 0 | H82: ='CK GASTOS OSN AC MES 1'!BL$251 -> 0.00 | I82: ='CK GASTOS OSN AC MES 2'!BL$252 -> 0.00 | J82: ='CK GASTOS OSN AC MES 3'!BL$281 -> 0.00 | K82: 0.00 | L82: 0.00 | M82: =+'Cert.OSN AC'!BI281 -> 0.00 | N82: 0.00 | O82: 0.00 | P82: 0.00 | Q82: 0.00 | AS82: 0.00 | AY82: 0.00 | BG82: 0.00
A83: 2.03.99 | B83: Otros mat. y productos de uso en construcción | C83: 0.00 | D83: 0.00 | E83: 0.00 | F83: 0.00 | G83: 0 | H83: ='CK GASTOS OSN AC MES 1'!BM$251 -> 0.00 | I83: ='CK GASTOS OSN AC MES 2'!BM$252 -> 0.00 | J83: ='CK GASTOS OSN AC MES 3'!BM$281 -> 0.00 | K83: 0.00 | L83: 0.00 | M83: =+'Cert.OSN AC'!BJ281 -> 0.00 | N83: 0.00 | O83: 0.00 | P83: 0.00 | Q83: 0.00 | AS83: 0.00 | AY83: 0.00 | BG83: 0.00
A84: 2.04.01 | B84: Herramientas e instrumentos | C84: 0.00 | D84: 0.00 | E84: 0.00 | F84: 0.00 | G84: 0 | H84: ='CK GASTOS OSN AC MES 1'!BN$251 -> 0.00 | I84: ='CK GASTOS OSN AC MES 2'!BN$252 -> 0.00 | J84: ='CK GASTOS OSN AC MES 3'!BN$281 -> 0.00 | K84: 0.00 | L84: 0.00 | M84: =+'Cert.OSN AC'!BK281 -> 0.00 | N84: 0.00 | O84: 0.00 | P84: 0.00 | Q84: 0.00 | AS84: 0.00 | AY84: 0.00 | BG84: 0.00
A85: 2.04.02 | B85: Repuestos y accesorios | C85: 0.00 | D85: 0.00 | E85: 0.00 | F85: 0.00 | G85: 0 | H85: ='CK GASTOS OSN AC MES 1'!BO$251 -> 0.00 | I85: ='CK GASTOS OSN AC MES 2'!BO$252 -> 0.00 | J85: ='CK GASTOS OSN AC MES 3'!BO$281 -> 0.00 | K85: 0.00 | L85: 0.00 | M85: =+'Cert.OSN AC'!BL281 -> 0.00 | N85: 0.00 | O85: 0.00 | P85: 0.00 | Q85: 0.00 | AS85: 0.00 | AY85: 0.00 | BG85: 0.00
A86: 2.99.01 | B86: Útiles y materiales de oficina y cómputo | C86: 0.00 | D86: 0.00 | E86: 0.00 | F86: 0.00 | G86: 0 | H86: ='CK GASTOS OSN AC MES 1'!BP$251 -> 0.00 | I86: ='CK GASTOS OSN AC MES 2'!BP$252 -> 0.00 | J86: ='CK GASTOS OSN AC MES 3'!BP$281 -> 0.00 | K86: 0.00 | L86: 0.00 | M86: =+'Cert.OSN AC'!BM281 -> 0.00 | N86: 0.00 | O86: 0.00 | P86: 0.00 | Q86: 0.00 | AS86: 0.00 | AY86: 0.00 | BG86: 0.00
A87: 2.99.03 | B87: Productos de papel y cartón e impresos | C87: 0.00 | D87: 0.00 | E87: 0.00 | F87: 0.00 | G87: 0 | H87: ='CK GASTOS OSN AC MES 1'!BQ$251 -> 0.00 | I87: ='CK GASTOS OSN AC MES 2'!BQ$252 -> 0.00 | J87: ='CK GASTOS OSN AC MES 3'!BQ$281 -> 0.00 | K87: 0.00 | L87: 0.00 | M87: =+'Cert.OSN AC'!BN281 -> 0.00 | N87: 0.00 | O87: 0.00 | P87: 0.00 | Q87: 0.00 | AS87: 0.00 | AY87: 0.00 | BG87: 0.00
A88: 2.99.04 | B88: Textiles y vestuario | C88: 0.00 | D88: 0.00 | E88: 0.00 | F88: 0.00 | G88: 0 | H88: ='CK GASTOS OSN AC MES 1'!BR$251 -> 0.00 | I88: ='CK GASTOS OSN AC MES 2'!BR$252 -> 0.00 | J88: ='CK GASTOS OSN AC MES 3'!BR$281 -> 0.00 | K88: 0.00 | L88: 0.00 | M88: =+'Cert.OSN AC'!BO281 -> 0.00 | N88: 0.00 | O88: 0.00 | P88: 0.00 | Q88: 0.00 | AS88: 0.00 | AY88: 0.00 | BG88: 0.00
A89: 2.99.05 | B89: Útiles y materiales de limpieza | C89: 0.00 | D89: 0.00 | E89: 0.00 | F89: 0.00 | G89: 0 | H89: ='CK GASTOS OSN AC MES 1'!BS$251 -> 0.00 | I89: ='CK GASTOS OSN AC MES 2'!BS$252 -> 0.00 | J89: ='CK GASTOS OSN AC MES 3'!BS$281 -> 0.00 | K89: 0.00 | L89: 0.00 | M89: =+'Cert.OSN AC'!BP281 -> 0.00 | N89: 0.00 | O89: 0.00 | P89: 0.00 | Q89: 0.00 | AS89: 0.00 | AY89: 0.00 | BG89: 0.00
A90: 2.99.06 | B90: Útiles y materiales de resguardo y seguridad | C90: 0.00 | D90: 0.00 | E90: 0.00 | F90: 0.00 | G90: 0 | H90: ='CK GASTOS OSN AC MES 1'!BT$251 -> 0.00 | I90: ='CK GASTOS OSN AC MES 2'!BT$252 -> 0.00 | J90: ='CK GASTOS OSN AC MES 3'!BT$281 -> 0.00 | K90: 0.00 | L90: 0.00 | M90: =+'Cert.OSN AC'!BQ281 -> 0.00 | N90: 0.00 | O90: 0.00 | P90: 0.00 | Q90: 0.00 | AS90: 0.00 | AY90: 0.00 | BG90: 0.00
A91: 2.99.07 | B91: Útiles y materiales de cocina y comedor | C91: 0.00 | D91: 0.00 | E91: 0.00 | F91: 0.00 | G91: 0 | H91: ='CK GASTOS OSN AC MES 1'!BU$251 -> 0.00 | I91: ='CK GASTOS OSN AC MES 2'!BU$252 -> 0.00 | J91: ='CK GASTOS OSN AC MES 3'!BU$281 -> 0.00 | K91: 0.00 | L91: 0.00 | M91: =+'Cert.OSN AC'!BR281 -> 0.00 | N91: 0.00 | O91: 0.00 | P91: 0.00 | Q91: 0.00 | AS91: 0.00 | AY91: 0.00 | BG91: 0.00
A92: 2.99.99 | B92: Otros útiles, materiales y suministros | C92: 0.00 | D92: 0.00 | E92: 0.00 | F92: 0.00 | G92: 0 | H92: ='CK GASTOS OSN AC MES 1'!BV$251 -> 0.00 | I92: ='CK GASTOS OSN AC MES 2'!BV$252 -> 0.00 | J92: ='CK GASTOS OSN AC MES 3'!BV$281 -> 0.00 | K92: 0.00 | L92: 0.00 | M92: =+'Cert.OSN AC'!BS281 -> 0.00 | N92: 0.00 | O92: 0.00 | P92: 0.00 | Q92: 0.00 | AS92: 0.00 | AY92: 0.00 | BG92: 0.00
N93: 0.00
A94: 3 | B94: INTERESES Y COMISIONES | C94: =SUM(C96:C96) -> 0.00 | D94: =SUM(D96:D96) -> 0.00 | E94: =SUM(E96:E96) -> 0.00 | F94: =SUM(F96:F96) -> 0.00 | H94: =SUM(H96:H96) -> 0.00 | I94: 0.00 | J94: 0.00 | K94: 0.00 | L94: 0.00 | M94: 0.00 | N94: 0.00 | O94: 0.00 | P94: 0.00 | Q94: 0.00 | R94: 0.00 | S94: 0.00 | T94: 0.00 | U94: 0.00 | V94: 0.00 | W94: 0.00 | X94: 0.00 | AA94: =SUM(AA96:AA96) -> 0.00 | AB94: =SUM(AB96:AB96) -> 0.00 | AC94: =SUM(AC96:AC96) -> 0.00 | AE94: =SUM(AE96:AE96) -> 0.00 | AF94: =SUM(AF96:AF96) -> 0.00 | AG94: =SUM(AG96:AG96) -> 0.00 | AH94: =SUM(AH96:AH96) -> 0.00 | AS94: =SUM(AS96:AS96) -> 0.00 | AT94: 0.00 | AU94: 0.00 | AV94: 0.00 | AW94: 0.00 | AX94: 0.00 | AY94: 0.00 | AZ94: 0.00 | BA94: 0.00 | BB94: 0.00 | BG94: =SUM(BG96:BG96) -> 0.00
N95: 0.00
A96: 3.04.05 | B96: Diferencias por tipo de cambio | C96: 0.00 | D96: =+BG96 -> 0.00 | E96: =+AS96+AY96 -> 0.00 | F96: =+C96+D96+E96 -> 0.00 | H96: ='CK GASTOS OSN AC MES 1'!BW251 -> 0.00 | I96: ='CK GASTOS OSN AC MES 2'!BW$252 -> 0.00 | J96: ='CK GASTOS OSN AC MES 3'!BW$281 -> 0.00 | K96: 0.00 | L96: =K96+G96 -> 0.00 | M96: =+'Cert.OSN AC'!BT281 -> 0.00 | N96: 0.00 | O96: =F97-L97 -> 0.00 | P96: =F97-M97 -> 0.00 | Q96: =IF(N96>0,(F97-L97-N96),(F97-L97+N96)) -> 0.00 | AS96: =SUM(R96:AE96) -> 0.00 | AY96: =+AT96+AU96+AV96+AW96+AX96 -> 0.00 | BG96: =SUM(AZ96:BB96) -> 0.00
N97: 0.00 | Q97: =+Q107/1000000 -> 0.00
A98: 5 | B98: BIENES DURADEROS | C98: =SUM(C100:C110) -> 0.00 | D98: =SUM(D100:D110) -> 0.00 | E98: =SUM(E100:E110) -> 0.00 | F98: =SUM(F100:F110) -> 0.00 | G98: =SUM(G101:G110) -> 0 | H98: =SUM(H101:H110) -> 0.00 | I98: =SUM(I101:I109) -> 0.00 | J98: =SUM(J101:J109) -> 0.00 | K98: =SUM(K101:K110) -> 0.00 | L98: =SUM(L101:L110) -> 0.00 | M98: =SUM(M100:M110) -> 0.00 | N98: 0.00 | O98: 0.00 | P98: 0.00 | Q98: 0.00 | R98: 0.00 | S98: 0.00 | T98: 0.00 | U98: 0.00 | V98: 0.00 | W98: 0.00 | X98: 0.00 | Y98: 0.00 | AA98: =SUM(AA100:AA110) -> 0.00 | AB98: =SUM(AB100:AB110) -> 0.00 | AC98: =SUM(AC100:AC110) -> 0.00 | AE98: =SUM(AE100:AE110) -> 0.00 | AF98: =SUM(AF100:AF110) -> 0.00 | AG98: =SUM(AG100:AG110) -> 0.00 | AH98: =SUM(AH100:AH110) -> 0.00 | AS98: =SUM(AS100:AS110) -> 0.00 | AT98: 0.00 | AU98: 0.00 | AV98: 0.00 | AW98: 0.00 | AX98: 0.00 | AY98: 0.00 | AZ98: 0.00 | BA98: 0.00 | BB98: 0.00 | BG98: =SUM(BG100:BG110) -> 0.00
N99: 0.00
A100: 5.01.01 | B100: Maquinaria y equipo para la produccion | C100: 0.00 | D100: =+BG100 -> 0.00 | E100: =+AS100+AY100 -> 0.00 | F100: =+C100+D100+E100 -> 0.00 | H100: ='CK GASTOS OSN AC MES 1'!BX251 -> 0.00 | I100: ='CK GASTOS OSN AC MES 2'!BX252 -> 0.00 | J100: ='CK GASTOS OSN AC MES 3'!BX281 -> 0.00 | K100: =SUM(H100:J100) -> 0.00 | L100: =K100+G100 -> 0.00 | M100: =+'Cert.OSN AC'!BU281 -> 0.00 | N100: 0.00 | O100: =F100-L100 -> 0.00 | P100: =F100-M100 -> 0.00 | Q100: =IF(N100>0,(F100-L100-N100),(F100-L100+N100)) -> 0.00 | T100: 0.00 | AY100: =+AT100+AU100+AV100+AW100+AX100 -> 0.00 | BG100: =SUM(AZ100:BB100) -> 0.00
A101: 5.01.02 | B101: Equipo de transporte | C101: 0.00 | D101: 0.00 | E101: 0.00 | F101: 0.00 | H101: ='CK GASTOS OSN AC MES 1'!BY251 -> 0.00 | I101: ='CK GASTOS OSN AC MES 2'!BY252 -> 0.00 | J101: ='CK GASTOS OSN AC MES 3'!BY281 -> 0.00 | K101: 0.00 | L101: 0.00 | M101: =+'Cert.OSN AC'!BV281 -> 0.00 | N101: 0.00 | O101: 0.00 | P101: 0.00 | Q101: 0.00 | AS101: =SUM(R101:AE101) -> 0.00 | AY101: 0.00 | BG101: 0.00
A102: 5.01.03 | B102: Equipo de comunicación | C102: 0.00 | D102: 0.00 | E102: 0.00 | F102: 0.00 | H102: ='CK GASTOS OSN AC MES 1'!BZ251 -> 0.00 | I102: ='CK GASTOS OSN AC MES 2'!BZ252 -> 0.00 | J102: ='CK GASTOS OSN AC MES 3'!BZ281 -> 0.00 | K102: 0.00 | L102: 0.00 | M102: =+'Cert.OSN AC'!BW281 -> 0.00 | N102: 0.00 | O102: 0.00 | P102: 0.00 | Q102: 0.00 | AS102: 0.00 | AY102: 0.00 | BG102: 0.00
A103: 5.01.04 | B103: Equipo y mobiliario de oficina | C103: 0.00 | D103: 0.00 | E103: 0.00 | F103: 0.00 | H103: ='CK GASTOS OSN AC MES 1'!CA251 -> 0.00 | I103: ='CK GASTOS OSN AC MES 2'!CA252 -> 0.00 | J103: ='CK GASTOS OSN AC MES 3'!CA281 -> 0.00 | K103: 0.00 | L103: 0.00 | M103: =+'Cert.OSN AC'!BX281 -> 0.00 | N103: 0.00 | O103: 0.00 | P103: 0.00 | Q103: 0.00 | AS103: 0.00 | AY103: 0.00 | BG103: 0.00
A104: 5.01.05 | B104: Equipo y programas de cómputo | C104: 0.00 | D104: 0.00 | E104: 0.00 | F104: 0.00 | H104: ='CK GASTOS OSN AC MES 1'!CB$251 -> 0.00 | I104: ='CK GASTOS OSN AC MES 2'!CB$252 -> 0.00 | J104: ='CK GASTOS OSN AC MES 3'!CB$281 -> 0.00 | K104: 0.00 | L104: 0.00 | M104: =+'Cert.OSN AC'!BY281 -> 0.00 | N104: 0.00 | O104: 0.00 | P104: 0.00 | Q104: 0.00 | AS104: 0.00 | AY104: 0.00 | BG104: 0.00
A105: 5.01.07 | B105: Equipo y mob.educ.,deportivo y recreativo | C105: 0.00 | D105: 0.00 | E105: 0.00 | F105: 0.00 | H105: ='CK GASTOS OSN AC MES 1'!CC$251 -> 0.00 | I105: ='CK GASTOS OSN AC MES 2'!CC$252 -> 0.00 | J105: ='CK GASTOS OSN AC MES 3'!CC$281 -> 0.00 | K105: 0.00 | L105: 0.00 | M105: =+'Cert.OSN AC'!BZ281 -> 0.00 | N105: 0.00 | O105: 0.00 | P105: 0.00 | Q105: 0.00 | AS105: 0.00 | AY105: 0.00 | BG105: 0.00
A106: 5.01.99 | B106: Maquinaria y equipo diverso | C106: 0.00 | D106: 0.00 | E106: 0.00 | F106: 0.00 | H106: ='CK GASTOS OSN AC MES 1'!CD$251 -> 0.00 | I106: ='CK GASTOS OSN AC MES 2'!CD$252 -> 0.00 | J106: ='CK GASTOS OSN AC MES 3'!CD$281 -> 0.00 | K106: 0.00 | L106: 0.00 | M106: =+'Cert.OSN AC'!CA281 -> 0.00 | N106: 0.00 | O106: 0.00 | P106: 0.00 | Q106: 0.00 | AS106: 0.00 | AY106: 0.00 | BG106: 0.00
A107: 5.02.01 | B107: Edificios | C107: 0.00 | D107: 0.00 | E107: 0.00 | F107: 0.00 | H107: ='CK GASTOS OSN AC MES 1'!CE$251 -> 0.00 | I107: ='CK GASTOS OSN AC MES 2'!CE$252 -> 0.00 | J107: ='CK GASTOS OSN AC MES 3'!CE$281 -> 0.00 | K107: 0.00 | L107: 0.00 | M107: =+'Cert.OSN AC'!CB281 -> 0.00 | N107: 0.00 | O107: 0.00 | P107: 0.00 | Q107: 0.00 | AS107: 0.00 | AY107: 0.00 | BG107: 0.00
A108: 5.02.99 | B108: Otras construcciones adiciones y mejoras | C108: 0.00 | D108: 0.00 | E108: 0.00 | F108: 0.00 | H108: ='CK GASTOS OSN AC MES 1'!CF$251 -> 0.00 | I108: ='CK GASTOS OSN AC MES 2'!CF$252 -> 0.00 | J108: ='CK GASTOS OSN AC MES 3'!CF$281 -> 0.00 | K108: 0.00 | L108: 0.00 | M108: =+'Cert.OSN AC'!CC281 -> 0.00 | N108: 0.00 | O108: 0.00 | P108: 0.00 | Q108: 0.00 | AS108: 0.00 | AY108: 0.00 | BG108: 0.00
A109: 5.99.03 | B109: Bienes intangibles | C109: 0.00 | D109: 0.00 | E109: 0.00 | F109: 0.00 | H109: ='CK GASTOS OSN AC MES 1'!CG$251 -> 0.00 | I109: ='CK GASTOS OSN AC MES 2'!CG$252 -> 0.00 | J109: ='CK GASTOS OSN AC MES 3'!CG$281 -> 0.00 | K109: 0.00 | L109: 0.00 | M109: =+'Cert.OSN AC'!CD281 -> 0.00 | N109: 0.00 | O109: 0.00 | P109: 0.00 | Q109: 0.00 | AS109: 0.00 | AY109: 0.00 | BG109: 0.00
A110: 5.99.99 | B110: Otros bienes duraderos | C110: 0.00 | D110: 0.00 | E110: 0.00 | F110: 0.00 | H110: ='CK GASTOS OSN AC MES 1'!CH$251 -> 0.00 | I110: ='CK GASTOS OSN AC MES 2'!CH$252 -> 0.00 | J110: ='CK GASTOS OSN AC MES 3'!CH$281 -> 0.00 | K110: 0.00 | L110: 0.00 | M110: =+'Cert.OSN AC'!CE281 -> 0.00 | N110: 0.00 | O110: 0.00 | P110: 0.00 | Q110: 0.00 | AS110: 0.00 | AY110: 0.00 | BG110: 0.00
A112: 6 | B112: TRANSFERENCIAS CORRIENTES | C112: =SUM(C114:C123) -> 6,241,542.00 | D112: =SUM(D114:D123) -> 0.00 | E112: =SUM(E114:E123) -> 0.00 | F112: 6,241,542.00 | G112: 1,236,918.91 | H112: 182,578.60 | I112: 448,590.27 | J112: 690,776.38 | K112: 1,321,945.25 | L112: 2,558,864.16 | M112: =SUM(M114:M120) -> 0.00 | N112: =SUM(N114:N122) -> 0.00 | O112: =SUM(O114:O123) -> 3,682,677.84 | P112: =SUM(P114:P123) -> 6,241,542.00 | Q112: =SUM(Q114:Q123) -> 3,682,677.84 | R112: =SUM(R114:R120) -> 0.00 | S112: =SUM(S114:S123) -> 0.00 | T112: =SUM(T114:T120) -> 0.00 | U112: 0.00 | V112: 0.00 | W112: 0.00 | X112: 0.00 | Y112: 0.00 | AA112: =SUM(AA114:AA120) -> 0.00 | AB112: =SUM(AB114:AB120) -> 0.00 | AC112: =SUM(AC114:AC120) -> 0.00 | AE112: =SUM(AE114:AE123) -> 0.00 | AF112: =SUM(AF114:AF120) -> 0.00 | AG112: =SUM(AG114:AG120) -> 0.00 | AH112: =SUM(AH114:AH120) -> 0.00 | AS112: =SUM(AS114:AS123) -> 0.00 | AT112: =SUM(AT114:AT120) -> 0.00 | AU112: 0.00 | AV112: 0.00 | AW112: 0.00 | AX112: 0.00 | AY112: 0.00 | AZ112: 0.00 | BA112: 0.00 | BB112: 0.00 | BG112: =SUM(BG114:BG120) -> 0.00
A114: 6.01.02 | B114: Transferencias corrientes a órganos desconcentrados | D114: =+BG114 -> 0.00 | E114: =+AS114+AY114 -> 0.00 | F114: =+C114+D114+E114 -> 0.00 | G114: 0 | H114: =+'CK GASTOS OSN AC MES 1'!CI251 -> 0.00 | I114: =+'CK GASTOS OSN AC MES 2'!CI252 -> 0.00 | J114: =+'CK GASTOS OSN AC MES 3'!CI281 -> 0.00 | K114: =SUM(H114:J114) -> 0.00 | L114: =K114+G114 -> 0.00 | M114: =+'Cert.OSN AC'!CF281 -> 0.00 | N114: =IF(M114>0,(L114-M114),0) -> 0.00 | O114: =F114-L114 -> 0.00 | P114: =F114-M114 -> 0.00 | Q114: =IF(N114>0,(F114-L114-N114),(F114-L114+N114)) -> 0.00 | AS114: =SUM(R114:AI114) -> 0.00 | AY114: =+AT114+AU114+AV114+AW114+AX114 -> 0.00 | BG114: =SUM(AZ114:BB114) -> 0.00
A115: 6.01.03 (200) | B115: Transferencias corrientes a Instituciones Descentralizadas no Empresariales | C115: 5,125,396.00 | D115: =+BG115 -> 0.00 | E115: =+AS115+AY115 -> 0.00 | F115: 5,125,396.00 | G115: 869,511.08 | H115: =+'CK GASTOS OSN AC MES 1'!CJ251 -> 316,482.00 | I115: =+'CK GASTOS OSN AC MES 2'!CJ252 -> 325,680.90 | J115: =+'CK GASTOS OSN AC MES 3'!CJ281 -> 457,213.31 | K115: =SUM(H115:J115) -> 1,099,376.21 | L115: =K115+G115 -> 1,968,887.29 | M115: =+'Cert.OSN AC'!CF282 -> 0.00 | N115: =IF(M115>0,(L115-M115),0) -> 0.00 | O115: =F115-L115 -> 3,156,508.71 | P115: =F115-M115 -> 5,125,396.00 | Q115: =IF(N115>0,(F115-L115-N115),(F115-L115+N115)) -> 3,156,508.71
A116: 6.01.03 (202) | B116: Transferencias corrientes a Instituciones Descentralizadas no Empresariales | C116: 816,146.00 | D116: 0.00 | E116: 0.00 | F116: 816,146.00 | G116: 138,457.18 | H116: =+'CK GASTOS OSN AC MES 1'!CK251 -> 50,395.00 | I116: =+'CK GASTOS OSN AC MES 2'!CK252 -> 51,860.02 | J116: =+'CK GASTOS OSN AC MES 3'!CK281 -> 72,804.67 | K116: 175,059.69 | L116: 313,516.87 | M116: =+'Cert.OSN AC'!CF283 -> 0.00 | N116: =IF(M116>0,(L116-M116),0) -> 0.00 | O116: =F116-L116 -> 502,629.13 | P116: =F116-M116 -> 816,146.00 | Q116: =IF(N116>0,(F116-L116-N116),(F116-L116+N116)) -> 502,629.13
A117: 6.02.02 | B117: Becas a terceras personas | D117: 0.00 | E117: 0.00 | F117: 0.00 | G117: 0 | H117: 0.00 | K117: 0.00 | L117: 0.00 | M117: =+'Cert.OSN AC'!CF284 -> 0.00 | N117: =IF(M117>0,(L117-M117),0) -> 0.00 | O117: =F117-L117 -> 0.00 | P117: =F117-M117 -> 0.00 | Q117: =IF(N117>0,(F117-L117-N117),(F117-L117+N117)) -> 0.00
A118: 6.02.99 | B118: Otras Transferencias a personas | D118: 0.00 | E118: 0.00 | F118: 0.00 | G118: 0 | H118: =+'CK GASTOS OSN AC MES 1'!CL251 -> 0.00 | I118: =+'CK GASTOS OSN AC MES 2'!CL252 -> 0.00 | J118: =+'CK GASTOS OSN AC MES 3'!CL281 -> 0.00 | K118: 0.00 | L118: 0.00 | M118: =+'Cert.OSN AC'!CF285 -> 0.00 | N118: =IF(M118>0,(L118-M118),0) -> 0.00 | O118: =F118-L118 -> 0.00 | P118: =F118-M118 -> 0.00 | Q118: =IF(N118>0,(F118-L118-N118),(F118-L118+N118)) -> 0.00 | AS118: 0.00 | AY118: =+AT118+AU118+AV118+AW118+AX118 -> 0.00 | BG118: =SUM(AZ118:BB118) -> 0.00
A119: 6.03.01 | B119: Prestaciones legales | D119: 0.00 | E119: 0.00 | F119: 0.00 | G119: 0 | H119: =+'CK GASTOS OSN AC MES 1'!CM251 -> 0.00 | I119: =+'CK GASTOS OSN AC MES 2'!CM252 -> 0.00 | J119: =+'CK GASTOS OSN AC MES 3'!CM281 -> 0.00 | K119: 0.00 | L119: 0.00 | M119: =+'Cert.OSN AC'!CF286 -> 0.00 | N119: =IF(M119>0,(L119-M119),0) -> 0.00 | O119: =F119-L119 -> 0.00 | P119: =F119-M119 -> 0.00 | Q119: =IF(N119>0,(F119-L119-N119),(F119-L119+N119)) -> 0.00 | AS119: 0.00
A120: 6.03.99 | B120: Otras prestaciones | C120: 300,000.00 | D120: 0.00 | E120: 0.00 | F120: 300,000.00 | G120: 228,950.65 | H120: =+'CK GASTOS OSN AC MES 1'!CN251 -> -184,298.40 | I120: =+'CK GASTOS OSN AC MES 2'!CN252 -> 71,049.35 | J120: =+'CK GASTOS OSN AC MES 3'!CN281 -> 160,758.40 | K120: 47,509.35 | L120: 276,460.00 | M120: =+'Cert.OSN AC'!CF284 -> 0.00 | N120: 0.00 | O120: 23,540.00 | P120: 300,000.00 | Q120: 23,540.00 | AS120: 0.00 | AY120: =+AT120+AU120+AV120+AW120+AX120 -> 0.00 | BG120: =SUM(AZ120:BB120) -> 0.00
A121: 6.04.01 | B121: Transferencias corrientes asociaciones | D121: 0.00 | E121: 0.00 | F121: 0.00 | G121: 0 | H121: =+'CK GASTOS OSN AC MES 1'!CO251 -> 0.00 | I121: =+'CK GASTOS OSN AC MES 2'!CO252 -> 0.00 | J121: =+'CK GASTOS OSN AC MES 3'!CO281 -> 0.00 | K121: =SUM(H121:J121) -> 0.00 | L121: =K121+G121 -> 0.00 | M121: =+'Cert.OSN AC'!CJ281 -> 0.00 | N121: 0.00 | O121: 0.00 | P121: 0.00 | Q121: 0.00 | AS121: 0.00
A122: 6.06.01 | B122: Indemnizaciones | D122: 0.00 | E122: 0.00 | F122: 0.00 | G122: 0 | H122: =+'CK GASTOS OSN AC MES 1'!CP251 -> 0.00 | I122: =+'CK GASTOS OSN AC MES 2'!CP252 -> 0.00 | J122: =+'CK GASTOS OSN AC MES 3'!CP281 -> 0.00 | K122: =SUM(H122:J122) -> 0.00 | L122: =K122+G122 -> 0.00 | M122: =+'Cert.OSN AC'!CF286 -> 0.00 | N122: 0.00 | O122: 0.00 | P122: 0.00 | Q122: 0.00 | AS122: 0.00 | AY122: =+AT122+AU122+AV122+AW122+AX122 -> 0.00 | BG122: =SUM(AZ122:BB122) -> 0.00
A123: 6.07.01 | B123: Transferencias corrientes a organismos internacionales | D123: 0.00 | E123: 0.00 | F123: 0.00 | G123: 0 | H123: =+'CK GASTOS OSN AC MES 1'!CQ251 -> 0.00 | I123: =+'CK GASTOS OSN AC MES 2'!CQ252 -> 0.00 | J123: =+'CK GASTOS OSN AC MES 3'!CQ281 -> 0.00 | K123: =SUM(H123:J123) -> 0.00 | L123: =K123+G123 -> 0.00 | M123: =+'Cert.OSN AC'!CF287 -> 0.00 | N123: 0.00 | O123: 0.00 | P123: 0.00 | Q123: 0.00 | AS123: 0.00
A125: 7 | B125: TRANSFERENCIAS DE CAPITAL | C125: =+C127 -> 0.00 | D125: 0.00 | E125: 0.00 | F125: 0.00 | G125: 0 | H125: 0.00 | I125: 0.00 | J125: 0.00 | K125: 0.00 | L125: 0.00 | M125: 0.00 | N125: 0.00 | O125: 0.00 | P125: 0.00 | Q125: 0.00 | AA125: =+AA127 -> 0.00 | AB125: =+AB127 -> 0.00 | AS125: =+AS127 -> 0.00 | AT125: =+AT127 -> 0.00
A127: 7.05.01 | B127: Transferencias de capital a organismos internacionales | C127: 0.00 | D127: =+BG127 -> 0.00 | E127: =+AS127 -> 0.00 | F127: =+AT127+AZ127 -> 0.00 | G127: =+C127+E127+F127 -> 0 | AS127: =SUM(R127:AI127) -> 0.00 | AT127: =SUM(S127:AS127) -> 0.00
A129: 9 | B129: CUENTAS ESPECIALES | C129: =SUM(C131) -> 0.00 | D129: 0.00 | E129: 0.00 | F129: 0.00 | G129: 0 | H129: 0.00 | I129: 0.00 | J129: 0.00 | K129: 0.00 | L129: 0.00 | M129: 0.00 | N129: 0.00 | O129: 0.00 | P129: 0.00 | Q129: 0.00 | R129: 0.00 | S129: 0.00 | T129: 0.00 | U129: 0.00 | V129: 0.00 | W129: 0.00 | X129: 0.00 | Y129: 0.00 | Z129: 0.00 | AA129: =SUM(AA131) -> 0.00 | AB129: =SUM(AB131) -> 0.00 | AC129: =SUM(AC131) -> 0.00 | AE129: =SUM(AE131) -> 0.00 | AF129: =SUM(AF131) -> 0.00 | AG129: =SUM(AG131) -> 0.00 | AH129: =SUM(AH131) -> 0.00 | AS129: =SUM(AS131) -> 0.00 | AT129: 0.00 | AU129: 0.00 | AV129: 0.00 | AW129: 0.00 | AX129: 0.00 | AY129: 0.00 | AZ129: 0.00 | BA129: 0.00 | BB129: 0.00 | BG129: =SUM(BG131) -> 0.00
A131: 9.02.01 | B131: Sumas libres sin asignación presupuestaria | C131: 0.00 | D131: =+AY131 -> 0.00 | E131: =+AS131 -> 0.00 | F131: =+C131+D131+E131 -> 0.00 | G131: 0 | H131: ='CK GASTOS OSN AC MES 1'!CR251 -> 0.00 | I131: ='CK GASTOS OSN AC MES 2'!CR252 -> 0.00 | J131: ='CK GASTOS OSN AC MES 3'!CR281 -> 0.00 | K131: =SUM(H131:J131) -> 0.00 | L131: =K131+G131 -> 0.00 | M131: =+'Cert.OSN AC'!CK281 -> 0.00 | N131: =IF(M132>0,(L132-M132),0) -> 0.00 | O131: =F132-L132 -> 0.00 | P131: =F132-M132 -> 0.00 | Q131: =IF(N131>0,(F131-L131-N131),(F131-L131+N131)) -> 0.00 | AS131: =SUM(R131:AE131) -> 0.00 | AT131: 0.00 | AY131: =+AT131+AU131+AV131+AW131+AX131 -> 0.00 | BG131: =SUM(AZ131:BB131) -> 0.00
A133: TOTAL PRESUPUESTO EGRESOS | C133: =C129+C112+C98+C94+C71+C28+C10 -> 409,849,122.00 | D133: 0.00 | E133: 2,161,220.00 | F133: 412,010,342.00 | G133: =G129+G112+G98+G94+G71+G28+G10+G125 -> 92,418,814.11 | H133: 25,264,858.55 | I133: 33,975,199.10 | J133: 28,367,929.68 | K133: 87,607,987.33 | L133: 180,026,801.44 | M133: 0.00 | N133: 0.00 | O133: 231,983,540.56 | P133: 412,010,342.00 | Q133: 231,983,540.56 | R133: 2,161,220.00 | S133: 0.00 | T133: 0.00 | U133: =U129+U112+U98+U94+U71+U28+U10 -> 0.00 | V133: 0.00 | W133: 0.00 | X133: 0.00 | Y133: 0.00 | Z133: 0.00 | AA133: =AA129+AA112+AA98+AA94+AA71+AA28+AA10 -> 0.00 | AB133: =AB129+AB112+AB98+AB94+AB71+AB28+AB10 -> 0.00 | AC133: =AC129+AC112+AC98+AC94+AC71+AC28+AC10 -> 0.00 | AE133: =AE129+AE112+AE98+AE94+AE71+AE28+AE10 -> 0.00 | AF133: =AF129+AF112+AF98+AF94+AF71+AF28+AF10 -> 0.00 | AG133: =AG129+AG112+AG98+AG94+AG71+AG28+AG10 -> 0.00 | AH133: =AH129+AH112+AH98+AH94+AH71+AH28+AH10 -> 0.00 | AS133: =AS129+AS112+AS98+AS94+AS71+AS28+AS10 -> 2,161,220.00 | AT133: 0.00 | AU133: 0.00 | AV133: 0.00 | AW133: 0.00 | AX133: 0.00 | AY133: 0.00 | AZ133: 0.00 | BA133: 0.00 | BB133: 0.00 | BC133: 0.00 | BD133: 0.00 | BE133: 0.00 | BF133: 0.00 | BG133: 0.00

Sheet TOTAL OSN (hidden)
A1: CENTRO NACIONAL DE LA MÚSICA | X1: MINISTERIO DE CULTURA JUVENTUD Y DEPORTES
A2: PRESUPUESTO ORDINARIO 2011 | X2: ORQUESTA SINFONICA NACIONAL
A3: TOTAL EGRESOS
A4: ORQUESTA SINFONICA NACIONAL
C7: P R E S U P U E S T O 2 0 1 1 | G7: ACUMULADO AL 30-09-2004 | H7: ENERO | I7: FEBRERO | J7: MARZO | K7: ESTE TRIMESTRE | L7: TOTAL | M7: ACUMULADO | N7: ENERO | O7: FEBRERO | P7: MARZO | Q7: ESTE TRIMESTRE | R7: TOTAL | S7: CERTIFICADO TOTAL | T7: COMPROMISOS | U7: DISPONIBLE SEGÚN EJECUCION | V7: DISPONIBLE SEGUN EJE CERTIFICADA | W7: DISPONIBLE CON COMPROMISOS | X7: CUADRO DE MODIFICACIONES INTERNAS | AQ7: CUADRO DE MODIFICACIONES EXTERNAS | AW7: CUADRO DE PRESUPUESTO EXTRAORDINARIO
A8: PARTIDAS Y SUBPARTIDAS | C8: PRESUPUESTO ORDINARIO | D8: PRESUPUESTO EXTRAORDINARIO #1 | E8: TOTAL MODIFICACIONES INT. - EXT. | F8: PRESUPUESTO FINAL | X8: INTERNA Nº 1 | Y8: INTERNA Nº 2 | Z8: INTERNA Nº 3 | AA8: INTERNA Nº 4 | AB8: INTERNA Nº 5 | AC8: INTERNA Nº 6 | AD8: INTERNA Nº 7 | AE8: INTERNA Nº 8 | AF8: INTERNA Nº 9 | AG8: INTERNA Nº 10 | AH8: INTERNA Nº 11 | AI8: INTERNA Nº 12 | AJ8: INTERNA Nº 14 | AK8: INTERNA Nº 15 | AL8: INTERNA Nº 16 | AM8: INTERNA Nº 17 | AN8: INTERNA Nº 18 | AO8: INTERNA Nº 19 | AP8: TOTAL MODIFICACION INTERNA | AQ8: EXTERNA Nº 01 | AR8: EXTERNA Nº 02 | AS8: EXTERNA Nº 03 | AT8: EXTERNA Nº 04 | AU8: EXTERNA Nº05 | AV8: TOTAL MODIFICACION EXTERNA | AW8: EXTRAORD Nº 01 | AX8: EXTRAORD Nº 002 | AY8: EXTRAORD Nº 003 | AZ8: TOTAL EXTRAOR
A10: 0 | B10: REMUNERACIONES | C10: =SUM(C12:C25) ->  | D10: =SUM(D12:D25) -> 0.00 | E10: =SUM(E12:E25) -> -17,282,564.00 | F10: =SUM(F12:F25) ->  | G10: =SUM(G12:G25) -> 0.00 | H10: 0.00 | I10: 0.00 | J10: 0.00 | K10: 0.00 | L10: 0.00 | M10: =SUM(M12:M25) -> 297,809,568.84 | N10: 111,284,979.30 | O10: 127,286,530.47 | P10: 100,267,098.61 | Q10: 338,838,608.38 | R10: 636,648,177.22 | S10: 2,600,731.20 | T10: 0.00 | U10: 1,028,653,471.78 | V10: 1,662,700,917.80 | W10: 1,028,653,471.78 | X10: -17,282,564.00 | Y10: 0.00 | Z10: =SUM(Z12:Z25) -> 0.00 | AA10: 0.00 | AB10: 0.00 | AC10: 0.00 | AD10: 0.00 | AE10: 0.00 | AF10: 0.00 | AG10: 0.00 | AH10: 0.00 | AJ10: 0.00 | AK10: =SUM(AK12:AK25) -> 0.00 | AM10: 0.00 | AN10: 0.00 | AO10: 0.00 | AP10: =SUM(AP12:AP25) -> -17,282,564.00 | AQ10: 0.00 | AR10: 0.00 | AS10: 0.00 | AT10: 0.00 | AU10: 0.00 | AV10: 0.00
A12: 0.01.01 | B12: Sueldos para cargos fijos | C12: 720,607,914.00 | E12: 35,145,344.00 | F12: =+C12+D12+E12 -> 755,753,258.00 | M12: 104,752,856.09 | N12: 49,233,813.75 | O12: 71,586,881.37 | P12: 49,749,687.65 | Q12: =SUM(N12:P12) -> 170,570,382.77 | R12: =SUM(Q12,M12) -> 275,323,238.86 | S12: 0.00 | T12: 0.00 | U12: 480,430,019.14 | V12: 755,753,258.00 | W12: 480,430,019.14 | X12: 39,645,344.00 | Y12: 0.00 | Z12: -4,500,000.00 | AA12: 0.00 | AB12: 0.00 | AC12: 0.00 | AD12: 0.00 | AF12: =+'OSN PD'!Z12 -> 0.00 | AG12: 0.00 | AH12: 0.00 | AJ12: =+'OSN PD'!AC12 -> 0.00 | AK12: 0.00 | AL12: 0.00 | AM12: 0.00 | AO12: 0.00 | AP12: =SUM(X12:AN12) -> 35,145,344.00 | AQ12: 0.00 | AR12: 0.00 | AS12: 0.00 | AT12: 0.00 | AU12: 0.00 | AV12: =+AQ12+AR12+AS12+AT12+AU12 -> 0.00 | AZ12: =SUM(AW12:AY12) -> 
A13: 0.01.05 | B13: Suplencias | C13: 0.00 | E13: 0.00 | F13: =+C13+D13+E13 -> 0.00 | M13: 0.00 | N13: 0.00 | O13: 0.00 | P13: 0.00 | Q13: =SUM(N13:P13) -> 0.00 | R13: =SUM(Q13,M13) -> 0.00 | S13: 0.00 | T13: 0.00 | U13: 0.00 | V13: 0.00 | W13: 0.00 | X13: 0.00 | Y13: 0.00 | Z13: 0.00 | AA13: 0.00 | AB13: 0.00 | AC13: 0.00 | AD13: 0.00 | AF13: =+'OSN PD'!Z13 -> 0.00 | AG13: 0.00 | AH13: 0.00 | AJ13: =+'OSN PD'!AC13 -> 0.00 | AK13: 0.00 | AL13: 0.00 | AM13: 0.00 | AO13: 0.00 | AP13: =SUM(X13:AN13) -> 0.00 | AQ13: 0.00 | AR13: 0.00 | AS13: 0.00 | AT13: 0.00 | AU13: 0.00 | AV13: 0.00
A14: 0.02.01 | B14: Tiempo extraordinario | C14: 2,424,000.00 | E14: 0.00 | F14: 2,424,000.00 | M14: 0.00 | N14: 27,220.00 | O14: 0.00 | P14: 21,549.15 | Q14: 48,769.15 | R14: 48,769.15 | S14: 0.00 | T14: 0.00 | U14: 2,375,230.85 | V14: 2,424,000.00 | W14: 2,375,230.85 | X14: 0.00 | Y14: 0.00 | Z14: 0.00 | AA14: 0.00 | AB14: 0.00 | AC14: 0.00 | AD14: 0.00 | AF14: =+'OSN PD'!Z14 -> 0.00 | AG14: 0.00 | AH14: 0.00 | AJ14: =+'OSN PD'!AC14 -> 0.00 | AK14: 0.00 | AL14: 0.00 | AM14: 0.00 | AO14: 0.00 | AP14: 0.00 | AQ14: 0.00 | AR14: 0.00 | AS14: 0.00 | AT14: 0.00 | AU14: 0.00 | AV14: 0.00
A15: 0.02.04 | B15: Vacaciones | E15: 0.00 | M15: 0.00 | N15: 0.00 | O15: 0.00 | P15: 0.00 | Q15: 0.00 | R15: 0.00 | S15: 0.00 | T15: 0.00 | U15: 0.00 | V15: 0.00 | W15: 0.00 | X15: 0.00 | Y15: 0.00 | Z15: 0.00 | AA15: 0.00 | AB15: 0.00 | AC15: 0.00 | AD15: 0.00 | AF15: =+'OSN PD'!Z15 -> 0.00 | AG15: 0.00 | AH15: 0.00 | AJ15: =+'OSN PD'!AC15 -> 0.00 | AK15: 0.00 | AL15: 0.00 | AM15: 0.00 | AO15: 0.00 | AP15: 0.00 | AQ15: 0.00 | AR15: 0.00 | AS15: 0.00 | AT15: 0.00 | AU15: 0.00 | AV15: 0.00
A16: 0.03.01 | B16: Retribuciòn por años servidos | C16: 234,900,000.00 | E16: -36,246,795.00 | F16: 198,653,205.00 | M16: 45,799,110.50 | N16: 17,813,767.15 | O16: 17,620,249.00 | P16: 17,095,565.75 | Q16: 52,529,581.90 | R16: 98,328,692.40 | S16: 0.00 | T16: 0.00 | U16: 127,866,931.60 | V16: 226,195,624.00 | W16: 127,866,931.60 | X16: -36,246,795.00 | Y16: 0.00 | Z16: 0.00 | AA16: 0.00 | AB16: 0.00 | AC16: 0.00 | AD16: 0.00 | AF16: =+'OSN PD'!Z16 -> 0.00 | AG16: 0.00 | AH16: 0.00 | AJ16: =+'OSN PD'!AC16 -> 0.00 | AK16: 0.00 | AL16: 0.00 | AM16: 0.00 | AO16: 0.00 | AP16: -36,246,795.00 | AQ16: 0.00 | AR16: 0.00 | AS16: 0.00 | AT16: 0.00 | AU16: 0.00 | AV16: 0.00
A17: 0.03.02 | B17: Restricciòn al ejercicio liberal de la profesiòn | C17: 87,734,749.00 | E17: -8,669,680.00 | F17: 79,065,069.00 | M17: 11,401,252.50 | N17: 7,594,341.45 | O17: 9,503,891.94 | P17: 7,202,120.75 | Q17: 24,300,354.14 | R17: 35,701,606.64 | S17: 0.00 | T17: 0.00 | U17: 66,563,684.36 | V17: 102,265,291.00 | W17: 66,563,684.36 | X17: -8,669,680.00 | Y17: 0.00 | Z17: 0.00 | AA17: 0.00 | AB17: 0.00 | AC17: 0.00 | AD17: 0.00 | AF17: =+'OSN PD'!Z17 -> 0.00 | AG17: 0.00 | AH17: 0.00 | AJ17: =+'OSN PD'!AC17 -> 0.00 | AK17: 0.00 | AL17: 0.00 | AM17: 0.00 | AO17: 0.00 | AP17: -8,669,680.00 | AQ17: 0.00 | AR17: 0.00 | AS17: 0.00 | AT17: 0.00 | AU17: 0.00 | AV17: 0.00
A18: 0.03.03 | B18: Dècimo tercer mes | C18: 150,568,793.00 | E18: 0.00 | F18: 150,568,793.00 | M18: 0.00 | N18: 490,170.60 | O18: 0.00 | P18: 2,110,560.60 | Q18: 2,600,731.20 | R18: 2,600,731.20 | S18: 2,600,731.20 | T18: 0.00 | U18: 116,569,799.80 | V18: 116,569,799.80 | W18: 116,569,799.80 | X18: 0.00 | Y18: 0.00 | Z18: 0.00 | AA18: 0.00 | AB18: 0.00 | AC18: 0.00 | AD18: 0.00 | AF18: =+'OSN PD'!Z18 -> 0.00 | AG18: 0.00 | AH18: 0.00 | AJ18: =+'OSN PD'!AC18 -> 0.00 | AK18: 0.00 | AL18: 0.00 | AM18: 0.00 | AO18: 0.00 | AP18: 0.00 | AQ18: 0.00 | AR18: 0.00 | AS18: 0.00 | AT18: 0.00 | AU18: 0.00 | AV18: 0.00 | AY18: 0.00
A19: 0.03.04 | B19: Salario escolar | C19: 90,804,343.00 | E19: -1,262,269.00 | F19: 89,542,074.00 | M19: 65,527,222.80 | N19: 13,200,509.85 | O19: 1,435,343.35 | P19: 0.00 | Q19: 14,635,853.20 | R19: 80,163,076.00 | S19: 0.00 | T19: 0.00 | U19: 7,693,451.00 | V19: 87,856,527.00 | W19: 7,693,451.00 | X19: -5,762,269.00 | Y19: 0.00 | Z19: 4,500,000.00 | AA19: 0.00 | AB19: 0.00 | AC19: 0.00 | AD19: 0.00 | AF19: =+'OSN PD'!Z19 -> 0.00 | AG19: 0.00 | AH19: 0.00 | AJ19: =+'OSN PD'!AC19 -> 0.00 | AK19: 0.00 | AL19: 0.00 | AM19: 0.00 | AO19: 0.00 | AP19: -1,262,269.00 | AQ19: 0.00 | AR19: 0.00 | AS19: 0.00 | AT19: 0.00 | AU19: 0.00 | AV19: 0.00 | AY19: 0.00
A20: 0.03.99 | B20: Otros incentivos salariales | C20: 109,353,252.00 | E20: -6,249,164.00 | F20: 103,104,088.00 | M20: 20,645,090.75 | N20: 7,975,226.45 | O20: 7,747,165.10 | P20: 7,405,544.45 | Q20: 23,127,936.00 | R20: 43,773,026.75 | S20: 0.00 | T20: 0.00 | U20: 52,091,957.25 | V20: 95,864,984.00 | W20: 52,091,957.25 | X20: -6,249,164.00 | Y20: 0.00 | Z20: 0.00 | AA20: 0.00 | AB20: 0.00 | AC20: 0.00 | AD20: 0.00 | AF20: =+'OSN PD'!Z20 -> 0.00 | AG20: 0.00 | AH20: 0.00 | AJ20: =+'OSN PD'!AC20 -> 0.00 | AK20: 0.00 | AL20: 0.00 | AM20: 0.00 | AO20: 0.00 | AP20: -6,249,164.00 | AQ20: 0.00 | AR20: 0.00 | AS20: 0.00 | AT20: 0.00 | AU20: 0.00 | AV20: 0.00 | AX20: 0.00 | AY20: 0.00 | AZ20: 0.00
A21: 0.04.01 | B21: Contribuciòn Pat.Seguro Salud CCSS | C21: 129,579,491.00 | E21: 0.00 | F21: 129,579,491.00 | M21: 23,364,379.90 | N21: 7,061,398.48 | O21: 9,175,435.10 | P21: 7,872,266.22 | Q21: 24,109,099.80 | R21: 47,473,479.70 | S21: 0.00 | T21: 0.00 | U21: 93,167,137.30 | V21: 140,640,617.00 | W21: 93,167,137.30 | X21: 0.00 | Y21: 0.00 | Z21: 0.00 | AA21: 0.00 | AB21: 0.00 | AC21: 0.00 | AD21: 0.00 | AF21: =+'OSN PD'!Z21 -> 0.00 | AG21: 0.00 | AH21: 0.00 | AJ21: =+'OSN PD'!AC21 -> 0.00 | AK21: 0.00 | AL21: 0.00 | AM21: 0.00 | AO21: 0.00 | AP21: 0.00 | AQ21: 0.00 | AR21: 0.00 | AS21: 0.00 | AT21: 0.00 | AU21: 0.00 | AV21: 0.00 | AY21: 0.00
A22: 0.04.05 | B22: Contribución Pat. BPDC | C22: 27,185,837.00 | E22: 0.00 | F22: 27,185,837.00 | M22: 1,262,942.91 | N22: 380,538.62 | O22: 495,025.59 | P22: 425,527.39 | Q22: 1,301,091.60 | R22: 2,564,034.51 | S22: 0.00 | T22: 0.00 | U22: 4,302,075.49 | V22: 6,866,110.00 | W22: 4,302,075.49 | X22: 0.00 | Y22: 0.00 | Z22: 0.00 | AA22: 0.00 | AB22: 0.00 | AC22: 0.00 | AD22: 0.00 | AF22: =+'OSN PD'!Z22 -> 0.00 | AG22: 0.00 | AH22: 0.00 | AJ22: =+'OSN PD'!AC22 -> 0.00 | AK22: 0.00 | AL22: 0.00 | AM22: 0.00 | AO22: 0.00 | AP22: 0.00 | AQ22: 0.00 | AR22: 0.00 | AS22: 0.00 | AT22: 0.00 | AU22: 0.00 | AV22: 0.00 | AY22: 0.00
A23: 0.05.01 | B23: Contribución Pat. Seguro Pensiones CCSS | C23: 58,032,903.00 | E23: 0.00 | F23: 58,032,903.00 | M23: 13,690,264.52 | N23: 4,083,142.48 | O23: 5,267,304.31 | P23: 4,554,522.54 | Q23: 13,904,969.33 | R23: 27,595,233.85 | S23: 0.00 | T23: 0.00 | U23: 44,556,976.15 | V23: 72,152,210.00 | W23: 44,556,976.15 | X23: 0.00 | Y23: 0.00 | Z23: 0.00 | AA23: 0.00 | AB23: 0.00 | AC23: 0.00 | AD23: 0.00 | AF23: =+'OSN PD'!Z23 -> 0.00 | AG23: 0.00 | AH23: 0.00 | AJ23: =+'OSN PD'!AC23 -> 0.00 | AK23: 0.00 | AL23: 0.00 | AM23: 0.00 | AO23: 0.00 | AP23: 0.00 | AQ23: 0.00 | AR23: 0.00 | AS23: 0.00 | AT23: 0.00 | AU23: 0.00 | AV23: 0.00 | AY23: 0.00
A24: 0.05.02 | B24: Aporte Pat. Régimen Obligatorio Pens.Com. | C24: 46,759,276.00 | E24: 0.00 | F24: 46,759,276.00 | M24: 7,577,641.11 | N24: 2,046,813.75 | O24: 2,492,085.37 | P24: 2,296,407.28 | Q24: 6,835,306.40 | R24: 14,412,947.51 | S24: 0.00 | T24: 0.00 | U24: 18,993,365.49 | V24: 33,406,313.00 | W24: 18,993,365.49 | X24: 0.00 | Y24: 0.00 | Z24: 0.00 | AA24: 0.00 | AB24: 0.00 | AC24: 0.00 | AD24: 0.00 | AF24: =+'OSN PD'!Z24 -> 0.00 | AG24: 0.00 | AH24: 0.00 | AJ24: =+'OSN PD'!AC24 -> 0.00 | AK24: 0.00 | AL24: 0.00 | AM24: 0.00 | AO24: 0.00 | AP24: 0.00 | AQ24: 0.00 | AR24: 0.00 | AS24: 0.00 | AT24: 0.00 | AU24: 0.00 | AV24: 0.00 | AX24: 0.00 | AY24: 0.00 | AZ24: 0.00
A25: 0.05.03 | B25: Aporte Pat. al Fondo Cap. Laboral | C25: 17,666,892.00 | E25: 0.00 | F25: 17,666,892.00 | M25: 3,788,807.76 | N25: 1,378,036.72 | O25: 1,963,149.34 | P25: 1,533,346.83 | Q25: 4,874,532.89 | R25: 8,663,340.65 | S25: 0.00 | T25: 0.00 | U25: 14,042,843.35 | V25: 22,706,184.00 | W25: 14,042,843.35 | X25: 0.00 | Y25: 0.00 | Z25: 0.00 | AA25: 0.00 | AB25: 0.00 | AC25: 0.00 | AD25: 0.00 | AF25: =+'OSN PD'!Z25 -> 0.00 | AG25: 0.00 | AH25: 0.00 | AJ25: =+'OSN PD'!AC25 -> 0.00 | AK25: 0.00 | AL25: 0.00 | AM25: 0.00 | AO25: 0.00 | AP25: 0.00 | AQ25: 0.00 | AR25: 0.00 | AS25: 0.00 | AT25: 0.00 | AU25: 0.00 | AV25: 0.00 | AY25: 0.00
A27: 1 | B27: SERVICIOS | C27: =SUM(C29:C64) -> 198,313,426.00 | D27: =SUM(D29:D64) -> 0.00 | E27: =SUM(E29:E64) -> 11,145,370.00 | F27: =SUM(F29:F64) -> 209,458,796.00 | G27: 0.00 | H27: 0.00 | I27: 0.00 | J27: 0.00 | K27: 0.00 | L27: 0.00 | M27: 23,470,369.58 | N27: 19,822,630.77 | O27: 11,082,125.67 | P27: 39,590,434.45 | Q27: 70,495,190.89 | R27: 93,965,560.47 | S27: 169,303,182.95 | T27: -80,872,832.48 | X27: 0.00 | Y27: -177,630.00 | Z27: 11,323,000.00 | AA27: 0.00 | AB27: 0.00 | AC27: 0.00 | AD27: 0.00 | AE27: 0.00 | AF27: 0.00 | AG27: 0.00 | AH27: 0.00 | AJ27: 0.00 | AK27: =SUM(AK29:AK64) -> -10,000,000.00 | AN27: =SUM(AN29:AN64) -> -8,600,000.00 | AO27: =SUM(AO29:AO64) -> 0.00 | AQ27: 0.00 | AR27: 0.00 | AS27: 0.00 | AT27: 0.00 | AU27: 0.00 | AV27: 0.00 | AW27: 0.00 | AY27: 0.00
A29: 1.01.01 | B29: Alquiler de edificios, locales y terrenos | C29: 0.00 | E29: 0.00 | F29: =+C29+D29+E29 -> 0.00 | M29: 0.00 | N29: 0.00 | O29: 0.00 | P29: 0.00 | Q29: =SUM(N29:P29) -> 0.00 | R29: =SUM(Q29,M29) -> 0.00 | S29: 0.00 | T29: 0.00 | U29: 0.00 | V29: 0.00 | W29: 0.00 | X29: 0.00 | Y29: 0.00 | Z29: 0.00 | AA29: 0.00 | AB29: 0.00 | AC29: 0.00 | AD29: 0.00 | AE29: =+'OSN PD'!Y30 -> 0.00 | AF29: =+'OSN PD'!Z30 -> 0.00 | AG29: 0.00 | AH29: 0.00 | AJ29: =+' INM'!AD30 -> 0.00 | AK29: -5,000,000.00 | AL29: 0.00 | AM29: 0.00 | AO29: 0.00 | AP29: =SUM(X29:AN29) -> -5,000,000.00 | AQ29: 0.00 | AR29: 0.00 | AS29: 0.00 | AT29: 0.00 | AU29: 0.00 | AV29: =+AQ29+AR29+AS29+AT29+AU29 -> 0.00 | AY29: 0.00 | AZ29: =SUM(AW29:AY29) -> 
A30: 1.01.02 | B30: Alquiler de maquinaria, equipo y mobiliario | C30: 0.00 | E30: 0.00 | F30: 0.00 | M30: 0.00 | N30: 0.00 | O30: 0.00 | P30: 0.00 | Q30: 0.00 | R30: 0.00 | S30: 0.00 | T30: 0.00 | U30: 0.00 | V30: 0.00 | W30: 0.00 | X30: 0.00 | Y30: 0.00 | Z30: 0.00 | AA30: 0.00 | AB30: 0.00 | AC30: 0.00 | AD30: 0.00 | AE30: =+'OSN PD'!Y31 -> 0.00 | AF30: =+'OSN PD'!Z31 -> 0.00 | AG30: 0.00 | AH30: 0.00 | AJ30: =+' INM'!AD31 -> 0.00 | AL30: 0.00 | AM30: 0.00 | AO30: 0.00 | AP30: 0.00 | AQ30: 0.00 | AR30: 0.00 | AS30: 0.00 | AT30: 0.00 | AU30: 0.00 | AV30: 0.00 | AY30: 0.00
A31: 1.01.04 | B31: Alquileres y derechos para telecomunicaciones | C31: 0.00 | E31: 0.00 | F31: 0.00 | M31: 0.00 | N31: 0.00 | O31: 0.00 | P31: 0.00 | Q31: 0.00 | R31: 0.00 | S31: 0.00 | T31: 0.00 | X31: 0.00 | Y31: 0.00 | AA31: 0.00 | AB31: 0.00 | AC31: 0.00 | AD31: 0.00 | AE31: =+'OSN PD'!Y33 -> 0.00 | AF31: =+'OSN PD'!Z33 -> 0.00 | AG31: 0.00 | AH31: 0.00 | AJ31: =+' INM'!AD33 -> 0.00 | AL31: 0.00 | AM31: 0.00 | AO31: 0.00 | AP31: 0.00 | AQ31: 0.00 | AR31: 0.00 | AS31: 0.00 | AT31: 0.00 | AU31: 0.00 | AV31: =+AQ31+AR31+AS31+AT31+AU31 -> 0.00 | AY31: 0.00 | AZ31: =SUM(AW31:AY31) -> 
A32: 1.01.99 | B32: Otros alquileres | C32: 0.00 | E32: 3,435,965.00 | F32: 3,435,965.00 | M32: 0.00 | N32: 0.00 | O32: 0.00 | P32: 3,435,954.00 | Q32: 3,435,954.00 | R32: 3,435,954.00 | S32: 3,435,954.00 | T32: 0.00 | U32: 11.00 | V32: 11.00 | W32: 11.00 | X32: 0.00 | Y32: 3,435,965.00 | Z32: 0.00 | AA32: 0.00 | AB32: 0.00 | AC32: 0.00 | AD32: 0.00 | AE32: =+'OSN PD'!Y34 -> 0.00 | AF32: =+'OSN PD'!Z34 -> 0.00 | AG32: 0.00 | AH32: 0.00 | AJ32: =+' INM'!AD34 -> 0.00 | AK32: -5,000,000.00 | AL32: 0.00 | AM32: 0.00 | AN32: -5,000,000.00 | AO32: 0.00 | AP32: -6,564,035.00 | AQ32: 0.00 | AR32: 0.00 | AS32: 0.00 | AT32: 0.00 | AU32: 0.00 | AV32: 0.00 | AY32: 0.00
A33: 1.02.01 | B33: Servicio de agua y alcantarillado | C33: 6,600,020.00 | E33: 0.00 | F33: 6,600,020.00 | M33: 0.00 | N33: 343,884.00 | O33: 1,356,767.00 | P33: 858,559.00 | Q33: 2,559,210.00 | R33: 2,559,210.00 | S33: 0.00 | T33: 0.00 | U33: 4,040,810.00 | V33: 6,600,020.00 | W33: 4,040,810.00 | X33: 0.00 | Y33: 0.00 | Z33: 0.00 | AA33: 0.00 | AB33: 0.00 | AC33: 0.00 | AD33: 0.00 | AE33: =+'OSN PD'!Y35 -> 0.00 | AF33: =+'OSN PD'!Z35 -> 0.00 | AG33: 0.00 | AH33: 0.00 | AJ33: =+' INM'!AD35 -> 0.00 | AL33: 0.00 | AO33: 0.00 | AQ33: 0.00 | AR33: 0.00 | AS33: 0.00 | AT33: 0.00 | AU33: 0.00 | AV33: 0.00 | AY33: 0.00
A34: 1.02.02 | B34: Servicio de energìa elèctrica | C34: 5,236,000.00 | E34: -2,260,000.00 | F34: 2,976,000.00 | M34: 1,638,250.00 | N34: 691,420.00 | O34: 0.00 | P34: 646,330.00 | Q34: 1,337,750.00 | R34: 2,976,000.00 | S34: 0.00 | T34: 0.00 | U34: 0.00 | V34: 2,976,000.00 | W34: 0.00 | X34: 0.00 | Y34: -2,260,000.00 | Z34: 0.00 | AA34: 0.00 | AB34: 0.00 | AC34: 0.00 | AD34: 0.00 | AE34: =+'OSN PD'!Y36 -> 0.00 | AF34: =+'OSN PD'!Z36 -> 0.00 | AG34: 0.00 | AH34: 0.00 | AJ34: =+' INM'!AD36 -> 0.00 | AL34: 0.00 | AO34: 0.00 | AQ34: 0.00 | AR34: 0.00 | AS34: 0.00 | AT34: 0.00 | AU34: 0.00 | AV34: 0.00 | AY34: 0.00
A35: 1.02.03 | B35: Servicio de correo | C35: 480,000.00 | E35: -280,000.00 | F35: 200,000.00 | M35: 0.00 | N35: 0.00 | O35: 0.00 | P35: 0.00 | Q35: 0.00 | R35: 0.00 | S35: 0.00 | T35: 0.00 | U35: 200,000.00 | V35: 200,000.00 | W35: 200,000.00 | X35: 0.00 | Y35: -280,000.00 | Z35: 0.00 | AA35: 0.00 | AB35: 0.00 | AC35: 0.00 | AD35: 0.00 | AE35: =+'OSN PD'!Y37 -> 0.00 | AF35: =+'OSN PD'!Z37 -> 0.00 | AG35: 0.00 | AH35: 0.00 | AJ35: =+' INM'!AD37 -> 0.00 | AL35: 0.00 | AO35: 0.00 | AQ35: 0.00 | AR35: 0.00 | AS35: 0.00 | AT35: 0.00 | AU35: 0.00 | AV35: 0.00 | AY35: 0.00
A36: 1.02.04 | B36: Servicio de telecomunicaciones | C36: 12,537,320.00 | E36: -3,313,595.00 | F36: 9,223,725.00 | M36: 2,514,231.28 | N36: 795,034.47 | O36: 501,118.68 | P36: 259,160.60 | Q36: 1,555,313.75 | R36: 4,069,545.03 | S36: 7,839,774.00 | T36: -3,770,228.97 | U36: 5,154,179.97 | V36: 1,383,951.00 | W36: 1,383,951.00 | X36: 0.00 | Y36: -3,313,595.00 | Z36: 0.00 | AA36: 0.00 | AB36: 0.00 | AC36: 0.00 | AD36: 0.00 | AE36: =+'OSN PD'!Y38 -> 0.00 | AF36: =+'OSN PD'!Z38 -> 0.00 | AG36: 0.00 | AH36: 0.00 | AJ36: =+' INM'!AD38 -> 0.00 | AL36: 0.00 | AO36: 0.00 | AQ36: 0.00 | AR36: 0.00 | AS36: 0.00 | AT36: 0.00 | AU36: 0.00 | AV36: 0.00 | AY36: 0.00
A37: 1.03.01 | B37: Información | C37: 500,000.00 | E37: -300,000.00 | F37: 200,000.00 | M37: 0.00 | N37: 0.00 | O37: 0.00 | P37: 0.00 | Q37: 0.00 | R37: 0.00 | S37: 200,000.00 | T37: -200,000.00 | U37: 200,000.00 | V37: 0.00 | W37: 0.00 | X37: 0.00 | Y37: -300,000.00 | Z37: 0.00 | AA37: 0.00 | AB37: 0.00 | AC37: 0.00 | AD37: 0.00 | AE37: =+'OSN PD'!Y39 -> 0.00 | AF37: =+'OSN PD'!Z39 -> 0.00 | AG37: 0.00 | AH37: 0.00 | AJ37: =+' INM'!AD39 -> 0.00 | AL37: 0.00 | AO37: 0.00 | AQ37: 0.00 | AR37: 0.00 | AS37: 0.00 | AT37: 0.00 | AU37: 0.00 | AV37: 0.00 | AY37: 0.00
A38: 1.03.02 | B38: Publicidad y propaganda | C38: 700,000.00 | E38: 0.00 | F38: 700,000.00 | M38: 0.00 | N38: 0.00 | O38: 0.00 | P38: 0.00 | Q38: 0.00 | R38: 0.00 | S38: 700,000.00 | T38: -700,000.00 | U38: 700,000.00 | V38: 0.00 | W38: 0.00 | X38: 0.00 | Y38: 0.00 | Z38: 0.00 | AA38: 0.00 | AB38: 0.00 | AC38: 0.00 | AD38: 0.00 | AE38: =+'OSN PD'!Y40 -> 0.00 | AF38: =+'OSN PD'!Z40 -> 0.00 | AG38: 0.00 | AH38: 0.00 | AJ38: =+' INM'!AD40 -> 0.00 | AL38: 0.00 | AO38: 0.00 | AQ38: 0.00 | AR38: 0.00 | AS38: 0.00 | AT38: 0.00 | AU38: 0.00 | AV38: 0.00 | AY38: 0.00
A39: 1.03.03 | B39: Impresión, encuadernación y otros | C39: 150,000.00 | E39: 0.00 | F39: 150,000.00 | M39: 37,500.00 | N39: 0.00 | O39: 0.00 | P39: 0.00 | Q39: 0.00 | R39: 37,500.00 | S39: 37,500.00 | T39: 0.00 | U39: 112,500.00 | V39: 112,500.00 | W39: 112,500.00 | X39: 0.00 | Y39: 0.00 | Z39: 0.00 | AA39: 0.00 | AB39: 0.00 | AC39: 0.00 | AD39: 0.00 | AE39: =+'OSN PD'!Y41 -> 0.00 | AF39: =+'OSN PD'!Z41 -> 0.00 | AG39: 0.00 | AH39: 0.00 | AJ39: =+' INM'!AD41 -> 0.00 | AL39: 0.00 | AO39: 0.00 | AQ39: 0.00 | AR39: 0.00 | AS39: 0.00 | AT39: 0.00 | AU39: 0.00 | AV39: 0.00 | AY39: 0.00
A40: 1.03.04 | B40: Transporte de bienes | C40: 7,000,000.00 | E40: 1,680,000.00 | F40: 8,680,000.00 | M40: 0.00 | N40: 2,825,113.00 | O40: 795,294.00 | P40: 1,637,370.00 | Q40: 5,257,777.00 | R40: 5,257,777.00 | S40: 7,000,000.00 | T40: -1,742,223.00 | U40: 3,422,223.00 | V40: 1,680,000.00 | W40: 1,680,000.00 | X40: 0.00 | Y40: 1,680,000.00 | Z40: 0.00 | AA40: 0.00 | AB40: 0.00 | AC40: 0.00 | AD40: 0.00 | AE40: =+'OSN PD'!Y42 -> 0.00 | AF40: =+'OSN PD'!Z42 -> 0.00 | AG40: 0.00 | AH40: 0.00 | AJ40: =+' INM'!AD42 -> 0.00 | AL40: 0.00 | AO40: 0.00 | AQ40: 0.00 | AR40: 0.00 | AS40: 0.00 | AT40: 0.00 | AU40: 0.00 | AV40: 0.00 | AY40: 0.00
A41: 1.03.05 | B41: Servicios aduaneros | C41: 0.00 | E41: 0.00 | F41: 0.00 | M41: 0.00 | N41: 0.00 | O41: 0.00 | P41: 0.00 | Q41: 0.00 | R41: 0.00 | S41: 0.00 | T41: 0.00 | U41: 0.00 | V41: 0.00 | W41: 0.00 | X41: 0.00 | Y41: 0.00 | Z41: 0.00 | AA41: 0.00 | AB41: 0.00 | AC41: 0.00 | AD41: 0.00 | AE41: =+'OSN PD'!Y43 -> 0.00 | AF41: =+'OSN PD'!Z43 -> 0.00 | AG41: 0.00 | AH41: 0.00 | AJ41: =+' INM'!AD43 -> 0.00 | AL41: 0.00 | AO41: 0.00 | AQ41: 0.00 | AR41: 0.00 | AS41: 0.00 | AT41: 0.00 | AU41: 0.00 | AV41: 0.00 | AY41: 0.00
A42: 1.03.06 | B42: Comisiones y gastos por serv.financieros y com. | C42: 5,470,086.00 | E42: -50,000.00 | F42: 5,420,086.00 | M42: 7,875.00 | N42: 1,018,657.89 | O42: 447,396.27 | P42: 889,483.67 | Q42: 2,355,537.83 | R42: 2,363,412.83 | S42: 5,370,000.00 | T42: -3,006,587.17 | U42: 3,056,673.17 | V42: 50,086.00 | W42: 50,086.00 | X42: 0.00 | Y42: 0.00 | Z42: -50,000.00 | AA42: 0.00 | AB42: 0.00 | AC42: 0.00 | AD42: 0.00 | AE42: =+'OSN PD'!Y44 -> 0.00 | AF42: =+'OSN PD'!Z44 -> 0.00 | AG42: 0.00 | AH42: 0.00 | AJ42: =+' INM'!AD44 -> 0.00 | AL42: 0.00 | AO42: 0.00 | AQ42: 0.00 | AR42: 0.00 | AS42: 0.00 | AT42: 0.00 | AU42: 0.00 | AV42: 0.00 | AY42: 0.00
A43: 1.04.02 | B43: Servicios Jurídicos | C43: 0.00 | E43: 0.00 | F43: 0.00 | M43: 0.00 | N43: 0.00 | O43: 0.00 | P43: 0.00 | Q43: 0.00 | R43: 0.00 | S43: 0.00 | T43: 0.00 | U43: 0.00 | V43: 0.00 | W43: 0.00 | X43: 0.00 | Y43: 0.00 | Z43: 0.00 | AA43: 0.00 | AB43: 0.00 | AC43: 0.00 | AD43: 0.00 | AE43: =+'OSN PD'!Y45 -> 0.00 | AF43: =+'OSN PD'!Z45 -> 0.00 | AG43: 0.00 | AH43: 0.00 | AJ43: =+' INM'!AD45 -> 0.00 | AL43: 0.00 | AN43: -2,600,000.00 | AO43: 0.00
A44: 1.04.03 | B44: Servicio de Ingeniería | C44: 0.00 | E44: 1,463,000.00 | F44: 1,463,000.00 | M44: 0.00 | N44: 0.00 | O44: 0.00 | P44: 0.00 | Q44: 0.00 | R44: 0.00 | S44: 1,463,000.00 | T44: -1,463,000.00 | U44: 1,463,000.00 | V44: 0.00 | W44: 0.00 | X44: 0.00 | Y44: 0.00 | Z44: 1,463,000.00 | AA44: 0.00 | AB44: 0.00 | AC44: 0.00 | AD44: 0.00 | AE44: =+'OSN PD'!Y46 -> 0.00 | AF44: =+'OSN PD'!Z46 -> 0.00 | AG44: 0.00 | AH44: 0.00 | AJ44: =+' INM'!AD46 -> 0.00 | AL44: 0.00 | AN44: -1,000,000.00 | AO44: 0.00 | AQ44: 0.00 | AR44: 0.00 | AS44: 0.00 | AT44: 0.00 | AU44: 0.00 | AV44: 0.00 | AY44: 0.00
A45: 1.04.04 | B45: Servicios Ciencias Economicas y sociales | C45: 0.00 | E45: 0.00 | F45: 0.00 | M45: 0.00 | N45: 0.00 | O45: 0.00 | P45: 0.00 | Q45: 0.00 | R45: 0.00 | S45: 0.00 | T45: 0.00 | U45: 0.00 | V45: 0.00 | W45: 0.00 | X45: 0.00 | Y45: 0.00 | Z45: 0.00 | AA45: 0.00 | AB45: 0.00 | AC45: 0.00 | AD45: 0.00 | AE45: =+'OSN PD'!Y47 -> 0.00 | AF45: =+'OSN PD'!Z47 -> 0.00 | AG45: 0.00 | AH45: 0.00 | AJ45: =+' INM'!AD47 -> 0.00 | AL45: 0.00 | AO45: 0.00 | AQ45: 0.00 | AR45: 0.00 | AS45: 0.00 | AT45: 0.00 | AU45: 0.00 | AV45: 0.00 | AY45: 0.00
A46: 1.04.05 | B46: Servicios de desarrollo sistemas infromaticos | C46: 0.00 | E46: 0.00 | F46: 0.00 | M46: 0.00 | N46: 0.00 | O46: 0.00 | P46: 0.00 | Q46: 0.00 | R46: 0.00 | S46: 0.00 | T46: 0.00 | U46: 0.00 | V46: 0.00 | W46: 0.00 | X46: 0.00 | Y46: 0.00 | Z46: 0.00 | AA46: 0.00 | AB46: 0.00 | AC46: 0.00 | AD46: 0.00 | AE46: =+'OSN PD'!Y48 -> 0.00 | AF46: =+'OSN PD'!Z48 -> 0.00 | AG46: 0.00 | AH46: 0.00 | AJ46: =+' INM'!AD48 -> 0.00 | AL46: 0.00 | AO46: 0.00 | AQ46: 0.00 | AR46: 0.00 | AS46: 0.00 | AT46: 0.00 | AU46: 0.00 | AV46: 0.00 | AY46: 0.00
A47: 1.04.06 | B47: Servicios generales | C47: 10,000,000.00 | E47: 0.00 | F47: 10,000,000.00 | M47: 0.00 | N47: 0.00 | O47: 0.00 | P47: 8,653,430.50 | Q47: 8,653,430.50 | R47: 8,653,430.50 | S47: 10,000,000.00 | T47: -1,346,569.50 | U47: 1,346,569.50 | V47: 0.00 | W47: 0.00 | X47: 0.00 | Y47: 0.00 | Z47: 0.00 | AA47: 0.00 | AB47: 0.00 | AC47: 0.00 | AD47: 0.00 | AE47: =+'OSN PD'!Y49 -> 0.00 | AF47: =+'OSN PD'!Z49 -> 0.00 | AG47: 0.00 | AH47: 0.00 | AJ47: =+' INM'!AD49 -> 0.00 | AL47: 0.00 | AO47: 0.00 | AQ47: 0.00 | AR47: 0.00 | AS47: 0.00 | AT47: 0.00 | AU47: 0.00 | AV47: 0.00 | AY47: 0.00
A48: 1.04.99 | B48: Otros servicios de gestión y apoyo | C48: 90,000,000.00 | E48: 10,000,000.00 | F48: 100,000,000.00 | M48: 7,910,000.00 | N48: 9,035,576.01 | O48: 5,361,568.25 | P48: 12,890,814.56 | Q48: 27,287,958.82 | R48: 35,197,958.82 | S48: 77,584,388.26 | T48: -42,386,429.44 | U48: 64,802,041.18 | V48: 22,415,611.74 | W48: 22,415,611.74 | X48: 0.00 | Y48: 0.00 | Z48: 10,000,000.00 | AA48: 0.00 | AB48: 0.00 | AC48: 0.00 | AD48: 0.00 | AE48: =+'OSN PD'!Y50 -> 0.00 | AF48: =+'OSN PD'!Z50 -> 0.00 | AG48: 0.00 | AH48: 0.00 | AJ48: =+' INM'!AD50 -> 0.00 | AL48: 0.00 | AN48: 3,000,000.00 | AO48: 0.00 | AQ48: 0.00 | AR48: 0.00 | AS48: 0.00 | AT48: 0.00 | AU48: 0.00 | AV48: 0.00 | AY48: 0.00
A49: 1.05.01 | B49: Transporte dentro del país | C49: 10,350,000.00 | E49: 0.00 | F49: 10,350,000.00 | M49: 184,635.00 | N49: 1,548,770.00 | O49: 1,341,055.00 | P49: 916,250.00 | Q49: 3,806,075.00 | R49: 3,990,710.00 | S49: 9,501,050.00 | T49: -5,510,340.00 | U49: 6,359,290.00 | V49: 848,950.00 | W49: 848,950.00 | X49: 0.00 | Y49: 0.00 | Z49: 0.00 | AA49: 0.00 | AB49: 0.00 | AC49: 0.00 | AD49: 0.00 | AE49: =+'OSN PD'!Y51 -> 0.00 | AF49: =+'OSN PD'!Z51 -> 0.00 | AG49: 0.00 | AH49: 0.00 | AJ49: =+' INM'!AD51 -> 0.00 | AL49: 0.00 | AN49: -1,500,000.00 | AO49: 0.00 | AQ49: 0.00 | AR49: 0.00 | AS49: 0.00 | AT49: 0.00 | AU49: 0.00 | AV49: 0.00 | AY49: 0.00
A50: 1.05.02 | B50: Viáticos dentro del país | C50: 24,500,000.00 | E50: 0.00 | F50: 24,500,000.00 | M50: 5,269,800.00 | N50: 752,588.50 | O50: 532,547.34 | P50: 7,376,763.60 | Q50: 8,661,899.44 | R50: 13,931,699.44 | S50: 24,371,800.00 | T50: -10,440,100.56 | U50: 10,568,300.56 | V50: 128,200.00 | W50: 128,200.00 | X50: 0.00 | Y50: 0.00 | Z50: 0.00 | AA50: 0.00 | AB50: 0.00 | AC50: 0.00 | AD50: 0.00 | AE50: =+'OSN PD'!Y52 -> 0.00 | AF50: =+'OSN PD'!Z52 -> 0.00 | AG50: 0.00 | AH50: 0.00 | AJ50: =+' INM'!AD52 -> 0.00 | AL50: 0.00 | AO50: 0.00 | AQ50: 0.00 | AR50: 0.00 | AS50: 0.00 | AT50: 0.00 | AU50: 0.00 | AV50: 0.00 | AY50: 0.00
A51: 1.05.03 | B51: Transporte en el exterior | C51: 0.00 | E51: 0.00 | F51: 0.00 | M51: 0.00 | N51: 0.00 | O51: 0.00 | P51: 0.00 | Q51: 0.00 | R51: 0.00 | S51: 0.00 | T51: 0.00 | U51: 0.00 | V51: 0.00 | W51: 0.00 | X51: 0.00 | Y51: 0.00 | Z51: 0.00 | AA51: 0.00 | AB51: 0.00 | AC51: 0.00 | AD51: 0.00 | AE51: =+'OSN PD'!Y53 -> 0.00 | AF51: =+'OSN PD'!Z53 -> 0.00 | AG51: 0.00 | AH51: 0.00 | AJ51: =+' INM'!AD53 -> 0.00 | AL51: 0.00 | AO51: 0.00 | AQ51: 0.00 | AR51: 0.00 | AS51: 0.00 | AT51: 0.00 | AU51: 0.00 | AV51: 0.00 | AY51: 0.00
A52: 1.05.04 | B52: Viáticos en el exterior | C52: 0.00 | E52: 0.00 | F52: 0.00 | M52: 0.00 | N52: 0.00 | O52: 0.00 | P52: 0.00 | Q52: 0.00 | R52: 0.00 | S52: 0.00 | T52: 0.00 | U52: 0.00 | V52: 0.00 | W52: 0.00 | X52: 0.00 | Y52: 0.00 | Z52: 0.00 | AA52: 0.00 | AB52: 0.00 | AC52: 0.00 | AD52: 0.00 | AE52: =+'OSN PD'!Y54 -> 0.00 | AF52: =+'OSN PD'!Z54 -> 0.00 | AG52: 0.00 | AH52: 0.00 | AJ52: =+' INM'!AD54 -> 0.00 | AL52: 0.00 | AO52: 0.00 | AQ52: 0.00 | AR52: 0.00 | AS52: 0.00 | AT52: 0.00 | AU52: 0.00 | AV52: 0.00 | AY52: 0.00
A53: 1.06.01 | B53: Seguros | C53: 7,150,000.00 | E53: -727,000.00 | F53: 6,423,000.00 | M53: 4,143,572.00 | N53: 0.00 | O53: 0.00 | P53: 0.00 | Q53: 0.00 | R53: 4,143,572.00 | S53: 6,423,000.00 | T53: -2,279,428.00 | U53: 2,279,428.00 | V53: 0.00 | W53: 0.00 | X53: 0.00 | Y53: -727,000.00 | Z53: 0.00 | AA53: 0.00 | AB53: 0.00 | AC53: 0.00 | AD53: 0.00 | AE53: =+'OSN PD'!Y55 -> 0.00 | AF53: =+'OSN PD'!Z55 -> 0.00 | AG53: 0.00 | AH53: 0.00 | AJ53: =+' INM'!AD55 -> 0.00 | AL53: 0.00 | AM53: 0.00 | AO53: 0.00 | AP53: -727,000.00 | AQ53: 0.00 | AR53: 0.00 | AS53: 0.00 | AT53: 0.00 | AU53: 0.00 | AV53: 0.00 | AY53: 0.00
A54: 1.07.01 | B54: Actividades de capacitación | C54: 1,050,000.00 | E54: -50,000.00 | F54: 1,000,000.00 | M54: 0.00 | N54: 0.00 | O54: 0.00 | P54: 0.00 | Q54: 0.00 | R54: 0.00 | S54: 0.00 | T54: 0.00 | U54: 1,000,000.00 | V54: 1,000,000.00 | W54: 1,000,000.00 | X54: 0.00 | Y54: 0.00 | Z54: -50,000.00 | AA54: 0.00 | AB54: 0.00 | AC54: 0.00 | AD54: 0.00 | AE54: =+'OSN PD'!Y56 -> 0.00 | AF54: =+'OSN PD'!Z56 -> 0.00 | AG54: 0.00 | AH54: 0.00 | AJ54: =+' INM'!AD56 -> 0.00 | AL54: 0.00 | AM54: 0.00 | AO54: 0.00 | AP54: -50,000.00 | AQ54: 0.00 | AR54: 0.00 | AS54: 0.00 | AT54: 0.00 | AU54: 0.00 | AV54: 0.00 | AY54: 0.00
A55: 1.07.02 | B55: Actividades protocolarias y sociales | C55: 0.00 | E55: 0.00 | F55: 0.00 | M55: 0.00 | N55: 0.00 | O55: 0.00 | P55: 0.00 | Q55: 0.00 | R55: 0.00 | S55: 0.00 | T55: 0.00 | U55: 0.00 | V55: 0.00 | W55: 0.00 | X55: 0.00 | Y55: 0.00 | Z55: 0.00 | AA55: 0.00 | AB55: 0.00 | AC55: 0.00 | AD55: 0.00 | AE55: =+'OSN PD'!Y57 -> 0.00 | AF55: =+'OSN PD'!Z57 -> 0.00 | AG55: 0.00 | AH55: 0.00 | AJ55: =+' INM'!AD57 -> 0.00 | AL55: 0.00 | AM55: 0.00 | AO55: 0.00 | AP55: 0.00 | AQ55: 0.00 | AR55: 0.00 | AS55: 0.00 | AT55: 0.00 | AU55: 0.00 | AV55: 0.00 | AY55: 0.00
A56: 1.08.01 | B56: Mantenimiento de edificios y locales | C56: 10,500,000.00 | E56: 0.00 | F56: 10,500,000.00 | M56: 1,544,156.30 | N56: 2,709,886.90 | O56: 701,179.13 | P56: 1,477,028.65 | Q56: 4,888,094.68 | R56: 6,432,250.98 | S56: 8,624,666.69 | T56: -2,192,415.71 | U56: 4,067,749.02 | V56: 1,875,333.31 | W56: 1,875,333.31 | X56: 0.00 | Y56: 0.00 | Z56: 0.00 | AA56: 0.00 | AB56: 0.00 | AC56: 0.00 | AD56: 0.00 | AE56: =+'OSN PD'!Y59 -> 0.00 | AF56: =+'OSN PD'!Z59 -> 0.00 | AG56: 0.00 | AH56: 0.00 | AJ56: =+' INM'!AD59 -> 0.00 | AL56: 0.00 | AM56: 0.00 | AN56: -500,000.00 | AO56: 0.00 | AP56: -500,000.00 | AQ56: 0.00 | AR56: 0.00 | AS56: 0.00 | AT56: 0.00 | AU56: 0.00 | AV56: 0.00 | AY56: 0.00
A57: 1.08.04 | B57: Mantenimiento y repracion de equipo de produccion | C57: 0.00 | E57: 0.00 | F57: 0.00 | M57: 0.00 | N57: 0.00 | O57: 0.00 | P57: 0.00 | Q57: 0.00 | R57: 0.00 | S57: 0.00 | T57: 0.00 | U57: 0.00 | V57: 0.00 | W57: 0.00 | X57: 0.00 | Y57: 0.00 | Z57: 0.00 | AA57: 0.00 | AB57: 0.00 | AC57: 0.00 | AD57: 0.00 | AE57: =+'OSN PD'!Y60 -> 0.00 | AF57: =+'OSN PD'!Z60 -> 0.00 | AG57: 0.00 | AH57: 0.00 | AJ57: =+' INM'!AD60 -> 0.00 | AL57: 0.00 | AM57: 0.00 | AO57: 0.00 | AP57: 0.00 | AQ57: 0.00 | AR57: 0.00 | AS57: 0.00 | AT57: 0.00 | AU57: 0.00 | AV57: 0.00 | AY57: 0.00
A58: 1.08.05 | B58: Mant. y rep. de equipo de transporte | C58: 3,000,000.00 | E58: 450,000.00 | F58: 3,450,000.00 | M58: 0.00 | N58: 0.00 | O58: 0.00 | P58: 122,789.87 | Q58: 122,789.87 | R58: 122,789.87 | S58: 3,000,000.00 | T58: -2,877,210.13 | U58: 3,327,210.13 | V58: 450,000.00 | W58: 450,000.00 | X58: 0.00 | Y58: 0.00 | Z58: 450,000.00 | AA58: 0.00 | AB58: 0.00 | AC58: 0.00 | AD58: 0.00 | AE58: =+'OSN PD'!Y61 -> 0.00 | AF58: =+'OSN PD'!Z61 -> 0.00 | AG58: 0.00 | AH58: 0.00 | AJ58: =+' INM'!AD61 -> 0.00 | AL58: 0.00 | AM58: 0.00 | AN58: -1,000,000.00 | AO58: 0.00 | AP58: -550,000.00 | AQ58: 0.00 | AR58: 0.00 | AS58: 0.00 | AT58: 0.00 | AU58: 0.00 | AV58: 0.00 | AY58: 0.00
A59: 1.08.06 | B59: Mant. y rep. de equipo de comunicación | C59: 0.00 | E59: 0.00 | F59: 0.00 | M59: 0.00 | N59: 0.00 | O59: 0.00 | P59: 0.00 | Q59: 0.00 | R59: 0.00 | S59: 0.00 | T59: 0.00 | U59: 0.00 | V59: 0.00 | W59: 0.00 | X59: 0.00 | Y59: 0.00 | Z59: 0.00 | AA59: 0.00 | AB59: 0.00 | AC59: 0.00 | AD59: 0.00 | AE59: =+'OSN PD'!Y62 -> 0.00 | AF59: =+'OSN PD'!Z62 -> 0.00 | AG59: 0.00 | AH59: 0.00 | AJ59: =+' INM'!AD62 -> 0.00 | AL59: 0.00 | AM59: 0.00 | AO59: 0.00 | AP59: 0.00 | AQ59: 0.00 | AR59: 0.00 | AS59: 0.00 | AT59: 0.00 | AU59: 0.00 | AV59: 0.00 | AY59: 0.00
A60: 1.08.07 | B60: Mant. y rep. de equipo y mob. de oficina | C60: 1,700,000.00 | E60: 100,000.00 | F60: 1,800,000.00 | M60: 0.00 | N60: 0.00 | O60: 0.00 | P60: 426,500.00 | Q60: 426,500.00 | R60: 426,500.00 | S60: 1,700,000.00 | T60: -1,273,500.00 | U60: 1,373,500.00 | V60: 100,000.00 | W60: 100,000.00 | X60: 0.00 | Y60: 0.00 | Z60: 100,000.00 | AA60: 0.00 | AB60: 0.00 | AC60: 0.00 | AD60: 0.00 | AE60: =+'OSN PD'!Y63 -> 0.00 | AF60: =+'OSN PD'!Z63 -> 0.00 | AG60: 0.00 | AH60: 0.00 | AJ60: =+' INM'!AD63 -> 0.00 | AL60: 0.00 | AM60: 0.00 | AO60: 0.00 | AP60: 100,000.00 | AQ60: 0.00 | AR60: 0.00 | AS60: 0.00 | AT60: 0.00 | AU60: 0.00 | AV60: 0.00 | AX60: 0.00 | AY60: 0.00 | AZ60: 0.00
A61: 1.08.08 | B61: Mant. y rep. de equipo de cómputo y sistemas de información | C61: 500,000.00 | E61: -450,000.00 | F61: 50,000.00 | M61: 0.00 | N61: 0.00 | O61: 0.00 | P61: 0.00 | Q61: 0.00 | R61: 0.00 | S61: 0.00 | T61: 0.00 | U61: 50,000.00 | V61: 50,000.00 | W61: 50,000.00 | X61: 0.00 | Y61: 0.00 | Z61: -450,000.00 | AA61: 0.00 | AB61: 0.00 | AC61: 0.00 | AD61: 0.00 | AE61: =+'OSN PD'!Y64 -> 0.00 | AF61: =+'OSN PD'!Z64 -> 0.00 | AG61: 0.00 | AH61: 0.00 | AJ61: =+' INM'!AD64 -> 0.00 | AL61: 0.00 | AM61: 0.00 | AO61: 0.00 | AP61: -450,000.00 | AQ61: 0.00 | AR61: 0.00 | AS61: 0.00 | AT61: 0.00 | AU61: 0.00 | AV61: 0.00 | AY61: 0.00
A62: 1.08.99 | B62: Mantenimiento y reparación de otros equipos | C62: 500,000.00 | E62: 1,587,000.00 | F62: 2,087,000.00 | M62: 220,350.00 | N62: 101,700.00 | O62: 45,200.00 | P62: 0.00 | Q62: 146,900.00 | R62: 367,250.00 | S62: 2,052,050.00 | T62: -1,684,800.00 | U62: 1,719,750.00 | V62: 34,950.00 | W62: 34,950.00 | X62: 0.00 | Y62: 1,587,000.00 | Z62: 0.00 | AA62: 0.00 | AB62: 0.00 | AC62: 0.00 | AD62: 0.00 | AE62: =+'OSN PD'!Y65 -> 0.00 | AF62: =+'OSN PD'!Z65 -> 0.00 | AG62: 0.00 | AH62: 0.00 | AJ62: =+' INM'!AD65 -> 0.00 | AL62: 0.00 | AM62: 0.00 | AO62: 0.00 | AP62: 1,587,000.00 | AQ62: 0.00 | AR62: 0.00 | AS62: 0.00 | AT62: 0.00 | AU62: 0.00 | AV62: 0.00 | AY62: 0.00
A63: 1.99.02 | B63: Multas | C63: 0.00 | E63: 0.00 | F63: 0.00 | M63: 0.00 | N63: 0.00 | O63: 0.00 | P63: 0.00 | Q63: 0.00 | R63: 0.00 | S63: 0.00 | T63: 0.00 | U63: 0.00 | V63: 0.00 | W63: 0.00 | X63: 0.00 | Y63: 0.00 | Z63: 0.00 | AA63: 0.00 | AB63: 0.00 | AC63: 0.00 | AD63: 0.00 | AE63: =+'OSN PD'!Y68 -> 0.00 | AF63: =+'OSN PD'!Z68 -> 0.00 | AG63: 0.00 | AH63: 0.00 | AJ63: =+' INM'!AD68 -> 0.00 | AL63: 0.00 | AM63: 0.00 | AO63: 0.00 | AP63: 0.00 | AQ63: 0.00 | AR63: 0.00 | AS63: 0.00 | AT63: 0.00 | AU63: 0.00 | AV63: 0.00 | AY63: 0.00
A64: 1.99.99 | B64: Otros servicios no especificados | C64: 390,000.00 | E64: -140,000.00 | F64: 250,000.00 | M64: 0.00 | N64: 0.00 | O64: 0.00 | P64: 0.00 | Q64: 0.00 | R64: 0.00 | S64: 0.00 | T64: 0.00 | U64: 250,000.00 | V64: 250,000.00 | W64: 250,000.00 | X64: 0.00 | Y64: 0.00 | Z64: -140,000.00 | AA64: 0.00 | AB64: 0.00 | AC64: 0.00 | AD64: 0.00 | AE64: =+'OSN PD'!Y69 -> 0.00 | AF64: =+'OSN PD'!Z69 -> 0.00 | AG64: 0.00 | AH64: 0.00 | AJ64: =+' INM'!AD69 -> 0.00 | AL64: 0.00 | AM64: 0.00 | AO64: 0.00 | AP64: -140,000.00 | AQ64: 0.00 | AR64: 0.00 | AS64: 0.00 | AT64: 0.00 | AU64: 0.00 | AV64: 0.00 | AY64: 0.00
A66: 2 | B66: MATERIALES Y SUMINISTROS | C66: =SUM(C68:C87) -> 6,665,863.00 | D66: =SUM(D68:D87) -> 0.00 | E66: =SUM(E68:E87) -> 0.00 | F66: 6,665,863.00 | G66: 0.00 | H66: 0.00 | I66: 0.00 | J66: 0.00 | K66: 0.00 | L66: 0.00 | M66: 572,961.58 | N66: 258,336.13 | O66: 495,550.00 | P66: 390,136.76 | Q66: 1,144,022.89 | R66: 1,716,984.47 | S66: 5,660,954.10 | T66: -4,084,575.50 | U66: 4,948,878.53 | V66: 1,004,908.90 | W66: 864,303.03 | X66: 0.00 | Y66: 0.00 | AA66: 0.00 | AB66: 0.00 | AC66: 0.00 | AD66: 0.00 | AE66: 0.00 | AF66: 0.00 | AG66: 0.00 | AH66: 0.00 | AJ66: 0.00 | AK66: =SUM(AK68:AK87) -> 0.00 | AM66: 0.00 | AN66: 7,600,000.00 | AO66: 0.00 | AQ66: 0.00 | AR66: 0.00 | AS66: 0.00 | AT66: 0.00 | AU66: 0.00 | AV66: 0.00 | AW66: 0.00 | AY66: 0.00
A68: 2.01.01 | B68: Combustibles y lubricantes | C68: 3,500,000.00 | E68: -600,000.00 | F68: =+C68+D68+E68 -> 2,900,000.00 | M68: 318,051.00 | N68: 155,000.00 | O68: 95,000.00 | P68: 230,000.00 | Q68: =SUM(N68:P68) -> 480,000.00 | R68: =SUM(Q68,M68) -> 798,051.00 | S68: 2,900,000.00 | T68: -2,101,949.00 | U68: 2,101,949.00 | V68: 0.00 | W68: 0.00 | X68: 0.00 | Y68: -600,000.00 | Z68: 0.00 | AA68: 0.00 | AB68: 0.00 | AC68: 0.00 | AD68: 0.00 | AE68: =+'OSN PD'!Y73 -> 0.00 | AF68: =+'OSN PD'!Z73 -> 0.00 | AG68: 0.00 | AH68: 0.00 | AJ68: =+' INM'!AD73 -> 0.00 | AL68: 0.00 | AM68: 0.00 | AO68: 0.00 | AP68: =SUM(X68:AN68) -> -600,000.00 | AQ68: 0.00 | AR68: 0.00 | AS68: 0.00 | AT68: 0.00 | AU68: 0.00 | AV68: =+AQ68+AR68+AS68+AT68+AU68 -> 0.00 | AY68: 0.00 | AZ68: =SUM(AW68:AY68) -> 
A69: 2.01.02 | B69: Productos farmacéuticos y medicinales | C69: 0.00 | E69: 0.00 | F69: 0.00 | M69: 0.00 | N69: 0.00 | O69: 0.00 | P69: 0.00 | Q69: 0.00 | R69: 0.00 | S69: 0.00 | T69: 0.00 | U69: 0.00 | V69: 0.00 | W69: 0.00 | X69: 0.00 | Y69: 0.00 | Z69: 0.00 | AA69: 0.00 | AB69: 0.00 | AC69: 0.00 | AD69: 0.00 | AE69: =+'OSN PD'!Y74 -> 0.00 | AF69: =+'OSN PD'!Z74 -> 0.00 | AG69: 0.00 | AH69: 0.00 | AJ69: =+' INM'!AD74 -> 0.00 | AL69: 0.00 | AM69: 0.00 | AO69: 0.00 | AP69: 0.00 | AQ69: 0.00 | AR69: 0.00 | AS69: 0.00 | AT69: 0.00 | AU69: 0.00 | AV69: 0.00 | AY69: 0.00
A70: 2.01.04 | B70: Tintas, pinturas y diluyentes | C70: 400,000.00 | E70: 0.00 | F70: 400,000.00 | M70: 32,076.58 | N70: 43,700.26 | O70: 0.00 | P70: 0.00 | Q70: 43,700.26 | R70: 75,776.84 | S70: 300,000.00 | T70: -224,223.16 | U70: 324,223.16 | V70: 100,000.00 | W70: 100,000.00 | X70: 0.00 | Y70: 0.00 | Z70: 0.00 | AA70: 0.00 | AB70: 0.00 | AC70: 0.00 | AD70: 0.00 | AE70: =+'OSN PD'!Y75 -> 0.00 | AF70: =+'OSN PD'!Z75 -> 0.00 | AG70: 0.00 | AH70: 0.00 | AJ70: =+' INM'!AD75 -> 0.00 | AL70: 0.00 | AM70: 0.00 | AO70: 0.00 | AP70: 0.00 | AQ70: 0.00 | AR70: 0.00 | AS70: 0.00 | AT70: 0.00 | AU70: 0.00 | AV70: 0.00 | AY70: 0.00
A71: 2.01.99 | B71: Otros productos químicos | C71: 20,000.00 | E71: 0.00 | F71: 20,000.00 | M71: 5,450.00 | N71: 0.00 | O71: 0.00 | P71: 0.00 | Q71: 0.00 | R71: 5,450.00 | S71: 0.00 | T71: 0.00 | U71: 14,550.00 | V71: 20,000.00 | W71: 14,550.00 | X71: 0.00 | Y71: 0.00 | Z71: 0.00 | AA71: 0.00 | AB71: 0.00 | AC71: 0.00 | AD71: 0.00 | AE71: =+'OSN PD'!Y76 -> 0.00 | AF71: =+'OSN PD'!Z76 -> 0.00 | AG71: 0.00 | AH71: 0.00 | AJ71: =+' INM'!AD76 -> 0.00 | AL71: 0.00 | AM71: 0.00 | AO71: 0.00 | AP71: 0.00 | AQ71: 0.00 | AR71: 0.00 | AS71: 0.00 | AT71: 0.00 | AU71: 0.00 | AV71: 0.00 | AY71: 0.00
A72: 2.02.03 | B72: Alimentos y bebidas | C72: 118,863.00 | E72: 180,000.00 | F72: 298,863.00 | M72: 23,800.00 | N72: 0.00 | O72: 0.00 | P72: 69,918.75 | Q72: 69,918.75 | R72: 93,718.75 | S72: 183,718.75 | T72: -90,000.00 | U72: 205,144.25 | V72: 115,144.25 | W72: 115,144.25 | X72: 0.00 | Y72: 180,000.00 | Z72: 0.00 | AA72: 0.00 | AB72: 0.00 | AC72: 0.00 | AD72: 0.00 | AE72: =+'OSN PD'!Y77 -> 0.00 | AF72: =+'OSN PD'!Z77 -> 0.00 | AG72: 0.00 | AH72: 0.00 | AJ72: =+' INM'!AD77 -> 0.00 | AK72: 200,000.00 | AL72: 0.00 | AM72: 0.00 | AO72: 0.00 | AP72: 380,000.00 | AQ72: 0.00 | AR72: 0.00 | AS72: 0.00 | AT72: 0.00 | AU72: 0.00 | AV72: 0.00 | AY72: 0.00
A73: 2.03.01 | B73: Materiales y productos metálicos | C73: 12,000.00 | E73: 0.00 | F73: 12,000.00 | M73: 0.00 | N73: 0.00 | O73: 0.00 | P73: 0.00 | Q73: 0.00 | R73: 0.00 | S73: 0.00 | T73: 0.00 | U73: 12,000.00 | V73: 12,000.00 | W73: 12,000.00 | X73: 0.00 | Y73: 0.00 | Z73: 0.00 | AA73: 0.00 | AB73: 0.00 | AC73: 0.00 | AD73: 0.00 | AE73: =+'OSN PD'!Y78 -> 0.00 | AF73: =+'OSN PD'!Z78 -> 0.00 | AG73: 0.00 | AH73: 0.00 | AJ73: =+' INM'!AD78 -> 0.00 | AK73: -200,000.00 | AL73: 0.00 | AM73: 0.00 | AO73: 0.00 | AP73: -200,000.00 | AQ73: 0.00 | AR73: 0.00 | AS73: 0.00 | AT73: 0.00 | AU73: 0.00 | AV73: 0.00 | AY73: 0.00
A74: 2.03.03 | B74: Madera y sus derivados | C74: 20,000.00 | E74: 0.00 | F74: 20,000.00 | M74: 0.00 | N74: 0.00 | O74: 5,700.00 | P74: 0.00 | Q74: 5,700.00 | R74: 5,700.00 | S74: 0.00 | T74: 0.00 | U74: 14,300.00 | V74: 20,000.00 | W74: 14,300.00 | X74: 0.00 | Y74: 0.00 | Z74: 0.00 | AA74: 0.00 | AB74: 0.00 | AC74: 0.00 | AD74: 0.00 | AE74: =+'OSN PD'!Y79 -> 0.00 | AF74: =+'OSN PD'!Z79 -> 0.00 | AG74: 0.00 | AH74: 0.00 | AJ74: =+' INM'!AD79 -> 0.00 | AL74: 0.00 | AM74: 0.00 | AO74: 0.00 | AP74: 0.00 | AQ74: 0.00 | AR74: 0.00 | AS74: 0.00 | AT74: 0.00 | AU74: 0.00 | AV74: 0.00 | AY74: 0.00
A75: 2.03.04 | B75: Materiales y prod. eléct., telef. y de cómputo | C75: 50,000.00 | E75: 0.00 | F75: 50,000.00 | M75: 0.00 | N75: 43,605.87 | O75: 0.00 | P75: 0.00 | Q75: 43,605.87 | R75: 43,605.87 | S75: 0.00 | T75: 0.00 | U75: 6,394.13 | V75: 50,000.00 | W75: 6,394.13 | X75: 0.00 | Y75: 0.00 | Z75: 0.00 | AA75: 0.00 | AB75: 0.00 | AC75: 0.00 | AD75: 0.00 | AE75: =+'OSN PD'!Y80 -> 0.00 | AF75: =+'OSN PD'!Z80 -> 0.00 | AG75: 0.00 | AH75: 0.00 | AJ75: =+' INM'!AD80 -> 0.00 | AL75: 0.00 | AM75: 0.00 | AO75: 0.00 | AP75: 0.00 | AQ75: 0.00 | AR75: 0.00 | AS75: 0.00 | AT75: 0.00 | AU75: 0.00 | AV75: 0.00 | AY75: 0.00
A76: 2.03.05 | B76: Materiales y productos de vidrio | C76: 70,000.00 | E76: 0.00 | F76: 70,000.00 | M76: 0.00 | N76: 0.00 | O76: 0.00 | P76: 0.00 | Q76: 0.00 | R76: 0.00 | S76: 0.00 | T76: 0.00 | U76: 70,000.00 | V76: 70,000.00 | W76: 70,000.00 | X76: 0.00 | Y76: 0.00 | Z76: 0.00 | AA76: 0.00 | AB76: 0.00 | AC76: 0.00 | AD76: 0.00 | AE76: =+'OSN PD'!Y81 -> 0.00 | AF76: =+'OSN PD'!Z81 -> 0.00 | AG76: 0.00 | AH76: 0.00 | AJ76: =+' INM'!AD81 -> 0.00 | AL76: 0.00 | AM76: 0.00 | AO76: 0.00 | AP76: 0.00 | AQ76: 0.00 | AR76: 0.00 | AS76: 0.00 | AT76: 0.00 | AU76: 0.00 | AV76: 0.00 | AY76: 0.00
A77: 2.03.06 | B77: Materiales y productos de plástico | C77: 70,000.00 | E77: 0.00 | F77: 70,000.00 | M77: 20,600.00 | N77: 0.00 | O77: 45,100.00 | P77: 0.00 | Q77: 45,100.00 | R77: 65,700.00 | S77: 0.00 | T77: 0.00 | U77: 4,300.00 | V77: 70,000.00 | W77: 4,300.00 | X77: 0.00 | Y77: 0.00 | AA77: 0.00 | AB77: 0.00 | AC77: 0.00 | AD77: 0.00 | AE77: =+'OSN PD'!Y82 -> 0.00 | AF77: =+'OSN PD'!Z82 -> 0.00 | AG77: 0.00 | AH77: 0.00 | AJ77: =+' INM'!AD82 -> 0.00 | AL77: 0.00 | AM77: 0.00 | AO77: 0.00 | AQ77: 0.00 | AR77: 0.00 | AS77: 0.00 | AT77: 0.00 | AU77: 0.00 | AV77: 0.00 | AY77: 0.00
A78: 2.03.99 | B78: Otros mat. y productos de uso en construcción | C78: 225,000.00 | E78: 0.00 | F78: 225,000.00 | M78: 56,408.75 | N78: 16,030.00 | O78: 0.00 | P78: 33,255.00 | Q78: 49,285.00 | R78: 105,693.75 | S78: 105,693.75 | T78: 0.00 | U78: 119,306.25 | V78: 119,306.25 | W78: 119,306.25 | X78: 0.00 | Y78: 0.00 | Z78: 0.00 | AA78: 0.00 | AB78: 0.00 | AC78: 0.00 | AD78: 0.00 | AE78: =+'OSN PD'!Y83 -> 0.00 | AF78: =+'OSN PD'!Z83 -> 0.00 | AG78: 0.00 | AH78: 0.00 | AJ78: =+' INM'!AD83 -> 0.00 | AL78: 0.00 | AM78: 0.00 | AO78: 0.00 | AP78: 0.00 | AQ78: 0.00 | AR78: 0.00 | AS78: 0.00 | AT78: 0.00 | AU78: 0.00 | AV78: 0.00 | AY78: 0.00
A79: 2.04.01 | B79: Herramientas e instrumentos | C79: 130,000.00 | E79: 0.00 | F79: 130,000.00 | M79: 1,350.00 | N79: 0.00 | O79: 3,900.00 | P79: 14,900.00 | Q79: 18,800.00 | R79: 20,150.00 | S79: 0.00 | T79: 0.00 | U79: 109,850.00 | V79: 130,000.00 | W79: 109,850.00 | X79: 0.00 | Y79: 0.00 | Z79: 0.00 | AA79: 0.00 | AB79: 0.00 | AC79: 0.00 | AD79: 0.00 | AE79: =+'OSN PD'!Y84 -> 0.00 | AF79: =+'OSN PD'!Z84 -> 0.00 | AG79: 0.00 | AH79: 0.00 | AJ79: =+' INM'!AD84 -> 0.00 | AL79: 0.00 | AM79: 0.00 | AO79: 0.00 | AP79: 0.00 | AQ79: 0.00 | AR79: 0.00 | AS79: 0.00 | AT79: 0.00 | AU79: 0.00 | AV79: 0.00 | AY79: 0.00
A80: 2.04.02 | B80: Repuestos y accesorios | C80: 500,000.00 | E80: 740,000.00 | F80: 1,240,000.00 | M80: 92,625.25 | N80: 0.00 | O80: 195,850.00 | P80: 31,663.01 | Q80: 227,513.01 | R80: 320,138.26 | S80: 1,240,000.00 | T80: -919,861.74 | U80: 919,861.74 | V80: 0.00 | W80: 0.00 | X80: 0.00 | Y80: 740,000.00 | Z80: 0.00 | AA80: 0.00 | AB80: 0.00 | AC80: 0.00 | AD80: 0.00 | AE80: =+'OSN PD'!Y85 -> 0.00 | AF80: =+'OSN PD'!Z85 -> 0.00 | AG80: 0.00 | AH80: 0.00 | AJ80: =+' INM'!AD85 -> 0.00 | AL80: 0.00 | AM80: 0.00 | AO80: 0.00 | AP80: 740,000.00 | AQ80: 0.00 | AR80: 0.00 | AS80: 0.00 | AT80: 0.00 | AU80: 0.00 | AV80: 0.00 | AY80: 0.00
A81: 2.99.01 | B81: Útiles y materiales de oficina y cómputo | C81: 600,000.00 | E81: -200,000.00 | F81: 400,000.00 | M81: 22,600.00 | N81: 0.00 | O81: 0.00 | P81: 0.00 | Q81: 0.00 | R81: 22,600.00 | S81: 372,600.00 | T81: -350,000.00 | U81: 377,400.00 | V81: 27,400.00 | W81: 27,400.00 | X81: 0.00 | Y81: -200,000.00 | Z81: 0.00 | AA81: 0.00 | AB81: 0.00 | AC81: 0.00 | AD81: 0.00 | AE81: =+'OSN PD'!Y86 -> 0.00 | AF81: =+'OSN PD'!Z86 -> 0.00 | AG81: 0.00 | AH81: 0.00 | AJ81: =+' INM'!AD86 -> 0.00 | AL81: 0.00 | AM81: 0.00 | AO81: 0.00 | AP81: -200,000.00 | AQ81: 0.00 | AR81: 0.00 | AS81: 0.00 | AT81: 0.00 | AU81: 0.00 | AV81: 0.00 | AY81: 0.00
A82: 2.99.03 | B82: Productos de papel y cartón e impresos | C82: 500,000.00 | E82: -120,000.00 | F82: 380,000.00 | M82: 0.00 | N82: 0.00 | O82: 150,000.00 | P82: 0.00 | Q82: 150,000.00 | R82: 150,000.00 | S82: 213,941.60 | T82: -63,941.60 | U82: 230,000.00 | V82: 166,058.40 | W82: 166,058.40 | X82: 0.00 | Y82: -120,000.00 | Z82: 0.00 | AA82: 0.00 | AB82: 0.00 | AC82: 0.00 | AD82: 0.00 | AE82: =+'OSN PD'!Y87 -> 0.00 | AF82: =+'OSN PD'!Z87 -> 0.00 | AG82: 0.00 | AH82: 0.00 | AJ82: =+' INM'!AD87 -> 0.00 | AL82: 0.00 | AM82: 0.00 | AO82: 0.00 | AP82: -120,000.00 | AQ82: 0.00 | AR82: 0.00 | AS82: 0.00 | AT82: 0.00 | AU82: 0.00 | AV82: 0.00 | AY82: 0.00
A83: 2.99.04 | B83: Textiles y vestuario | C83: 300,000.00 | E83: 0.00 | F83: 300,000.00 | M83: 0.00 | N83: 0.00 | O83: 0.00 | P83: 10,400.00 | Q83: 10,400.00 | R83: 10,400.00 | S83: 255,000.00 | T83: -244,600.00 | U83: 289,600.00 | V83: 45,000.00 | W83: 45,000.00 | X83: 0.00 | Y83: 0.00 | Z83: 0.00 | AA83: 0.00 | AB83: 0.00 | AC83: 0.00 | AD83: 0.00 | AE83: =+'OSN PD'!Y88 -> 0.00 | AF83: =+'OSN PD'!Z88 -> 0.00 | AG83: 0.00 | AH83: 0.00 | AJ83: =+' INM'!AD88 -> 0.00 | AL83: 0.00 | AM83: 0.00 | AN83: 7,600,000.00 | AO83: 0.00 | AP83: 7,600,000.00 | AQ83: 0.00 | AR83: 0.00 | AS83: 0.00 | AT83: 0.00 | AU83: 0.00 | AV83: 0.00 | AY83: 0.00
A84: 2.99.05 | B84: Útiles y materiales de limpieza | C84: 0.00 | E84: 0.00 | F84: 0.00 | M84: 0.00 | N84: 0.00 | O84: 0.00 | P84: 0.00 | Q84: 0.00 | R84: 0.00 | S84: 0.00 | T84: 0.00 | U84: 0.00 | V84: 0.00 | W84: 0.00 | X84: 0.00 | Y84: 0.00 | Z84: 0.00 | AA84: 0.00 | AB84: 0.00 | AC84: 0.00 | AD84: 0.00 | AE84: =+'OSN PD'!Y89 -> 0.00 | AF84: =+'OSN PD'!Z89 -> 0.00 | AG84: 0.00 | AH84: 0.00 | AJ84: =+' INM'!AD89 -> 0.00 | AL84: 0.00 | AM84: 0.00 | AO84: 0.00 | AP84: 0.00 | AQ84: 0.00 | AR84: 0.00 | AS84: 0.00 | AT84: 0.00 | AU84: 0.00 | AV84: 0.00 | AY84: 0.00
A85: 2.99.06 | B85: Útiles y materiales de resguardo y seguridad | C85: 100,000.00 | E85: 0.00 | F85: 100,000.00 | M85: 0.00 | N85: 0.00 | O85: 0.00 | P85: 0.00 | Q85: 0.00 | R85: 0.00 | S85: 90,000.00 | T85: -90,000.00 | U85: 100,000.00 | V85: 10,000.00 | W85: 10,000.00 | X85: 0.00 | Y85: 0.00 | Z85: 0.00 | AA85: 0.00 | AB85: 0.00 | AC85: 0.00 | AD85: 0.00 | AE85: =+'OSN PD'!Y90 -> 0.00 | AF85: =+'OSN PD'!Z90 -> 0.00 | AG85: 0.00 | AH85: 0.00 | AJ85: =+' INM'!AD90 -> 0.00 | AL85: 0.00 | AM85: 0.00 | AO85: 0.00 | AP85: 0.00 | AQ85: 0.00 | AR85: 0.00 | AS85: 0.00 | AT85: 0.00 | AU85: 0.00 | AV85: 0.00 | AY85: 0.00
A86: 2.99.07 | B86: Útiles y materiales de cocina y comedor | C86: 0.00 | E86: 0.00 | F86: 0.00 | M86: 0.00 | N86: 0.00 | O86: 0.00 | P86: 0.00 | Q86: 0.00 | R86: 0.00 | S86: 0.00 | T86: 0.00 | U86: 0.00 | V86: 0.00 | W86: 0.00 | X86: 0.00 | Y86: 0.00 | Z86: 0.00 | AA86: 0.00 | AB86: 0.00 | AC86: 0.00 | AD86: 0.00 | AE86: =+'OSN PD'!Y91 -> 0.00 | AF86: =+'OSN PD'!Z91 -> 0.00 | AG86: 0.00 | AH86: 0.00 | AJ86: =+' INM'!AD91 -> 0.00 | AL86: 0.00 | AM86: 0.00 | AO86: 0.00 | AP86: 0.00 | AQ86: 0.00 | AR86: 0.00 | AS86: 0.00 | AT86: 0.00 | AU86: 0.00 | AV86: 0.00 | AY86: 0.00
A87: 2.99.99 | B87: Otros útiles, materiales y suministros | C87: 50,000.00 | E87: 0.00 | F87: 50,000.00 | M87: 0.00 | N87: 0.00 | O87: 0.00 | P87: 0.00 | Q87: 0.00 | R87: 0.00 | S87: 0.00 | T87: 0.00 | U87: 50,000.00 | V87: 50,000.00 | W87: 50,000.00 | X87: 0.00 | Y87: 0.00 | Z87: 0.00 | AA87: 0.00 | AB87: 0.00 | AC87: 0.00 | AD87: 0.00 | AE87: =+'OSN PD'!Y92 -> 0.00 | AF87: =+'OSN PD'!Z92 -> 0.00 | AG87: 0.00 | AH87: 0.00 | AJ87: =+' INM'!AD92 -> 0.00 | AL87: 0.00 | AM87: 0.00 | AO87: 0.00 | AP87: 0.00 | AQ87: 0.00 | AR87: 0.00 | AS87: 0.00 | AT87: 0.00 | AU87: 0.00 | AV87: 0.00 | AX87: 0.00 | AY87: 0.00 | AZ87: 0.00
AE88: =+'OSN PD'!Y93 -> 0.00
A89: 3 | B89: INTERESES Y COMISIONES | C89: =SUM(C91:C91) -> 0.00 | D89: =SUM(D91:D91) -> 0.00 | E89: 0.00 | F89: 0.00 | G89: 0.00 | H89: 0.00 | I89: 0.00 | J89: 0.00 | K89: 0.00 | L89: 0.00 | S89: 0.00 | T89: 0.00 | U89: 0.00 | V89: 0.00 | W89: 0.00 | X89: 0.00 | Y89: 0.00 | Z89: 0.00 | AA89: 0.00 | AB89: 0.00 | AC89: 0.00 | AD89: 0.00 | AE89: =+'OSN PD'!Y94 -> 0.00 | AF89: 0.00 | AG89: 0.00 | AH89: 0.00 | AJ89: 0.00 | AK89: =SUM(AK91:AK91) -> 0.00 | AM89: 0.00 | AN89: =SUM(AN91:AN91) -> 0.00 | AO89: =SUM(AO91:AO91) -> 0.00 | AP89: 0.00 | AQ89: 0.00 | AR89: 0.00 | AS89: 0.00 | AT89: 0.00 | AU89: 0.00 | AV89: 0.00 | AW89: 0.00 | AX89: 0.00 | AY89: 0.00 | AZ89: 0.00
AE90: =+'OSN PD'!Y95 -> 0.00
A91: 3.04.05 | B91: Diferencias por tipo de cambio | C91: 0.00 | E91: 0.00 | F91: =+C91+D91+E91 -> 0.00 | M91: 0.00 | N91: 0.00 | O91: 0.00 | P91: 0.00 | S91: 0.00 | T91: 0.00 | U91: 0.00 | V91: 0.00 | W91: 0.00 | X91: 0.00 | Y91: 0.00 | Z91: 0.00 | AA91: 0.00 | AB91: 0.00 | AC91: 0.00 | AD91: 0.00 | AE91: =+'OSN PD'!Y96 -> 0.00 | AF91: =+'OSN PD'!Z96 -> 0.00 | AG91: 0.00 | AH91: 0.00 | AJ91: =+'OSN PD'!AC96 -> 0.00 | AK91: 0.00 | AL91: 0.00 | AM91: 0.00 | AP91: =SUM(X91:AN91) -> 0.00 | AQ91: 0.00 | AR91: 0.00 | AS91: 0.00 | AT91: 0.00 | AU91: 0.00 | AV91: =+AQ91+AR91+AS91+AT91+AU91 -> 0.00 | AX91: 0.00 | AY91: 0.00 | AZ91: =SUM(AW91:AY91) -> 0.00
AE92: =+'OSN PD'!Y97 -> 0.00
A93: 5 | B93: BIENES DURADEROS | C93: =SUM(C95:C105) -> 8,500,000.00 | D93: =SUM(D95:D105) -> 0.00 | E93: =SUM(E95:E105) -> -1,000,000.00 | F93: =SUM(F95:F105) -> 7,500,000.00 | G93: =SUM(G95:G105) -> 0.00 | H93: 0.00 | I93: 0.00 | J93: 0.00 | K93: 0.00 | L93: 0.00 | M93: 0.00 | N93: 0.00 | O93: 0.00 | P93: 339,232.94 | Q93: 339,232.94 | R93: 339,232.94 | S93: =SUM(S95:S105) -> 7,444,783.15 | T93: =SUM(T95:T105) -> -7,105,550.21 | U93: =SUM(U95:U105) -> 7,160,767.06 | V93: =SUM(V95:V105) -> 55,216.85 | W93: =SUM(W95:W105) -> 55,216.85 | X93: 0.00 | Y93: -1,000,000.00 | Z93: =SUM(Z95:Z105) -> 0.00 | AA93: 0.00 | AB93: 0.00 | AC93: 0.00 | AD93: 0.00 | AE93: =+'OSN PD'!Y98 -> 0.00 | AF93: 0.00 | AG93: 0.00 | AH93: 0.00 | AJ93: 0.00 | AK93: =SUM(AK95:AK105) -> 10,000,000.00 | AM93: 0.00 | AN93: =SUM(AN95:AN104) -> 1,000,000.00 | AO93: =SUM(AO95:AO104) -> 0.00 | AP93: 10,000,000.00 | AQ93: 0.00 | AR93: 0.00 | AS93: 0.00 | AT93: 0.00 | AU93: 0.00 | AV93: 0.00 | AW93: 0.00 | AY93: 0.00
AE94: =+'OSN PD'!Y99 -> 0.00
A95: 5.01.01 | B95: Maquinaria y equipo para la produccion | C95: 0.00 | E95: 0.00 | F95: 0.00 | M95: 0.00 | N95: 0.00 | O95: 0.00 | P95: 0.00 | Q95: =SUM(N95:P95) -> 0.00 | R95: =SUM(Q95,M95) -> 0.00 | S95: 0.00 | T95: 0.00 | U95: 0.00 | V95: 0.00 | W95: 0.00 | X95: 0.00 | Y95: 0.00 | Z95: 0.00 | AA95: 0.00 | AB95: 0.00 | AC95: 0.00 | AD95: 0.00 | AE95: =+'OSN PD'!Y100 -> 0.00 | AF95: =+'OSN PD'!Z100 -> 0.00 | AG95: 0.00 | AH95: 0.00 | AJ95: =+' INM'!AD100 -> 0.00 | AL95: 0.00 | AM95: 0.00 | AO95: 0.00 | AP95: =SUM(X95:AN95) -> 0.00 | AQ95: 0.00 | AR95: 0.00 | AS95: 0.00 | AT95: 0.00 | AU95: 0.00 | AV95: =+AQ95+AR95+AS95+AT95+AU95 -> 0.00 | AX95: 0.00 | AY95: 0.00 | AZ95: =SUM(AW95:AY95) -> 0.00
A96: 5.01.02 | B96: Equipo de transporte | C96: 0.00 | E96: 0.00 | F96: 0.00 | M96: 0.00 | N96: 0.00 | O96: 0.00 | P96: 0.00 | Q96: 0.00 | R96: 0.00 | S96: 0.00 | T96: 0.00 | U96: 0.00 | V96: 0.00 | W96: 0.00 | X96: 0.00 | Y96: 0.00 | Z96: 0.00 | AA96: 0.00 | AB96: 0.00 | AC96: 0.00 | AD96: 0.00 | AE96: =+'OSN PD'!Y101 -> 0.00 | AF96: =+'OSN PD'!Z101 -> 0.00 | AG96: 0.00 | AH96: 0.00 | AJ96: =+' INM'!AD101 -> 0.00 | AL96: 0.00 | AM96: 0.00 | AO96: 0.00 | AP96: 0.00 | AQ96: 0.00 | AR96: 0.00 | AS96: 0.00 | AT96: 0.00 | AU96: 0.00 | AV96: 0.00 | AX96: 0.00 | AY96: 0.00 | AZ96: 0.00
A97: 5.01.03 | B97: Equipo de comunicación | C97: 0.00 | E97: 0.00 | F97: 0.00 | M97: 0.00 | N97: 0.00 | O97: 0.00 | P97: 0.00 | Q97: 0.00 | R97: 0.00 | S97: 0.00 | T97: 0.00 | U97: 0.00 | V97: 0.00 | W97: 0.00 | X97: 0.00 | Y97: 0.00 | Z97: 0.00 | AA97: 0.00 | AB97: 0.00 | AC97: 0.00 | AD97: 0.00 | AE97: =+'OSN PD'!Y102 -> 0.00 | AF97: =+'OSN PD'!Z102 -> 0.00 | AG97: 0.00 | AH97: 0.00 | AJ97: =+' INM'!AD102 -> 0.00 | AL97: 0.00 | AM97: 0.00 | AO97: 0.00 | AP97: 0.00 | AQ97: 0.00 | AR97: 0.00 | AS97: 0.00 | AT97: 0.00 | AU97: 0.00 | AV97: 0.00 | AY97: 0.00
A98: 5.01.04 | B98: Equipo y mobiliario de oficina | C98: 1,500,000.00 | E98: 0.00 | F98: 1,500,000.00 | M98: 0.00 | N98: 0.00 | O98: 0.00 | P98: 208,152.94 | Q98: 208,152.94 | R98: 208,152.94 | S98: 1,444,783.15 | T98: -1,236,630.21 | U98: 1,291,847.06 | V98: 55,216.85 | W98: 55,216.85 | X98: 0.00 | Y98: 0.00 | Z98: 0.00 | AA98: 0.00 | AB98: 0.00 | AC98: 0.00 | AD98: 0.00 | AE98: =+'OSN PD'!Y103 -> 0.00 | AF98: =+'OSN PD'!Z103 -> 0.00 | AG98: 0.00 | AH98: 0.00 | AJ98: =+' INM'!AD103 -> 0.00 | AK98: 10,000,000.00 | AL98: 0.00 | AM98: 0.00 | AN98: 2,000,000.00 | AO98: 0.00 | AP98: 12,000,000.00 | AQ98: 0.00 | AR98: 0.00 | AS98: 0.00 | AT98: 0.00 | AU98: 0.00 | AV98: 0.00 | AX98: 0.00 | AY98: 0.00 | AZ98: 0.00
A99: 5.01.05 | B99: Equipo y programas de cómputo | C99: 5,000,000.00 | E99: -1,000,000.00 | F99: 4,000,000.00 | M99: 0.00 | N99: 0.00 | O99: 0.00 | P99: 0.00 | Q99: 0.00 | R99: 0.00 | S99: 4,000,000.00 | T99: -4,000,000.00 | U99: 4,000,000.00 | V99: 0.00 | W99: 0.00 | X99: 0.00 | Y99: -1,000,000.00 | Z99: 0.00 | AA99: 0.00 | AB99: 0.00 | AC99: 0.00 | AD99: 0.00 | AE99: =+'OSN PD'!Y104 -> 0.00 | AF99: =+'OSN PD'!Z104 -> 0.00 | AG99: 0.00 | AH99: 0.00 | AJ99: =+' INM'!AD104 -> 0.00 | AL99: 0.00 | AM99: 0.00 | AN99: -1,000,000.00 | AO99: 0.00 | AP99: -2,000,000.00 | AQ99: 0.00 | AR99: 0.00 | AS99: 0.00 | AT99: 0.00 | AU99: 0.00 | AV99: 0.00 | AY99: 0.00
A100: 5.01.07 | B100: Equipo y mob.educ.,deportivo y recreativo | C100: 0.00 | E100: 0.00 | F100: 0.00 | M100: 0.00 | N100: 0.00 | O100: 0.00 | P100: 0.00 | Q100: 0.00 | R100: 0.00 | S100: 0.00 | T100: 0.00 | U100: 0.00 | V100: 0.00 | W100: 0.00 | X100: 0.00 | Y100: 0.00 | Z100: 0.00 | AA100: 0.00 | AB100: 0.00 | AC100: 0.00 | AD100: 0.00 | AE100: =+'OSN PD'!Y105 -> 0.00 | AF100: =+'OSN PD'!Z105 -> 0.00 | AG100: 0.00 | AH100: 0.00 | AJ100: =+' INM'!AD105 -> 0.00 | AL100: 0.00 | AM100: 0.00 | AO100: 0.00 | AP100: 0.00 | AQ100: 0.00 | AR100: 0.00 | AS100: 0.00 | AT100: 0.00 | AU100: 0.00 | AV100: 0.00 | AX100: 0.00 | AY100: 0.00 | AZ100: 0.00
A101: 5.01.99 | B101: Maquinaria y equipo diverso | C101: 2,000,000.00 | E101: 0.00 | F101: 2,000,000.00 | M101: 0.00 | N101: 0.00 | O101: 0.00 | P101: 131,080.00 | Q101: 131,080.00 | R101: 131,080.00 | S101: 2,000,000.00 | T101: -1,868,920.00 | U101: 1,868,920.00 | V101: 0.00 | W101: 0.00 | X101: 0.00 | Y101: 0.00 | Z101: 0.00 | AA101: 0.00 | AB101: 0.00 | AC101: 0.00 | AD101: 0.00 | AE101: =+'OSN PD'!Y106 -> 0.00 | AF101: =+'OSN PD'!Z106 -> 0.00 | AG101: 0.00 | AH101: 0.00 | AJ101: =+' INM'!AD106 -> 0.00 | AL101: 0.00 | AM101: 0.00 | AO101: 0.00 | AP101: 0.00 | AQ101: 0.00 | AR101: 0.00 | AS101: 0.00 | AT101: 0.00 | AU101: 0.00 | AV101: 0.00 | AY101: 0.00
A102: 5.02.01 | B102: Edificios | C102: 0.00 | E102: 0.00 | F102: 0.00 | M102: 0.00 | N102: 0.00 | O102: 0.00 | P102: 0.00 | Q102: 0.00 | R102: 0.00 | S102: 0.00 | T102: 0.00 | U102: 0.00 | V102: 0.00 | W102: 0.00 | X102: 0.00 | Y102: 0.00 | Z102: 0.00 | AA102: 0.00 | AB102: 0.00 | AC102: 0.00 | AD102: 0.00 | AE102: =+'OSN PD'!Y107 -> 0.00 | AF102: =+'OSN PD'!Z107 -> 0.00 | AG102: 0.00 | AH102: 0.00 | AJ102: =+' INM'!AD107 -> 0.00 | AL102: 0.00 | AM102: 0.00 | AO102: 0.00 | AP102: 0.00 | AQ102: 0.00 | AR102: 0.00 | AS102: 0.00 | AT102: 0.00 | AU102: 0.00 | AV102: 0.00 | AX102: 0.00 | AY102: 0.00 | AZ102: 0.00
A103: 5.02.99 | B103: Otras construcciones adiciones y mejoras | C103: 0.00 | E103: 0.00 | F103: 0.00 | M103: 0.00 | N103: 0.00 | O103: 0.00 | P103: 0.00 | Q103: 0.00 | R103: 0.00 | S103: 0.00 | T103: 0.00 | U103: 0.00 | V103: 0.00 | W103: 0.00 | X103: 0.00 | Y103: 0.00 | Z103: 0.00 | AA103: 0.00 | AB103: 0.00 | AC103: 0.00 | AD103: 0.00 | AE103: =+'OSN PD'!Y108 -> 0.00 | AF103: =+'OSN PD'!Z108 -> 0.00 | AG103: 0.00 | AH103: 0.00 | AJ103: =+' INM'!AD108 -> 0.00 | AL103: 0.00 | AM103: 0.00 | AO103: 0.00 | AP103: 0.00 | AQ103: 0.00 | AR103: 0.00 | AS103: 0.00 | AT103: 0.00 | AU103: 0.00 | AV103: 0.00 | AX103: 0.00 | AY103: 0.00 | AZ103: 0.00
A104: 5.99.03 | B104: Bienes intangibles | C104: 0.00 | E104: 0.00 | F104: 0.00 | M104: 0.00 | N104: 0.00 | O104: 0.00 | P104: 0.00 | Q104: 0.00 | R104: 0.00 | S104: 0.00 | T104: 0.00 | U104: 0.00 | V104: 0.00 | W104: 0.00 | X104: 0.00 | Y104: 0.00 | Z104: 0.00 | AA104: 0.00 | AB104: 0.00 | AC104: 0.00 | AD104: 0.00 | AE104: =+'OSN PD'!Y109 -> 0.00 | AF104: =+'OSN PD'!Z109 -> 0.00 | AG104: 0.00 | AH104: 0.00 | AJ104: =+' INM'!AD109 -> 0.00 | AL104: 0.00 | AM104: 0.00 | AO104: 0.00 | AP104: 0.00 | AQ104: 0.00 | AR104: 0.00 | AS104: 0.00 | AT104: 0.00 | AU104: 0.00 | AV104: 0.00 | AY104: 0.00
A105: 5.99.99 | B105: Otros bienes duraderos | C105: 0.00 | E105: 0.00 | F105: 0.00 | M105: 0.00 | N105: 0.00 | O105: 0.00 | P105: 0.00 | Q105: 0.00 | R105: 0.00 | S105: 0.00 | T105: 0.00 | U105: 0.00 | V105: 0.00 | W105: 0.00 | X105: 0.00 | Y105: 0.00 | Z105: 0.00 | AA105: 0.00 | AB105: 0.00 | AC105: 0.00 | AD105: 0.00 | AE105: =+'OSN PD'!Y110 -> 0.00 | AF105: =+'OSN PD'!Z110 -> 0.00 | AG105: 0.00 | AH105: 0.00 | AJ105: =+' INM'!AD110 -> 0.00 | AL105: 0.00 | AM105: 0.00 | AO105: 0.00 | AP105: 0.00 | AQ105: 0.00 | AR105: 0.00 | AS105: 0.00 | AT105: 0.00 | AU105: 0.00 | AV105: 0.00 | AY105: 0.00
AE106: =+'OSN PD'!Y111 -> 0.00
A107: 6 | B107: TRANSFERENCIAS CORRIENTES | C107: =SUM(C109:C114) -> 102,004,373.00 | D107: =SUM(D109:D112) -> 0.00 | E107: =SUM(E109:E114) -> 1,000,000.00 | F107: =SUM(F109:F114) -> 103,004,373.00 | G107: =SUM(G109:G112) -> 0.00 | H107: 0.00 | I107: 0.00 | J107: 0.00 | K107: 0.00 | L107: 0.00 | M107: =SUM(M109:M114) -> 893,204.85 | O107: 648,893.70 | P107: 53,455,960.16 | S107: =SUM(S109:S114) -> 58,314,375.21 | U107: =SUM(U109:U114) -> 41,904,739.09 | V107: =SUM(V109:V114) -> 44,689,997.79 | W107: =SUM(W109:W114) -> 41,904,739.09 | X107: =SUM(X109:X112) -> 0.00 | Y107: =SUM(Y109:Y112) -> 1,000,000.00 | Z107: =SUM(Z109:Z114) -> 0.00 | AA107: =SUM(AA109:AA112) -> 0.00 | AB107: =SUM(AB109:AB112) -> 0.00 | AC107: =SUM(AC109:AC112) -> 0.00 | AD107: =SUM(AD109:AD114) -> 0.00 | AE107: =+'OSN PD'!Y112 -> 0.00 | AF107: =SUM(AF109:AF114) -> 0.00 | AG107: =SUM(AG109:AG114) -> 0.00 | AH107: =SUM(AH109:AH114) -> 0.00 | AJ107: =SUM(AJ109:AJ114) -> 0.00 | AK107: =SUM(AK109:AK114) -> 0.00 | AM107: =SUM(AM109:AM114) -> 0.00 | AN107: =SUM(AN109:AN112) -> 0.00 | AO107: =SUM(AO109:AO112) -> 0.00 | AP107: =SUM(AP109:AP114) -> 1,000,000.00 | AQ107: =SUM(AQ109:AQ112) -> 0.00 | AR107: 0.00 | AS107: 0.00 | AT107: 0.00 | AU107: 0.00 | AV107: 0.00 | AW107: 0.00 | AY107: 0.00
AE108: =+'OSN PD'!Y113 -> 0.00
A109: 6.01.02 | B109: Transferencias corrientes a órganos desconcentrados | C109: 0.00 | E109: 1,000,000.00 | F109: 1,000,000.00 | M109: 0.00 | N109: 0.00 | O109: 0.00 | P109: 1,000,000.00 | Q109: =SUM(N109:P109) -> 1,000,000.00 | R109: =SUM(Q109,M109) -> 1,000,000.00 | S109: 1,000,000.00 | T109: 0.00 | U109: 0.00 | V109: 0.00 | W109: 0.00 | X109: 0.00 | Y109: 1,000,000.00 | Z109: 0.00 | AA109: 0.00 | AB109: 0.00 | AC109: 0.00 | AD109: 0.00 | AE109: =+'OSN PD'!Y114 -> 0.00 | AF109: =+'OSN PD'!Z114 -> 0.00 | AG109: 0.00 | AH109: 0.00 | AJ109: =+'OSN PD'!AC114 -> 0.00 | AL109: 0.00 | AM109: 0.00 | AO109: 0.00 | AP109: =SUM(X109:AN109) -> 1,000,000.00 | AQ109: 0.00 | AR109: 0.00 | AS109: 0.00 | AT109: 0.00 | AU109: 0.00 | AV109: =+AQ109+AR109+AS109+AT109+AU109 -> 0.00 | AX109: 0.00 | AY109: 0.00 | AZ109: =SUM(AW109:AY109) -> 0.00
A110: 6.02.99 | B110: Otras Transferencias a personas | C110: 904,373.00 | E110: 0.00 | F110: 904,373.00 | M110: 0.00 | N110: 0.00 | O110: 0.00 | P110: 115,274.20 | Q110: 115,274.20 | R110: 115,274.20 | S110: 0.00 | T110: 0.00 | U110: 789,098.80 | V110: 904,373.00 | W110: 789,098.80 | X110: 0.00 | Y110: 0.00 | Z110: 0.00 | AA110: 0.00 | AB110: 0.00 | AC110: 0.00 | AD110: 0.00 | AE110: =+'OSN PD'!Y118 -> 0.00 | AF110: =+'OSN PD'!Z118 -> 0.00 | AG110: 0.00 | AH110: 0.00 | AJ110: =+'OSN PD'!AC118 -> 0.00 | AK110: 0.00 | AL110: 0.00 | AM110: 0.00 | AO110: 0.00 | AP110: 0.00 | AQ110: 0.00 | AR110: 0.00 | AS110: 0.00 | AT110: 0.00 | AU110: 0.00 | AV110: =+AQ110+AR110+AS110+AT110+AU110 -> 0.00 | AX110: 0.00 | AY110: 0.00 | AZ110: =SUM(AW110:AY110) -> 0.00
A111: 6.03.99 | B111: Otras prestaciones | C111: 84,400,000.00 | E111: 0.00 | F111: 84,400,000.00 | M111: 0.00 | O111: 0.00 | P111: 51,632,139.16 | S111: 57,314,375.21 | T111: 0.00 | U111: 27,085,624.79 | V111: 27,085,624.79 | W111: 27,085,624.79 | AE111: =+'OSN PD'!Y119 -> 0.00 | AF111: =+'OSN PD'!Z119 -> 0.00 | AG111: 0.00 | AH111: 0.00 | AJ111: =+'OSN PD'!AC119 -> 0.00 | AL111: 0.00 | AM111: 0.00 | AO111: 0.00 | AP111: 0.00
A112: 6.03.01 | B112: Prestaciones legales | C112: 16,700,000.00 | E112: 0.00 | F112: 16,700,000.00 | M112: 893,204.85 | N112: 5,682,236.05 | O112: 648,893.70 | P112: 708,546.80 | Q112: 7,039,676.55 | R112: 7,932,881.40 | S112: 0.00 | T112: 0.00 | U112: 14,030,015.50 | V112: 16,700,000.00 | W112: 14,030,015.50 | X112: 0.00 | Y112: 0.00 | Z112: 0.00 | AA112: 0.00 | AB112: 0.00 | AC112: 0.00 | AD112: 0.00 | AE112: =+'OSN PD'!Y120 -> 0.00 | AF112: =+'OSN PD'!Z120 -> 0.00 | AG112: 0.00 | AH112: 0.00 | AJ112: =+'OSN PD'!AC120 -> 0.00 | AL112: 0.00 | AM112: 0.00 | AO112: 0.00 | AP112: 0.00 | AQ112: 0.00 | AR112: 0.00 | AS112: 0.00 | AT112: 0.00 | AU112: 0.00 | AV112: =+AQ112+AR112+AS112+AT112+AU112 -> 0.00 | AY112: 0.00 | AZ112: =SUM(AW112:AY112) -> 
A113: 6.06.01 | B113: Indemnizaciones | C113: 0.00 | E113: 0.00 | F113: 0.00 | M113: 0.00 | N113: 0.00 | O113: 0.00 | P113: 0.00 | Q113: 0.00 | R113: 0.00 | S113: 0.00 | T113: 0.00 | U113: 0.00 | V113: 0.00 | W113: 0.00 | X113: 0.00 | Y113: 0.00 | Z113: 0.00 | AA113: 0.00 | AB113: 0.00 | AC113: 0.00 | AD113: 0.00 | AE113: =+'OSN PD'!Y122 -> 0.00 | AF113: =+'OSN PD'!Z122 -> 0.00 | AG113: 0.00 | AH113: 0.00 | AJ113: =+'OSN PD'!AC122 -> 0.00 | AL113: 0.00 | AM113: 0.00 | AO113: 0.00 | AP113: 0.00 | AQ113: 0.00 | AR113: 0.00 | AS113: 0.00 | AT113: 0.00 | AU113: 0.00 | AV113: =+AQ113+AR113+AS113+AT113+AU113 -> 0.00 | AY113: 0.00 | AZ113: =SUM(AW113:AY113) -> 
A114: 6.07,01 | B114: Transferencias corrientes a organismos internacionales | C114: 0.00 | E114: 0.00 | F114: 0.00 | M114: 0.00 | N114: 0.00 | O114: 0.00 | P114: 0.00 | Q114: 0.00 | R114: 0.00 | S114: 0.00 | T114: 0.00 | U114: 0.00 | V114: 0.00 | W114: 0.00 | X114: 0.00 | Y114: 0.00 | Z114: 0.00 | AA114: 0.00 | AB114: 0.00 | AC114: 0.00 | AD114: 0.00 | AE114: =+'OSN PD'!Y123 -> 0.00 | AF114: =+'OSN PD'!Z123 -> 0.00 | AG114: 0.00 | AH114: 0.00 | AJ114: =+'OSN PD'!AC123 -> 0.00 | AL114: 0.00 | AM114: 0.00 | AO114: 0.00 | AP114: 0.00 | AQ114: 0.00 | AR114: 0.00 | AS114: 0.00 | AT114: 0.00 | AU114: 0.00 | AV114: =+AQ114+AR114+AS114+AT114+AU114 -> 0.00
A116: 9 | B116: CUENTAS ESPECIALES | C116: =SUM(C118) -> 0.00 | D116: =SUM(D118) -> 267,909,225.46 | E116: 0.00 | F116: 267,909,225.46 | G116: 0.00 | H116: 0.00 | I116: 0.00 | J116: 0.00 | K116: 0.00 | L116: 0.00 | M116: 0.00 | N116: 0.00 | O116: 0.00 | P116: 0.00 | Q116: 0.00 | R116: 0.00 | S116: 0.00 | T116: 0.00 | U116: 0.00 | V116: 0.00 | W116: 0.00 | X116: 0.00 | Y116: 0.00 | Z116: 0.00 | AA116: 0.00 | AB116: 0.00 | AC116: 0.00 | AD116: 0.00 | AE116: 0.00 | AF116: 0.00 | AG116: 0.00 | AH116: 0.00 | AJ116: 0.00 | AK116: =SUM(AK118) -> 0.00 | AM116: 0.00 | AN116: 0.00 | AO116: 0.00 | AP116: 0.00 | AQ116: 0.00 | AR116: 0.00 | AS116: 0.00 | AT116: 0.00 | AU116: 0.00 | AV116: 0.00 | AW116: 0.00 | AX116: 0.00 | AY116: 0.00 | AZ116: 0.00
A118: 9.02.01 | B118: Sumas libres sin asignación presupuestaria | C118: 0.00 | D118: 267,909,225.46 | E118: 0.00 | F118: 267,909,225.46 | M118: 0.00 | N118: 0.00 | O118: 0.00 | P118: 0.00 | Q118: =SUM(N118:P118) -> 0.00 | R118: =SUM(Q118,M118) -> 0.00 | S118: 0.00 | T118: 0.00 | U118: 0.00 | V118: 0.00 | W118: 0.00 | X118: 0.00 | Y118: 0.00 | Z118: 0.00 | AA118: 0.00 | AB118: 0.00 | AC118: 0.00 | AD118: 0.00 | AE118: =+'OSN PD'!Y131 -> 0.00 | AF118: =+'OSN PD'!Z131 -> 0.00 | AG118: 0.00 | AH118: 0.00 | AJ118: =+'OSN PD'!AC131 -> 0.00 | AK118: =+'OSN PD'!AC131 -> 0.00 | AL118: 0.00 | AM118: 0.00 | AO118: 0.00 | AP118: =SUM(X118:AN118) -> 0.00 | AQ118: 0.00 | AR118: 0.00 | AS118: 0.00 | AT118: 0.00 | AU118: 0.00 | AV118: =+AQ118+AR118+AS118+AT118+AU118 -> 0.00 | AX118: 0.00 | AY118: 0.00 | AZ118: =SUM(AW118:AY118) -> 0.00
A120: TOTAL PRESUPUESTO EGRESOS | C120: =C116+C107+C93+C89+C66+C27+C10 ->  | D120: =D116+D107+D93+D89+D66+D27+D10 -> 267,909,225.46 | E120: -6,137,194.00 | G120: 0.00 | H120: 0.00 | I120: 0.00 | J120: 0.00 | K120: 0.00 | L120: 0.00 | M120: 322,746,104.85 | O120: 139,513,099.84 | P120: 194,042,862.92 | S120: 243,324,026.61 | T120: -92,062,958.19 | X120: -17,282,564.00 | Y120: -177,630.00 | AA120: 0.00 | AB120: 0.00 | AC120: 0.00 | AD120: 0.00 | AE120: 0.00 | AF120: 0.00 | AG120: 0.00 | AH120: 0.00 | AJ120: 0.00 | AK120: =AK116+AK107+AK93+AK89+AK66+AK27+AK10 -> 0.00 | AL120: =AL116+AL107+AL93+AL89+AL66+AL27+AL10 -> 0.00 | AN120: 0.00 | AO120: 0.00 | AQ120: 0.00 | AR120: 0.00 | AS120: 0.00 | AT120: 0.00 | AU120: 0.00 | AV120: 0.00 | AW120: =SUM(AW11:AW119) -> 0.00 | AX120: =AX116+AX107+AX93+AX89+AX66+AX27+AX10 ->  | AY120: =AY116+AY107+AY93+AY89+AY66+AY27+AY10 ->  | AZ120: =AZ116+AZ107+AZ93+AZ89+AZ66+AZ27+AZ10 -> 

Sheet CK GASTOS INM MES 1 (hidden)
A1: MINISTERIO DE CULTURA JUVENTUD Y DEPORTES
A2: CENTRO NACIONAL DE LA MUSICA
A3: FORMACION Y EXTENSION INM | AL3: =+AL54+AL62 -> 0.00
A4: =+'CK GASTOS OSN PD MES 1'!A4 -> INFORME DE EJECUCION PRESUPUESTARIO 2024, EGRESOS | V4: =+'CK GASTOS OSN PD MES 1'!#REF!+V14 ->  | W4: =+W55+W60 -> 0 | AM4: =+AM56+AM57+AM58+AM59 -> 0 | CR4: 25 273 000,00
H5: 0.00 | V5: .
A6: FECHA | B6: DOCTO # | C6: DETALLE PAGO | D6: 0.01.01 | E6: 0.01.05 | F6: 0.02.01 | G6: 0.02.04 | H6: 0.03.01 | I6: 0.03.02 | J6: 0.03.03 | K6: 0.03.04 | L6: 0.03.99 | M6: 0.04.01 | N6: 0.04.05 | O6: 0.05.01 | P6: 0.05.02 | Q6: 0.05.03 | R6: 0.05.05 | S6: 1.01.01 | T6: 1.01.02 | U6: 1.01.04 | V6: 1.01.99 | W6: 1.01.03 | X6: 1.02.01 | Y6: 1.02.02 | Z6: 1.02.03 | AA6: 1.02.04 | AB6: 1.03.01 | AC6: 1.03.02 | AD6: 1.03.03 | AE6: 1.03.04 | AF6: 1.03.05 | AG6: 1.03.06 | AH6: 1.04.02 | AI6: 1.04.03 | AJ6: 1.04.04 | AK6: 1.04.05 | AL6: 1.04.06 | AM6: 1.04.99 | AN6: 1.05.01 | AO6: 1.05.02 | AP6: 1.05.03 | AQ6: 1.05.04 | AR6: 1.06.01 | AS6: 1.07.01 | AT6: 1.07.02 | AU6: 1.08.01 | AV6: 1.08.04 | AW6: 1.08.05 | AX6: 1.08.06 | AY6: 1.08.07 | AZ6: 1.08.08. | BA6: 1.08.99 | BB6: 1.09.02 | BC6: 1.99.02 | BD6: 1.99.99 | BE6: 2.01.01 | BF6: 2.01.02 | BG6: 2.01.04 | BH6: 2.01.99 | BI6: 2.02.03 | BJ6: 2.03.01 | BK6: 2.03.03 | BL6: 2.03.04 | BM6: 2.03.05 | BN6: 2.03.06 | BO6: 2.03.99 | BP6: 2.04.01 | BQ6: 2.04.02 | BR6: 2.99.01 | BS6: 2.99.03 | BT6: 2.99.04 | BU6: 2.99.05 | BV6: 2.99.06 | BW6: 2.99.07 | BX6: 2.99.99 | BY6: 3.04.05 | BZ6: 5.01.01 | CA6: 5.01.02 | CB6: 5.01.03 | CC6: 5.01.04 | CD6: 5.01.05 | CE6: 5.01.07 | CF6: 5.01.99 | CG6: 5.02.01 | CH6: 5.02.99 | CI6: 5.99.03 | CJ6: 5.99.99 | CK6: 6.01.02 | CL6: 6.01.03 200 | CM6: 6.01.03 202 | CN6: 6.02.99 | CO6: 6.03.01 | CP6: 6.03.99 | CQ6: 6.04.01 | CR6: 6.07.01 | CS6: 9.02.01
A7: 2024-04-18 | B7: CHEQUE 35692995 | C7: RICARDO RUBI CAJA CHICA #06 2.99.05 | BU7: 52,297.17
B10: 0.04.05 | C10: Aporte Patronal BPDC | N10: 130,205.00
B11: 0.04.01 | C11: Enferm y Maternidad | M11: 2,411,871.00
B12: 0.05.01 | C12: Invalidez, Vejez y Muerte | O12: 1,411,496.00
B13: 0.05.02 | C13: Fondo Pens Complementaria | P13: 781,248.00
B14: 0.05.03 | C14: Fondo de capitalización Laboral | Q14: 390,630.00
A16: 2024-04-29 | B16: CHEQUE | C16: RICARDO RUBI CAJA CHICA #07 2.04.02 | BQ16: 4,100.00
A17: 2024-04-29 | B17: CHEQUE | C17: RICARDO RUBI CAJA CHICA #07 1.03.03 | AD17: 16,000.00
C19: ASEMICULTURA | R19: 31,995.80
A20: 6.01.03 (200) | B20: APORTE PATRONAL LEY N°17 CONSTITUTIVA DE LA CCSS 1,57% (MARZO) | CL20: 408,855.00
A21: 6.01.03 (202) | B21: APORTE PATRONAL LEY N°17 CONSTITUTIVA DE LA CCSS 0,25% (MARZO) | CM21: 65,104.00
B23: 0.01.01 | C23: Sueldos para cargos fijos | D23: 20,145,980.80
B24: 0.03.01 | C24: Retribución por años servidos | H24: 6,463,009.10
B25: 0.03.99 | C25: Otros incentivos salariales | L25: 216,503.40
B26: 0.03.03 | C26: Prohibicion (SE SUMA CON LA 0.03.02)
B27: 0.02.01 | C27: Tiempo extraordinario | F27: 102,118.80
C28: ajuste INM 0,03,02 | I28: (154,412.50)
B29: 0.03.02 | C29: Restricción al ejercicio liberal de la profesión | I29: 154,412.50
B30: 6.03.99 | C30: Otras prestaciones | CP30: 51,041.70
B31: 0.01.05 | C31: Suplencias
A33: 2024-04-09 | B33: TRANSFERENCIA INTERNACIONAL 004-2024 | C33: PAGO A IBERMUSICAS 2024 | CR33: 25,273,000.00
B34: PAGO MASIVO | C34: CARLOS EDUARDO ZUÑIGA MORA FACTURA 0322 | AM34: 299,880.00
B35: PAGO MASIVO | C35: CARLOS EDUARDO ZUÑIGA MORA FACTURA 0323 | AM35: 64,994.40
B36: PAGO MASIVO | C36: CARLOS EDUARDO ZUÑIGA MORA FACTURA 0328 | AM36: 399,840.00
A37: 20 AL 26 | B37: PAGO MASIVO | C37: DEQUISA S.A. FACT # 5823 | AL37: 2,747,501.27
A38: 2024-04-11 | B38: PAGO MASIVO | C38: OFICSERV FACT 2241 | AL38: 4,326,715.25
B39: PAGO MASIVO | C39: FOREX PRODUCTOS DE LIMPIEZA FACT 4733 | BU39: 144,340.08
B40: PAGO MASIVO | C40: PC CENTRAL FACT 2713 | W40: 1,911,407.24
C41: COMPONENTES EL ORBE S.A FACT 2713 | W41: 524,973.05
A42: 2024-04-16 | B42: PAGO MASIVO | C42: MERCADO DE ARTICULOS DE CONSUMO FACT 1026 | BU42: 174,845.54
C43: DIFERENCIA EN EL BOS 524370,12 FACT EL ORBE
A126: T O T A L E G R E S O S | D126: =SUM(D7:D125) -> 20,145,980.80 | E126: 0.00 | F126: 102,118.80 | G126: 0.00 | H126: 6,463,009.10 | I126: 0.00 | J126: 0.00 | K126: 0.00 | L126: 216,503.40 | M126: 2,411,871.00 | N126: 130,205.00 | O126: 1,411,496.00 | P126: 781,248.00 | Q126: 390,630.00 | R126: 31,995.80 | S126: 0 | T126: 0.00 | U126: 0.00 | V126: 0.00 | W126: 2,436,380.29 | X126: 0 | Y126: 0 | Z126: 0.00 | AA126: 0 | AB126: 0.00 | AC126: 0.00 | AD126: 16,000.00 | AE126: 0 | AF126: 0 | AG126: 0.00 | AH126: 0.00 | AI126: 0.00 | AJ126: =SUM(AJ7:AJ125) -> 0.00 | AK126: 0.00 | AL126: 7,074,216.52 | AM126: 764,714.40 | AN126: 0.00 | AO126: 0.00 | AP126: 0.00 | AQ126: 0 | AR126: 0.00 | AS126: 0.00 | AT126: 0 | AU126: 0.00 | AV126: 0.00 | AW126: 0.00 | AX126: 0.00 | AY126: 0.00 | AZ126: 0.00 | BA126: 0.00 | BB126: 0.00 | BC126: 0.00 | BD126: 0.00 | BE126: 0.00 | BF126: 0.00 | BG126: 0.00 | BH126: 0.00 | BI126: 0.00 | BJ126: 0.00 | BK126: 0.00 | BL126: 0.00 | BM126: 0.00 | BN126: 0.00 | BO126: 0.00 | BP126: =SUM(BP7:BP125) -> 0.00 | BQ126: 4,100.00 | BR126: 0.00 | BS126: 0 | BT126: 0.00 | BU126: 371,482.79 | BV126: 0.00 | BW126: 0.00 | BX126: 0.00 | BY126: 0.00 | BZ126: 0.00 | CA126: 0.00 | CB126: 0.00 | CC126: 0.00 | CD126: 0.00 | CE126: 0.00 | CF126: 0.00 | CG126: 0.00 | CH126: 0.00 | CI126: 0.00 | CJ126: 0.00 | CK126: 0.00 | CL126: 408,855.00 | CM126: 65,104.00 | CN126: 0.00 | CO126: 0.00 | CP126: 51,041.70 | CQ126: 0.00 | CR126: 25,273,000.00 | CS126: 0.00

Sheet CK GASTOS INM MES 2 (hidden)
A1: MINISTERIO DE CULTURA JUVENTUD Y DEPORTES
A2: CENTRO NACIONAL DE LA MUSICA | U2: =+U3-U48 -> 1,933,842.13 | Y2: =145000000/4 -> 36,250,000.00
A3: FORMACION Y EXTENSION INM | U3: 1,933,842.13 | Y3: =+Y2*3 -> 108,750,000.00 | AT3: =550*0.6 -> 330.00
A4: =+'CK GASTOS INM MES 1'!A4 -> INFORME DE EJECUCION PRESUPUESTARIO 2024, EGRESOS | U4: =+U44+U47 -> 0 | V4: 3,388.84 | W4: =+U4/V4 -> 0
CL5: 200.00 | CM5: 202.00
A6: FECHA | B6: DOCTO # | C6: DETALLE PAGO | D6: 0.01.01 | E6: 0.01.05 | F6: 0.02.01 | G6: 0.02.04 | H6: 0.03.01 | I6: 0.03.02 | J6: 0.03.03 | K6: 0.03.04 | L6: 0.03.99 | M6: 0.04.01 | N6: 0.04.05 | O6: 0.05.01 | P6: 0.05.02 | Q6: 0.05.03 | R6: 0.05.05 | S6: 1.01.01 | T6: 1.01.02 | U6: 1.01.03 | V6: 1.01.04 | W6: 1.01.99 | X6: 1.02.01 | Y6: 1.02.02 | Z6: 1.02.03 | AA6: 1.02.04 | AB6: 1.03.01 | AC6: 1.03.02 | AD6: 1.03.03 | AE6: 1.03.04 | AF6: 1.03.05 | AG6: 1.03.06 | AH6: 1.04.02 | AI6: 1.04.03 | AJ6: 1.04.04 | AK6: 1.04.05 | AL6: 1.04.06 | AM6: 1.04.99 | AN6: 1.05.01 | AO6: 1.05.02 | AP6: 1.05.03 | AQ6: 1.05.04 | AR6: 1.06.01 | AS6: 1.07.01 | AT6: 1.07.02 | AU6: 1.08.01 | AV6: 1.08.04 | AW6: 1.08.05 | AX6: 1.08.06 | AY6: 1.08.07 | AZ6: 1.08.08. | BA6: 1.08.99 | BB6: 1.09.02 | BC6: 1.99.02 | BD6: 1.99.99 | BE6: 2.01.01 | BF6: 2.01.02 | BG6: 2.01.04 | BH6: 2.01.99 | BI6: 2.02.03 | BJ6: 2.03.01 | BK6: 2.03.03 | BL6: 2.03.04 | BM6: 2.03.05 | BN6: 2.03.06 | BO6: 2.03.99 | BP6: 2.04.01 | BQ6: 2.04.02 | BR6: 2.99.01 | BS6: 2.99.03 | BT6: 2.99.04 | BU6: 2.99.05 | BV6: 2.99.06 | BW6: 2.99.07 | BX6: 2.99.99 | BY6: 3.04.05 | BZ6: 5.01.01 | CA6: 5.01.02 | CB6: 5.01.03 | CC6: 5.01.04 | CD6: 5.01.05 | CE6: 5.01.07 | CF6: 5.01.99 | CG6: 5.02.01 | CH6: 5.02.99 | CI6: 5.99.03 | CJ6: 5.99.99 | CK6: 6.01.02 | CL6: 6.01.03 | CM6: 6.01.03 | CN6: 6.02.99 | CO6: 6.03.01 | CP6: 6,03,99 | CQ6: 6,04,01 | CR6: 6.07.01 | CS6: 9.02.01 | CT6: 6.06.01
A7: 2024-05-30 | B7: SPMA-115-2024 | C7: CARLOS MORA ZUÑIGA | AM7: 64,994.40
A8: 2024-05-30 | B8: SPMA-115-2024 | C8: CARLOS MORA ZUÑIGA | AM8: 64,994.40
A9: 2024-05-30 | B9: SPMA-115-2024 | C9: CARLOS MORA ZUÑIGA | AM9: 129,988.80
A10: 2024-05-30 | B10: SPMA-115-2024 | C10: CARLOS MORA ZUÑIGA | AM10: 299,880.00
A11: 2024-05-30 | B11: SPMA-115-2024 | C11: Oficsevi | AL11: 4,326,715.25
A12: 2024-05-30 | B12: SPMA-115-2024 | C12: SUR QUIMICA | BU12: 36,287.93
A13: 2024-05-30 | B13: SPMA-115-2024 | C13: DEQUI S.A. | AL13: 2,747,501.28
A14: 2024-05-30 | B14: SPMA-135-2024 | C14: EL ORBE S.A. | U14: 535,006.10
C15: DEVENGO FESA ()PAGA EN JUNIO SPMA-181-2024 | BS15: 33,941.60
A16: 2024-05-16 | B16: CHEQUE 35692997 | C16: RICARDO RUBI CAJA CHICA #08 2.99.05 | BU16: 13,650.00
A17: 2024-05-30 | B17: CHEQUE 35693000-6 | C17: RICARDO RUBI SANCHEZ #10 1.04.06 | AL17: 90,400.00
A18: 2024-05-30 | B18: CHEQUE 35693000-6 | C18: RICARDO RUBI SANCHEZ #10 2.99.05 | BU18: 17,600.00
A19: 2024-05-30 | B19: SPMA-138-2024 | C19: CARLOS MORA ZUÑIGA | AM19: 299,880.00
A20: 2024-05-30 | B20: SPMA-145-2024 | C20: PC CENTRAL S.A. | U20: 2,000,957.01
C21: DB PAGO CNFL P.A.R. // CNFL 313424 | X21: 0 | Y21: 828,060.00
C22: ASEMICULTURA | R22: 62,693.55
A23: 6.01.03 (200) | B23: APORTE PATRONAL LEY N°17 CONSTITUTIVA DE LA CCSS 1,57% (MARZO) | CL23: 425,187.79
A24: 6.01.03 (202) | B24: APORTE PATRONAL LEY N°17 CONSTITUTIVA DE LA CCSS 0,25% (MARZO) | CM24: 67,705.06
A25: 00:00:00 | B25: 0.04.05 | C25: Aporte Patronal BPDC | N25: 135,406.00
B26: 0.04.01 | C26: Enferm y Maternidad | M26: 2,520,042.00
B27: 0.05.01 | C27: Invalidez, Vejez y Muerte | O27: 1,474,295.00
B28: 0.05.02 | C28: Fondo Pens Complementaria | P28: 812,458.00
B29: 0.05.03 | C29: Fondo de capitalización Laboral | Q29: 406,235.00
B31: 0.01.01 | C31: Sueldos para cargos fijos | D31: 32,494,152.88
B32: 0.03.01 | C32: Retribución por años servidos | H32: 6,504,166.20
B33: 0.03.99 | C33: Otros incentivos salariales | L33: 215,594.20
B34: 0.03.03 | C34: Prohibicion
B35: 0.02.01 | C35: Tiempo extraordinario | F35: 106,337.35
B36: 0.03.02 | C36: Restricción al ejercicio liberal de la profesión (se ajusto el monto de 234047,92 a la OSN xq no queda saldo )
B37: 6.03.99 | C37: Otras prestaciones | CP37: 70,767.00
A193: T O T A L E G R E S O S | D193: =SUM(D7:D192) -> 32,494,152.88 | E193: 0 | F193: 106,337.35 | G193: 0 | H193: 6,504,166.20 | I193: 0 | J193: 0 | K193: 0 | L193: 215,594.20 | M193: 2,520,042.00 | N193: 135,406.00 | O193: 1,474,295.00 | P193: 812,458.00 | Q193: 406,235.00 | R193: 62,693.55 | S193: 0 | T193: 0 | U193: 2,535,963.11 | V193: 0 | W193: 0 | X193: 0 | Y193: 828,060.00 | Z193: 0 | AA193: 0 | AB193: 0 | AC193: 0 | AD193: 0 | AE193: 0 | AF193: 0 | AG193: 0 | AH193: 0 | AI193: 0 | AJ193: =SUM(AJ7:AJ192) -> 0 | AK193: 0 | AL193: 7,164,616.53 | AM193: =SUM(AM7:AM192) -> 859,737.60 | AN193: 0 | AO193: 0 | AP193: 0 | AQ193: 0 | AR193: 0 | AS193: 0 | AT193: 0 | AU193: 0 | AV193: 0 | AW193: 0 | AX193: 0 | AY193: 0 | AZ193: 0 | BA193: 0 | BB193: 0 | BC193: 0 | BD193: 0 | BE193: 0 | BF193: 0 | BG193: 0 | BH193: 0 | BI193: 0 | BJ193: 0 | BK193: 0 | BL193: 0 | BM193: 0 | BN193: 0 | BO193: 0 | BP193: =SUM(BP7:BP192) -> 0 | BQ193: 0 | BR193: 0 | BS193: 33,941.60 | BT193: 0 | BU193: 67,537.93 | BV193: 0 | BW193: 0 | BX193: 0 | BY193: 0 | BZ193: 0 | CA193: 0 | CB193: 0 | CC193: 0 | CD193: 0 | CE193: 0 | CF193: 0 | CG193: 0 | CH193: 0 | CI193: 0 | CJ193: 0 | CK193: 0 | CL193: 425,187.79 | CM193: 67,705.06 | CN193: 0 | CO193: 0 | CP193: 70,767.00 | CQ193: 0 | CR193: 0 | CS193: 0 | CT193: 0
AL196: =+AL193+'CK GASTOS INM MES 1'!AL20 -> 7,164,616.53

Sheet CK GASTOS INM MES 3 (hidden)
A1: MINISTERIO DE CULTURA JUVENTUD Y DEPORTES
A2: CENTRO NACIONAL DE LA MUSICA | Z2: 23266.96 | CI2: 10,000,000.00
A3: FORMACION Y EXTENSION INM | S3: 548,717.50 | T3: 2003767.79 | V3: 844,927.20 | Z3: =+AA44-Z2 -> 2,133.16 | BU3: 111,340.02 | BV3: =+BV4-BU3 -> 1,666.85 | CB3: =+'CK GASTOS INM MES 3'!#REF!-CB4 ->  | CI3: =+CI2/567 -> 17,636.68 | CS3: 17,748,000.00
A4: =+'CK GASTOS INM MES 2'!A4 -> INFORME DE EJECUCION PRESUPUESTARIO 2024, EGRESOS | S4: =+U41-S3 -> 133.55 | T4: =+U43-T3 -> 9,716.31 | V4: =+W38-V3 -> 19,107.80 | BS4: =+#REF!+#REF! ->  | BU4: =+BU47:BU48 -> 111,234.70 | BV4: =+BU4+BU5 -> 113,006.87 | CB4: 877340.71 | CS4: -9,502,000.00
BU5: 1772.17 | CL5: 200 | CM5: 202
A6: FECHA | B6: DOCTO # | C6: DETALLE PAGO | D6: 0.01.01 | E6: 0.01.05 | F6: 0.02.01 | G6: 0.02.04 | H6: 0.03.01 | I6: 0.03.02 | J6: 0.03.03 | K6: 0.03.04 | L6: 0.03.99 | M6: 0.04.01 | N6: 0.04.05 | O6: 0.05.01 | P6: 0.05.02 | Q6: 0.05.03 | R6: 0.05.05 | S6: 1.01.01 | T6: 1.01.02 | U6: 1.01.03 | V6: 1.01.04 | W6: 1.01.99 | X6: 1.02.01 | Y6: 1.02.02 | Z6: 1.02.03 | AA6: 1.02.04 | AB6: 1.03.01 | AC6: 1.03.02 | AD6: 1.03.03 | AE6: 1.03.04 | AF6: 1.03.05 | AG6: 1.03.06 | AH6: 1.04.02 | AI6: 1.04.03 | AJ6: 1.04.04 | AK6: 1.04.05 | AL6: 1.04.06 | AM6: 1.04.99 | AN6: 1.05.01 | AO6: 1.05.02 | AP6: 1.05.03 | AQ6: 1.05.04 | AR6: 1.06.01 | AS6: 1.07.01 | AT6: 1.07.02 | AU6: 1.08.01 | AV6: 1.08.04 | AW6: 1.08.05 | AX6: 1.08.06 | AY6: 1.08.07 | AZ6: 1.08.08. | BA6: 1.08.99 | BB6: 1.09.02 | BC6: 1.99.02 | BD6: 1.99.99 | BE6: 2.01.01 | BF6: 2.01.02 | BG6: 2.01.04 | BH6: 2.01.99 | BI6: 2.02.03 | BJ6: 2.03.01 | BK6: 2.03.03 | BL6: 2.03.04 | BM6: 2.03.05 | BN6: 2.03.06 | BO6: 2.03.99 | BP6: 2.04.01 | BQ6: 2.04.02 | BR6: 2.99.01 | BS6: 2.99.03 | BT6: 2.99.04 | BU6: 2.99.05 | BV6: 2.99.06 | BW6: 2.99.07 | BX6: 2.99.99 | BY6: 3.04.05 | BZ6: 5.01.01 | CA6: 5.01.02 | CB6: 5.01.03 | CC6: 5.01.04 | CD6: 5.01.05 | CE6: 5.01.07 | CF6: 5.01.99 | CG6: 5.02.01 | CH6: 5.02.99 | CI6: 5.99.03 | CJ6: 5.99.99 | CK6: 6.01.02 | CL6: 6.01.03 | CM6: 6.01.03 | CN6: 6.02.99 | CO6: 6.03.01 | CP6: 6.03.99 | CQ6: 6.04.01 | CR6: 6.06.01 | CS6: 6.07.01
A7: 2024-06-20 | B7: CHEQUE | C7: RICARDO RUBI CAJA CHICA #11 2.99.05 | BU7: 20,000.00
A9: 2024-06-26 | B9: SPMA-158-2024 | C9: DEQUI S.A. | AL9: 2,747,501.28
A10: 2024-06-26 | B10: SPMA-158-2024 | C10: CARLOS MORA ZUÑIGA | AM10: 519,955.20
A11: 2024-06-26 | B11: SPMA-158-2024 | C11: CARLOS MORA ZUÑIGA | AM11: 299,880.00
A13: 2024-06-27 | B13: SPMA-181-2024 | C13: CARLOS MORA ZUÑIGA 343 | AM13: 389,966.40
B15: 0.05.05 | C15: ASEMICULTURA | R15: =59471.4-30950.7 -> 28,520.70
A16: 6.01.03 (200) | B16: APORTE PATRONAL LEY N°17 CONSTITUTIVA DE LA CCSS 1,57% (MAYO) | CL16: 585,310.60
A17: 6.01.03 (202) | B17: APORTE PATRONAL LEY N°17 CONSTITUTIVA DE LA CCSS 0,25% (MAYO) | CM17: 98,885.75
B19: 0.04.05 | C19: Aporte Patronal BPDC | N19: 144,421.00
B20: 0.04.01 | C20: Enferm y Maternidad | M20: 308,251.00
B21: 0.05.01 | C21: Invalidez, Vejez y Muerte | O21: 1,565,554.00
B22: 0.05.02 | C22: Fondo Pens Complementaria | P22: 866,542.00
B23: 0.05.03 | C23: Fondo de capitalización Laboral | Q23: 433,272.00
B25: 0.01.01 | C25: Sueldos para cargos fijos | D25: 21,035,596.65
B26: 0.03.01 | C26: Retribución por años servidos | H26: 6,440,400.00
B27: 0.03.99 | C27: Otros incentivos salariales | L27: 214,685.00
B28: 0.02.01 | C28: Tiempo extraordinario | F28: 101,644.95
B29: 0.03.02 | C29: Restricción al ejercicio liberal de la profesión | I29: 0.00
B30: 6.03.99 | C30: Otras prestaciones | CP30: =8659.9-46.55 -> 8,613.35
C31: ajuste del CNFL traido del OSN | Y31: 248,315.00
A32: 2024-06-01 | B32: DEVENGO | C32: PC CENTRAL (PAGADO EN EL PAGO MASIVO SPAM 217) FACT 26333 | U32: 2,019,519.88
A33: 2024-06-30 | C33: AJESTE FACTURA PC CENTRAL | U33: 464,690.25
A34: 2024-06-13 | C34: ORBE (PAGADO EN EL PAGO MASIVO SPAM 217) | U34: 548,851.05
A35: 2024-06-18 | C35: LLANTAS DEL PACIFICO (PAGADO EN EL PAGO MASIVO SPAM 228) | BQ35: 146,900.00
A36: 2024-06-01 | C36: MERCA S.A (PAGADO EN EL PAGO MASIVO SPAM 203) | BU36: 223,043.74
A37: 2024-06-01 | C37: GYR GRUPO ASESOR S,A (PAGADO EN EL PAGO MASIVO SPAM 203) | AL37: 329,206.29
C38: CARLOS MORA ZÚÑIGA (PAGADO EN EL PAGO MASIVO SPAM 217) | W38: 864,035.00
B41: DEVENGO SIN HOJA | C41: ORBE FACT 36709 | U41: 548,851.05
C42: AJUSTE FACTURA ENERO PC CENTRAL (AJUSTE EN OSN)
C43: PC CENTRAL FACT 29398 | U43: 2,013,484.10
C44: ICE FACT 64933 SPAM 203 | AA44: 25,400.12
C45: ICE FACT T98335 SPAM 203 | AA45: 23,266.96
C46: ICE FACT 18433 SPAM 203 | AA46: 18,177.35
C47: CORP CEK FACT 1496 SPAM 217 | BU47: 111,234.70
BU48: 1,772.17
A56: T O T A L E G R E S O S | D56: =SUM(D7:D55) -> 21,035,596.65 | E56: 0.00 | F56: 101,644.95 | G56: 0.00 | H56: 6,440,400.00 | I56: 0.00 | J56: 0.00 | K56: 0.00 | L56: 214,685.00 | M56: 308,251.00 | N56: 144,421.00 | O56: 1,565,554.00 | P56: 866,542.00 | Q56: 433,272.00 | R56: 28,520.70 | S56: 0 | T56: 0.00 | U56: 5,595,396.33 | V56: 0.00 | W56: 864,035.00 | X56: 0 | Y56: 248,315.00 | Z56: 0.00 | AA56: 66,844.43 | AB56: 0.00 | AC56: 0.00 | AD56: 0 | AE56: 0 | AF56: 0 | AG56: 0.00 | AH56: 0.00 | AI56: 0.00 | AJ56: =SUM(AJ7:AJ55) -> 0.00 | AK56: 0.00 | AL56: 3,076,707.57 | AM56: 1,209,801.60 | AN56: 0.00 | AO56: 0.00 | AP56: 0.00 | AQ56: 0.00 | AR56: 0.00 | AS56: 0.00 | AT56: 0.00 | AU56: 0 | AV56: 0.00 | AW56: 0.00 | AX56: 0.00 | AY56: 0.00 | AZ56: 0.00 | BA56: 0.00 | BB56: 0.00 | BC56: 0.00 | BD56: 0.00 | BE56: 0.00 | BF56: 0.00 | BG56: 0.00 | BH56: 0.00 | BI56: 0.00 | BJ56: 0.00 | BK56: 0.00 | BL56: 0.00 | BM56: 0.00 | BN56: 0.00 | BO56: 0.00 | BP56: =SUM(BP7:BP55) -> 0.00 | BQ56: 146,900.00 | BR56: 0.00 | BS56: 0 | BT56: 0.00 | BU56: 356,050.61 | BV56: 0.00 | BW56: 0.00 | BX56: 0.00 | BY56: 0.00 | BZ56: 0.00 | CA56: 0.00 | CB56: 0.00 | CC56: 0.00 | CD56: 0.00 | CE56: 0.00 | CF56: 0.00 | CG56: 0.00 | CH56: 0.00 | CI56: 0.00 | CJ56: 0.00 | CK56: 0.00 | CL56: 585,310.60 | CM56: 98,885.75 | CN56: 0.00 | CO56: 0.00 | CP56: 8,613.35 | CQ56: 0.00 | CR56: 0.00 | CS56: 0.00

Sheet Cert.INM-FEM (hidden)
A1: MINISTERIO DE CULTURA JUVENTUD Y DEPORTES
A2: CENTRO NACIONAL DE LA MUSICA
A3: PRODUCCION OSN | BS3: 155,233.34 | BU3: =+BU14+BU15+BU36+BU37+BU50+BU51+BU54+BU55+BU62+BU63 -> 0 | BV3: 307,784.20 | BX3: 25,416,505.03 | BY3: =+BX3/6 -> 4,236,084.17 | CG3: =+#REF!-5877422.19 -> 
A4: =+'Cert.OSN PD'!A4 -> INFORME DE EJECUCION PRESUPUESTARIO 2022, EGRESOS | BU4: =+BU31+BU32+BU33+BU35+BU47+BU58+BU59+BU73+BU64 -> 23,380.00 | BV4: =+BU60-BV3 -> -307,784.20
A6: FECHA | B6: CERT # | C6: DETALLE PAGO | D6: 0.01.01 | E6: 0.01.05 | F6: 0.02.01 | G6: 0.02.04 | H6: 0.03.01 | I6: 0.03.02 | J6: 0.03.03 | K6: 0.03.04 | L6: 0.03.99 | M6: 0.04.01 | N6: 0.04.05 | O6: 0.05.01 | P6: 0.05.02 | Q6: 0.05.03 | R6: 1.01.01 | S6: 1.01.02 | T6: 1.01.03 | U6: 1.01.04 | V6: 1.01.99 | W6: 1.02.01 | X6: 1.02.02 | Y6: 1.02.03 | Z6: 1.02.04 | AA6: 1.03.01 | AB6: 1.03.02 | AC6: 1.03.03 | AD6: 1.03.04 | AE6: 1.03.05 | AF6: 1.03.06 | AG6: 1.04.02 | AH6: 1.04.03 | AI6: 1.04.04 | AJ6: 1.04.05 | AK6: 1.04.06 | AL6: 1.04.99 | AM6: 1.05.01 | AN6: 1.05.02 | AO6: 1.05.03 | AP6: 1.05.04 | AQ6: 1.06.01 | AR6: 1.07.01 | AS6: 1.07.02 | AT6: 1.07.03 | AU6: 1.08.01 | AV6: 1.08.04 | AW6: 1.08.05 | AX6: 1.08.06 | AY6: 1.08.07 | AZ6: 1.08.08. | BA6: 1.08.99 | BB6: 1.09.02 | BC6: 1.99.02 | BD6: 1.99.99 | BE6: 2.01.01 | BF6: 2.01.02 | BG6: 2.01.04 | BH6: 2.01.99 | BI6: 2.02.03 | BJ6: 2.03.01 | BK6: 2.03.03 | BL6: 2.03.04 | BM6: 2.03.05 | BN6: 2.03.06 | BO6: 2.03.99 | BP6: 2.04.01 | BQ6: 2.04.02 | BR6: 2.99.01 | BS6: 2.99.03 | BT6: 2.99.04 | BU6: 2.99.05 | BV6: 2.99.06 | BW6: 2.99.07 | BX6: 2.99.99 | BY6: 3.04.05 | BZ6: 5.01.01 | CA6: 5.01.02 | CB6: 5.01.03 | CC6: 5.01.04 | CD6: 5.01.05 | CE6: 5.01.07 | CF6: 5.01.99 | CG6: 5.02.01 | CH6: 5.02.99 | CI6: 5.99.03 | CJ6: 5.99.99 | CK6: 6.01.02 | CL6: 6.02.99 | CM6: 6.03.01 | CN6: 6.03.99 | CO6: 6.06.01 | CP6: 6.07.01 | CQ6: 6.04.01 | CR6: 9.02.01
A8: 2024-01-11 | B8: 01 | C8: CONTRATACION UTILERIA DEL INM Y OSN | AL8: 7,000,000.00
A9: 2024-01-24 | B9: 03 | C9: CONTRATO LIMPIEZA ENERO, FEBRERO Y MARZO DE LAS INSTALACIONES DEL CNM | AK9: 8,242,503.84
A10: 2024-01-24 | B10: 04 | C10: CONTRATO DE LIMPIEZA DE LOS MESES DE ABRIL A DICIEMBRE 2024 | AK10: 24,727,511.52
A11: 2024-01-31 | B11: 13 | C11: COMPRA UTILES DE LIMPIEZA | BU11: 725,000.00
A12: 2024-01-31 | B12: 15 | C12: PAGO DE MENSUALIDAD DEL EQUIPO DE COMPUTO FUNCIONARIOS 2024 de ENERO A JULIO | T12: 15,199,852.34
A13: 2024-01-31 | B13: 16 | C13: PAGO ALQUILER MULTIFUNCIONALES PARA EL 2024 | T13: 4,164,160.00
A14: 2024-01-31 | B14: 17 | C14: SERVICIO DE SEGURIDAD DE ENERO A JUNIO 2024 | AK14: 26,469,316.80
A15: 2024-02-09 | B15: 20 | C15: TELECOMUNICACIONES CNM | Z15: 1,313,595.00
A16: 2024-02-16 | B16: 27 | C16: PAGO DE SERVICIOS DE CHAPEA Y LIMPIEZA DE CANOAS DEL CNM | AK16: 2,000,000.00
A17: 2024-02-23 | B17: 31 | C17: CANCELACION DE ALQUILER DE EQUIPO DE COMPUTO AGOSTO-DICIEMBRE 2024. | T17: 13,830,960.00
A18: 2024-03-05 | B18: 32 | C18: ANULADA PAGO DE LAVADO DE TOGAS DEL CSN. | AK18: -760,000.00
A19: 2024-03-07 | B19: 34 | C19: PAGO DE PREMIOS NACIONALES SEGUN LEY N°9211 | CL19: 8,416,800.00
A20: 2024-03-07 | B20: 38 | C20: PAGO DE LICENCIAS FINALE V27 | CI20: 1,000,000.00
C21: SE CADUCA CERTIFICACION 38 | CI21: -1,000,000.00
A22: 2024-03-07 | B22: 40 | C22: COMPRA DE TONER PARA IMPRESORAS | BG22: 200,000.00
A23: 2024-03-08 | B23: 48 | C23: 120 RESMAS DE PAPEL | BS23: 150,000.00
C24: SE CADUCA CERTIFICACION 48 | BS24: -116,058.40
A25: 2024-03-11 | B25: 51 | C25: CUOTA IBERMUSICAS AÑO 2024 | CP25: =50000*564 -> 28,200,000.00
A26: 2024-03-11 | B26: 52 | C26: AFINAR PIANOS DE CNM | BA26: 1,000,000.00
A27: 2024-03-13 | B27: 54 | C27: COMPRA DE LLANTAS PARA EL VEHICULO 17-323. | BQ27: 300,000.00
C28: SE CADUCA CERTIFICACION 54 | BQ28: -153,100.00
A29: 2024-03-13 | B29: 55 | C29: COMPRA DE SUMINISTROS DE LIMPIEZA | BU29: 550,000.00
A30: 2024-03-13 | B30: 56 | C30: compra de parches para el mantenimiento adecuado de los instrumentos | BA30: 1,000,000.00
C31: CAJA CHICA 2.99.05 | BU31: =23380 -> 23,380.00
C32: CAJA CHICA 1.04.06 | AK32: 56,500.00
A33: 2024-03-19 | B33: 60 | C33: PAGO DE PRÓRROGA de su póliza: 01-01-RT-225830-00 de Riesgos del Trabajo correspondiente al período del 01/01/2024 al 31/12/2024 | AQ33: 1,000,000.00
A34: ABRIL
A35: 2024-04-05 | B35: 66 | C35: SERVICIO DE SEGURIDAD DE JULIO A DICIEMBRE 2024 | AK35: 15,960,291.52
C37: PRIMERA MODIFICACION EXTRAORDINARIA ABRIL 1-2024 ESPERA DE APROBACION (6,02,99 - 6,07,01) | CL37: 3,083,200.00
CP38: 1,900,000.00
A39: 2024-04-10 | B39: 69 | C39: COMPRA DE INSTRUMENTOS MUSICALES (TUBAS) | CE39: 14,983,641.00
A40: 2024-04-23 | B40: H-005-2024 | C40: MODIFICACION DGPN H-005 ABRIL 2024 (1.01.03-1.06.01-6.02.99) YA ESTA INCLUIDA
A42: 2024-05-09 | B42: 72 | C42: COMPRA DE SUMINISTROS DE LIMPIEZA | BU42: 375,000.00
C43: SE CADUCA CERTIFICACION 72 | BU43: -38,950.20
A44: 2024-05-15 | B44: 74 | C44: PAGO DE LAVADO DE TOGAS DEL CSN. | AK44: 987,620.00
A45: 2024-04-15 | B45: 75 | C45: ALQUILER DE PARTITURAS MUSICALES | V45: 864,035.00
A46: 2024-05-16 | B46: 85 | C46: CONCURSO DE COMPOSICION ORQUESTAL 2024 | CL46: 1,718,500.00
A47: 2024-06-10 | B47: 91 | C47: COMPRA DE PAPEL BOND, OFICIO Y DOBLE CARTA | BS47: 150,000.00
A48: 2024-05-09 | B48: 100 | C48: COMPRA UTILES DE LIMPIEZA (AJUSTADA) | BA48: 0 | BS48: 86,429.80 | BU48: 365,570.20
A49: 2024-07-04 | B49: 111 | C49: LIMPIEZA DE CANOAS | AK49: 400,000.00
A50: 2024-07-15 | B50: 121 | C50: Pago de reclamo del señor Mauricio Montero | CO50: 781,500.00
A51: 2024-07-24 | B51: 123 | C51: POLIZA DE INCENDIO | AQ51: 2,377,000.00
A52: 2024-07-30 | B52: 126 | C52: COMPRA REPUESTOS Y ACCESORIOS | BQ52: 180,138.26
C53: AJUSTE CAJA CHICA | BQ53: 4,100.00
A373: T O T A L C E R T F I C A D O | D373: =SUM(D8:D372) -> 0 | E373: 0 | F373: 0 | G373: 0 | H373: 0 | I373: 0 | J373: 0 | K373: 0 | L373: 0 | M373: 0 | N373: 0 | O373: 0 | P373: 0 | Q373: 0 | R373: =SUM(R7:R372) -> 0 | S373: =SUM(S8:S372) -> 0 | T373: 33,194,972.34 | U373: 0 | V373: 864,035.00 | W373: 0 | X373: 0 | Y373: 0 | Z373: 1,313,595.00 | AA373: 0 | AB373: 0 | AC373: 0 | AD373: 0 | AE373: 0 | AF373: 0 | AG373: 0 | AH373: 0 | AI373: 0 | AJ373: 0 | AK373: =SUM(AK7:AK372) -> 78,083,743.68 | AL373: =SUM(AL7:AL372) -> 7,000,000.00 | AM373: =SUM(AM8:AM372) -> 0 | AN373: 0 | AO373: 0 | AP373: 0 | AQ373: 3,377,000.00 | AR373: 0 | AS373: 0 | AT373: 0 | AU373: 0 | AV373: 0 | AW373: 0 | AX373: 0 | AY373: 0 | AZ373: 0 | BA373: 2,000,000.00 | BB373: 0 | BD373: =SUM(BD8:BD372) -> 0 | BE373: 0 | BF373: 0 | BG373: 200,000.00 | BH373: 0 | BI373: 0 | BJ373: 0 | BK373: 0 | BL373: 0 | BM373: 0 | BN373: 0 | BO373: 0 | BP373: 0 | BQ373: 331,138.26 | BR373: 0 | BS373: 270,371.40 | BT373: 0 | BU373: 2,000,000.00 | BV373: 0 | BW373: 0 | BX373: 0 | BY373: 0 | BZ373: 0 | CA373: 0 | CB373: 0 | CC373: 0 | CD373: 0 | CE373: 14,983,641.00 | CF373: 0 | CG373: 0 | CH373: 0 | CI373: 0 | CJ373: 0 | CK373: 0 | CL373: 13,218,500.00 | CM373: 0 | CN373: 0 | CO373: =SUM(CO7:CO372) -> 781,500.00 | CP373: =SUM(CP8:CP372) -> 30,100,000.00 | CQ373: =SUM(CQ8:CQ372) -> 0 | CR373: =SUM(CR8:CR372) -> 0

Sheet INM
A1: CENTRO NACIONAL DE LA MÚSICA
A2: =+'OSN PD'!A2 -> PRESUPUESTO ORDINARIO 2024
A3: TOTAL EGRESOS
A4: INM
C7: =+'OSN PD'!C7:F7 -> P R E S U P U E S T O 2 0 2 4 | H7: ACUMULADO | I7: =+'OSN PD'!H7:H8 -> ABRIL | J7: =+'OSN PD'!I7:I8 -> MAYO | K7: =+'OSN PD'!J7:J8 -> JUNIO | L7: III ESTE TRIMESTRE | M7: TOTAL | N7: CERTIFICADO TOTAL | O7: COMPROMISOS | P7: DISPONIBLE SEGÚN EJECUCION | Q7: DISPONIBLE SEGUN EJE CERTIFICADA | R7: DISPONIBLE CON COMPROMISOS | S7: CUADRO DE MODIFICACIONES INTERNAS | AU7: CUADRO DE MODIFICACIONES EXTERNAS | BA7: CUADRO DE PRESUPUESTO EXTRAORDINARIO
A8: PARTIDAS Y SUBPARTIDAS | C8: PRESUPUESTO ORDINARIO | D8: TOTAL PRESUPUESTO EXTRAORDINARIOS | E8: SUBEJECUCION | F8: TOTAL MODIFICACIONES INT. - EXT. | G8: PRESUPUESTO FINAL | S8: INTERNA Nº 1 1er. Modificación Presupuestaria (DGPN-H-008) | T8: INTERNA Nº 2 DGPN-H-003 | U8: INTERNA Nº 3 DGPN-H-005 | V8: INTERNA Nº 4 DGPN H-006 | W8: INTERNA Nº 5 | X8: EXTRAORDINARIO H-012 | Y8: INTERNA Nº 7 | Z8: INTERNA Nº 8 | AA8: INTERNA Nº 9 | AB8: INTERNA Nº 10 | AC8: INTERNA Nº 11 | AD8: INTERNA Nº 12 | AE8: INTERNA Nº 13 | AF8: INTERNA Nº 14 | AG8: INTERNA Nº 15 | AH8: INTERNA Nº 16 | AI8: INTERNA Nº 17 | AJ8: INTERNA Nº 18 | AK8: INTERNA Nº 19 | AL8: INTERNA Nº 20 | AM8: INTERNA Nº 21 | AN8: INTERNA Nº 22 | AO8: INTERNA Nº 23 | AP8: INTERNA Nº 24 | AQ8: INTERNA Nº 25 | AR8: INTERNA Nº 26 | AS8: INTERNA Nº 27 | AT8: TOTAL MODIFICACION INTERNA | AU8: EXTERNA Nº 01 | AV8: EXTERNA Nº 02 | AW8: EXTERNA Nº 03 | AX8: EXTERNA Nº 04 | AY8: EXTERNA Nº05 | AZ8: TOTAL MODIFICACION EXTERNA | BA8: EXTRAORD Nº 001 | BB8: E=TRAORD DECRETO H-17 | BC8: E=TRAORD agosto | BD8: EXTRAORD Nº 004 | BE8: EXTRAORD Nº 005 | BF8: EXTRAORD Nº 006 | BG8: EXTRAORD Nº 007 | BH8: TOTAL EXTRAOR
A10: 0 | B10: REMUNERACIONES | C10: =SUM(C12:C26) -> 524,234,368.00 | D10: =SUM(D12:D25) -> 0.00 | E10: =SUM(E12:E25) -> 0.00 | F10: =SUM(F12:F25) -> 2,149,108.00 | G10: =SUM(G12:G26) -> 526,383,476.00 | H10: =SUM(H12:H26) -> 126,404,676.05 | I10: =SUM(I12:I26) -> 32,085,057.90 | J10: 44,731,380.18 | K10: =SUM(K12:K26) -> 31,138,887.30 | L10: 107,955,325.38 | M10: 234,360,001.43 | N10: =SUM(N12:N26) -> 0.00 | O10: 0.00 | P10: 292,023,474.57 | Q10: 526,383,476.00 | R10: 292,023,474.57 | S10: =SUM(S12:S25) -> 2,149,108.00 | T10: 0.00 | U10: 0.00 | V10: 0.00 | W10: 0.00 | X10: 0.00 | Y10: 0.00 | Z10: 0.00 | AA10: 0.00 | AB10: 0.00 | AC10: 0.00 | AD10: =SUM(AD12:AD25) -> 0.00 | AE10: =SUM(AE12:AE25) -> 0.00 | AF10: =SUM(AF12:AF25) -> 0.00 | AG10: 0.00 | AH10: 0.00 | AI10: 0.00 | AJ10: 0.00 | AK10: 0.00 | AL10: 0.00 | AM10: 0.00 | AN10: 0.00 | AO10: 0.00 | AP10: 0.00 | AQ10: 0.00 | AT10: 2,149,108.00 | AU10: 0.00 | AV10: 0.00 | AW10: 0.00 | AX10: 0.00 | AY10: 0.00 | AZ10: 0.00 | BA10: 0.00 | BB10: 0.00 | BC10: 0.00 | BD10: 0.00 | BE10: 0.00 | BF10: 0.00 | BG10: 0.00 | BH10: 0.00
A12: 0.01.01 | B12: Sueldos para cargos fijos | C12: 286,574,513.00 | D12: =+BH12 -> 0.00 | F12: =+AT12 -> 22,912,551.00 | G12: =+C12+D12+F12+E12 -> 309,487,064.00 | H12: 56,855,705.80 | I12: ='CK GASTOS INM MES 1'!D126 -> 20,145,980.80 | J12: ='CK GASTOS INM MES 2'!D193 -> 32,494,152.88 | K12: =+'CK GASTOS INM MES 3'!D56 -> 21,035,596.65 | L12: =SUM(I12:K12) -> 73,675,730.33 | M12: =+L12+H12 -> 130,531,436.13 | N12: =+'Cert.INM-FEM'!D373 -> 0.00 | O12: =IF(N12>0,(M12-N12),0) -> 0.00 | P12: =G12-M12 -> 178,955,627.87 | Q12: =G12-N12 -> 309,487,064.00 | R12: =IF(O12>0,(G12-M12-O12),(G12-M12+O12)) -> 178,955,627.87 | S12: 22,912,551.00 | AT12: =SUM(S12:AS12) -> 22,912,551.00 | AU12: =+'INM-FEM'!AD12+'INM-AC'!X12 -> 0.00 | AV12: =+'INM-FEM'!AE12+'INM-AC'!Y12 -> 0.00 | AW12: =+'INM-FEM'!AF12+'INM-AC'!Z12 -> 0.00 | AX12: =+'INM-FEM'!AG12+'INM-AC'!AA12 -> 0.00 | AY12: =+'INM-FEM'!AH12+'INM-AC'!AB12 -> 0.00 | AZ12: =+AU12+AV12+AW12+AX12+AY12 -> 0.00 | BH12: =SUM(BA12:BG12) -> 0.00
A13: 0.01.05 | B13: Suplencias | C13: 1,000,000.00 | D13: =+BH13 -> 0.00 | F13: =+AT13 -> 0.00 | G13: 1,000,000.00 | H13: 0.00 | I13: ='CK GASTOS INM MES 1'!E126 -> 0.00 | J13: ='CK GASTOS INM MES 2'!E193 -> 0 | K13: ='CK GASTOS INM MES 3'!E56 -> 0.00 | L13: 0.00 | M13: 0.00 | N13: =+'Cert.INM-FEM'!E373 -> 0.00 | O13: 0.00 | P13: 1,000,000.00 | Q13: 1,000,000.00 | R13: 1,000,000.00 | AT13: =SUM(S13:AS13) -> 0.00 | AU13: =+'INM-FEM'!AD13+'INM-AC'!X13 -> 0.00 | AV13: =+'INM-FEM'!AE13+'INM-AC'!Y13 -> 0.00 | AW13: =+'INM-FEM'!AF13+'INM-AC'!Z13 -> 0.00 | AX13: =+'INM-FEM'!AG13+'INM-AC'!AA13 -> 0.00 | AY13: =+'INM-FEM'!AH13+'INM-AC'!AB13 -> 0.00 | AZ13: 0.00 | BH13: =SUM(BA13:BG13) -> 0.00
A14: 0.02.01 | B14: Tiempo extraordinario | C14: 700,000.00 | D14: =+BH14 -> 0.00 | F14: 0.00 | G14: 700,000.00 | H14: 102,992.60 | I14: ='CK GASTOS INM MES 1'!F126 -> 102,118.80 | J14: ='CK GASTOS INM MES 2'!F193 -> 106,337.35 | K14: ='CK GASTOS INM MES 3'!F56 -> 101,644.95 | L14: 310,101.10 | M14: 413,093.70 | N14: =+'Cert.INM-FEM'!F373 -> 0.00 | O14: 0.00 | P14: 286,906.30 | Q14: 700,000.00 | R14: 286,906.30 | AT14: 0.00 | AU14: =+'INM-FEM'!AD14+'INM-AC'!X14 -> 0.00 | AV14: =+'INM-FEM'!AE14+'INM-AC'!Y14 -> 0.00 | AW14: =+'INM-FEM'!AF14+'INM-AC'!Z14 -> 0.00 | AX14: =+'INM-FEM'!AG14+'INM-AC'!AA14 -> 0.00 | AY14: =+'INM-FEM'!AH14+'INM-AC'!AB14 -> 0.00 | AZ14: 0.00 | BH14: =SUM(BA14:BG14) -> 0.00
A15: 0.02.04 | B15: Vacaciones | D15: 0.00 | F15: 0.00 | G15: 0.00 | H15: 0.00 | I15: ='CK GASTOS INM MES 1'!G126 -> 0.00 | J15: ='CK GASTOS INM MES 2'!G193 -> 0 | K15: ='CK GASTOS INM MES 3'!G56 -> 0.00 | L15: 0.00 | M15: 0.00 | N15: =+'Cert.INM-FEM'!G376 -> 0.00 | O15: 0.00 | P15: 0.00 | Q15: 0.00 | R15: 0.00 | AT15: 0.00 | AU15: =+'INM-FEM'!AD15+'INM-AC'!X15 -> 0.00 | AV15: =+'INM-FEM'!AE15+'INM-AC'!Y15 -> 0.00 | AW15: =+'INM-FEM'!AF15+'INM-AC'!Z15 -> 0.00 | AX15: =+'INM-FEM'!AG15+'INM-AC'!AA15 -> 0.00 | AY15: =+'INM-FEM'!AH15+'INM-AC'!AB15 -> 0.00 | AZ15: 0.00 | BH15: =SUM(BA15:BG15) -> 0.00
A16: 0.03.01 | B16: Retribuciòn por años servidos | C16: 100,500,000.00 | D16: 0.00 | F16: -9,284,957.00 | G16: 91,215,043.00 | H16: 19,293,919.35 | I16: ='CK GASTOS INM MES 1'!H126 -> 6,463,009.10 | J16: ='CK GASTOS INM MES 2'!H193 -> 6,504,166.20 | K16: ='CK GASTOS INM MES 3'!H56 -> 6,440,400.00 | L16: =SUM(I16:K16) -> 19,407,575.30 | M16: 38,701,494.65 | N16: =+'Cert.INM-FEM'!H373 -> 0.00 | O16: 0.00 | P16: 52,513,548.35 | Q16: 91,215,043.00 | R16: 52,513,548.35 | S16: -9,284,957.00 | AT16: -9,284,957.00 | AU16: =+'INM-FEM'!AD16+'INM-AC'!X16 -> 0.00 | AV16: =+'INM-FEM'!AE16+'INM-AC'!Y16 -> 0.00 | AW16: =+'INM-FEM'!AF16+'INM-AC'!Z16 -> 0.00 | AX16: =+'INM-FEM'!AG16+'INM-AC'!AA16 -> 0.00 | AY16: =+'INM-FEM'!AH16+'INM-AC'!AB16 -> 0.00 | AZ16: 0.00 | BH16: 0.00
A17: 0.03.02 | B17: Restricciòn al ejercicio liberal de la profesiòn | D17: 0.00 | F17: 0.00 | G17: 0.00 | H17: 0.00 | I17: ='CK GASTOS INM MES 1'!I126 -> 0.00 | J17: ='CK GASTOS INM MES 2'!I193 -> 0 | K17: ='CK GASTOS INM MES 3'!I56 -> 0.00 | L17: =SUM(I17:K17) -> 0.00 | M17: 0.00 | N17: =+'Cert.INM-FEM'!I373 -> 0.00 | O17: 0.00 | P17: 0.00 | Q17: 0.00 | R17: 0.00 | AT17: 0.00 | AU17: =+'INM-FEM'!AD17+'INM-AC'!X17 -> 0.00 | AV17: =+'INM-FEM'!AE17+'INM-AC'!Y17 -> 0.00 | AW17: =+'INM-FEM'!AF17+'INM-AC'!Z17 -> 0.00 | AX17: =+'INM-FEM'!AG17+'INM-AC'!AA17 -> 0.00 | AY17: =+'INM-FEM'!AH17+'INM-AC'!AB17 -> 0.00 | AZ17: 0.00 | BH17: 0.00
A18: 0.03.03 | B18: Dècimo tercer mes | C18: 30,000,000.00 | D18: 0.00 | F18: 0.00 | G18: 30,000,000.00 | H18: 0.00 | I18: ='CK GASTOS INM MES 1'!J126 -> 0.00 | J18: ='CK GASTOS INM MES 2'!J193 -> 0 | K18: ='CK GASTOS INM MES 3'!J56 -> 0.00 | L18: 0.00 | M18: 0.00 | N18: =+'Cert.INM-FEM'!J379 -> 0.00 | O18: 0.00 | P18: 30,000,000.00 | Q18: 30,000,000.00 | R18: 30,000,000.00 | AT18: 0.00 | AU18: =+'INM-FEM'!AD18+'INM-AC'!X18 -> 0.00 | AV18: =+'INM-FEM'!AE18+'INM-AC'!Y18 -> 0.00 | AW18: =+'INM-FEM'!AF18+'INM-AC'!Z18 -> 0.00 | AX18: =+'INM-FEM'!AG18+'INM-AC'!AA18 -> 0.00 | AY18: =+'INM-FEM'!AH18+'INM-AC'!AB18 -> 0.00 | AZ18: 0.00 | BH18: 0.00
A19: 0.03.04 | B19: Salario escolar | C19: 29,800,500.00 | D19: 0.00 | F19: -1,478,486.00 | G19: 28,322,014.00 | H19: 28,322,013.15 | I19: ='CK GASTOS INM MES 1'!K126 -> 0.00 | J19: ='CK GASTOS INM MES 2'!K193 -> 0 | K19: ='CK GASTOS INM MES 3'!K56 -> 0.00 | L19: =SUM(I19:K19) -> 0.00 | M19: 28,322,013.15 | N19: =+'Cert.INM-FEM'!K373 -> 0.00 | O19: 0.00 | P19: 0.85 | Q19: 28,322,014.00 | R19: 0.85 | S19: -1,478,486.00 | AT19: -1,478,486.00 | AU19: =+'INM-FEM'!AD19+'INM-AC'!X19 -> 0.00 | AV19: =+'INM-FEM'!AE19+'INM-AC'!Y19 -> 0.00 | AW19: =+'INM-FEM'!AF19+'INM-AC'!Z19 -> 0.00 | AX19: =+'INM-FEM'!AG19+'INM-AC'!AA19 -> 0.00 | AY19: =+'INM-FEM'!AH19+'INM-AC'!AB19 -> 0.00 | AZ19: 0.00 | BH19: 0.00
A20: 0.03.99 | B20: Otros incentivos salariales | C20: 15,500,000.00 | D20: 0.00 | F20: -10,000,000.00 | G20: 5,500,000.00 | H20: 649,510.20 | I20: ='CK GASTOS INM MES 1'!L126 -> 216,503.40 | J20: ='CK GASTOS INM MES 2'!L193 -> 215,594.20 | K20: ='CK GASTOS INM MES 3'!L56 -> 214,685.00 | L20: =SUM(I20:K20) -> 646,782.60 | M20: 1,296,292.80 | N20: =+'Cert.INM-FEM'!F379 -> 0.00 | O20: 0.00 | P20: 4,203,707.20 | Q20: 5,500,000.00 | R20: 4,203,707.20 | S20: -10,000,000.00 | AT20: -10,000,000.00 | AU20: =+'INM-FEM'!AD20+'INM-AC'!X20 -> 0.00 | AV20: =+'INM-FEM'!AE20+'INM-AC'!Y20 -> 0.00 | AW20: =+'INM-FEM'!AF20+'INM-AC'!Z20 -> 0.00 | AX20: =+'INM-FEM'!AG20+'INM-AC'!AA20 -> 0.00 | AY20: =+'INM-FEM'!AH20+'INM-AC'!AB20 -> 0.00 | AZ20: 0.00 | BH20: 0.00
A21: 0.04.01 | B21: Contribuciòn Pat.Seguro Salud CCSS | C21: 15,168,543.00 | D21: 0.00 | F21: 0.00 | G21: 15,168,543.00 | H21: 9,928,379.00 | I21: ='CK GASTOS INM MES 1'!M126 -> 2,411,871.00 | J21: ='CK GASTOS INM MES 2'!M193 -> 2,520,042.00 | K21: ='CK GASTOS INM MES 3'!M56 -> 308,251.00 | L21: 5,240,164.00 | M21: 15,168,543.00 | N21: =+'Cert.INM-FEM'!M373 -> 0.00 | O21: 0.00 | P21: 0.00 | Q21: 15,168,543.00 | R21: 0.00 | AT21: 0.00 | AU21: =+'INM-FEM'!AD21+'INM-AC'!X21 -> 0.00 | AV21: =+'INM-FEM'!AE21+'INM-AC'!Y21 -> 0.00 | AW21: =+'INM-FEM'!AF21+'INM-AC'!Z21 -> 0.00 | AX21: =+'INM-FEM'!AG21+'INM-AC'!AA21 -> 0.00 | AY21: =+'INM-FEM'!AH21+'INM-AC'!AB21 -> 0.00 | AZ21: 0.00 | BH21: 0.00
A22: 0.04.05 | B22: Contribución Pat. BPDC | C22: 1,712,763.00 | D22: 0.00 | F22: 0.00 | G22: 1,712,763.00 | H22: 536,207.00 | I22: ='CK GASTOS INM MES 1'!N126 -> 130,205.00 | J22: ='CK GASTOS INM MES 2'!N193 -> 135,406.00 | K22: ='CK GASTOS INM MES 3'!N56 -> 144,421.00 | L22: =SUM(I22:K22) -> 410,032.00 | M22: 946,239.00 | N22: =+'Cert.INM-FEM'!E382 -> 0.00 | O22: 0.00 | P22: 766,524.00 | Q22: 1,712,763.00 | R22: 766,524.00 | AT22: 0.00 | AU22: =+'INM-FEM'!AD22+'INM-AC'!X22 -> 0.00 | AV22: =+'INM-FEM'!AE22+'INM-AC'!Y22 -> 0.00 | AW22: =+'INM-FEM'!AF22+'INM-AC'!Z22 -> 0.00 | AX22: =+'INM-FEM'!AG22+'INM-AC'!AA22 -> 0.00 | AY22: =+'INM-FEM'!AH22+'INM-AC'!AB22 -> 0.00 | AZ22: 0.00 | BH22: 0.00
A23: 0.05.01 | B23: Contribución Pat. Seguro Pensiones CCSS | C23: 23,536,595.00 | D23: 0.00 | F23: 0.00 | G23: 23,536,595.00 | H23: 5,813,194.00 | I23: ='CK GASTOS INM MES 1'!O126 -> 1,411,496.00 | J23: ='CK GASTOS INM MES 2'!O193 -> 1,474,295.00 | K23: ='CK GASTOS INM MES 3'!O56 -> 1,565,554.00 | L23: 4,451,345.00 | M23: 10,264,539.00 | N23: =+'Cert.INM-FEM'!O373 -> 0.00 | O23: 0.00 | P23: 13,272,056.00 | Q23: 23,536,595.00 | R23: 13,272,056.00 | AT23: 0.00 | AU23: =+'INM-FEM'!AD23+'INM-AC'!X23 -> 0.00 | AV23: =+'INM-FEM'!AE23+'INM-AC'!Y23 -> 0.00 | AW23: =+'INM-FEM'!AF23+'INM-AC'!Z23 -> 0.00 | AX23: =+'INM-FEM'!AG23+'INM-AC'!AA23 -> 0.00 | AY23: =+'INM-FEM'!AH23+'INM-AC'!AB23 -> 0.00 | AZ23: 0.00 | BH23: 0.00
A24: 0.05.02 | B24: Aporte Pat. Régimen Obligatorio Pens.Com. | C24: 13,027,636.00 | D24: 0.00 | F24: 0.00 | G24: 13,027,636.00 | H24: 3,217,303.00 | I24: ='CK GASTOS INM MES 1'!P126 -> 781,248.00 | J24: ='CK GASTOS INM MES 2'!P193 -> 812,458.00 | K24: ='CK GASTOS INM MES 3'!P56 -> 866,542.00 | L24: 2,460,248.00 | M24: 5,677,551.00 | N24: =+'Cert.INM-FEM'!P373 -> 0.00 | O24: 0.00 | P24: 7,350,085.00 | Q24: 13,027,636.00 | R24: 7,350,085.00 | AT24: 0.00 | AU24: =+'INM-FEM'!AD24+'INM-AC'!X24 -> 0.00 | AV24: =+'INM-FEM'!AE24+'INM-AC'!Y24 -> 0.00 | AW24: =+'INM-FEM'!AF24+'INM-AC'!Z24 -> 0.00 | AX24: =+'INM-FEM'!AG24+'INM-AC'!AA24 -> 0.00 | AY24: =+'INM-FEM'!AH24+'INM-AC'!AB24 -> 0.00 | AZ24: 0.00 | BH24: 0.00
A25: 0.05.03 | B25: Aporte Pat. al Fondo Cap. Laboral | C25: 6,513,818.00 | D25: 0.00 | F25: 0.00 | G25: 6,513,818.00 | H25: 1,608,662.00 | I25: ='CK GASTOS INM MES 1'!Q126 -> 390,630.00 | J25: ='CK GASTOS INM MES 2'!Q193 -> 406,235.00 | K25: ='CK GASTOS INM MES 3'!Q56 -> 433,272.00 | L25: 1,230,137.00 | M25: 2,838,799.00 | N25: =+'Cert.INM-FEM'!E385 -> 0.00 | O25: 0.00 | P25: 3,675,019.00 | Q25: 6,513,818.00 | R25: 3,675,019.00 | AT25: 0.00 | AU25: =+'INM-FEM'!AD25+'INM-AC'!X25 -> 0.00 | AV25: =+'INM-FEM'!AE25+'INM-AC'!Y25 -> 0.00 | AW25: =+'INM-FEM'!AF25+'INM-AC'!Z25 -> 0.00 | AX25: =+'INM-FEM'!AG25+'INM-AC'!AA25 -> 0.00 | AY25: =+'INM-FEM'!AH25+'INM-AC'!AB25 -> 0.00 | AZ25: 0.00 | BH25: =SUM(BA25:BG25) -> 0.00
A26: 0.05.05 | B26: Contribución Patronal a fondos administrados por entes privados | C26: 200,000.00 | F26: =+AT26 -> 0.00 | G26: 200,000.00 | H26: 76,789.95 | I26: =+'CK GASTOS INM MES 1'!R126 -> 31,995.80 | J26: =+'CK GASTOS INM MES 2'!R193 -> 62,693.55 | K26: =+'CK GASTOS INM MES 3'!R56 -> 28,520.70 | L26: 123,210.05 | M26: 200,000.00 | N26: =+'Cert.INM-FEM'!E386 -> 0.00 | O26: =IF(N26>0,(M26-N26),0) -> 0.00 | P26: =G26-M26 -> 0.00 | Q26: =G26-N26 -> 200,000.00 | R26: =IF(O26>0,(G26-M26-O26),(G26-M26+O26)) -> 0.00
A28: 1 | B28: SERVICIOS | C28: =SUM(C30:C69) -> 144,981,325.00 | D28: 0.00 | E28: 0.00 | F28: -1,095,370.00 | G28: 143,885,955.00 | H28: 15,241,688.30 | I28: =SUM(I29:I68) -> 10,291,311.21 | J28: =SUM(J29:J68) -> 11,388,377.24 | K28: =SUM(K29:K69) -> 11,061,099.93 | L28: =SUM(L29:L69) -> 32,740,788.38 | M28: =SUM(M29:M69) -> 47,982,476.68 | N28: =SUM(N30:N69) -> 125,833,346.02 | O28: =SUM(O30:O69) -> -81,347,916.34 | P28: =SUM(P30:P69) -> 95,903,478.32 | Q28: 18,052,608.98 | R28: 14,555,561.98 | S28: 0.00 | T28: 177,630.00 | U28: =SUM(U30:U69) -> -1,273,000.00 | V28: 0.00 | W28: 0.00 | X28: =SUM(X30:X69) -> 0.00 | Y28: =SUM(Y30:Y69) -> 0.00 | Z28: 0.00 | AA28: 0.00 | AB28: 0.00 | AC28: 0.00 | AD28: 0.00 | AE28: 0.00 | AF28: 0.00 | AG28: 0.00 | AI28: =SUM(AI30:AI69) -> 0.00 | AJ28: 0.00 | AK28: 0.00 | AL28: 0.00 | AM28: 0.00 | AN28: 0.00 | AO28: 0.00 | AP28: 0.00 | AQ28: 0.00 | AT28: =SUM(AT30:AT69) -> -1,095,370.00 | AU28: 0.00 | AV28: 0.00 | AW28: 0.00 | AX28: 0.00 | AY28: 0.00 | AZ28: 0.00 | BA28: 0.00 | BB28: =SUM(BB30:BB69) -> 0.00 | BC28: 0.00 | BD28: 0.00 | BE28: 0.00 | BF28: 0.00 | BG28: 0.00 | BH28: 0.00
A30: 1.01.01 | B30: Alquiler de edificios, locales y terrenos | D30: =+BH30 -> 0.00 | F30: =+AT30 -> 0.00 | G30: =+C30+D30+F30+E30 -> 0.00 | H30: 0.00 | I30: ='CK GASTOS INM MES 1'!S$126 -> 0 | J30: ='CK GASTOS INM MES 2'!S$193 -> 0 | K30: ='CK GASTOS INM MES 3'!S$56 -> 0.00 | L30: =SUM(I30:K30) -> 0.00 | M30: =+L30+H30 -> 0.00 | N30: =+'Cert.INM-FEM'!R373 -> 0.00 | O30: =IF(N30>0,(M30-N30),0) -> 0.00 | P30: =G30-M30 -> 0.00 | Q30: =G30-N30 -> 0.00 | R30: =IF(O30>0,(G30-M30-O30),(G30-M30+O30)) -> 0.00 | AT30: =SUM(S30:AS30) -> 0.00 | AU30: =+'INM-FEM'!AD29+'INM-AC'!X29 -> 0.00 | AV30: =+'INM-FEM'!AE29+'INM-AC'!Y29 -> 0.00 | AW30: =+'INM-FEM'!AF29+'INM-AC'!Z29 -> 0.00 | AX30: =+'INM-FEM'!AG29+'INM-AC'!AA29 -> 0.00 | AY30: =+'INM-FEM'!AH29+'INM-AC'!AB29 -> 0.00 | AZ30: =+AU30+AV30+AW30+AX30+AY30 -> 0.00 | BA30: =+'INM-FEM'!AJ29+'INM-AC'!AD29 -> 0.00 | BC30: =+'INM-FEM'!AL29+'INM-AC'!AF29 -> 0.00 | BH30: =SUM(BA30:BF30) -> 0.00
A31: 1.01.02 | B31: Alquiler de maquinaria, equipo y mobiliario | D31: 0.00 | F31: 0.00 | G31: 0.00 | H31: 0.00 | I31: ='CK GASTOS INM MES 1'!T$126 -> 0 | J31: ='CK GASTOS INM MES 2'!T$193 -> 0 | K31: ='CK GASTOS INM MES 3'!T$56 -> 0.00 | L31: =SUM(I31:K31) -> 0.00 | M31: 0.00 | N31: =+'Cert.INM-FEM'!S373 -> 0.00 | O31: 0.00 | P31: 0.00 | Q31: 0.00 | R31: 0.00 | AT31: =SUM(S31:AS31) -> 0.00 | AU31: =+'INM-FEM'!AD30+'INM-AC'!X30 -> 0.00 | AV31: =+'INM-FEM'!AE30+'INM-AC'!Y30 -> 0.00 | AW31: =+'INM-FEM'!AF30+'INM-AC'!Z30 -> 0.00 | AX31: =+'INM-FEM'!AG30+'INM-AC'!AA30 -> 0.00 | AY31: =+'INM-FEM'!AH30+'INM-AC'!AB30 -> 0.00 | AZ31: 0.00 | BH31: 0.00
A32: 1.01.03 | B32: Alquiler de equipo de cómputo | C32: 34,932,555.00 | D32: 0.00 | F32: -200,000.00 | G32: 34,732,555.00 | H32: 4,016,453.38 | I32: =+'CK GASTOS INM MES 1'!W126 -> 2,436,380.29 | J32: =+'CK GASTOS INM MES 2'!U193 -> 2,535,963.11 | K32: =+'CK GASTOS INM MES 3'!U56 -> 5,595,396.33 | L32: 10,567,739.73 | M32: 14,584,193.11 | N32: =+'Cert.INM-FEM'!T373 -> 33,194,972.34 | O32: -18,610,779.23 | P32: 20,148,361.89 | Q32: 1,537,582.66 | R32: 1,537,582.66 | T32: 0.00 | U32: -200,000.00 | AT32: -200,000.00
A33: 1.01.04 | B33: Alquileres y derechos para telecomunicaciones | D33: 0.00 | F33: 0.00 | G33: 0.00 | H33: 0.00 | I33: ='CK GASTOS INM MES 1'!U$126 -> 0 | J33: ='CK GASTOS INM MES 2'!V$193 -> 0 | K33: ='CK GASTOS INM MES 3'!V$56 -> 0.00 | L33: 0.00 | M33: 0.00 | N33: =+'Cert.INM-FEM'!U373 -> 0.00 | O33: 0.00 | P33: 0.00 | Q33: 0.00 | R33: 0.00 | AT33: 0.00 | AU33: =+'INM-FEM'!AD31+'INM-AC'!X32 -> 0.00 | AV33: =+'INM-FEM'!AE31+'INM-AC'!Y32 -> 0.00 | AW33: =+'INM-FEM'!AF31+'INM-AC'!Z32 -> 0.00 | AX33: =+'INM-FEM'!AG31+'INM-AC'!AA32 -> 0.00 | AY33: =+'INM-FEM'!AH31+'INM-AC'!AB32 -> 0.00 | AZ33: =+AU33+AV33+AW33+AX33+AY33 -> 0.00 | BH33: 0.00
A34: 1.01.99 | B34: Otros alquileres | D34: 0.00 | F34: 1,064,035.00 | G34: 1,064,035.00 | H34: 0.00 | I34: ='CK GASTOS INM MES 1'!V$126 -> 0 | J34: ='CK GASTOS INM MES 2'!W$193 -> 0 | K34: ='CK GASTOS INM MES 3'!W$56 -> 864,035.00 | L34: 864,035.00 | M34: 864,035.00 | N34: =+'Cert.INM-FEM'!V373 -> 864,035.00 | O34: 0.00 | P34: 200,000.00 | Q34: 200,000.00 | R34: 200,000.00 | T34: =864035 -> 864,035.00 | U34: 200,000.00 | AT34: 1,064,035.00 | AU34: =+'INM-FEM'!AD32+'INM-AC'!X32 -> 0.00 | AV34: =+'INM-FEM'!AE32+'INM-AC'!Y32 -> 0.00 | AW34: =+'INM-FEM'!AF32+'INM-AC'!Z32 -> 0.00 | AX34: =+'INM-FEM'!AG32+'INM-AC'!AA32 -> 0.00 | AY34: =+'INM-FEM'!AH32+'INM-AC'!AB32 -> 0.00 | AZ34: 0.00 | BH34: 0.00
A35: 1.02.01 | B35: Servicio de agua y alcantarillado | C35: 5,649,980.00 | D35: 0.00 | F35: 0.00 | G35: 5,649,980.00 | H35: 2,404,672.00 | I35: ='CK GASTOS INM MES 1'!X$126 -> 0 | J35: ='CK GASTOS INM MES 2'!X$193 -> 0 | K35: ='CK GASTOS INM MES 3'!X$56 -> 0.00 | L35: 0.00 | M35: 2,404,672.00 | N35: =+'Cert.INM-FEM'!W373 -> 0.00 | O35: 0.00 | P35: 3,245,308.00 | Q35: 5,649,980.00 | R35: 3,245,308.00 | AT35: 0.00 | AU35: =+'INM-FEM'!AD33+'INM-AC'!X33 -> 0.00 | AV35: =+'INM-FEM'!AE33+'INM-AC'!Y33 -> 0.00 | AW35: =+'INM-FEM'!AF33+'INM-AC'!Z33 -> 0.00 | AX35: =+'INM-FEM'!AG33+'INM-AC'!AA33 -> 0.00 | AY35: =+'INM-FEM'!AH33+'INM-AC'!AB33 -> 0.00 | AZ35: 0.00 | BH35: 0.00
A36: 1.02.02 | B36: Servicio de energìa elèctrica | C36: =10000000-2976000 -> 7,024,000.00 | D36: 0.00 | F36: 0.00 | G36: 7,024,000.00 | H36: 0.00 | I36: ='CK GASTOS INM MES 1'!Y$126 -> 0 | J36: ='CK GASTOS INM MES 2'!Y$193 -> 828,060.00 | K36: ='CK GASTOS INM MES 3'!Y$56 -> 248,315.00 | L36: 1,076,375.00 | M36: 1,076,375.00 | N36: =+'Cert.INM-FEM'!X373 -> 0.00 | O36: 0.00 | P36: 5,947,625.00 | Q36: 7,024,000.00 | R36: 5,947,625.00 | AT36: 0.00 | AU36: =+'INM-FEM'!AD34+'INM-AC'!X34 -> 0.00 | AV36: =+'INM-FEM'!AE34+'INM-AC'!Y34 -> 0.00 | AW36: =+'INM-FEM'!AF34+'INM-AC'!Z34 -> 0.00 | AX36: =+'INM-FEM'!AG34+'INM-AC'!AA34 -> 0.00 | AY36: =+'INM-FEM'!AH34+'INM-AC'!AB34 -> 0.00 | AZ36: 0.00 | BH36: 0.00
A37: 1.02.03 | B37: Servicio de correo | D37: 0.00 | F37: 0.00 | G37: 0.00 | H37: 0.00 | I37: ='CK GASTOS INM MES 1'!Z$126 -> 0 | J37: ='CK GASTOS INM MES 2'!Z$193 -> 0 | K37: ='CK GASTOS INM MES 3'!Z$56 -> 0.00 | L37: 0.00 | M37: 0.00 | N37: =+'Cert.INM-FEM'!Y373 -> 0.00 | O37: 0.00 | P37: 0.00 | Q37: 0.00 | R37: 0.00 | AT37: 0.00 | AU37: =+'INM-FEM'!AD35+'INM-AC'!X35 -> 0.00 | AV37: =+'INM-FEM'!AE35+'INM-AC'!Y35 -> 0.00 | AW37: =+'INM-FEM'!AF35+'INM-AC'!Z35 -> 0.00 | AX37: =+'INM-FEM'!AG35+'INM-AC'!AA35 -> 0.00 | AY37: =+'INM-FEM'!AH35+'INM-AC'!AB35 -> 0.00 | AZ37: 0.00 | BH37: 0.00
A38: 1.02.04 | B38: Servicio de telecomunicaciones | C38: 2,022,680.00 | D38: 0.00 | F38: -686,405.00 | G38: =+C38+D38+F38+E38 -> 1,336,275.00 | H38: 0.00 | I38: ='CK GASTOS INM MES 1'!AA$126 -> 0 | J38: ='CK GASTOS INM MES 2'!AA$193 -> 0 | K38: =+'CK GASTOS INM MES 3'!AA56 -> 66,844.43 | L38: 66,844.43 | M38: 66,844.43 | N38: =+'Cert.INM-FEM'!Z373 -> 1,313,595.00 | O38: -1,246,750.57 | P38: 1,269,430.57 | Q38: =G38-N38 -> 22,680.00 | R38: =IF(O38>0,(G38-M38-O38),(G38-M38+O38)) -> 22,680.00 | T38: -686,405.00 | AT38: -686,405.00 | AU38: =+'INM-FEM'!AD36+'INM-AC'!X36 -> 0.00 | AV38: =+'INM-FEM'!AE36+'INM-AC'!Y36 -> 0.00 | AW38: =+'INM-FEM'!AF36+'INM-AC'!Z36 -> 0.00 | AX38: =+'INM-FEM'!AG36+'INM-AC'!AA36 -> 0.00 | AY38: =+'INM-FEM'!AH36+'INM-AC'!AB36 -> 0.00 | AZ38: 0.00 | BH38: 0.00
A39: 1.03.01 | B39: Información | C39: 0.00 | D39: 0.00 | F39: 0.00 | G39: 0.00 | H39: 0.00 | I39: ='CK GASTOS INM MES 1'!AB$126 -> 0 | J39: ='CK GASTOS INM MES 2'!AB$193 -> 0 | K39: ='CK GASTOS INM MES 3'!AB$56 -> 0.00 | L39: 0.00 | M39: 0.00 | N39: =+'Cert.INM-FEM'!AA373 -> 0.00 | O39: 0.00 | P39: 0.00 | Q39: 0.00 | R39: 0.00 | AT39: 0.00 | AU39: =+'INM-FEM'!AD37+'INM-AC'!X37 -> 0.00 | AV39: =+'INM-FEM'!AE37+'INM-AC'!Y37 -> 0.00 | AW39: =+'INM-FEM'!AF37+'INM-AC'!Z37 -> 0.00 | AX39: =+'INM-FEM'!AG37+'INM-AC'!AA37 -> 0.00 | AY39: =+'INM-FEM'!AH37+'INM-AC'!AB37 -> 0.00 | AZ39: 0.00 | BH39: 0.00
A40: 1.03.02 | B40: Publicidad y propaganda | D40: 0.00 | F40: 0.00 | G40: 0.00 | H40: 0.00 | I40: ='CK GASTOS INM MES 1'!AC$126 -> 0 | J40: ='CK GASTOS INM MES 2'!AC$193 -> 0 | K40: ='CK GASTOS INM MES 3'!AC$56 -> 0.00 | L40: 0.00 | M40: 0.00 | N40: =+'Cert.INM-FEM'!AB373 -> 0.00 | O40: 0.00 | P40: 0.00 | Q40: 0.00 | R40: 0.00 | AT40: 0.00 | AU40: =+'INM-FEM'!AD38+'INM-AC'!X38 -> 0.00 | AV40: =+'INM-FEM'!AE38+'INM-AC'!Y38 -> 0.00 | AW40: =+'INM-FEM'!AF38+'INM-AC'!Z38 -> 0.00 | AX40: =+'INM-FEM'!AG38+'INM-AC'!AA38 -> 0.00 | AY40: =+'INM-FEM'!AH38+'INM-AC'!AB38 -> 0.00 | AZ40: 0.00 | BH40: 0.00
A41: 1.03.03 | B41: Impresión, encuadernación y otros | C41: 100,000.00 | D41: 0.00 | F41: 0.00 | G41: 100,000.00 | H41: 0.00 | I41: ='CK GASTOS INM MES 1'!AD$126 -> 16,000.00 | J41: ='CK GASTOS INM MES 2'!AD$193 -> 0 | K41: ='CK GASTOS INM MES 3'!AD$56 -> 0.00 | L41: 16,000.00 | M41: 16,000.00 | N41: =+'Cert.INM-FEM'!AC373 -> 0.00 | O41: 0.00 | P41: 84,000.00 | Q41: 100,000.00 | R41: 84,000.00 | AT41: 0.00 | AU41: =+'INM-FEM'!AD39+'INM-AC'!X39 -> 0.00 | AV41: =+'INM-FEM'!AE39+'INM-AC'!Y39 -> 0.00 | AW41: =+'INM-FEM'!AF39+'INM-AC'!Z39 -> 0.00 | AX41: =+'INM-FEM'!AG39+'INM-AC'!AA39 -> 0.00 | AY41: =+'INM-FEM'!AH39+'INM-AC'!AB39 -> 0.00 | AZ41: 0.00 | BH41: 0.00
A42: 1.03.04 | B42: Transporte de bienes | D42: 0.00 | F42: 0.00 | G42: 0.00 | H42: 0.00 | I42: ='CK GASTOS INM MES 1'!AE$126 -> 0 | J42: ='CK GASTOS INM MES 2'!AE$193 -> 0 | K42: ='CK GASTOS INM MES 3'!AE$56 -> 0.00 | L42: 0.00 | M42: 0.00 | N42: =+'Cert.INM-FEM'!AD373 -> 0.00 | O42: 0.00 | P42: 0.00 | Q42: 0.00 | R42: 0.00 | AT42: 0.00 | AU42: =+'INM-FEM'!AD40+'INM-AC'!X40 -> 0.00 | AV42: =+'INM-FEM'!AE40+'INM-AC'!Y40 -> 0.00 | AW42: =+'INM-FEM'!AF40+'INM-AC'!Z40 -> 0.00 | AX42: =+'INM-FEM'!AG40+'INM-AC'!AA40 -> 0.00 | AY42: =+'INM-FEM'!AH40+'INM-AC'!AB40 -> 0.00 | AZ42: 0.00 | BH42: 0.00
A43: 1.03.05 | B43: Servicios aduaneros | D43: 0.00 | F43: 0.00 | G43: 0.00 | H43: 0.00 | I43: ='CK GASTOS INM MES 1'!AF$126 -> 0 | J43: ='CK GASTOS INM MES 2'!AF$193 -> 0 | K43: ='CK GASTOS INM MES 3'!AF$56 -> 0.00 | L43: 0.00 | M43: 0.00 | N43: =+'Cert.INM-FEM'!AE373 -> 0.00 | O43: 0.00 | P43: 0.00 | Q43: 0.00 | R43: 0.00 | AT43: 0.00 | AU43: =+'INM-FEM'!AD41+'INM-AC'!X41 -> 0.00 | AV43: =+'INM-FEM'!AE41+'INM-AC'!Y41 -> 0.00 | AW43: =+'INM-FEM'!AF41+'INM-AC'!Z41 -> 0.00 | AX43: =+'INM-FEM'!AG41+'INM-AC'!AA41 -> 0.00 | AY43: =+'INM-FEM'!AH41+'INM-AC'!AB41 -> 0.00 | AZ43: 0.00 | BH43: 0.00
A44: 1.03.06 | B44: Comisiones y gastos por serv.financieros y com. | D44: 0.00 | F44: 0.00 | G44: 0.00 | H44: 0.00 | I44: ='CK GASTOS INM MES 1'!AG$126 -> 0 | J44: ='CK GASTOS INM MES 2'!AG$193 -> 0 | K44: ='CK GASTOS INM MES 3'!AG$56 -> 0.00 | L44: 0.00 | M44: 0.00 | N44: =+'Cert.INM-FEM'!AF373 -> 0.00 | O44: 0.00 | P44: 0.00 | Q44: 0.00 | R44: 0.00 | AT44: 0.00 | AU44: =+'INM-FEM'!AD42+'INM-AC'!X42 -> 0.00 | AV44: =+'INM-FEM'!AE42+'INM-AC'!Y42 -> 0.00 | AW44: =+'INM-FEM'!AF42+'INM-AC'!Z42 -> 0.00 | AX44: =+'INM-FEM'!AG42+'INM-AC'!AA42 -> 0.00 | AY44: =+'INM-FEM'!AH42+'INM-AC'!AB42 -> 0.00 | AZ44: 0.00 | BH44: 0.00
A45: 1.04.02 | B45: Servicios Jurídicos | D45: 0.00 | F45: 0.00 | G45: 0.00 | H45: 0.00 | I45: ='CK GASTOS INM MES 1'!AH$126 -> 0 | J45: ='CK GASTOS INM MES 2'!AH$193 -> 0 | K45: ='CK GASTOS INM MES 3'!AH$56 -> 0.00 | L45: 0.00 | M45: 0.00 | N45: =+'Cert.INM-FEM'!AG373 -> 0.00 | O45: 0.00 | P45: 0.00 | Q45: 0.00 | R45: 0.00 | AT45: 0.00 | BH45: 0.00
A46: 1.04.03 | B46: Servicio de Ingeniería | D46: 0.00 | F46: 0.00 | G46: 0.00 | H46: 0.00 | I46: ='CK GASTOS INM MES 1'!AI$126 -> 0 | J46: ='CK GASTOS INM MES 2'!AI$193 -> 0 | K46: ='CK GASTOS INM MES 3'!AI$56 -> 0.00 | L46: 0.00 | M46: 0.00 | N46: =+'Cert.INM-FEM'!AH373 -> 0.00 | O46: 0.00 | P46: 0.00 | Q46: 0.00 | R46: 0.00 | AT46: 0.00 | AU46: =+'INM-FEM'!AD44+'INM-AC'!X43 -> 0.00 | AV46: =+'INM-FEM'!AE44+'INM-AC'!Y43 -> 0.00 | AW46: =+'INM-FEM'!AF44+'INM-AC'!Z43 -> 0.00 | AX46: =+'INM-FEM'!AG44+'INM-AC'!AA43 -> 0.00 | AY46: =+'INM-FEM'!AH44+'INM-AC'!AB43 -> 0.00 | AZ46: 0.00 | BH46: 0.00
A47: 1.04.04 | B47: Servicios Ciencias Economicas y sociales | D47: 0.00 | F47: 0.00 | G47: 0.00 | H47: 0.00 | I47: ='CK GASTOS INM MES 1'!AJ$126 -> 0 | J47: ='CK GASTOS INM MES 2'!AJ$193 -> 0 | K47: ='CK GASTOS INM MES 3'!AJ$56 -> 0.00 | L47: 0.00 | M47: 0.00 | N47: =+'Cert.INM-FEM'!AI373 -> 0.00 | O47: 0.00 | P47: 0.00 | Q47: 0.00 | R47: 0.00 | AT47: 0.00 | AU47: =+'INM-FEM'!AD45+'INM-AC'!X44 -> 0.00 | AV47: =+'INM-FEM'!AE45+'INM-AC'!Y44 -> 0.00 | AW47: =+'INM-FEM'!AF45+'INM-AC'!Z44 -> 0.00 | AX47: =+'INM-FEM'!AG45+'INM-AC'!AA44 -> 0.00 | AY47: =+'INM-FEM'!AH45+'INM-AC'!AB44 -> 0.00 | AZ47: 0.00 | BH47: 0.00
A48: 1.04.05 | B48: Servicios de desarrollo sistemas infromaticos | D48: 0.00 | F48: 0.00 | G48: 0.00 | H48: 0.00 | I48: ='CK GASTOS INM MES 1'!AK$126 -> 0 | J48: ='CK GASTOS INM MES 2'!AK$193 -> 0 | K48: ='CK GASTOS INM MES 3'!AK$56 -> 0.00 | L48: 0.00 | M48: 0.00 | N48: =+'Cert.INM-FEM'!AJ373 -> 0.00 | O48: 0.00 | P48: 0.00 | Q48: 0.00 | R48: 0.00 | AT48: 0.00 | AU48: =+'INM-FEM'!AD46+'INM-AC'!X45 -> 0.00 | AV48: =+'INM-FEM'!AE46+'INM-AC'!Y45 -> 0.00 | AW48: =+'INM-FEM'!AF46+'INM-AC'!Z45 -> 0.00 | AX48: =+'INM-FEM'!AG46+'INM-AC'!AA45 -> 0.00 | AY48: =+'INM-FEM'!AH46+'INM-AC'!AB45 -> 0.00 | AZ48: 0.00 | BH48: 0.00
A49: 1.04.06 | B49: Servicios generales | C49: 81,602,110.00 | D49: 0.00 | F49: 0.00 | G49: 81,602,110.00 | H49: 7,130,716.52 | I49: ='CK GASTOS INM MES 1'!AL$126 -> 7,074,216.52 | J49: ='CK GASTOS INM MES 2'!AL$193 -> 7,164,616.53 | K49: ='CK GASTOS INM MES 3'!AL$56 -> 3,076,707.57 | L49: 17,315,540.62 | M49: 24,446,257.14 | N49: =+'Cert.INM-FEM'!AK373 -> 78,083,743.68 | O49: -53,637,486.54 | P49: 57,155,852.86 | Q49: 3,518,366.32 | R49: 3,518,366.32 | AT49: 0.00 | AU49: =+'INM-FEM'!AD47+'INM-AC'!X46 -> 0.00 | AV49: =+'INM-FEM'!AE47+'INM-AC'!Y46 -> 0.00 | AW49: =+'INM-FEM'!AF47+'INM-AC'!Z46 -> 0.00 | AX49: =+'INM-FEM'!AG47+'INM-AC'!AA46 -> 0.00 | AY49: =+'INM-FEM'!AH47+'INM-AC'!AB46 -> 0.00 | AZ49: 0.00 | BH49: 0.00
A50: 1.04.99 | B50: Otros servicios de gestión y apoyo | C50: 7,000,000.00 | D50: 0.00 | F50: 0.00 | G50: 7,000,000.00 | H50: 689,846.40 | I50: ='CK GASTOS INM MES 1'!AM$126 -> 764,714.40 | J50: ='CK GASTOS INM MES 2'!AM$193 -> 859,737.60 | K50: ='CK GASTOS INM MES 3'!AM$56 -> 1,209,801.60 | L50: 2,834,253.60 | M50: 3,524,100.00 | N50: =+'Cert.INM-FEM'!AL373 -> 7,000,000.00 | O50: -3,475,900.00 | P50: 3,475,900.00 | Q50: 0.00 | R50: 0.00 | AT50: 0.00 | AU50: =+'INM-FEM'!AD48+'INM-AC'!X47 -> 0.00 | AV50: =+'INM-FEM'!AE48+'INM-AC'!Y47 -> 0.00 | AW50: =+'INM-FEM'!AF48+'INM-AC'!Z47 -> 0.00 | AX50: =+'INM-FEM'!AG48+'INM-AC'!AA47 -> 0.00 | AY50: =+'INM-FEM'!AH48+'INM-AC'!AB47 -> 0.00 | AZ50: 0.00 | BH50: =SUM(BA50:BF50) -> 0.00
A51: 1.05.01 | B51: Transporte dentro del país | D51: 0.00 | F51: 0.00 | G51: 0.00 | H51: 0.00 | I51: ='CK GASTOS INM MES 1'!AN$126 -> 0 | J51: ='CK GASTOS INM MES 2'!AN$193 -> 0 | K51: ='CK GASTOS INM MES 3'!AN$56 -> 0.00 | L51: 0.00 | M51: 0.00 | N51: =+'Cert.INM-FEM'!AM373 -> 0.00 | O51: 0.00 | P51: 0.00 | Q51: 0.00 | R51: 0.00 | AT51: 0.00 | AU51: =+'INM-FEM'!AD49+'INM-AC'!X48 -> 0.00 | AV51: =+'INM-FEM'!AE49+'INM-AC'!Y48 -> 0.00 | AW51: =+'INM-FEM'!AF49+'INM-AC'!Z48 -> 0.00 | AX51: =+'INM-FEM'!AG49+'INM-AC'!AA48 -> 0.00 | AY51: =+'INM-FEM'!AH49+'INM-AC'!AB48 -> 0.00 | AZ51: 0.00 | BH51: =SUM(BA51:BF51) -> 0.00
A52: 1.05.02 | B52: Viáticos dentro del país | D52: 0.00 | F52: 0.00 | G52: 0.00 | H52: 0.00 | I52: ='CK GASTOS INM MES 1'!AO$126 -> 0 | J52: ='CK GASTOS INM MES 2'!AO$193 -> 0 | K52: ='CK GASTOS INM MES 3'!AO$56 -> 0.00 | L52: 0.00 | M52: 0.00 | N52: =+'Cert.INM-FEM'!AN373 -> 0.00 | O52: 0.00 | P52: 0.00 | Q52: 0.00 | R52: 0.00 | AT52: 0.00 | AU52: =+'INM-FEM'!AD50+'INM-AC'!X49 -> 0.00 | AV52: =+'INM-FEM'!AE50+'INM-AC'!Y49 -> 0.00 | AW52: =+'INM-FEM'!AF50+'INM-AC'!Z49 -> 0.00 | AX52: =+'INM-FEM'!AG50+'INM-AC'!AA49 -> 0.00 | AY52: =+'INM-FEM'!AH50+'INM-AC'!AB49 -> 0.00 | AZ52: 0.00 | BH52: 0.00
A53: 1.05.03 | B53: Transporte en el exterior | D53: 0.00 | F53: 0.00 | G53: 0.00 | H53: 0.00 | I53: ='CK GASTOS INM MES 1'!AP$126 -> 0 | J53: ='CK GASTOS INM MES 2'!AP$193 -> 0 | K53: ='CK GASTOS INM MES 3'!AP$56 -> 0.00 | L53: 0.00 | M53: 0.00 | N53: =+'Cert.INM-FEM'!AO373 -> 0.00 | O53: 0.00 | P53: 0.00 | Q53: 0.00 | R53: 0.00 | AT53: 0.00 | AU53: =+'INM-FEM'!AD51+'INM-AC'!X50 -> 0.00 | AV53: =+'INM-FEM'!AE51+'INM-AC'!Y50 -> 0.00 | AW53: =+'INM-FEM'!AF51+'INM-AC'!Z50 -> 0.00 | AX53: =+'INM-FEM'!AG51+'INM-AC'!AA50 -> 0.00 | AY53: =+'INM-FEM'!AH51+'INM-AC'!AB50 -> 0.00 | AZ53: 0.00 | BH53: 0.00
A54: 1.05.04 | B54: Viáticos en el exterior | D54: 0.00 | F54: 0.00 | G54: 0.00 | H54: 0.00 | I54: ='CK GASTOS INM MES 1'!AQ$126 -> 0 | J54: ='CK GASTOS INM MES 2'!AQ$193 -> 0 | K54: ='CK GASTOS INM MES 3'!AQ$56 -> 0.00 | L54: 0.00 | M54: 0.00 | N54: =+'Cert.INM-FEM'!AP373 -> 0.00 | O54: 0.00 | P54: 0.00 | Q54: 0.00 | R54: 0.00 | AT54: 0.00 | AU54: =+'INM-FEM'!AD52+'INM-AC'!X51 -> 0.00 | AV54: =+'INM-FEM'!AE52+'INM-AC'!Y51 -> 0.00 | AW54: =+'INM-FEM'!AF52+'INM-AC'!Z51 -> 0.00 | AX54: =+'INM-FEM'!AG52+'INM-AC'!AA51 -> 0.00 | AY54: =+'INM-FEM'!AH52+'INM-AC'!AB51 -> 0.00 | AZ54: 0.00 | BH54: 0.00
A55: 1.06.01 | B55: Seguros | C55: 4,650,000.00 | D55: 0.00 | F55: -1,273,000.00 | G55: 3,377,000.00 | H55: 1,000,000.00 | I55: ='CK GASTOS INM MES 1'!AR$126 -> 0 | J55: ='CK GASTOS INM MES 2'!AR$193 -> 0 | K55: ='CK GASTOS INM MES 3'!AR$56 -> 0.00 | L55: 0.00 | M55: 1,000,000.00 | N55: =+'Cert.INM-FEM'!AQ373 -> 3,377,000.00 | O55: -2,377,000.00 | P55: 2,377,000.00 | Q55: 0.00 | R55: 0.00 | U55: -1,273,000.00 | AT55: -1,273,000.00 | AU55: =+'INM-FEM'!AD53+'INM-AC'!X52 -> 0.00 | AV55: =+'INM-FEM'!AE53+'INM-AC'!Y52 -> 0.00 | AW55: =+'INM-FEM'!AF53+'INM-AC'!Z52 -> 0.00 | AX55: =+'INM-FEM'!AG53+'INM-AC'!AA52 -> 0.00 | AY55: =+'INM-FEM'!AH53+'INM-AC'!AB52 -> 0.00 | AZ55: 0.00 | BH55: 0.00
A56: 1.07.01 | B56: Actividades de capacitación | D56: 0.00 | F56: 0.00 | G56: 0.00 | H56: 0.00 | I56: ='CK GASTOS INM MES 1'!AS$126 -> 0 | J56: ='CK GASTOS INM MES 2'!AS$193 -> 0 | K56: ='CK GASTOS INM MES 3'!AS$56 -> 0.00 | L56: 0.00 | M56: 0.00 | N56: =+'Cert.INM-FEM'!AR373 -> 0.00 | O56: 0.00 | P56: 0.00 | Q56: 0.00 | R56: 0.00 | AT56: 0.00 | AU56: =+'INM-FEM'!AD54+'INM-AC'!X53 -> 0.00 | AV56: =+'INM-FEM'!AE54+'INM-AC'!Y53 -> 0.00 | AW56: =+'INM-FEM'!AF54+'INM-AC'!Z53 -> 0.00 | AX56: =+'INM-FEM'!AG54+'INM-AC'!AA53 -> 0.00 | AY56: =+'INM-FEM'!AH54+'INM-AC'!AB53 -> 0.00 | AZ56: 0.00 | BH56: 0.00
A57: 1.07.02 | B57: Actividades protocolarias y sociales | D57: 0.00 | F57: 0.00 | G57: 0.00 | H57: 0.00 | I57: ='CK GASTOS INM MES 1'!AT$126 -> 0 | J57: ='CK GASTOS INM MES 2'!AT$193 -> 0 | K57: ='CK GASTOS INM MES 3'!AT$56 -> 0.00 | L57: 0.00 | M57: 0.00 | N57: =+'Cert.INM-FEM'!AS373 -> 0.00 | O57: 0.00 | P57: 0.00 | Q57: 0.00 | R57: 0.00 | AT57: 0.00 | AU57: =+'INM-FEM'!AD55+'INM-AC'!X54 -> 0.00 | AV57: =+'INM-FEM'!AE55+'INM-AC'!Y54 -> 0.00 | AW57: =+'INM-FEM'!AF55+'INM-AC'!Z54 -> 0.00 | AX57: =+'INM-FEM'!AG55+'INM-AC'!AA54 -> 0.00 | AY57: =+'INM-FEM'!AH55+'INM-AC'!AB54 -> 0.00 | AZ57: 0.00 | BH57: 0.00
A58: 1.07.03 | B58: Gastos de representación institucional | D58: 0.00 | F58: 0.00 | G58: 0.00 | K58: ='CK GASTOS INM MES 3'!AT$56 -> 0.00 | N58: =+'Cert.INM-FEM'!AT373 -> 0.00 | O58: 0.00 | P58: 0.00 | Q58: 0.00 | R58: 0.00 | AT58: 0.00
A59: 1.08.01 | B59: Mantenimiento de edificios y locales | D59: 0.00 | F59: 0.00 | G59: 0.00 | H59: 0.00 | I59: ='CK GASTOS INM MES 1'!AU$126 -> 0 | J59: ='CK GASTOS INM MES 2'!AU$193 -> 0 | K59: ='CK GASTOS INM MES 3'!AU$56 -> 0.00 | L59: 0.00 | M59: =+L59+H59 -> 0.00 | N59: =+'Cert.INM-FEM'!AU373 -> 0.00 | O59: 0.00 | P59: 0.00 | Q59: 0.00 | R59: 0.00 | AT59: 0.00 | AU59: =+'INM-FEM'!AD56+'INM-AC'!X55 -> 0.00 | AV59: =+'INM-FEM'!AE56+'INM-AC'!Y55 -> 0.00 | AW59: =+'INM-FEM'!AF56+'INM-AC'!Z55 -> 0.00 | AX59: =+'INM-FEM'!AG56+'INM-AC'!AA55 -> 0.00 | AY59: =+'INM-FEM'!AH56+'INM-AC'!AB55 -> 0.00 | AZ59: 0.00 | BH59: 0.00
A60: 1.08.04 | B60: Mantenimiento y repracion de equipo de produccion | D60: 0.00 | F60: 0.00 | G60: 0.00 | H60: 0.00 | I60: ='CK GASTOS INM MES 1'!AV$126 -> 0 | J60: ='CK GASTOS INM MES 2'!AV$193 -> 0 | K60: ='CK GASTOS INM MES 3'!AV$56 -> 0.00 | L60: 0.00 | M60: 0.00 | N60: =+'Cert.INM-FEM'!AV373 -> 0.00 | O60: 0.00 | P60: 0.00 | Q60: 0.00 | R60: 0.00 | AT60: 0.00 | AU60: =+'INM-FEM'!AD57+'INM-AC'!X56 -> 0.00 | AV60: =+'INM-FEM'!AE57+'INM-AC'!Y56 -> 0.00 | AW60: =+'INM-FEM'!AF57+'INM-AC'!Z56 -> 0.00 | AX60: =+'INM-FEM'!AG57+'INM-AC'!AA56 -> 0.00 | AY60: =+'INM-FEM'!AH57+'INM-AC'!AB56 -> 0.00 | AZ60: 0.00 | BH60: 0.00
A61: 1.08.05 | B61: Mant. y rep. de equipo de transporte | D61: 0.00 | F61: 0.00 | G61: 0.00 | H61: 0.00 | I61: ='CK GASTOS INM MES 1'!AW$126 -> 0 | J61: ='CK GASTOS INM MES 2'!AW$193 -> 0 | K61: ='CK GASTOS INM MES 3'!AW$56 -> 0.00 | L61: 0.00 | M61: 0.00 | N61: =+'Cert.INM-FEM'!AW373 -> 0.00 | O61: 0.00 | P61: 0.00 | Q61: 0.00 | R61: 0.00 | AT61: 0.00 | AU61: =+'INM-FEM'!AD58+'INM-AC'!X57 -> 0.00 | AV61: =+'INM-FEM'!AE58+'INM-AC'!Y57 -> 0.00 | AW61: =+'INM-FEM'!AF58+'INM-AC'!Z57 -> 0.00 | AX61: =+'INM-FEM'!AG58+'INM-AC'!AA57 -> 0.00 | AY61: =+'INM-FEM'!AH58+'INM-AC'!AB57 -> 0.00 | AZ61: 0.00 | BH61: 0.00
A62: 1.08.06 | B62: Mant. y rep. de equipo de comunicación | D62: 0.00 | F62: 0.00 | G62: 0.00 | H62: 0.00 | I62: ='CK GASTOS INM MES 1'!AX$126 -> 0 | J62: ='CK GASTOS INM MES 2'!AX$193 -> 0 | K62: ='CK GASTOS INM MES 3'!AX$56 -> 0.00 | L62: 0.00 | M62: 0.00 | N62: =+'Cert.INM-FEM'!AX373 -> 0.00 | O62: 0.00 | P62: 0.00 | Q62: 0.00 | R62: 0.00 | AT62: 0.00 | AU62: =+'INM-FEM'!AD59+'INM-AC'!X58 -> 0.00 | AV62: =+'INM-FEM'!AE59+'INM-AC'!Y58 -> 0.00 | AW62: =+'INM-FEM'!AF59+'INM-AC'!Z58 -> 0.00 | AX62: =+'INM-FEM'!AG59+'INM-AC'!AA58 -> 0.00 | AY62: =+'INM-FEM'!AH59+'INM-AC'!AB58 -> 0.00 | AZ62: 0.00 | BH62: 0.00
A63: 1.08.07 | B63: Mant. y rep. de equipo y mob. de oficina | D63: 0.00 | F63: 0.00 | G63: 0.00 | H63: 0.00 | I63: ='CK GASTOS INM MES 1'!AY$126 -> 0 | J63: ='CK GASTOS INM MES 2'!AY$193 -> 0 | K63: ='CK GASTOS INM MES 3'!AY$56 -> 0.00 | L63: 0.00 | M63: 0.00 | N63: =+'Cert.INM-FEM'!AY373 -> 0.00 | O63: 0.00 | P63: 0.00 | Q63: 0.00 | R63: 0.00 | AT63: 0.00 | AU63: =+'INM-FEM'!AD60+'INM-AC'!X59 -> 0.00 | AV63: =+'INM-FEM'!AE60+'INM-AC'!Y59 -> 0.00 | AW63: =+'INM-FEM'!AF60+'INM-AC'!Z59 -> 0.00 | AX63: =+'INM-FEM'!AG60+'INM-AC'!AA59 -> 0.00 | AY63: =+'INM-FEM'!AH60+'INM-AC'!AB59 -> 0.00 | AZ63: 0.00 | BH63: 0.00
A64: 1.08.08 | B64: Mant. y rep. de equipo de cómputo y sistemas de información | D64: 0.00 | F64: 0.00 | G64: 0.00 | H64: 0.00 | I64: ='CK GASTOS INM MES 1'!AZ$126 -> 0 | J64: ='CK GASTOS INM MES 2'!AZ$193 -> 0 | K64: ='CK GASTOS INM MES 3'!AZ$56 -> 0.00 | L64: 0.00 | M64: 0.00 | N64: =+'Cert.INM-FEM'!AZ373 -> 0.00 | O64: 0.00 | P64: 0.00 | Q64: 0.00 | R64: 0.00 | AT64: 0.00 | AU64: =+'INM-FEM'!AD61+'INM-AC'!X60 -> 0.00 | AV64: =+'INM-FEM'!AE61+'INM-AC'!Y60 -> 0.00 | AW64: =+'INM-FEM'!AF61+'INM-AC'!Z60 -> 0.00 | AX64: =+'INM-FEM'!AG61+'INM-AC'!AA60 -> 0.00 | AY64: =+'INM-FEM'!AH61+'INM-AC'!AB60 -> 0.00 | AZ64: 0.00 | BH64: 0.00
A65: 1.08.99 | B65: Mantenimiento y reparación de otros equipos | C65: 2,000,000.00 | D65: 0.00 | F65: 0.00 | G65: 2,000,000.00 | H65: 0.00 | I65: ='CK GASTOS INM MES 1'!BA$126 -> 0 | J65: ='CK GASTOS INM MES 2'!BA$193 -> 0 | K65: ='CK GASTOS INM MES 3'!BA$56 -> 0.00 | L65: 0.00 | M65: 0.00 | N65: =+'Cert.INM-FEM'!BA373 -> 2,000,000.00 | O65: -2,000,000.00 | P65: 2,000,000.00 | Q65: 0.00 | R65: 0.00 | AT65: 0.00 | AU65: =+'INM-FEM'!AD62+'INM-AC'!X61 -> 0.00 | AV65: =+'INM-FEM'!AE62+'INM-AC'!Y61 -> 0.00 | AW65: =+'INM-FEM'!AF62+'INM-AC'!Z61 -> 0.00 | AX65: =+'INM-FEM'!AG62+'INM-AC'!AA61 -> 0.00 | AY65: =+'INM-FEM'!AH62+'INM-AC'!AB61 -> 0.00 | AZ65: 0.00 | BH65: 0.00
A66: 1.09.02 | B66: Impuestos sobre bienes inmuebles | D66: 0.00 | F66: 0.00 | G66: 0.00 | H66: 0.00 | I66: ='CK GASTOS INM MES 1'!BB$126 -> 0 | J66: ='CK GASTOS INM MES 2'!BB$193 -> 0 | K66: ='CK GASTOS INM MES 3'!BB$56 -> 0.00 | L66: 0.00 | M66: 0.00 | N66: =+'Cert.INM-FEM'!BB374 -> 0.00 | O66: 0.00 | P66: 0.00 | Q66: 0.00 | R66: 0.00 | AT66: 0.00 | BH66: 0.00
A67: 1.09.99 | B67: Otros impuestos | D67: 0.00 | F67: 0.00 | G67: 0.00
A68: 1.99.02 | B68: Multas | D68: 0.00 | F68: 0.00 | G68: 0.00 | H68: 0.00 | I68: ='CK GASTOS INM MES 1'!BC$126 -> 0 | J68: ='CK GASTOS INM MES 2'!BC$193 -> 0 | K68: ='CK GASTOS INM MES 3'!BC$56 -> 0.00 | L68: 0.00 | M68: =+L68+H68 -> 0.00 | N68: =+'Cert.INM-FEM'!BC373 -> 0.00 | O68: =IF(N68>0,(M68-N68),0) -> 0.00 | P68: =G68-M68 -> 0.00 | Q68: 0.00 | R68: =IF(O68>0,(G68-M68-O68),(G68-M68+O68)) -> 0.00 | AT68: 0.00 | AU68: =+'INM-FEM'!AD63+'INM-AC'!X62 -> 0.00 | AV68: =+'INM-FEM'!AE63+'INM-AC'!Y62 -> 0.00 | AW68: =+'INM-FEM'!AF63+'INM-AC'!Z62 -> 0.00 | AX68: =+'INM-FEM'!AG63+'INM-AC'!AA62 -> 0.00 | AY68: =+'INM-FEM'!AH63+'INM-AC'!AB62 -> 0.00 | AZ68: 0.00 | BA68: =+'INM-FEM'!AJ63+'INM-AC'!AD62 -> 0.00 | BC68: =+'INM-FEM'!AL63+'INM-AC'!AF62 -> 0.00 | BH68: 0.00
A69: 1.99.99 | B69: Otros servicios no especificados | D69: 0.00 | F69: 0.00 | G69: 0.00 | H69: 0.00 | I69: ='CK GASTOS INM MES 1'!BD$126 -> 0 | J69: ='CK GASTOS INM MES 2'!BD$193 -> 0 | K69: ='CK GASTOS INM MES 3'!BD$56 -> 0.00 | L69: 0.00 | M69: =+L69+H69 -> 0.00 | N69: =+'Cert.INM-FEM'!BD408 -> 0.00 | O69: =IF(N69>0,(M69-N69),0) -> 0.00 | P69: =G69-M69 -> 0.00 | Q69: 0.00 | R69: =IF(O69>0,(G69-M69-O69),(G69-M69+O69)) -> 0.00 | AT69: 0.00 | AU69: =+'INM-FEM'!AD64+'INM-AC'!X63 -> 0.00 | AV69: =+'INM-FEM'!AE64+'INM-AC'!Y63 -> 0.00 | AW69: =+'INM-FEM'!AF64+'INM-AC'!Z63 -> 0.00 | AX69: =+'INM-FEM'!AG64+'INM-AC'!AA63 -> 0.00 | AY69: =+'INM-FEM'!AH64+'INM-AC'!AB63 -> 0.00 | AZ69: 0.00 | BA69: =+'INM-FEM'!AJ64+'INM-AC'!AD63 -> 0.00 | BC69: =+'INM-FEM'!AL64+'INM-AC'!AF63 -> 0.00 | BH69: 0.00
A71: 2 | B71: MATERIALES Y SUMINISTROS | C71: =SUM(C73:C92) -> 3,000,000.00 | D71: =SUM(D73:D92) -> 0.00 | E71: 0.00 | F71: 0.00 | G71: =SUM(G73:G92) -> 3,000,000.00 | H71: 729,487.94 | I71: =SUM(I73:I92) -> 375,582.79 | J71: =SUM(J73:J92) -> 101,479.53 | K71: =SUM(K73:K92) -> 502,950.61 | L71: =SUM(L73:L92) -> 980,012.93 | M71: =SUM(M73:M92) -> 1,709,500.87 | N71: 2,801,509.66 | O71: -1,092,008.79 | P71: 1,290,499.13 | Q71: 198,490.34 | R71: 198,490.34 | S71: 0.00 | T71: =SUM(T73:T92) -> 0.00 | U71: 0.00 | V71: 0.00 | W71: 0.00 | X71: 0.00 | Y71: 0.00 | Z71: 0.00 | AA71: 0.00 | AB71: 0.00 | AC71: 0.00 | AD71: 0.00 | AE71: =SUM(AE73:AE92) -> 0.00 | AF71: =SUM(AF73:AF92) -> 0.00 | AG71: =SUM(AG73:AG92) -> 0.00 | AI71: =SUM(AI73:AI92) -> 0.00 | AJ71: 0.00 | AK71: 0.00 | AL71: 0.00 | AM71: 0.00 | AN71: 0.00 | AO71: 0.00 | AP71: 0.00 | AQ71: 0.00 | AT71: 0.00 | AU71: 0.00 | AV71: 0.00 | AW71: 0.00 | AX71: 0.00 | AY71: 0.00 | AZ71: 0.00 | BA71: 0.00 | BB71: 0.00 | BC71: 0.00 | BD71: 0.00 | BE71: 0.00 | BF71: 0.00 | BG71: 0.00 | BH71: 0.00
A73: 2.01.01 | B73: Combustibles y lubricantes | D73: =+BH73 -> 0.00 | F73: =+AT73 -> 0.00 | G73: =+C73+D73+F73+E73 -> 0.00 | H73: 0.00 | I73: ='CK GASTOS INM MES 1'!BE$126 -> 0.00 | J73: ='CK GASTOS INM MES 2'!BE$193 -> 0 | K73: ='CK GASTOS INM MES 3'!BE$56 -> 0.00 | L73: =SUM(I73:K73) -> 0.00 | M73: =+L73+H73 -> 0.00 | N73: =+'Cert.INM-FEM'!BE373 -> 0.00 | O73: =IF(N73>0,(M73-N73),0) -> 0.00 | P73: =G73-M73 -> 0.00 | Q73: =G73-N73 -> 0.00 | R73: =IF(O73>0,(G73-M73-O73),(G73-M73+O73)) -> 0.00 | AT73: =SUM(S73:AS73) -> 0.00 | AU73: =+'INM-FEM'!AD68+'INM-AC'!X67 -> 0.00 | AV73: =+'INM-FEM'!AE68+'INM-AC'!Y67 -> 0.00 | AW73: =+'INM-FEM'!AF68+'INM-AC'!Z67 -> 0.00 | AX73: =+'INM-FEM'!AG68+'INM-AC'!AA67 -> 0.00 | AY73: =+'INM-FEM'!AH68+'INM-AC'!AB67 -> 0.00 | AZ73: =+AU73+AV73+AW73+AX73+AY73 -> 0.00 | BA73: =+'INM-FEM'!AJ68+'INM-AC'!AD67 -> 0.00 | BC73: =+'INM-FEM'!AL68+'INM-AC'!AF67 -> 0.00 | BH73: =SUM(BA73:BF73) -> 0.00
